Workbook

Sheet Front sheet
B1: Comparisons workbook
A2: Do Not Insert Rows or Columns Within the Blue Block
E4: Names of models being compared | F4: Model | G4: Company | H4: Scenario Short Text | I4: Scenario Description
E5: Name of model 1 (left-hand model) | F5: Model 1 | G5: ANH | H5: Company 1 April NTN Post
E6: Name of model 2 (middle model) | F6: Model 2 | G6: ANH | H6: Ofwat FD NTN Post
E7: Name of model 3 (right-hand model) | F7: Model 3 | G7: NA | H7: NA | I7: NA
A9: End of block
B11: This is a standard workbook to perform comparisons between versions of the financial model.
B13: Please briefly label ad hoc workings you have performed so they can be found and understood by other users.
B15: Each version of the financial model should have its own associated copy of this workbook so that changes do not unintentionally affect other versions. This should have the same label as the associated financial model.
B17: The workbook contains a goal seek macro template. It has been designed so that the sheet can be copied within the workbook to be used for different calculations.
B20: Comparison worksheets
B21: Exec Summary
B22: FinStat_Appointee
B23: FinStat_Wholesale
B24: FinStat_Retail
B25: FinStat_Water Resources
B26: FinStat_Water Network
B27: FinStat_Wastewater Network
B28: FinStat_Bio Resources
B29: FinStat_Dummy control
B31: Change
B32: Added alternative ratios
B33: Relinked to shifted rows in Exec_Summary
B34: Added goalseek macro
B35: Relnked for models 17z(Fast DD) 18z(slow DD) and 19z(FD)
A41: End of sheet

Sheet Exec Summary
E1: =RIGHT(CELL("FILENAME", $A$1), LEN(CELL("FILENAME", $A$1)) - SEARCH("]", CELL("FILENAME", $A$1))) -> Exec Summary | I1: ='Front sheet'!$F5 & ": " & 'Front sheet'!$G5 & " - " & 'Front sheet'!$H5 -> Model 1: ANH - Company 1 April NTN Post | S1: ='Front sheet'!$F6 & ": " & 'Front sheet'!$G6 & " - " & 'Front sheet'!$H6 -> Model 2: ANH - Ofwat FD NTN Post | AC1: ="Delta (" & 'Front sheet'!$F5 & " - " & 'Front sheet'!$F6 & ")" -> Delta (Model 1 - Model 2) | AM1: ="Delta (" & 'Front sheet'!$F5 & " - " & 'Front sheet'!$F6 & ") - %" -> Delta (Model 1 - Model 2) - %
D3: Model period ending | I3: 2019-03-31 | J3: 2020-03-31 | K3: 2021-03-31 | L3: 2022-03-31 | M3: 2023-03-31 | N3: 2024-03-31 | O3: 2025-03-31 | P3: 2021-25 | Q3: 2021-25 | S3: 2019-03-31 | T3: 2020-03-31 | U3: 2021-03-31 | V3: 2022-03-31 | W3: 2023-03-31 | X3: 2024-03-31 | Y3: 2025-03-31 | Z3: 2021-25 | AA3: 2021-25 | AC3: 2019-03-31 | AD3: 2020-03-31 | AE3: 2021-03-31 | AF3: 2022-03-31 | AG3: 2023-03-31 | AH3: 2024-03-31 | AI3: 2025-03-31 | AK3: 2021-25 | AM3: 2019-03-31 | AN3: 2020-03-31 | AO3: 2021-03-31 | AP3: 2022-03-31 | AQ3: 2023-03-31 | AR3: 2024-03-31 | AS3: 2025-03-31 | AU3: 2021-25
D4: Timeline label | I4: Pre-Fcst | J4: Pre-Fcst | K4: Forecast | L4: Forecast | M4: Forecast | N4: Forecast | O4: Forecast | P4: 5y ave | Q4: Forecast | S4: Pre-Fcst | T4: Pre-Fcst | U4: Forecast | V4: Forecast | W4: Forecast | X4: Forecast | Y4: Forecast | Z4: 5y ave | AA4: Forecast | AC4: Pre-Fcst | AD4: Pre-Fcst | AE4: Forecast | AF4: Forecast | AG4: Forecast | AH4: Forecast | AI4: Forecast | AK4: Forecast | AM4: Pre-Fcst | AN4: Pre-Fcst | AO4: Forecast | AP4: Forecast | AQ4: Forecast | AR4: Forecast | AS4: Forecast | AU4: Forecast
D5: Financial year ending | I5: 2019 | J5: 2020 | K5: 2021 | L5: 2022 | M5: 2023 | N5: 2024 | O5: 2025 | S5: 2019 | T5: 2020 | U5: 2021 | V5: 2022 | W5: 2023 | X5: 2024 | Y5: 2025 | AC5: 2019 | AD5: 2020 | AE5: 2021 | AF5: 2022 | AG5: 2023 | AH5: 2024 | AI5: 2025 | AM5: 2019 | AN5: 2020 | AO5: 2021 | AP5: 2022 | AQ5: 2023 | AR5: 2024 | AS5: 2025
D6: Model column counter | I6: 1 | J6: 2 | K6: 3 | L6: 4 | M6: 5 | N6: 6 | O6: 7 | S6: 1 | T6: 2 | U6: 3 | V6: 4 | W6: 5 | X6: 6 | Y6: 7 | AC6: 1 | AD6: 2 | AE6: 3 | AF6: 4 | AG6: 5 | AH6: 6 | AI6: 7 | AM6: 1 | AN6: 2 | AO6: 3 | AP6: 4 | AQ6: 5 | AR6: 6 | AS6: 7
E8: ='Front sheet'!$F5 & ": " & 'Front sheet'!$G5 & " - " & 'Front sheet'!$I5 -> Model 1: ANH -
E9: ='Front sheet'!$F6 & ": " & 'Front sheet'!$G6 & " - " & 'Front sheet'!$I6 -> Model 2: ANH -
E10: 3rd model not in use
D12: Check Delta (numbers) | AC12: =COUNTIF(AC19:AC426,"<>0") - COUNTBLANK(AC19:AC426) - AC13 -> 9 | AD12: 40 | AE12: 141 | AF12: 153 | AG12: 156 | AH12: 148 | AI12: 146 | AK12: =COUNTIF(AK19:AK426,"<>0") - COUNTBLANK(AK19:AK426) - AK13 -> 117 | AM12: =COUNTIF(AM19:AM426,"<>0") - COUNTBLANK(AM19:AM426) - AM13 -> 1 | AN12: 11 | AO12: 131 | AP12: 149 | AQ12: 151 | AR12: 140 | AS12: 138 | AU12: =COUNTIF(AU19:AU426,"<>0") - COUNTBLANK(AU19:AU426) - AU13 -> 117
D13: Check Delta (errors) | AC13: =COUNT( IF( ISERROR(AC19:AC303), 1) ) -> 2 | AD13: =COUNT( IF( ISERROR(AD19:AD303), 1) ) -> 2 | AE13: =COUNT( IF( ISERROR(AE19:AE303), 1) ) -> 2 | AF13: =COUNT( IF( ISERROR(AF19:AF303), 1) ) -> 2 | AG13: =COUNT( IF( ISERROR(AG19:AG303), 1) ) -> 2 | AH13: =COUNT( IF( ISERROR(AH19:AH303), 1) ) -> 2 | AI13: =COUNT( IF( ISERROR(AI19:AI303), 1) ) -> 2 | AK13: =COUNT( IF( ISERROR(AK19:AK303), 1) ) -> 0 | AM13: =COUNT( IF( ISERROR(AM19:AM303), 1) ) -> 2 | AN13: =COUNT( IF( ISERROR(AN19:AN303), 1) ) -> 2 | AO13: =COUNT( IF( ISERROR(AO19:AO303), 1) ) -> 2 | AP13: =COUNT( IF( ISERROR(AP19:AP303), 1) ) -> 2 | AQ13: =COUNT( IF( ISERROR(AQ19:AQ303), 1) ) -> 2 | AR13: =COUNT( IF( ISERROR(AR19:AR303), 1) ) -> 2 | AS13: =COUNT( IF( ISERROR(AS19:AS303), 1) ) -> 2 | AU13: =COUNT( IF( ISERROR(AU19:AU303), 1) ) -> 0
A15: PRICE CONTROLS
B17: Wholesale
C18: Water
E19: Water resources - Allowed Revenues - real | F19: 0 | G19: £m | I19: ='[1]Exec Summary'!$J$17 -> 0 | J19: ='[1]Exec Summary'!$K$17 -> 0 | K19: ='[1]Exec Summary'!$L$17 -> 59.64609354 | L19: ='[1]Exec Summary'!$M$17 -> 61.50965626 | M19: ='[1]Exec Summary'!$N$17 -> 59.73200731 | N19: ='[1]Exec Summary'!$O$17 -> 58.89538526 | O19: ='[1]Exec Summary'!$P$17 -> 55.7059406 | P19: =AVERAGE(K19:O19) -> 59.0978166 | Q19: ='[1]Exec Summary'!$W$17 -> 295.489083 | S19: ='[2]Exec Summary'!$J$17 -> 0 | T19: ='[2]Exec Summary'!$K$17 -> 0 | U19: ='[2]Exec Summary'!$L$17 -> 52.27437673 | V19: ='[2]Exec Summary'!$M$17 -> 51.46616549 | W19: ='[2]Exec Summary'!$N$17 -> 53.42332532 | X19: ='[2]Exec Summary'!$O$17 -> 54.51507713 | Y19: ='[2]Exec Summary'!$P$17 -> 54.00070722 | Z19: =AVERAGE(U19:Y19) -> 53.13593038 | AA19: ='[2]Exec Summary'!$W$17 -> 265.6796519 | AC19: =ROUND(I19 - S19, 3) -> 0 | AD19: =ROUND(J19 - T19, 3) -> 0 | AE19: =ROUND(K19 - U19, 3) -> 7.372 | AF19: =ROUND(L19 - V19, 3) -> 10.043 | AG19: =ROUND(M19 - W19, 3) -> 6.309 | AH19: =ROUND(N19 - X19, 3) -> 4.38 | AI19: =ROUND(O19 - Y19, 3) -> 1.705 | AK19: =ROUND(Q19 - AA19, 3) -> 29.809 | AM19: =IF(S19 = 0, 0, AC19 / S19) -> 0 | AN19: =IF(T19 = 0, 0, AD19 / T19) -> 0 | AO19: =IF(U19 = 0, 0, AE19 / U19) -> 0.1410251152 | AP19: =IF(V19 = 0, 0, AF19 / V19) -> 0.1951379106 | AQ19: =IF(W19 = 0, 0, AG19 / W19) -> 0.1180944833 | AR19: =IF(X19 = 0, 0, AH19 / X19) -> 0.08034474554 | AS19: =IF(Y19 = 0, 0, AI19 / Y19) -> 0.03157366056 | AU19: =IF(AA19 = 0, 0, AK19 / AA19) -> 0.1121990329
E20: Water resources - K - periodic | F20: 0 | G20: % | I20: ='[1]Exec Summary'!$J$18 -> 0 | J20: ='[1]Exec Summary'!$K$18 -> 0 | K20: ='[1]Exec Summary'!$L$18 -> 0 | L20: ='[1]Exec Summary'!$M$18 -> 0.0319 | M20: ='[1]Exec Summary'!$N$18 -> -0.0294 | N20: ='[1]Exec Summary'!$O$18 -> -0.0142 | O20: ='[1]Exec Summary'!$P$18 -> -0.0552 | P20: =AVERAGE(K20:O20) -> -0.01338 | Q20: ='[1]Exec Summary'!$W$18 -> -0.0169 | S20: ='[2]Exec Summary'!$J$18 -> 0 | T20: ='[2]Exec Summary'!$K$18 -> 0 | U20: ='[2]Exec Summary'!$L$18 -> 0 | V20: ='[2]Exec Summary'!$M$18 -> -0.0156 | W20: ='[2]Exec Summary'!$N$18 -> 0.0396 | X20: ='[2]Exec Summary'!$O$18 -> 0.021 | Y20: ='[2]Exec Summary'!$P$18 -> -0.0096 | Z20: =AVERAGE(U20:Y20) -> 0.00708 | AA20: ='[2]Exec Summary'!$W$18 -> 0.0084 | AC20: 0 | AD20: 0 | AE20: 0 | AF20: 0.048 | AG20: -0.069 | AH20: -0.035 | AI20: =ROUND(O20 - Y20, 3) -> -0.046 | AK20: -0.025 | AM20: 0 | AN20: 0 | AO20: 0 | AP20: -3.076923077 | AQ20: -1.742424242 | AR20: -1.666666667 | AS20: 4.791666667 | AU20: -2.976190476
AC21: 0 | AD21: 0 | AE21: 0 | AF21: 0 | AG21: 0 | AH21: 0 | AI21: 0 | AK21: 0 | AM21: 0 | AN21: 0 | AO21: 0 | AP21: 0 | AQ21: 0 | AR21: 0 | AS21: 0 | AU21: 0
E22: Water network - Allowed Revenues - real | F22: 0 | G22: £m | I22: ='[1]Exec Summary'!$J$20 -> 0 | J22: ='[1]Exec Summary'!$K$20 -> 0 | K22: ='[1]Exec Summary'!$L$20 -> 448.0760619 | L22: ='[1]Exec Summary'!$M$20 -> 470.4996816 | M22: ='[1]Exec Summary'!$N$20 -> 480.191704 | N22: ='[1]Exec Summary'!$O$20 -> 492.512209 | O22: ='[1]Exec Summary'!$P$20 -> 492.1816481 | P22: =AVERAGE(K22:O22) -> 476.6922609 | Q22: ='[1]Exec Summary'!$W$20 -> 2383.461305 | S22: ='[2]Exec Summary'!$J$20 -> 0 | T22: ='[2]Exec Summary'!$K$20 -> 0 | U22: ='[2]Exec Summary'!$L$20 -> 408.168147 | V22: ='[2]Exec Summary'!$M$20 -> 424.9697677 | W22: ='[2]Exec Summary'!$N$20 -> 424.5281552 | X22: ='[2]Exec Summary'!$O$20 -> 424.5851874 | Y22: ='[2]Exec Summary'!$P$20 -> 421.8972948 | Z22: =AVERAGE(U22:Y22) -> 420.8297104 | AA22: ='[2]Exec Summary'!$W$20 -> 2104.148552 | AC22: 0 | AD22: 0 | AE22: 39.908 | AF22: 45.53 | AG22: 55.664 | AH22: 67.927 | AI22: 70.284 | AK22: 279.313 | AM22: 0 | AN22: 0 | AO22: 0.09777343061 | AP22: 0.1071370329 | AQ22: 0.1311196898 | AR22: 0.1599843848 | AS22: 0.1665903073 | AU22: 0.1327439547
E23: Water network - K - periodic | F23: 0 | G23: % | I23: ='[1]Exec Summary'!$J$21 -> 0 | J23: ='[1]Exec Summary'!$K$21 -> 0 | K23: ='[1]Exec Summary'!$L$21 -> 0 | L23: ='[1]Exec Summary'!$M$21 -> 0.0511 | M23: ='[1]Exec Summary'!$N$21 -> 0.0211 | N23: ='[1]Exec Summary'!$O$21 -> 0.0262 | O23: ='[1]Exec Summary'!$P$21 -> -0.0006 | P23: =AVERAGE(K23:O23) -> 0.01956 | Q23: ='[1]Exec Summary'!$W$21 -> 0.0238 | S23: ='[2]Exec Summary'!$J$21 -> 0 | T23: ='[2]Exec Summary'!$K$21 -> 0 | U23: ='[2]Exec Summary'!$L$21 -> 0 | V23: ='[2]Exec Summary'!$M$21 -> 0.0422 | W23: ='[2]Exec Summary'!$N$21 -> -0.0003 | X23: ='[2]Exec Summary'!$O$21 -> 0.0003 | Y23: ='[2]Exec Summary'!$P$21 -> -0.0064 | Z23: =AVERAGE(U23:Y23) -> 0.00716 | AA23: ='[2]Exec Summary'!$W$21 -> 0.0086 | AC23: 0 | AD23: 0 | AE23: 0 | AF23: 0.009 | AG23: 0.021 | AH23: 0.026 | AI23: 0.006 | AK23: 0.015 | AM23: 0 | AN23: 0 | AO23: 0 | AP23: 0.2132701422 | AQ23: -70 | AR23: 86.66666667 | AS23: -0.9375 | AU23: 1.744186047
AC24: 0 | AD24: 0 | AE24: 0 | AF24: 0 | AG24: 0 | AH24: 0 | AI24: 0 | AK24: 0 | AM24: 0 | AN24: 0 | AO24: 0 | AP24: 0 | AQ24: 0 | AR24: 0 | AS24: 0 | AU24: 0
E25: Water - Allowed Revenues - real | F25: 0 | G25: £m | I25: ='[1]Exec Summary'!$J$23 -> 0 | J25: ='[1]Exec Summary'!$K$23 -> 0 | K25: ='[1]Exec Summary'!$L$23 -> 507.7221554 | L25: ='[1]Exec Summary'!$M$23 -> 532.0093379 | M25: ='[1]Exec Summary'!$N$23 -> 539.9237113 | N25: ='[1]Exec Summary'!$O$23 -> 551.4075942 | O25: ='[1]Exec Summary'!$P$23 -> 547.8875887 | P25: =AVERAGE(K25:O25) -> 535.7900775 | Q25: ='[1]Exec Summary'!$W$23 -> 2678.950388 | S25: ='[2]Exec Summary'!$J$23 -> 0 | T25: ='[2]Exec Summary'!$K$23 -> 0 | U25: ='[2]Exec Summary'!$L$23 -> 460.4425237 | V25: ='[2]Exec Summary'!$M$23 -> 476.4359332 | W25: ='[2]Exec Summary'!$N$23 -> 477.9514805 | X25: ='[2]Exec Summary'!$O$23 -> 479.1002646 | Y25: ='[2]Exec Summary'!$P$23 -> 475.898002 | Z25: =AVERAGE(U25:Y25) -> 473.9656408 | AA25: ='[2]Exec Summary'!$W$23 -> 2369.828204 | AC25: 0 | AD25: 0 | AE25: 47.28 | AF25: 55.573 | AG25: 61.972 | AH25: 72.307 | AI25: 71.99 | AK25: 309.122 | AM25: 0 | AN25: 0 | AO25: 0.102683826 | AP25: 0.1166431751 | AQ25: 0.1296616969 | AR25: 0.1509224798 | AS25: 0.1512719106 | AU25: 0.130440679
E26: Water - K | F26: 0 | G26: % | I26: ='[1]Exec Summary'!$J$24 -> 0 | J26: ='[1]Exec Summary'!$K$24 -> 0 | K26: ='[1]Exec Summary'!$L$24 -> 0 | L26: ='[1]Exec Summary'!$M$24 -> 0.0488 | M26: ='[1]Exec Summary'!$N$24 -> 0.0152 | N26: ='[1]Exec Summary'!$O$24 -> 0.0217 | O26: ='[1]Exec Summary'!$P$24 -> -0.0065 | P26: =AVERAGE(K26:O26) -> 0.01584 | Q26: ='[1]Exec Summary'!$W$24 -> 0.0193 | S26: ='[2]Exec Summary'!$J$24 -> 0 | T26: ='[2]Exec Summary'!$K$24 -> 0 | U26: ='[2]Exec Summary'!$L$24 -> 0 | V26: ='[2]Exec Summary'!$M$24 -> 0.0356 | W26: ='[2]Exec Summary'!$N$24 -> 0.004 | X26: ='[2]Exec Summary'!$O$24 -> 0.0026 | Y26: ='[2]Exec Summary'!$P$24 -> -0.0068 | Z26: =AVERAGE(U26:Y26) -> 0.00708 | AA26: ='[2]Exec Summary'!$W$24 -> 0.0086 | AC26: 0 | AD26: 0 | AE26: 0 | AF26: 0.013 | AG26: 0.011 | AH26: 0.019 | AI26: 0 | AK26: 0.011 | AM26: 0 | AN26: 0 | AO26: 0 | AP26: 0.3651685393 | AQ26: 2.75 | AR26: 7.307692308 | AS26: 0 | AU26: 1.279069767
AC27: 0 | AD27: 0 | AE27: 0 | AF27: 0 | AG27: 0 | AH27: 0 | AI27: 0 | AK27: 0 | AM27: 0 | AN27: 0 | AO27: 0 | AP27: 0 | AQ27: 0 | AR27: 0 | AS27: 0 | AU27: 0
C28: Wastewater | AC28: 0 | AD28: 0 | AE28: 0 | AF28: 0 | AG28: 0 | AH28: 0 | AI28: 0 | AK28: 0 | AM28: 0 | AN28: 0 | AO28: 0 | AP28: 0 | AQ28: 0 | AR28: 0 | AS28: 0 | AU28: 0
E29: Wastewater network - Allowed Revenues - real | F29: 0 | G29: £m | I29: ='[1]Exec Summary'!$J$27 -> 0 | J29: ='[1]Exec Summary'!$K$27 -> 0 | K29: ='[1]Exec Summary'!$L$27 -> 599.73147 | L29: ='[1]Exec Summary'!$M$27 -> 611.3236058 | M29: ='[1]Exec Summary'!$N$27 -> 622.7125282 | N29: ='[1]Exec Summary'!$O$27 -> 633.2993737 | O29: ='[1]Exec Summary'!$P$27 -> 648.597828 | P29: =AVERAGE(K29:O29) -> 623.1329611 | Q29: ='[1]Exec Summary'!$W$27 -> 3115.664806 | S29: ='[2]Exec Summary'!$J$27 -> 0 | T29: ='[2]Exec Summary'!$K$27 -> 0 | U29: ='[2]Exec Summary'!$L$27 -> 557.9407296 | V29: ='[2]Exec Summary'!$M$27 -> 562.6480079 | W29: ='[2]Exec Summary'!$N$27 -> 562.1971702 | X29: ='[2]Exec Summary'!$O$27 -> 578.8182422 | Y29: ='[2]Exec Summary'!$P$27 -> 600.3913116 | Z29: =AVERAGE(U29:Y29) -> 572.3990923 | AA29: ='[2]Exec Summary'!$W$27 -> 2861.995461 | AC29: 0 | AD29: 0 | AE29: 41.791 | AF29: 48.676 | AG29: 60.515 | AH29: 54.481 | AI29: 48.207 | AK29: 253.669 | AM29: 0 | AN29: 0 | AO29: 0.0749022213 | AP29: 0.08651234754 | AQ29: 0.1076401718 | AR29: 0.09412453863 | AS29: 0.08029263427 | AU29: 0.08863361365
E30: Wastewater network - K - periodic | F30: 0 | G30: % | I30: ='[1]Exec Summary'!$J$28 -> 0 | J30: ='[1]Exec Summary'!$K$28 -> 0 | K30: ='[1]Exec Summary'!$L$28 -> 0 | L30: ='[1]Exec Summary'!$M$28 -> 0.0198 | M30: ='[1]Exec Summary'!$N$28 -> 0.019 | N30: ='[1]Exec Summary'!$O$28 -> 0.0174 | O30: ='[1]Exec Summary'!$P$28 -> 0.0247 | P30: =AVERAGE(K30:O30) -> 0.01618 | Q30: ='[1]Exec Summary'!$W$28 -> 0.0198 | S30: ='[2]Exec Summary'!$J$28 -> 0 | T30: ='[2]Exec Summary'!$K$28 -> 0 | U30: ='[2]Exec Summary'!$L$28 -> 0 | V30: ='[2]Exec Summary'!$M$28 -> 0.0088 | W30: ='[2]Exec Summary'!$N$28 -> 0 | X30: ='[2]Exec Summary'!$O$28 -> 0.0303 | Y30: ='[2]Exec Summary'!$P$28 -> 0.0381 | Z30: =AVERAGE(U30:Y30) -> 0.01544 | AA30: ='[2]Exec Summary'!$W$28 -> 0.0188 | AC30: 0 | AD30: 0 | AE30: 0 | AF30: 0.011 | AG30: 0.019 | AH30: -0.013 | AI30: -0.013 | AK30: 0.001 | AM30: 0 | AN30: 0 | AO30: 0 | AP30: 1.25 | AQ30: 0 | AR30: -0.4290429043 | AS30: -0.3412073491 | AU30: 0.05319148936
AC31: 0 | AD31: 0 | AE31: 0 | AF31: 0 | AG31: 0 | AH31: 0 | AI31: 0 | AK31: 0 | AM31: 0 | AN31: 0 | AO31: 0 | AP31: 0 | AQ31: 0 | AR31: 0 | AS31: 0 | AU31: 0
E32: Bio resources - Allowed Revenues - real | F32: 0 | G32: £m | I32: ='[1]Exec Summary'!$J$30 -> 0 | J32: ='[1]Exec Summary'!$K$30 -> 0 | K32: ='[1]Exec Summary'!$L$30 -> 110.041612 | L32: ='[1]Exec Summary'!$M$30 -> 111.6374111 | M32: ='[1]Exec Summary'!$N$30 -> 109.6547486 | N32: ='[1]Exec Summary'!$O$30 -> 108.5443768 | O32: ='[1]Exec Summary'!$P$30 -> 106.7863046 | P32: =AVERAGE(K32:O32) -> 109.3328906 | Q32: ='[1]Exec Summary'!$W$30 -> 546.6644531 | S32: ='[2]Exec Summary'!$J$30 -> 0 | T32: ='[2]Exec Summary'!$K$30 -> 0 | U32: ='[2]Exec Summary'!$L$30 -> 99.51933123 | V32: ='[2]Exec Summary'!$M$30 -> 97.43171719 | W32: ='[2]Exec Summary'!$N$30 -> 95.75433596 | X32: ='[2]Exec Summary'!$O$30 -> 92.2413282 | Y32: ='[2]Exec Summary'!$P$30 -> 91.34936943 | Z32: =AVERAGE(U32:Y32) -> 95.2592164 | AA32: ='[2]Exec Summary'!$W$30 -> 476.296082 | AC32: 0 | AD32: 0 | AE32: 10.522 | AF32: 14.206 | AG32: 13.9 | AH32: 16.303 | AI32: 15.437 | AK32: 70.368 | AM32: 0 | AN32: 0 | AO32: 0.1057282024 | AP32: 0.1458046764 | AQ32: 0.1451631392 | AR32: 0.1767429017 | AS32: 0.1689885775 | AU32: 0.1477400354
E33: Bio resources - TDS Revenues - real | F33: 0 | G33: £m | I33: ='[1]Exec Summary'!$J$31 -> 105.3704641 | J33: ='[1]Exec Summary'!$K$31 -> 106.2751652 | K33: ='[1]Exec Summary'!$L$31 -> 106.9623675 | L33: ='[1]Exec Summary'!$M$31 -> 107.9674526 | M33: ='[1]Exec Summary'!$N$31 -> 108.9369022 | N33: ='[1]Exec Summary'!$O$31 -> 109.8849923 | O33: ='[1]Exec Summary'!$P$31 -> 113.5925848 | P33: =AVERAGE(K33:O33) -> 109.4688599 | Q33: ='[1]Exec Summary'!$W$31 -> 547.3442993 | S33: ='[2]Exec Summary'!$J$31 -> 90.03304627 | T33: ='[2]Exec Summary'!$K$31 -> 92.67393645 | U33: ='[2]Exec Summary'!$L$31 -> 93.27318969 | V33: ='[2]Exec Summary'!$M$31 -> 94.1496428 | W33: ='[2]Exec Summary'!$N$31 -> 94.99502099 | X33: ='[2]Exec Summary'!$O$31 -> 95.82177333 | Y33: ='[2]Exec Summary'!$P$31 -> 99.05486348 | Z33: =AVERAGE(U33:Y33) -> 95.45889806 | AA33: ='[2]Exec Summary'!$W$31 -> 477.2944903 | AC33: 15.337 | AD33: 13.601 | AE33: 13.689 | AF33: 13.818 | AG33: 13.942 | AH33: 14.063 | AI33: 14.538 | AK33: 70.05 | AM33: 0.1703485624 | AN33: 0.1467618677 | AO33: 0.1467624303 | AP33: 0.1467663561 | AQ33: 0.1467655868 | AR33: 0.1467620512 | AS33: 0.1467671499 | AU33: 0.1467647363
AC34: 0 | AD34: 0 | AE34: 0 | AF34: 0 | AG34: 0 | AH34: 0 | AI34: 0 | AK34: 0 | AM34: 0 | AN34: 0 | AO34: 0 | AP34: 0 | AQ34: 0 | AR34: 0 | AS34: 0 | AU34: 0
E35: Wastewater - Allowed Revenues - real | F35: 0 | G35: £m | I35: ='[1]Exec Summary'!$J$33 -> 0 | J35: ='[1]Exec Summary'!$K$33 -> 0 | K35: ='[1]Exec Summary'!$L$33 -> 709.773082 | L35: ='[1]Exec Summary'!$M$33 -> 722.9610169 | M35: ='[1]Exec Summary'!$N$33 -> 732.3672768 | N35: ='[1]Exec Summary'!$O$33 -> 741.8437505 | O35: ='[1]Exec Summary'!$P$33 -> 755.3841326 | P35: =AVERAGE(K35:O35) -> 732.4658518 | Q35: ='[1]Exec Summary'!$W$33 -> 3662.329259 | S35: ='[2]Exec Summary'!$J$33 -> 0 | T35: ='[2]Exec Summary'!$K$33 -> 0 | U35: ='[2]Exec Summary'!$L$33 -> 657.4600608 | V35: ='[2]Exec Summary'!$M$33 -> 660.0797251 | W35: ='[2]Exec Summary'!$N$33 -> 657.9515062 | X35: ='[2]Exec Summary'!$O$33 -> 671.0595704 | Y35: ='[2]Exec Summary'!$P$33 -> 691.740681 | Z35: =AVERAGE(U35:Y35) -> 667.6583087 | AA35: ='[2]Exec Summary'!$W$33 -> 3338.291543 | AC35: 0 | AD35: 0 | AE35: 52.313 | AF35: 62.881 | AG35: 74.416 | AH35: 70.784 | AI35: 63.643 | AK35: 324.038 | AM35: 0 | AN35: 0 | AO35: 0.0795683314 | AP35: 0.09526273511 | AQ35: 0.1131025605 | AR35: 0.1054809485 | AS35: 0.09200413066 | AU35: 0.0970670164
AC36: 0 | AD36: 0 | AE36: 0 | AF36: 0 | AG36: 0 | AH36: 0 | AI36: 0 | AK36: 0 | AM36: 0 | AN36: 0 | AO36: 0 | AP36: 0 | AQ36: 0 | AR36: 0 | AS36: 0 | AU36: 0
C37: Dummy | AC37: 0 | AD37: 0 | AE37: 0 | AF37: 0 | AG37: 0 | AH37: 0 | AI37: 0 | AK37: 0 | AM37: 0 | AN37: 0 | AO37: 0 | AP37: 0 | AQ37: 0 | AR37: 0 | AS37: 0 | AU37: 0
E38: Dummy control - Allowed Revenues - real | F38: 0 | G38: £m | I38: ='[1]Exec Summary'!$J$36 -> 0 | J38: ='[1]Exec Summary'!$K$36 -> 0 | K38: ='[1]Exec Summary'!$L$36 -> 0 | L38: ='[1]Exec Summary'!$M$36 -> 0 | M38: ='[1]Exec Summary'!$N$36 -> 0 | N38: ='[1]Exec Summary'!$O$36 -> 0 | O38: ='[1]Exec Summary'!$P$36 -> 0 | P38: =AVERAGE(K38:O38) -> 0 | Q38: ='[1]Exec Summary'!$W$36 -> 0 | S38: ='[2]Exec Summary'!$J$36 -> 0 | T38: ='[2]Exec Summary'!$K$36 -> 0 | U38: ='[2]Exec Summary'!$L$36 -> 0 | V38: ='[2]Exec Summary'!$M$36 -> 0 | W38: ='[2]Exec Summary'!$N$36 -> 0 | X38: ='[2]Exec Summary'!$O$36 -> 0 | Y38: ='[2]Exec Summary'!$P$36 -> 0 | Z38: =AVERAGE(U38:Y38) -> 0 | AA38: ='[2]Exec Summary'!$W$36 -> 0 | AC38: 0 | AD38: 0 | AE38: 0 | AF38: 0 | AG38: 0 | AH38: 0 | AI38: 0 | AK38: 0 | AM38: 0 | AN38: 0 | AO38: 0 | AP38: 0 | AQ38: 0 | AR38: 0 | AS38: 0 | AU38: 0
E39: Dummy control - K - periodic | F39: 0 | G39: % | I39: ='[1]Exec Summary'!$J$37 -> 0 | J39: ='[1]Exec Summary'!$K$37 -> 0 | K39: ='[1]Exec Summary'!$L$37 -> 0 | L39: ='[1]Exec Summary'!$M$37 -> 0 | M39: ='[1]Exec Summary'!$N$37 -> 0 | N39: ='[1]Exec Summary'!$O$37 -> 0 | O39: ='[1]Exec Summary'!$P$37 -> 0 | P39: =AVERAGE(K39:O39) -> 0 | Q39: ='[1]Exec Summary'!$W$37 -> 0 | S39: ='[2]Exec Summary'!$J$37 -> 0 | T39: ='[2]Exec Summary'!$K$37 -> 0 | U39: ='[2]Exec Summary'!$L$37 -> 0 | V39: ='[2]Exec Summary'!$M$37 -> 0 | W39: ='[2]Exec Summary'!$N$37 -> 0 | X39: ='[2]Exec Summary'!$O$37 -> 0 | Y39: ='[2]Exec Summary'!$P$37 -> 0 | Z39: =AVERAGE(U39:Y39) -> 0 | AA39: ='[2]Exec Summary'!$W$37 -> 0 | AC39: 0 | AD39: 0 | AE39: 0 | AF39: 0 | AG39: 0 | AH39: 0 | AI39: 0 | AK39: 0 | AM39: 0 | AN39: 0 | AO39: 0 | AP39: 0 | AQ39: 0 | AR39: 0 | AS39: 0 | AU39: 0
AC40: 0 | AD40: 0 | AE40: 0 | AF40: 0 | AG40: 0 | AH40: 0 | AI40: 0 | AK40: 0 | AM40: 0 | AN40: 0 | AO40: 0 | AP40: 0 | AQ40: 0 | AR40: 0 | AS40: 0 | AU40: 0
B41: Retail service | AC41: 0 | AD41: 0 | AE41: 0 | AF41: 0 | AG41: 0 | AH41: 0 | AI41: 0 | AK41: 0 | AM41: 0 | AN41: 0 | AO41: 0 | AP41: 0 | AQ41: 0 | AR41: 0 | AS41: 0 | AU41: 0
C42: Residential | AC42: 0 | AD42: 0 | AE42: 0 | AF42: 0 | AG42: 0 | AH42: 0 | AI42: 0 | AK42: 0 | AM42: 0 | AN42: 0 | AO42: 0 | AP42: 0 | AQ42: 0 | AR42: 0 | AS42: 0 | AU42: 0
E43: Residential retail service revenue - real | F43: 0 | G43: £m | I43: ='[1]Exec Summary'!$J$41 -> 0 | J43: ='[1]Exec Summary'!$K$41 -> 16.45728074 | K43: ='[1]Exec Summary'!$L$41 -> 105.2239989 | L43: ='[1]Exec Summary'!$M$41 -> 84.80741806 | M43: ='[1]Exec Summary'!$N$41 -> 85.31317448 | N43: ='[1]Exec Summary'!$O$41 -> 85.69078751 | O43: ='[1]Exec Summary'!$P$41 -> 85.90061074 | P43: =AVERAGE(K43:O43) -> 89.38719794 | Q43: ='[1]Exec Summary'!$W$41 -> 446.9359897 | S43: ='[2]Exec Summary'!$J$41 -> 0 | T43: ='[2]Exec Summary'!$K$41 -> 0 | U43: ='[2]Exec Summary'!$L$41 -> 97.19529189 | V43: ='[2]Exec Summary'!$M$41 -> 82.52038214 | W43: ='[2]Exec Summary'!$N$41 -> 82.3901705 | X43: ='[2]Exec Summary'!$O$41 -> 82.18126493 | Y43: ='[2]Exec Summary'!$P$41 -> 81.69664075 | Z43: =AVERAGE(U43:Y43) -> 85.19675004 | AA43: ='[2]Exec Summary'!$W$41 -> 425.9837502 | AC43: 0 | AD43: 16.457 | AE43: 8.029 | AF43: 2.287 | AG43: 2.923 | AH43: 3.51 | AI43: 4.204 | AK43: 20.952 | AM43: 0 | AN43: 0 | AO43: 0.08260688191 | AP43: 0.02771436512 | AQ43: 0.03547753309 | AR43: 0.04271046452 | AS43: 0.05145866417 | AU43: 0.04918497475
AC44: 0 | AD44: 0 | AE44: 0 | AF44: 0 | AG44: 0 | AH44: 0 | AI44: 0 | AK44: 0 | AM44: 0 | AN44: 0 | AO44: 0 | AP44: 0 | AQ44: 0 | AR44: 0 | AS44: 0 | AU44: 0
C45: Business | AC45: 0 | AD45: 0 | AE45: 0 | AF45: 0 | AG45: 0 | AH45: 0 | AI45: 0 | AK45: 0 | AM45: 0 | AN45: 0 | AO45: 0 | AP45: 0 | AQ45: 0 | AR45: 0 | AS45: 0 | AU45: 0
E46: Business retail service revenue - real | F46: 0 | G46: £m | I46: ='[1]Exec Summary'!$J$45 -> 0 | J46: ='[1]Exec Summary'!$K$45 -> 0 | K46: ='[1]Exec Summary'!$L$45 -> 0 | L46: ='[1]Exec Summary'!$M$45 -> 0 | M46: ='[1]Exec Summary'!$N$45 -> 0 | N46: ='[1]Exec Summary'!$O$45 -> 0 | O46: ='[1]Exec Summary'!$P$45 -> 0 | P46: =AVERAGE(K46:O46) -> 0 | Q46: ='[1]Exec Summary'!$W$45 -> 0 | S46: ='[2]Exec Summary'!$J$45 -> 0 | T46: ='[2]Exec Summary'!$K$45 -> 0 | U46: ='[2]Exec Summary'!$L$45 -> 0 | V46: ='[2]Exec Summary'!$M$45 -> 0 | W46: ='[2]Exec Summary'!$N$45 -> 0 | X46: ='[2]Exec Summary'!$O$45 -> 0 | Y46: ='[2]Exec Summary'!$P$45 -> 0 | Z46: =AVERAGE(U46:Y46) -> 0 | AA46: ='[2]Exec Summary'!$W$45 -> 0 | AC46: 0 | AD46: 0 | AE46: 0 | AF46: 0 | AG46: 0 | AH46: 0 | AI46: 0 | AK46: 0 | AM46: 0 | AN46: 0 | AO46: 0 | AP46: 0 | AQ46: 0 | AR46: 0 | AS46: 0 | AU46: 0
AC47: 0 | AD47: 0 | AE47: 0 | AF47: 0 | AG47: 0 | AH47: 0 | AI47: 0 | AK47: 0 | AM47: 0 | AN47: 0 | AO47: 0 | AP47: 0 | AQ47: 0 | AR47: 0 | AS47: 0 | AU47: 0
B48: Appointee Total Revenues | AC48: 0 | AD48: 0 | AE48: 0 | AF48: 0 | AG48: 0 | AH48: 0 | AI48: 0 | AK48: 0 | AM48: 0 | AN48: 0 | AO48: 0 | AP48: 0 | AQ48: 0 | AR48: 0 | AS48: 0 | AU48: 0
E49: Appointee Total Revenues - real | G49: £m | I49: ='[1]Exec Summary'!$J$48 -> 0 | J49: ='[1]Exec Summary'!$K$48 -> 16.45728074 | K49: ='[1]Exec Summary'!$L$48 -> 1322.719236 | L49: ='[1]Exec Summary'!$M$48 -> 1339.777773 | M49: ='[1]Exec Summary'!$N$48 -> 1357.604163 | N49: ='[1]Exec Summary'!$O$48 -> 1378.942132 | O49: ='[1]Exec Summary'!$P$48 -> 1389.172332 | P49: =AVERAGE(K49:O49) -> 1357.643127 | Q49: ='[1]Exec Summary'!$W$48 -> 6788.215636 | S49: ='[2]Exec Summary'!$J$48 -> 0 | T49: ='[2]Exec Summary'!$K$48 -> 0 | U49: ='[2]Exec Summary'!$L$48 -> 1215.097876 | V49: ='[2]Exec Summary'!$M$48 -> 1219.03604 | W49: ='[2]Exec Summary'!$N$48 -> 1218.293157 | X49: ='[2]Exec Summary'!$O$48 -> 1232.3411 | Y49: ='[2]Exec Summary'!$P$48 -> 1249.335324 | Z49: =AVERAGE(U49:Y49) -> 1226.8207 | AA49: ='[2]Exec Summary'!$W$48 -> 6134.103498 | AC49: 0 | AD49: 16.457 | AE49: 107.621 | AF49: 120.742 | AG49: 139.311 | AH49: 146.601 | AI49: 139.837 | AK49: 654.112 | AM49: 0 | AN49: 0 | AO49: 0.08856981984 | AP49: 0.09904711263 | AQ49: 0.1143493249 | AR49: 0.1189613817 | AS49: 0.1119291173 | AU49: 0.1066353054
A51: AVERAGE RESIDENTIAL BILL POST FINANCEABILITY ADJUSTMENTS AND REPROFILING
E53: Wholesale water resources allowed revenue (excluding capital connection charges, other income and operating income) per residential customer - real | F53: 0 | G53: £ | I53: ='[1]Exec Summary'!$J55 -> 0 | J53: ='[1]Exec Summary'!$K55 -> 0 | K53: ='[1]Exec Summary'!$L55 -> 19.42173223 | L53: ='[1]Exec Summary'!$M55 -> 19.72255761 | M53: ='[1]Exec Summary'!$N55 -> 18.82722359 | N53: ='[1]Exec Summary'!$O55 -> 18.30735587 | O53: ='[1]Exec Summary'!$P55 -> 17.0992435 | P53: =AVERAGE(K53:O53) -> 18.67562256 | Q53: ='[1]Exec Summary'!$W55 -> 0 | S53: ='[2]Exec Summary'!$J55 -> 0 | T53: ='[2]Exec Summary'!$K55 -> 0 | U53: ='[2]Exec Summary'!$L55 -> 16.89738902 | V53: ='[2]Exec Summary'!$M55 -> 16.3333606 | W53: ='[2]Exec Summary'!$N55 -> 16.72962628 | X53: ='[2]Exec Summary'!$O55 -> 16.8715409 | Y53: ='[2]Exec Summary'!$P55 -> 16.54737259 | Z53: =AVERAGE(U53:Y53) -> 16.67585788 | AA53: ='[2]Exec Summary'!$W55 -> 0 | AC53: =ROUND(I53 - S53, 3) -> 0 | AD53: =ROUND(J53 - T53, 3) -> 0 | AE53: =ROUND(K53 - U53, 3) -> 2.524 | AF53: =ROUND(L53 - V53, 3) -> 3.389 | AG53: =ROUND(M53 - W53, 3) -> 2.098 | AH53: =ROUND(N53 - X53, 3) -> 1.436 | AI53: =ROUND(O53 - Y53, 3) -> 0.552 | AK53: =ROUND(Q53 - AA53, 3) -> 0 | AM53: =IF(S53 = 0, 0, AC53 / S53) -> 0 | AN53: =IF(T53 = 0, 0, AD53 / T53) -> 0 | AO53: =IF(U53 = 0, 0, AE53 / U53) -> 0.1493721898 | AP53: =IF(V53 = 0, 0, AF53 / V53) -> 0.2074894495 | AQ53: =IF(W53 = 0, 0, AG53 / W53) -> 0.1254062682 | AR53: =IF(X53 = 0, 0, AH53 / X53) -> 0.08511374323 | AS53: =IF(Y53 = 0, 0, AI53 / Y53) -> 0.03335877022 | AU53: =IF(AA53 = 0, 0, AK53 / AA53) -> 0
E54: Wholesale allowed revenue per customer - Growth - WR | F54: 0 | G54: % | I54: ='[1]Exec Summary'!$J56 -> 0 | J54: ='[1]Exec Summary'!$K56 -> 0 | K54: ='[1]Exec Summary'!$L56 -> 0 | L54: ='[1]Exec Summary'!$M56 -> 0.01548911197 | M54: ='[1]Exec Summary'!$N56 -> -0.04539644589 | N54: ='[1]Exec Summary'!$O56 -> -0.02761255404 | O54: ='[1]Exec Summary'!$P56 -> -0.06599054339 | P54: =AVERAGE(K54:O54) -> -0.02470208627 | Q54: ='[1]Exec Summary'!$W56 -> -0.03133806526 | S54: ='[2]Exec Summary'!$J56 -> 0 | T54: ='[2]Exec Summary'!$K56 -> 0 | U54: ='[2]Exec Summary'!$L56 -> 0 | V54: ='[2]Exec Summary'!$M56 -> -0.03337961992 | W54: ='[2]Exec Summary'!$N56 -> 0.02426112373 | X54: ='[2]Exec Summary'!$O56 -> 0.008482832351 | Y54: ='[2]Exec Summary'!$P56 -> -0.01921391224 | Z54: =AVERAGE(U54:Y54) -> -0.003969915217 | AA54: ='[2]Exec Summary'!$W56 -> -0.005219277225 | AC54: 0 | AD54: 0 | AE54: 0 | AF54: 0.049 | AG54: -0.07 | AH54: -0.036 | AI54: -0.047 | AK54: -0.026 | AM54: 0 | AN54: 0 | AO54: 0 | AP54: -1.467961592 | AQ54: -2.885274432 | AR54: -4.243865552 | AS54: 2.4461442 | AU54: 4.981532668
AC55: 0 | AD55: 0 | AE55: 0 | AF55: 0 | AG55: 0 | AH55: 0 | AI55: 0 | AK55: 0 | AM55: 0 | AN55: 0 | AO55: 0 | AP55: 0 | AQ55: 0 | AR55: 0 | AS55: 0 | AU55: 0
E56: Wholesale water network allowed revenue (excluding capital connection charges, other income and operating income) per residential customer - real | F56: 0 | G56: £ | I56: ='[1]Exec Summary'!$J58 -> 0 | J56: ='[1]Exec Summary'!$K58 -> 0 | K56: ='[1]Exec Summary'!$L58 -> 149.4269731 | L56: ='[1]Exec Summary'!$M58 -> 152.9199655 | M56: ='[1]Exec Summary'!$N58 -> 154.1898125 | N56: ='[1]Exec Summary'!$O58 -> 156.4454832 | O56: ='[1]Exec Summary'!$P58 -> 155.2043929 | P56: =AVERAGE(K56:O56) -> 153.6373254 | Q56: ='[1]Exec Summary'!$W58 -> 0 | S56: ='[2]Exec Summary'!$J58 -> 0 | T56: ='[2]Exec Summary'!$K58 -> 0 | U56: ='[2]Exec Summary'!$L58 -> 139.2507124 | V56: ='[2]Exec Summary'!$M58 -> 142.9706915 | W56: ='[2]Exec Summary'!$N58 -> 140.9895262 | X56: ='[2]Exec Summary'!$O58 -> 139.2293332 | Y56: ='[2]Exec Summary'!$P58 -> 136.9073768 | Z56: =AVERAGE(U56:Y56) -> 139.869528 | AA56: ='[2]Exec Summary'!$W58 -> 0 | AC56: 0 | AD56: 0 | AE56: 10.176 | AF56: 9.949 | AG56: 13.2 | AH56: 17.216 | AI56: 18.297 | AK56: 0 | AM56: 0 | AN56: 0 | AO56: 0.07307682541 | AP56: 0.06958768889 | AQ56: 0.09362397589 | AR56: 0.1236521041 | AS56: 0.1336450995 | AU56: 0
E57: Wholesale allowed revenue per customer - Growth - WN | F57: 0 | G57: % | I57: ='[1]Exec Summary'!$J59 -> 0 | J57: ='[1]Exec Summary'!$K59 -> 0 | K57: ='[1]Exec Summary'!$L59 -> 0 | L57: ='[1]Exec Summary'!$M59 -> 0.0233759158 | M57: ='[1]Exec Summary'!$N59 -> 0.008303997915 | N57: ='[1]Exec Summary'!$O59 -> 0.01462918108 | O57: ='[1]Exec Summary'!$P59 -> -0.007933053353 | P57: =AVERAGE(K57:O57) -> 0.007675208288 | Q57: ='[1]Exec Summary'!$W59 -> 0.009528891646 | S57: ='[2]Exec Summary'!$J59 -> 0 | T57: ='[2]Exec Summary'!$K59 -> 0 | U57: ='[2]Exec Summary'!$L59 -> 0 | V57: ='[2]Exec Summary'!$M59 -> 0.02671425523 | W57: ='[2]Exec Summary'!$N59 -> -0.01385714305 | X57: ='[2]Exec Summary'!$O59 -> -0.01248456582 | Y57: ='[2]Exec Summary'!$P59 -> -0.01667720651 | Z57: =AVERAGE(U57:Y57) -> -0.003260932031 | AA57: ='[2]Exec Summary'!$W59 -> -0.004233856708 | AC57: 0 | AD57: 0 | AE57: 0 | AF57: -0.003 | AG57: 0.022 | AH57: 0.027 | AI57: 0.009 | AK57: 0.014 | AM57: 0 | AN57: 0 | AO57: 0 | AP57: -0.1122995934 | AQ57: -1.587628843 | AR57: -2.162670323 | AS57: -0.539658725 | AU57: -3.306677804
AC58: 0 | AD58: 0 | AE58: 0 | AF58: 0 | AG58: 0 | AH58: 0 | AI58: 0 | AK58: 0 | AM58: 0 | AN58: 0 | AO58: 0 | AP58: 0 | AQ58: 0 | AR58: 0 | AS58: 0 | AU58: 0
E59: Wholesale wastewater network allowed revenue (excluding capital connection charges, other income and operating income) per residential customer - real | F59: 0 | G59: £ | I59: ='[1]Exec Summary'!$J61 -> 0 | J59: ='[1]Exec Summary'!$K61 -> 0 | K59: ='[1]Exec Summary'!$L61 -> 182.6828964 | L59: ='[1]Exec Summary'!$M61 -> 183.2693043 | M59: ='[1]Exec Summary'!$N61 -> 184.340591 | N59: ='[1]Exec Summary'!$O61 -> 184.0711476 | O59: ='[1]Exec Summary'!$P61 -> 185.3258454 | P59: =AVERAGE(K59:O59) -> 183.9379569 | Q59: ='[1]Exec Summary'!$W61 -> 0 | S59: ='[2]Exec Summary'!$J61 -> 0 | T59: ='[2]Exec Summary'!$K61 -> 0 | U59: ='[2]Exec Summary'!$L61 -> 169.2858101 | V59: ='[2]Exec Summary'!$M61 -> 169.7878734 | W59: ='[2]Exec Summary'!$N61 -> 168.9131271 | X59: ='[2]Exec Summary'!$O61 -> 168.5554794 | Y59: ='[2]Exec Summary'!$P61 -> 168.5406878 | Z59: =AVERAGE(U59:Y59) -> 169.0165956 | AA59: ='[2]Exec Summary'!$W61 -> 0 | AC59: 0 | AD59: 0 | AE59: 13.397 | AF59: 13.481 | AG59: 15.427 | AH59: 15.516 | AI59: 16.785 | AK59: 0 | AM59: 0 | AN59: 0 | AO59: 0.07913835185 | AP59: 0.07939907444 | AQ59: 0.09133097149 | AR59: 0.09205277728 | AS59: 0.09959019523 | AU59: 0
E60: Wholesale allowed revenue per customer - Growth - WWN - real | F60: 0 | G60: % | I60: ='[1]Exec Summary'!$J62 -> 0 | J60: ='[1]Exec Summary'!$K62 -> 0 | K60: ='[1]Exec Summary'!$L62 -> 0 | L60: ='[1]Exec Summary'!$M62 -> 0.003209976784 | M60: ='[1]Exec Summary'!$N62 -> 0.005845423664 | N60: ='[1]Exec Summary'!$O62 -> -0.001461660535 | O60: ='[1]Exec Summary'!$P62 -> 0.006816373795 | P60: =AVERAGE(K60:O60) -> 0.002882022742 | Q60: ='[1]Exec Summary'!$W62 -> 0.003597394853 | S60: ='[2]Exec Summary'!$J62 -> 0 | T60: ='[2]Exec Summary'!$K62 -> 0 | U60: ='[2]Exec Summary'!$L62 -> 0 | V60: ='[2]Exec Summary'!$M62 -> 0.002965773283 | W60: ='[2]Exec Summary'!$N62 -> -0.005151994902 | X60: ='[2]Exec Summary'!$O62 -> -0.002117347522 | Y60: ='[2]Exec Summary'!$P62 -> -8.775492179e-05 | Z60: =AVERAGE(U60:Y60) -> -0.0008782648124 | AA60: ='[2]Exec Summary'!$W62 -> -0.001102211912 | AC60: 0 | AD60: 0 | AE60: 0 | AF60: 0 | AG60: 0.011 | AH60: 0.001 | AI60: 0.007 | AK60: 0.005 | AM60: 0 | AN60: 0 | AO60: 0 | AP60: 0 | AQ60: -2.135095281 | AR60: -0.4722890266 | AS60: -79.76760571 | AU60: -4.536332755
AC61: 0 | AD61: 0 | AE61: 0 | AF61: 0 | AG61: 0 | AH61: 0 | AI61: 0 | AK61: 0 | AM61: 0 | AN61: 0 | AO61: 0 | AP61: 0 | AQ61: 0 | AR61: 0 | AS61: 0 | AU61: 0
E62: Wholesale bio resources allowed revenue (excluding capital connection charges, other income and operating income) per residential customer - real | F62: 0 | G62: £ | I62: ='[1]Exec Summary'!$J64 -> 0 | J62: ='[1]Exec Summary'!$K64 -> 0 | K62: ='[1]Exec Summary'!$L64 -> 33.59007598 | L62: ='[1]Exec Summary'!$M64 -> 33.60295581 | M62: ='[1]Exec Summary'!$N64 -> 32.54694937 | N62: ='[1]Exec Summary'!$O64 -> 31.78312873 | O62: ='[1]Exec Summary'!$P64 -> 30.87990011 | P62: =AVERAGE(K62:O62) -> 32.480602 | Q62: ='[1]Exec Summary'!$W64 -> 0 | S62: ='[2]Exec Summary'!$J64 -> 0 | T62: ='[2]Exec Summary'!$K64 -> 0 | U62: ='[2]Exec Summary'!$L64 -> 30.37816183 | V62: ='[2]Exec Summary'!$M64 -> 29.32702983 | W62: ='[2]Exec Summary'!$N64 -> 28.42112691 | X62: ='[2]Exec Summary'!$O64 -> 27.00939554 | Y62: ='[2]Exec Summary'!$P64 -> 26.41592866 | Z62: =AVERAGE(U62:Y62) -> 28.31032855 | AA62: ='[2]Exec Summary'!$W64 -> 0 | AC62: 0 | AD62: 0 | AE62: 3.212 | AF62: 4.276 | AG62: 4.126 | AH62: 4.774 | AI62: 4.464 | AK62: 0 | AM62: 0 | AN62: 0 | AO62: 0.1057338498 | AP62: 0.1458040594 | AQ62: 0.1451736947 | AR62: 0.1767533076 | AS62: 0.1689889482 | AU62: 0
E63: Wholesale allowed revenue per customer - Growth - BR - real | F63: 0 | G63: % | I63: ='[1]Exec Summary'!$J65 -> 0 | J63: ='[1]Exec Summary'!$K65 -> 0 | K63: ='[1]Exec Summary'!$L65 -> 0 | L63: ='[1]Exec Summary'!$M65 -> 0.0003834416153 | M63: ='[1]Exec Summary'!$N65 -> -0.03142599847 | N63: ='[1]Exec Summary'!$O65 -> -0.02346827147 | O63: ='[1]Exec Summary'!$P65 -> -0.02841849281 | P63: =AVERAGE(K63:O63) -> -0.01658586423 | Q63: ='[1]Exec Summary'!$W65 -> -0.02081167839 | S63: ='[2]Exec Summary'!$J65 -> 0 | T63: ='[2]Exec Summary'!$K65 -> 0 | U63: ='[2]Exec Summary'!$L65 -> 0 | V63: ='[2]Exec Summary'!$M65 -> -0.03460156694 | W63: ='[2]Exec Summary'!$N65 -> -0.03088969224 | X63: ='[2]Exec Summary'!$O65 -> -0.0496718996 | Y63: ='[2]Exec Summary'!$P65 -> -0.02197260905 | Z63: =AVERAGE(U63:Y63) -> -0.02742715357 | AA63: ='[2]Exec Summary'!$W65 -> -0.0343358739 | AC63: 0 | AD63: 0 | AE63: 0 | AF63: 0.035 | AG63: -0.001 | AH63: 0.026 | AI63: -0.006 | AK63: 0.014 | AM63: 0 | AN63: 0 | AO63: 0 | AP63: -1.011514885 | AQ63: 0.03237325876 | AR63: -0.5234347833 | AS63: 0.2730672532 | AU63: -0.4077368189
AC64: 0 | AD64: 0 | AE64: 0 | AF64: 0 | AG64: 0 | AH64: 0 | AI64: 0 | AK64: 0 | AM64: 0 | AN64: 0 | AO64: 0 | AP64: 0 | AQ64: 0 | AR64: 0 | AS64: 0 | AU64: 0
E65: Wholesale dummy control allowed revenue (excluding capital connection charges, other income and operating income) per residential customer - real | F65: 0 | G65: £ | I65: ='[1]Exec Summary'!$J67 -> 0 | J65: ='[1]Exec Summary'!$K67 -> 0 | K65: ='[1]Exec Summary'!$L67 -> 0 | L65: ='[1]Exec Summary'!$M67 -> 0 | M65: ='[1]Exec Summary'!$N67 -> 0 | N65: ='[1]Exec Summary'!$O67 -> 0 | O65: ='[1]Exec Summary'!$P67 -> 0 | P65: =AVERAGE(K65:O65) -> 0 | Q65: ='[1]Exec Summary'!$W67 -> 0 | S65: ='[2]Exec Summary'!$J67 -> 0 | T65: ='[2]Exec Summary'!$K67 -> 0 | U65: ='[2]Exec Summary'!$L67 -> 0 | V65: ='[2]Exec Summary'!$M67 -> 0 | W65: ='[2]Exec Summary'!$N67 -> 0 | X65: ='[2]Exec Summary'!$O67 -> 0 | Y65: ='[2]Exec Summary'!$P67 -> 0 | Z65: =AVERAGE(U65:Y65) -> 0 | AA65: ='[2]Exec Summary'!$W67 -> 0 | AC65: 0 | AD65: 0 | AE65: 0 | AF65: 0 | AG65: 0 | AH65: 0 | AI65: 0 | AK65: 0 | AM65: 0 | AN65: 0 | AO65: 0 | AP65: 0 | AQ65: 0 | AR65: 0 | AS65: 0 | AU65: 0
E66: Wholesale allowed revenue per customer - Growth - DMMY - real | F66: 0 | G66: % | I66: ='[1]Exec Summary'!$J68 -> 0 | J66: ='[1]Exec Summary'!$K68 -> 0 | K66: ='[1]Exec Summary'!$L68 -> 0 | L66: ='[1]Exec Summary'!$M68 -> 0 | M66: ='[1]Exec Summary'!$N68 -> 0 | N66: ='[1]Exec Summary'!$O68 -> 0 | O66: ='[1]Exec Summary'!$P68 -> 0 | P66: =AVERAGE(K66:O66) -> 0 | Q66: ='[1]Exec Summary'!$W68 -> 0 | S66: ='[2]Exec Summary'!$J68 -> 0 | T66: ='[2]Exec Summary'!$K68 -> 0 | U66: ='[2]Exec Summary'!$L68 -> 0 | V66: ='[2]Exec Summary'!$M68 -> 0 | W66: ='[2]Exec Summary'!$N68 -> 0 | X66: ='[2]Exec Summary'!$O68 -> 0 | Y66: ='[2]Exec Summary'!$P68 -> 0 | Z66: =AVERAGE(U66:Y66) -> 0 | AA66: ='[2]Exec Summary'!$W68 -> 0 | AC66: 0 | AD66: 0 | AE66: 0 | AF66: 0 | AG66: 0 | AH66: 0 | AI66: 0 | AK66: 0 | AM66: 0 | AN66: 0 | AO66: 0 | AP66: 0 | AQ66: 0 | AR66: 0 | AS66: 0 | AU66: 0
AC67: 0 | AD67: 0 | AE67: 0 | AF67: 0 | AG67: 0 | AH67: 0 | AI67: 0 | AK67: 0 | AM67: 0 | AN67: 0 | AO67: 0 | AP67: 0 | AQ67: 0 | AR67: 0 | AS67: 0 | AU67: 0
E68: Retail allowed revenue per customer: single service - real | F68: 0 | G68: £ | I68: ='[1]Exec Summary'!$J70 -> 0 | J68: ='[1]Exec Summary'!$K70 -> 5.502443727 | K68: ='[1]Exec Summary'!$L70 -> 36.0692766 | L68: ='[1]Exec Summary'!$M70 -> 28.63234059 | M68: ='[1]Exec Summary'!$N70 -> 28.41251346 | N68: ='[1]Exec Summary'!$O70 -> 28.17399642 | O68: ='[1]Exec Summary'!$P70 -> 27.90515652 | P68: =AVERAGE(K68:O68) -> 29.83865672 | Q68: ='[1]Exec Summary'!$W70 -> 0 | S68: ='[2]Exec Summary'!$J70 -> 0 | T68: ='[2]Exec Summary'!$K70 -> 0 | U68: ='[2]Exec Summary'!$L70 -> 33.31715107 | V68: ='[2]Exec Summary'!$M70 -> 27.86020069 | W68: ='[2]Exec Summary'!$N70 -> 27.43904259 | X68: ='[2]Exec Summary'!$O70 -> 27.02011186 | Y68: ='[2]Exec Summary'!$P70 -> 26.53948007 | Z68: =AVERAGE(U68:Y68) -> 28.43519726 | AA68: ='[2]Exec Summary'!$W70 -> 0 | AC68: 0 | AD68: 5.502 | AE68: 2.752 | AF68: 0.772 | AG68: 0.973 | AH68: 1.154 | AI68: 1.366 | AK68: 0 | AM68: 0 | AN68: 0 | AO68: 0.08260009969 | AP68: 0.02770977886 | AQ68: 0.03546042093 | AR68: 0.04270892755 | AS68: 0.05147048835 | AU68: 0
E69: Retail allowed revenue per customer single service - Growth | F69: 0 | G69: % | I69: ='[1]Exec Summary'!$J71 -> 0 | J69: ='[1]Exec Summary'!$K71 -> 0 | K69: ='[1]Exec Summary'!$L71 -> 5.555137753 | L69: ='[1]Exec Summary'!$M71 -> -0.2061847841 | M69: ='[1]Exec Summary'!$N71 -> -0.007677581831 | N69: ='[1]Exec Summary'!$O71 -> -0.00839478821 | O69: ='[1]Exec Summary'!$P71 -> -0.009542128916 | P69: =AVERAGE(K69:O69) -> 1.064667694 | Q69: ='[1]Exec Summary'!$W71 -> -0.06214271201 | S69: ='[2]Exec Summary'!$J71 -> 0 | T69: ='[2]Exec Summary'!$K71 -> 0 | U69: ='[2]Exec Summary'!$L71 -> 0 | V69: ='[2]Exec Summary'!$M71 -> -0.1637880253 | W69: ='[2]Exec Summary'!$N71 -> -0.01511683663 | X69: ='[2]Exec Summary'!$O71 -> -0.01526768738 | Y69: ='[2]Exec Summary'!$P71 -> -0.01778792745 | Z69: =AVERAGE(U69:Y69) -> -0.04239209535 | AA69: ='[2]Exec Summary'!$W71 -> -0.05527341207 | AC69: 0 | AD69: 0 | AE69: 5.555 | AF69: -0.042 | AG69: 0.007 | AH69: 0.007 | AI69: 0.008 | AK69: -0.007 | AM69: 0 | AN69: 0 | AO69: 0 | AP69: 0.2564290029 | AQ69: -0.4630598431 | AR69: -0.4584846299 | AS69: -0.449743233 | AU69: 0.1266431678
AC70: 0 | AD70: 0 | AE70: 0 | AF70: 0 | AG70: 0 | AH70: 0 | AI70: 0 | AK70: 0 | AM70: 0 | AN70: 0 | AO70: 0 | AP70: 0 | AQ70: 0 | AR70: 0 | AS70: 0 | AU70: 0
E71: Retail allowed revenue per customer: joint services - real | F71: 0 | G71: £ | I71: ='[1]Exec Summary'!$J73 -> 0 | J71: ='[1]Exec Summary'!$K73 -> 5.882512347 | K71: ='[1]Exec Summary'!$L73 -> 36.0692766 | L71: ='[1]Exec Summary'!$M73 -> 28.63234059 | M71: ='[1]Exec Summary'!$N73 -> 28.41251346 | N71: ='[1]Exec Summary'!$O73 -> 28.17399642 | O71: ='[1]Exec Summary'!$P73 -> 27.90515652 | P71: =AVERAGE(K71:O71) -> 29.83865672 | Q71: ='[1]Exec Summary'!$W73 -> 0 | S71: ='[2]Exec Summary'!$J73 -> 0 | T71: ='[2]Exec Summary'!$K73 -> 0 | U71: ='[2]Exec Summary'!$L73 -> 33.31715107 | V71: ='[2]Exec Summary'!$M73 -> 27.86020069 | W71: ='[2]Exec Summary'!$N73 -> 27.43904259 | X71: ='[2]Exec Summary'!$O73 -> 27.02011186 | Y71: ='[2]Exec Summary'!$P73 -> 26.53948007 | Z71: =AVERAGE(U71:Y71) -> 28.43519726 | AA71: ='[2]Exec Summary'!$W73 -> 0 | AC71: 0 | AD71: 5.883 | AE71: 2.752 | AF71: 0.772 | AG71: 0.973 | AH71: 1.154 | AI71: 1.366 | AK71: 0 | AM71: 0 | AN71: 0 | AO71: 0.08260009969 | AP71: 0.02770977886 | AQ71: 0.03546042093 | AR71: 0.04270892755 | AS71: 0.05147048835 | AU71: 0
E72: Retail allowed revenue per customer joint services - Growth | F72: 0 | G72: % | I72: ='[1]Exec Summary'!$J74 -> 0 | J72: ='[1]Exec Summary'!$K74 -> 0 | K72: ='[1]Exec Summary'!$L74 -> 5.131610862 | L72: ='[1]Exec Summary'!$M74 -> -0.2061847841 | M72: ='[1]Exec Summary'!$N74 -> -0.007677581831 | N72: ='[1]Exec Summary'!$O74 -> -0.00839478821 | O72: ='[1]Exec Summary'!$P74 -> -0.009542128916 | P72: =AVERAGE(K72:O72) -> 0.9799623158 | Q72: ='[1]Exec Summary'!$W74 -> -0.06214271201 | S72: ='[2]Exec Summary'!$J74 -> 0 | T72: ='[2]Exec Summary'!$K74 -> 0 | U72: ='[2]Exec Summary'!$L74 -> 0 | V72: ='[2]Exec Summary'!$M74 -> -0.1637880253 | W72: ='[2]Exec Summary'!$N74 -> -0.01511683663 | X72: ='[2]Exec Summary'!$O74 -> -0.01526768738 | Y72: ='[2]Exec Summary'!$P74 -> -0.01778792745 | Z72: =AVERAGE(U72:Y72) -> -0.04239209535 | AA72: ='[2]Exec Summary'!$W74 -> -0.05527341207 | AC72: 0 | AD72: 0 | AE72: 5.132 | AF72: -0.042 | AG72: 0.007 | AH72: 0.007 | AI72: 0.008 | AK72: -0.007 | AM72: 0 | AN72: 0 | AO72: 0 | AP72: 0.2564290029 | AQ72: -0.4630598431 | AR72: -0.4584846299 | AS72: -0.449743233 | AU72: 0.1266431678
AC73: 0 | AD73: 0 | AE73: 0 | AF73: 0 | AG73: 0 | AH73: 0 | AI73: 0 | AK73: 0 | AM73: 0 | AN73: 0 | AO73: 0 | AP73: 0 | AQ73: 0 | AR73: 0 | AS73: 0 | AU73: 0
E74: Average water resources - only bill - real | F74: 0 | G74: £ | I74: ='[1]Exec Summary'!$J76 -> 0 | J74: ='[1]Exec Summary'!$K76 -> 5.882512347 | K74: ='[1]Exec Summary'!$L76 -> 55.49100883 | L74: ='[1]Exec Summary'!$M76 -> 48.35489821 | M74: ='[1]Exec Summary'!$N76 -> 47.23973705 | N74: ='[1]Exec Summary'!$O76 -> 46.48135229 | O74: ='[1]Exec Summary'!$P76 -> 45.00440002 | P74: =AVERAGE(K74:O74) -> 48.51427928 | Q74: ='[1]Exec Summary'!$W76 -> 0 | S74: ='[2]Exec Summary'!$J76 -> 0 | T74: ='[2]Exec Summary'!$K76 -> 0 | U74: ='[2]Exec Summary'!$L76 -> 50.2145401 | V74: ='[2]Exec Summary'!$M76 -> 44.19356129 | W74: ='[2]Exec Summary'!$N76 -> 44.16866887 | X74: ='[2]Exec Summary'!$O76 -> 43.89165276 | Y74: ='[2]Exec Summary'!$P76 -> 43.08685267 | Z74: =AVERAGE(U74:Y74) -> 45.11105514 | AA74: ='[2]Exec Summary'!$W76 -> 0 | AC74: 0 | AD74: 5.883 | AE74: 5.276 | AF74: 4.161 | AG74: 3.071 | AH74: 2.59 | AI74: 1.918 | AK74: 0 | AM74: 0 | AN74: 0 | AO74: 0.105069169 | AP74: 0.0941539871 | AQ74: 0.06952892352 | AR74: 0.05900894218 | AS74: 0.04451473898 | AU74: 0
E75: Average water resources - only bill - Growth | F75: 0 | G75: % | I75: ='[1]Exec Summary'!$J77 -> 0 | J75: ='[1]Exec Summary'!$K77 -> 0 | K75: ='[1]Exec Summary'!$L77 -> 8.433215871 | L75: ='[1]Exec Summary'!$M77 -> -0.1285994033 | M75: ='[1]Exec Summary'!$N77 -> -0.02306201023 | N75: ='[1]Exec Summary'!$O77 -> -0.01605395816 | O75: ='[1]Exec Summary'!$P77 -> -0.03177515702 | P75: =AVERAGE(K75:O75) -> 1.646745068 | Q75: ='[1]Exec Summary'!$W77 -> -0.05101775085 | S75: ='[2]Exec Summary'!$J77 -> 0 | T75: ='[2]Exec Summary'!$K77 -> 0 | U75: ='[2]Exec Summary'!$L77 -> 0 | V75: ='[2]Exec Summary'!$M77 -> -0.1199050871 | W75: ='[2]Exec Summary'!$N77 -> -0.0005632589737 | X75: ='[2]Exec Summary'!$O77 -> -0.006271778533 | Y75: ='[2]Exec Summary'!$P77 -> -0.01833606267 | Z75: =AVERAGE(U75:Y75) -> -0.02901523746 | AA75: ='[2]Exec Summary'!$W77 -> -0.03754857345 | AC75: 0 | AD75: 0 | AE75: 8.433 | AF75: -0.009 | AG75: -0.022 | AH75: -0.01 | AI75: -0.013 | AK75: -0.013 | AM75: 0 | AN75: 0 | AO75: 0 | AP75: 0.07505936751 | AQ75: 39.05841012 | AR75: 1.594444056 | AS75: 0.7089853604 | AU75: 0.346218213
AC76: 0 | AD76: 0 | AE76: 0 | AF76: 0 | AG76: 0 | AH76: 0 | AI76: 0 | AK76: 0 | AM76: 0 | AN76: 0 | AO76: 0 | AP76: 0 | AQ76: 0 | AR76: 0 | AS76: 0 | AU76: 0
E77: Average water network - only bill - real | F77: 0 | G77: £ | I77: ='[1]Exec Summary'!$J79 -> 0 | J77: ='[1]Exec Summary'!$K79 -> 5.882512347 | K77: ='[1]Exec Summary'!$L79 -> 185.4962497 | L77: ='[1]Exec Summary'!$M79 -> 181.5523061 | M77: ='[1]Exec Summary'!$N79 -> 182.602326 | N77: ='[1]Exec Summary'!$O79 -> 184.6194797 | O77: ='[1]Exec Summary'!$P79 -> 183.1095494 | P77: =AVERAGE(K77:O77) -> 183.4759822 | Q77: ='[1]Exec Summary'!$W79 -> 0 | S77: ='[2]Exec Summary'!$J79 -> 0 | T77: ='[2]Exec Summary'!$K79 -> 0 | U77: ='[2]Exec Summary'!$L79 -> 172.5678635 | V77: ='[2]Exec Summary'!$M79 -> 170.8308922 | W77: ='[2]Exec Summary'!$N79 -> 168.4285688 | X77: ='[2]Exec Summary'!$O79 -> 166.249445 | Y77: ='[2]Exec Summary'!$P79 -> 163.4468569 | Z77: =AVERAGE(U77:Y77) -> 168.3047253 | AA77: ='[2]Exec Summary'!$W79 -> 0 | AC77: 0 | AD77: 5.883 | AE77: 12.928 | AF77: 10.721 | AG77: 14.174 | AH77: 18.37 | AI77: 19.663 | AK77: 0 | AM77: 0 | AN77: 0 | AO77: 0.07491545493 | AP77: 0.06275796996 | AQ77: 0.08415436944 | AR77: 0.1104966095 | AS77: 0.1203020993 | AU77: 0
E78: Average water network - only bill - Growth | F78: 0 | G78: % | I78: ='[1]Exec Summary'!$J80 -> 0 | J78: ='[1]Exec Summary'!$K80 -> 0 | K78: ='[1]Exec Summary'!$L80 -> 30.53350793 | L78: ='[1]Exec Summary'!$M80 -> -0.02126158169 | M78: ='[1]Exec Summary'!$N80 -> 0.005783567057 | N78: ='[1]Exec Summary'!$O80 -> 0.01104670296 | O78: ='[1]Exec Summary'!$P80 -> -0.008178607556 | P78: =AVERAGE(K78:O78) -> 6.104179602 | Q78: ='[1]Exec Summary'!$W80 -> -0.003232280027 | S78: ='[2]Exec Summary'!$J80 -> 0 | T78: ='[2]Exec Summary'!$K80 -> 0 | U78: ='[2]Exec Summary'!$L80 -> 0 | V78: ='[2]Exec Summary'!$M80 -> -0.01006543903 | W78: ='[2]Exec Summary'!$N80 -> -0.01406258199 | X78: ='[2]Exec Summary'!$O80 -> -0.01293796985 | Y78: ='[2]Exec Summary'!$P80 -> -0.01685772924 | Z78: =AVERAGE(U78:Y78) -> -0.01078474402 | AA78: ='[2]Exec Summary'!$W80 -> -0.0134839331 | AC78: 0 | AD78: 0 | AE78: 30.534 | AF78: -0.011 | AG78: 0.02 | AH78: 0.024 | AI78: 0.009 | AK78: 0.01 | AM78: 0 | AN78: 0 | AO78: 0 | AP78: 1.092848505 | AQ78: -1.422213931 | AR78: -1.855005096 | AS78: -0.5338797339 | AU78: -0.7416233771
AC79: 0 | AD79: 0 | AE79: 0 | AF79: 0 | AG79: 0 | AH79: 0 | AI79: 0 | AK79: 0 | AM79: 0 | AN79: 0 | AO79: 0 | AP79: 0 | AQ79: 0 | AR79: 0 | AS79: 0 | AU79: 0
E80: Average wastewater network-only bill - real | F80: 0 | G80: £ | I80: ='[1]Exec Summary'!$J82 -> 0 | J80: ='[1]Exec Summary'!$K82 -> 5.882512347 | K80: ='[1]Exec Summary'!$L82 -> 218.752173 | L80: ='[1]Exec Summary'!$M82 -> 211.9016448 | M80: ='[1]Exec Summary'!$N82 -> 212.7531044 | N80: ='[1]Exec Summary'!$O82 -> 212.245144 | O80: ='[1]Exec Summary'!$P82 -> 213.2310019 | P80: =AVERAGE(K80:O80) -> 213.7766136 | Q80: ='[1]Exec Summary'!$W82 -> 0 | S80: ='[2]Exec Summary'!$J82 -> 0 | T80: ='[2]Exec Summary'!$K82 -> 0 | U80: ='[2]Exec Summary'!$L82 -> 202.6029611 | V80: ='[2]Exec Summary'!$M82 -> 197.6480741 | W80: ='[2]Exec Summary'!$N82 -> 196.3521697 | X80: ='[2]Exec Summary'!$O82 -> 195.5755912 | Y80: ='[2]Exec Summary'!$P82 -> 195.0801679 | Z80: =AVERAGE(U80:Y80) -> 197.4517928 | AA80: ='[2]Exec Summary'!$W82 -> 0 | AC80: 0 | AD80: 5.883 | AE80: 16.149 | AF80: 14.254 | AG80: 16.401 | AH80: 16.67 | AI80: 18.151 | AK80: 0 | AM80: 0 | AN80: 0 | AO80: 0.0797076208 | AP80: 0.07211808193 | AQ80: 0.08352848875 | AR80: 0.08523558536 | AS80: 0.09304379937 | AU80: 0
E81: Average wastewater network-only bill growth - real | F81: 0 | G81: % | I81: ='[1]Exec Summary'!$J83 -> 0 | J81: ='[1]Exec Summary'!$K83 -> 0 | K81: ='[1]Exec Summary'!$L83 -> 36.18686168 | L81: ='[1]Exec Summary'!$M83 -> -0.03131638904 | M81: ='[1]Exec Summary'!$N83 -> 0.004018183014 | N81: ='[1]Exec Summary'!$O83 -> -0.00238755811 | O81: ='[1]Exec Summary'!$P83 -> 0.00464490175 | P81: =AVERAGE(K81:O81) -> 7.232364164 | Q81: ='[1]Exec Summary'!$W83 -> -0.006370463257 | S81: ='[2]Exec Summary'!$J83 -> 0 | T81: ='[2]Exec Summary'!$K83 -> 0 | U81: ='[2]Exec Summary'!$L83 -> 0 | V81: ='[2]Exec Summary'!$M83 -> -0.02445614329 | W81: ='[2]Exec Summary'!$N83 -> -0.006556625287 | X81: ='[2]Exec Summary'!$O83 -> -0.003955028949 | Y81: ='[2]Exec Summary'!$P83 -> -0.002533155387 | Z81: =AVERAGE(U81:Y81) -> -0.007500190582 | AA81: ='[2]Exec Summary'!$W83 -> -0.009414804609 | AC81: 0 | AD81: 0 | AE81: 36.187 | AF81: -0.007 | AG81: 0.011 | AH81: 0.002 | AI81: 0.007 | AK81: 0.003 | AM81: 0 | AN81: 0 | AO81: 0 | AP81: 0.2862266514 | AQ81: -1.677692337 | AR81: -0.5056852999 | AS81: -2.763351998 | AU81: -0.3186470803
AC82: 0 | AD82: 0 | AE82: 0 | AF82: 0 | AG82: 0 | AH82: 0 | AI82: 0 | AK82: 0 | AM82: 0 | AN82: 0 | AO82: 0 | AP82: 0 | AQ82: 0 | AR82: 0 | AS82: 0 | AU82: 0
E83: Average bio resources-only bill - real | F83: 0 | G83: £ | I83: ='[1]Exec Summary'!$J85 -> 0 | J83: ='[1]Exec Summary'!$K85 -> 5.882512347 | K83: ='[1]Exec Summary'!$L85 -> 69.65935258 | L83: ='[1]Exec Summary'!$M85 -> 62.2352964 | M83: ='[1]Exec Summary'!$N85 -> 60.95946283 | N83: ='[1]Exec Summary'!$O85 -> 59.95712515 | O83: ='[1]Exec Summary'!$P85 -> 58.78505663 | P83: =AVERAGE(K83:O83) -> 62.31925872 | Q83: ='[1]Exec Summary'!$W85 -> 0 | S83: ='[2]Exec Summary'!$J85 -> 0 | T83: ='[2]Exec Summary'!$K85 -> 0 | U83: ='[2]Exec Summary'!$L85 -> 63.6953129 | V83: ='[2]Exec Summary'!$M85 -> 57.18723052 | W83: ='[2]Exec Summary'!$N85 -> 55.86016949 | X83: ='[2]Exec Summary'!$O85 -> 54.02950741 | Y83: ='[2]Exec Summary'!$P85 -> 52.95540873 | Z83: =AVERAGE(U83:Y83) -> 56.74552581 | AA83: ='[2]Exec Summary'!$W85 -> 0 | AC83: 0 | AD83: 5.883 | AE83: 5.964 | AF83: 5.048 | AG83: 5.099 | AH83: 5.928 | AI83: 5.83 | AK83: 0 | AM83: 0 | AN83: 0 | AO83: 0.09363326323 | AP83: 0.0882714542 | AQ83: 0.09128149889 | AR83: 0.1097178243 | AS83: 0.1100926258 | AU83: 0
E84: Average bio resources-only bill growth - real | F84: 0 | G84: % | I84: ='[1]Exec Summary'!$J86 -> 0 | J84: ='[1]Exec Summary'!$K86 -> 0 | K84: ='[1]Exec Summary'!$L86 -> 10.84176904 | L84: ='[1]Exec Summary'!$M86 -> -0.1065765888 | M84: ='[1]Exec Summary'!$N86 -> -0.02050016067 | N84: ='[1]Exec Summary'!$O86 -> -0.01644269208 | O84: ='[1]Exec Summary'!$P86 -> -0.0195484443 | P84: =AVERAGE(K84:O84) -> 2.135740231 | Q84: ='[1]Exec Summary'!$W86 -> -0.04154467015 | S84: ='[2]Exec Summary'!$J86 -> 0 | T84: ='[2]Exec Summary'!$K86 -> 0 | U84: ='[2]Exec Summary'!$L86 -> 0 | V84: ='[2]Exec Summary'!$M86 -> -0.1021752164 | W84: ='[2]Exec Summary'!$N86 -> -0.02320554809 | X84: ='[2]Exec Summary'!$O86 -> -0.03277222577 | Y84: ='[2]Exec Summary'!$P86 -> -0.01987985325 | Z84: =AVERAGE(U84:Y84) -> -0.03560656871 | AA84: ='[2]Exec Summary'!$W86 -> -0.04511578921 | AC84: 0 | AD84: 0 | AE84: 10.842 | AF84: -0.004 | AG84: 0.003 | AH84: 0.016 | AI84: 0 | AK84: 0.004 | AM84: 0 | AN84: 0 | AO84: 0 | AP84: 0.03914843677 | AQ84: -0.1292794287 | AR84: -0.4882182892 | AS84: 0 | AU84: -0.08866075647
AC85: 0 | AD85: 0 | AE85: 0 | AF85: 0 | AG85: 0 | AH85: 0 | AI85: 0 | AK85: 0 | AM85: 0 | AN85: 0 | AO85: 0 | AP85: 0 | AQ85: 0 | AR85: 0 | AS85: 0 | AU85: 0
E86: Average dummy control-only bill - real | F86: 0 | G86: £ | I86: ='[1]Exec Summary'!$J88 -> 0 | J86: ='[1]Exec Summary'!$K88 -> 0 | K86: ='[1]Exec Summary'!$L88 -> 0 | L86: ='[1]Exec Summary'!$M88 -> 0 | M86: ='[1]Exec Summary'!$N88 -> 0 | N86: ='[1]Exec Summary'!$O88 -> 0 | O86: ='[1]Exec Summary'!$P88 -> 0 | P86: =AVERAGE(K86:O86) -> 0 | Q86: ='[1]Exec Summary'!$W88 -> 0 | S86: ='[2]Exec Summary'!$J88 -> 0 | T86: ='[2]Exec Summary'!$K88 -> 0 | U86: ='[2]Exec Summary'!$L88 -> 0 | V86: ='[2]Exec Summary'!$M88 -> 0 | W86: ='[2]Exec Summary'!$N88 -> 0 | X86: ='[2]Exec Summary'!$O88 -> 0 | Y86: ='[2]Exec Summary'!$P88 -> 0 | Z86: =AVERAGE(U86:Y86) -> 0 | AA86: ='[2]Exec Summary'!$W88 -> 0 | AC86: 0 | AD86: 0 | AE86: 0 | AF86: 0 | AG86: 0 | AH86: 0 | AI86: 0 | AK86: 0 | AM86: 0 | AN86: 0 | AO86: 0 | AP86: 0 | AQ86: 0 | AR86: 0 | AS86: 0 | AU86: 0
E87: Average dummy control-only bill growth - real | F87: 0 | G87: % | I87: ='[1]Exec Summary'!$J89 -> 0 | J87: ='[1]Exec Summary'!$K89 -> 0 | K87: ='[1]Exec Summary'!$L89 -> 0 | L87: ='[1]Exec Summary'!$M89 -> 0 | M87: ='[1]Exec Summary'!$N89 -> 0 | N87: ='[1]Exec Summary'!$O89 -> 0 | O87: ='[1]Exec Summary'!$P89 -> 0 | P87: =AVERAGE(K87:O87) -> 0 | Q87: ='[1]Exec Summary'!$W89 -> 0 | S87: ='[2]Exec Summary'!$J89 -> 0 | T87: ='[2]Exec Summary'!$K89 -> 0 | U87: ='[2]Exec Summary'!$L89 -> 0 | V87: ='[2]Exec Summary'!$M89 -> 0 | W87: ='[2]Exec Summary'!$N89 -> 0 | X87: ='[2]Exec Summary'!$O89 -> 0 | Y87: ='[2]Exec Summary'!$P89 -> 0 | Z87: =AVERAGE(U87:Y87) -> 0 | AA87: ='[2]Exec Summary'!$W89 -> 0 | AC87: 0 | AD87: 0 | AE87: 0 | AF87: 0 | AG87: 0 | AH87: 0 | AI87: 0 | AK87: 0 | AM87: 0 | AN87: 0 | AO87: 0 | AP87: 0 | AQ87: 0 | AR87: 0 | AS87: 0 | AU87: 0
AC88: 0 | AD88: 0 | AE88: 0 | AF88: 0 | AG88: 0 | AH88: 0 | AI88: 0 | AK88: 0 | AM88: 0 | AN88: 0 | AO88: 0 | AP88: 0 | AQ88: 0 | AR88: 0 | AS88: 0 | AU88: 0
E89: WoC average bill - real | F89: 0 | G89: £ | I89: ='[1]Exec Summary'!$J91 -> 0 | J89: ='[1]Exec Summary'!$K91 -> 0 | K89: ='[1]Exec Summary'!$L91 -> 0 | L89: ='[1]Exec Summary'!$M91 -> 0 | M89: ='[1]Exec Summary'!$N91 -> 0 | N89: ='[1]Exec Summary'!$O91 -> 0 | O89: ='[1]Exec Summary'!$P91 -> 0 | P89: =AVERAGE(K89:O89) -> 0 | Q89: ='[1]Exec Summary'!$W91 -> 0 | S89: ='[2]Exec Summary'!$J91 -> 0 | T89: ='[2]Exec Summary'!$K91 -> 0 | U89: ='[2]Exec Summary'!$L91 -> 0 | V89: ='[2]Exec Summary'!$M91 -> 0 | W89: ='[2]Exec Summary'!$N91 -> 0 | X89: ='[2]Exec Summary'!$O91 -> 0 | Y89: ='[2]Exec Summary'!$P91 -> 0 | Z89: =AVERAGE(U89:Y89) -> 0 | AA89: ='[2]Exec Summary'!$W91 -> 0 | AC89: 0 | AD89: 0 | AE89: 0 | AF89: 0 | AG89: 0 | AH89: 0 | AI89: 0 | AK89: 0 | AM89: 0 | AN89: 0 | AO89: 0 | AP89: 0 | AQ89: 0 | AR89: 0 | AS89: 0 | AU89: 0
E90: WoC average bill growth | F90: 0 | G90: % | I90: ='[1]Exec Summary'!$J92 -> 0 | J90: ='[1]Exec Summary'!$K92 -> 0 | K90: ='[1]Exec Summary'!$L92 -> 0 | L90: ='[1]Exec Summary'!$M92 -> 0 | M90: ='[1]Exec Summary'!$N92 -> 0 | N90: ='[1]Exec Summary'!$O92 -> 0 | O90: ='[1]Exec Summary'!$P92 -> 0 | P90: =AVERAGE(K90:O90) -> 0 | Q90: ='[1]Exec Summary'!$W92 -> 0 | S90: ='[2]Exec Summary'!$J92 -> 0 | T90: ='[2]Exec Summary'!$K92 -> 0 | U90: ='[2]Exec Summary'!$L92 -> 0 | V90: ='[2]Exec Summary'!$M92 -> 0 | W90: ='[2]Exec Summary'!$N92 -> 0 | X90: ='[2]Exec Summary'!$O92 -> 0 | Y90: ='[2]Exec Summary'!$P92 -> 0 | Z90: =AVERAGE(U90:Y90) -> 0 | AA90: ='[2]Exec Summary'!$W92 -> 0 | AC90: 0 | AD90: 0 | AE90: 0 | AF90: 0 | AG90: 0 | AH90: 0 | AI90: 0 | AK90: 0 | AM90: 0 | AN90: 0 | AO90: 0 | AP90: 0 | AQ90: 0 | AR90: 0 | AS90: 0 | AU90: 0
AC91: 0 | AD91: 0 | AE91: 0 | AF91: 0 | AG91: 0 | AH91: 0 | AI91: 0 | AK91: 0 | AM91: 0 | AN91: 0 | AO91: 0 | AP91: 0 | AQ91: 0 | AR91: 0 | AS91: 0 | AU91: 0
E92: WaSC average bill - real | F92: 0 | G92: £ | I92: ='[1]Exec Summary'!$J94 -> 0 | J92: ='[1]Exec Summary'!$K94 -> 0 | K92: ='[1]Exec Summary'!$L94 -> 426.6249446 | L92: ='[1]Exec Summary'!$M94 -> 422.3023795 | M92: ='[1]Exec Summary'!$N94 -> 422.1826453 | N92: ='[1]Exec Summary'!$O94 -> 422.3408842 | O92: ='[1]Exec Summary'!$P94 -> 419.6151883 | P92: =AVERAGE(K92:O92) -> 422.6132084 | Q92: ='[1]Exec Summary'!$W94 -> 0 | S92: ='[2]Exec Summary'!$J94 -> 0 | T92: ='[2]Exec Summary'!$K94 -> 0 | U92: ='[2]Exec Summary'!$L94 -> 394.3581615 | V92: ='[2]Exec Summary'!$M94 -> 390.4760689 | W92: ='[2]Exec Summary'!$N94 -> 386.3635095 | X92: ='[2]Exec Summary'!$O94 -> 382.2010895 | Y92: ='[2]Exec Summary'!$P94 -> 378.0834508 | Z92: =AVERAGE(U92:Y92) -> 386.296456 | AA92: ='[2]Exec Summary'!$W94 -> 0 | AC92: 0 | AD92: 0 | AE92: 32.267 | AF92: 31.826 | AG92: 35.819 | AH92: 40.14 | AI92: 41.532 | AK92: 0 | AM92: 0 | AN92: 0 | AO92: 0.08182156006 | AP92: 0.08150563513 | AQ92: 0.09270803044 | AR92: 0.1050232485 | AS92: 0.1098487646 | AU92: 0
E93: WaSC average bill growth | F93: 0 | G93: % | I93: ='[1]Exec Summary'!$J95 -> 0 | J93: ='[1]Exec Summary'!$K95 -> 0 | K93: ='[1]Exec Summary'!$L95 -> 0 | L93: ='[1]Exec Summary'!$M95 -> -0.01013200257 | M93: ='[1]Exec Summary'!$N95 -> -0.0002835272789 | N93: ='[1]Exec Summary'!$O95 -> 0.0003748115505 | O93: ='[1]Exec Summary'!$P95 -> -0.006453781834 | P93: =AVERAGE(K93:O93) -> -0.003298900026 | Q93: ='[1]Exec Summary'!$W95 -> -0.004133235658 | S93: ='[2]Exec Summary'!$J95 -> 0 | T93: ='[2]Exec Summary'!$K95 -> 0 | U93: ='[2]Exec Summary'!$L95 -> 0 | V93: ='[2]Exec Summary'!$M95 -> -0.00984407833 | W93: ='[2]Exec Summary'!$N95 -> -0.01053216755 | X93: ='[2]Exec Summary'!$O95 -> -0.01077332605 | Y93: ='[2]Exec Summary'!$P95 -> -0.01077348747 | Z93: =AVERAGE(U93:Y93) -> -0.00838461188 | AA93: ='[2]Exec Summary'!$W95 -> -0.01048083801 | AC93: 0 | AD93: 0 | AE93: 0 | AF93: 0 | AG93: 0.01 | AH93: 0.011 | AI93: 0.004 | AK93: 0.006 | AM93: 0 | AN93: 0 | AO93: 0 | AP93: 0 | AQ93: -0.9494721718 | AR93: -1.021040294 | AS93: -0.3712818168 | AU93: -0.5724733074
AC94: 0 | AD94: 0 | AE94: 0 | AF94: 0 | AG94: 0 | AH94: 0 | AI94: 0 | AK94: 0 | AM94: 0 | AN94: 0 | AO94: 0 | AP94: 0 | AQ94: 0 | AR94: 0 | AS94: 0 | AU94: 0
E95: Single Retail income - real | F95: 0 | G95: £m | I95: ='[1]Exec Summary'!$J97 -> 0 | J95: ='[1]Exec Summary'!$K97 -> 6.262122112 | K95: ='[1]Exec Summary'!$L97 -> 41.81738473 | L95: ='[1]Exec Summary'!$M97 -> 33.50215771 | M95: ='[1]Exec Summary'!$N97 -> 33.24400454 | N95: ='[1]Exec Summary'!$O97 -> 32.87124963 | O95: ='[1]Exec Summary'!$P97 -> 32.50688426 | P95: =AVERAGE(K95:O95) -> 34.78833618 | Q95: ='[1]Exec Summary'!$W97 -> 0 | S95: ='[2]Exec Summary'!$J97 -> 0 | T95: ='[2]Exec Summary'!$K97 -> 0 | U95: ='[2]Exec Summary'!$L97 -> 38.62667222 | V95: ='[2]Exec Summary'!$M97 -> 32.59869148 | W95: ='[2]Exec Summary'!$N97 -> 32.1049969 | X95: ='[2]Exec Summary'!$O97 -> 31.52498597 | Y95: ='[2]Exec Summary'!$P97 -> 30.91599958 | Z95: =AVERAGE(U95:Y95) -> 33.15426923 | AA95: ='[2]Exec Summary'!$W97 -> 0 | AC95: 0 | AD95: 6.262 | AE95: 3.191 | AF95: 0.903 | AG95: 1.139 | AH95: 1.346 | AI95: 1.591 | AK95: 0 | AM95: 0 | AN95: 0 | AO95: 0.08261131018 | AP95: 0.02770049836 | AQ95: 0.0354773434 | AR95: 0.0426962918 | AS95: 0.05146202684 | AU95: 0
E96: Joint Retail income - real | F96: 0 | G96: £m | I96: ='[1]Exec Summary'!$J98 -> 0 | J96: ='[1]Exec Summary'!$K98 -> 10.19515862 | K96: ='[1]Exec Summary'!$L98 -> 63.40661417 | L96: ='[1]Exec Summary'!$M98 -> 51.30526035 | M96: ='[1]Exec Summary'!$N98 -> 52.06916993 | N96: ='[1]Exec Summary'!$O98 -> 52.81953788 | O96: ='[1]Exec Summary'!$P98 -> 53.39372648 | P96: =AVERAGE(K96:O96) -> 54.59886176 | Q96: ='[1]Exec Summary'!$W98 -> 0 | S96: ='[2]Exec Summary'!$J98 -> 0 | T96: ='[2]Exec Summary'!$K98 -> 0 | U96: ='[2]Exec Summary'!$L98 -> 58.56861968 | V96: ='[2]Exec Summary'!$M98 -> 49.92169065 | W96: ='[2]Exec Summary'!$N98 -> 50.28517359 | X96: ='[2]Exec Summary'!$O98 -> 50.65627896 | Y96: ='[2]Exec Summary'!$P98 -> 50.78064117 | Z96: =AVERAGE(U96:Y96) -> 52.04248081 | AA96: ='[2]Exec Summary'!$W98 -> 0 | AC96: 0 | AD96: 10.195 | AE96: 4.838 | AF96: 1.384 | AG96: 1.784 | AH96: 2.163 | AI96: 2.613 | AK96: 0 | AM96: 0 | AN96: 0 | AO96: 0.08260396142 | AP96: 0.02772342006 | AQ96: 0.0354776542 | AR96: 0.04269954376 | AS96: 0.05145661692 | AU96: 0
E97: Total Retail income - real | F97: 0 | G97: £m | I97: ='[1]Exec Summary'!$J99 -> 0 | J97: ='[1]Exec Summary'!$K99 -> 16.45728074 | K97: ='[1]Exec Summary'!$L99 -> 105.2239989 | L97: ='[1]Exec Summary'!$M99 -> 84.80741806 | M97: ='[1]Exec Summary'!$N99 -> 85.31317448 | N97: ='[1]Exec Summary'!$O99 -> 85.69078751 | O97: ='[1]Exec Summary'!$P99 -> 85.90061074 | P97: 89.38719794 | Q97: ='[1]Exec Summary'!$W99 -> 0 | S97: ='[2]Exec Summary'!$J99 -> 0 | T97: ='[2]Exec Summary'!$K99 -> 0 | U97: ='[2]Exec Summary'!$L99 -> 97.19529189 | V97: ='[2]Exec Summary'!$M99 -> 82.52038214 | W97: ='[2]Exec Summary'!$N99 -> 82.3901705 | X97: ='[2]Exec Summary'!$O99 -> 82.18126493 | Y97: ='[2]Exec Summary'!$P99 -> 81.69664075 | Z97: 85.19675004 | AA97: ='[2]Exec Summary'!$W99 -> 0 | AC97: 0 | AD97: 16.457 | AE97: 8.029 | AF97: 2.287 | AG97: 2.923 | AH97: 3.51 | AI97: 4.204 | AK97: 0 | AM97: 0 | AN97: 0 | AO97: 0.08260688191 | AP97: 0.02771436512 | AQ97: 0.03547753309 | AR97: 0.04271046452 | AS97: 0.05145866417 | AU97: 0
A100: INCOME STATEMENT - APPOINTEE (NOMINAL) PRE-POST FINANCEABILITY ADJUSTMENTS AND REPROFILING
E102: Revenue - Appointee - nominal | F102: PL | G102: £m | I102: ='[1]Exec Summary'!$J104 -> 0 | J102: ='[1]Exec Summary'!$K104 -> 17.20615284 | K102: ='[1]Exec Summary'!$L104 -> 1333.696042 | L102: ='[1]Exec Summary'!$M104 -> 1369.674079 | M102: ='[1]Exec Summary'!$N104 -> 1417.461023 | N102: ='[1]Exec Summary'!$O104 -> 1466.774802 | O102: ='[1]Exec Summary'!$P104 -> 1507.113425 | P102: =AVERAGE(K102:O102) -> 1418.943874 | Q102: ='[1]Exec Summary'!$W104 -> 7094.719371 | S102: ='[2]Exec Summary'!$J104 -> 0 | T102: ='[2]Exec Summary'!$K104 -> 0 | U102: ='[2]Exec Summary'!$L104 -> 1226.977322 | V102: ='[2]Exec Summary'!$M104 -> 1259.464623 | W102: ='[2]Exec Summary'!$N104 -> 1291.572038 | X102: ='[2]Exec Summary'!$O104 -> 1323.863296 | Y102: ='[2]Exec Summary'!$P104 -> 1356.020806 | Z102: =AVERAGE(U102:Y102) -> 1291.579617 | AA102: ='[2]Exec Summary'!$W104 -> 6457.898085 | AC102: =ROUND(I102 - S102, 3) -> 0 | AD102: 17.206 | AE102: 106.719 | AF102: 110.209 | AG102: 125.889 | AH102: 142.912 | AI102: 151.093 | AK102: =ROUND(Q102 - AA102, 3) -> 636.821 | AM102: =IF(S102 = 0, 0, AC102 / S102) -> 0 | AN102: 0 | AO102: 0.08697715769 | AP102: 0.08750464127 | AQ102: 0.09746959231 | AR102: 0.107950723 | AS102: 0.1114238066 | AU102: =IF(AA102 = 0, 0, AK102 / AA102) -> 0.09861118767
E103: Operating profit - Appointee - nominal | F103: 0 | G103: £m | I103: ='[1]Exec Summary'!$J105 -> 0 | J103: ='[1]Exec Summary'!$K105 -> 17.20615284 | K103: ='[1]Exec Summary'!$L105 -> 309.9194258 | L103: ='[1]Exec Summary'!$M105 -> 312.0846237 | M103: ='[1]Exec Summary'!$N105 -> 328.5739549 | N103: ='[1]Exec Summary'!$O105 -> 348.085572 | O103: ='[1]Exec Summary'!$P105 -> 357.8226746 | P103: =AVERAGE(K103:O103) -> 331.2972502 | Q103: ='[1]Exec Summary'!$W105 -> 1656.486251 | S103: ='[2]Exec Summary'!$J105 -> 0 | T103: ='[2]Exec Summary'!$K105 -> 0 | U103: ='[2]Exec Summary'!$L105 -> 297.0559943 | V103: ='[2]Exec Summary'!$M105 -> 299.362484 | W103: ='[2]Exec Summary'!$N105 -> 297.093552 | X103: ='[2]Exec Summary'!$O105 -> 293.54385 | Y103: ='[2]Exec Summary'!$P105 -> 285.429127 | Z103: =AVERAGE(U103:Y103) -> 294.4970015 | AA103: ='[2]Exec Summary'!$W105 -> 1472.485007 | AC103: 0 | AD103: 17.206 | AE103: 12.863 | AF103: 12.722 | AG103: 31.48 | AH103: 54.542 | AI103: 72.394 | AK103: 184.001 | AM103: 0 | AN103: 0 | AO103: 0.04330160054 | AP103: 0.042496975 | AQ103: 0.1059598897 | AR103: 0.1858052894 | AS103: 0.253632139 | AU103: 0.1249595066
E104: Profit before tax - Appointee - nominal | F104: 0 | G104: £m | I104: ='[1]Exec Summary'!$J106 -> 0 | J104: ='[1]Exec Summary'!$K106 -> 17.20615284 | K104: ='[1]Exec Summary'!$L106 -> 125.8990444 | L104: ='[1]Exec Summary'!$M106 -> 119.1848821 | M104: ='[1]Exec Summary'!$N106 -> 120.625463 | N104: ='[1]Exec Summary'!$O106 -> 121.5545196 | O104: ='[1]Exec Summary'!$P106 -> 115.425091 | P104: 120.5378 | Q104: ='[1]Exec Summary'!$W106 -> 602.6890001 | S104: ='[2]Exec Summary'!$J106 -> 0 | T104: ='[2]Exec Summary'!$K106 -> 0 | U104: ='[2]Exec Summary'!$L106 -> 125.4258805 | V104: ='[2]Exec Summary'!$M106 -> 123.3754915 | W104: ='[2]Exec Summary'!$N106 -> 110.7879277 | X104: ='[2]Exec Summary'!$O106 -> 96.34014699 | Y104: ='[2]Exec Summary'!$P106 -> 81.91520809 | Z104: 107.5689309 | AA104: ='[2]Exec Summary'!$W106 -> 537.8446547 | AC104: 0 | AD104: 17.206 | AE104: 0.473 | AF104: -4.191 | AG104: 9.838 | AH104: 25.214 | AI104: 33.51 | AK104: 64.844 | AM104: 0 | AN104: 0 | AO104: 0.003771151522 | AP104: -0.03396946954 | AQ104: 0.08880028902 | AR104: 0.2617185129 | AS104: 0.4090815464 | AU104: 0.120562693
E105: Current tax charge - Appointee - nominal | F105: PL | G105: £m | I105: ='[1]Exec Summary'!$J107 -> 0 | J105: ='[1]Exec Summary'!$K107 -> 0 | K105: ='[1]Exec Summary'!$L107 -> -5.692927302 | L105: ='[1]Exec Summary'!$M107 -> -2.052268638 | M105: ='[1]Exec Summary'!$N107 -> -2.174472065 | N105: ='[1]Exec Summary'!$O107 -> -2.29574324 | O105: ='[1]Exec Summary'!$P107 -> -2.405549049 | P105: -2.924192059 | Q105: ='[1]Exec Summary'!$W107 -> -14.62096029 | S105: ='[2]Exec Summary'!$J107 -> 0 | T105: ='[2]Exec Summary'!$K107 -> 0 | U105: ='[2]Exec Summary'!$L107 -> -4.261153055 | V105: ='[2]Exec Summary'!$M107 -> -1.940064453 | W105: ='[2]Exec Summary'!$N107 -> -2.036762784 | X105: ='[2]Exec Summary'!$O107 -> -2.13979574 | Y105: ='[2]Exec Summary'!$P107 -> -2.240545526 | Z105: -2.523664312 | AA105: ='[2]Exec Summary'!$W107 -> -12.61832156 | AC105: 0 | AD105: 0 | AE105: -1.432 | AF105: -0.112 | AG105: -0.138 | AH105: -0.156 | AI105: -0.165 | AK105: -2.003 | AM105: 0 | AN105: 0 | AO105: 0.3360592735 | AP105: 0.05773004077 | AQ105: 0.06775457656 | AR105: 0.07290415487 | AS105: 0.07364277944 | AU105: 0.1587374351
E106: Movement in deferred tax provision - Appointee - nominal | F106: PL | G106: £m | I106: ='[1]Exec Summary'!$J108 -> 0 | J106: ='[1]Exec Summary'!$K108 -> 0 | K106: ='[1]Exec Summary'!$L108 -> -11.96722443 | L106: ='[1]Exec Summary'!$M108 -> -8.782914335 | M106: ='[1]Exec Summary'!$N108 -> -7.17186654 | N106: ='[1]Exec Summary'!$O108 -> -7.155336643 | O106: ='[1]Exec Summary'!$P108 -> -1.787467552 | P106: -7.3729619 | Q106: ='[1]Exec Summary'!$W108 -> -36.8648095 | S106: ='[2]Exec Summary'!$J108 -> 0 | T106: ='[2]Exec Summary'!$K108 -> 0 | U106: ='[2]Exec Summary'!$L108 -> -10.95463678 | V106: ='[2]Exec Summary'!$M108 -> -7.628615246 | W106: ='[2]Exec Summary'!$N108 -> -5.268253689 | X106: ='[2]Exec Summary'!$O108 -> -2.938864941 | Y106: ='[2]Exec Summary'!$P108 -> 3.458637214 | Z106: -4.666346689 | AA106: ='[2]Exec Summary'!$W108 -> -23.33173344 | AC106: 0 | AD106: 0 | AE106: -1.013 | AF106: -1.154 | AG106: -1.904 | AH106: -4.216 | AI106: -5.246 | AK106: -13.533 | AM106: 0 | AN106: 0 | AO106: 0.09247225812 | AP106: 0.1512725393 | AQ106: 0.3614100824 | AR106: 1.434567455 | AS106: -1.516782384 | AU106: 0.5800254847
E107: Profit after tax - Appointee - nominal | F107: 0 | G107: £m | I107: ='[1]Exec Summary'!$J109 -> 0 | J107: ='[1]Exec Summary'!$K109 -> 17.20615284 | K107: ='[1]Exec Summary'!$L109 -> 108.2388927 | L107: ='[1]Exec Summary'!$M109 -> 108.3496991 | M107: ='[1]Exec Summary'!$N109 -> 111.2791243 | N107: ='[1]Exec Summary'!$O109 -> 112.1034397 | O107: ='[1]Exec Summary'!$P109 -> 111.2320744 | P107: 110.2406461 | Q107: ='[1]Exec Summary'!$W109 -> 551.2032303 | S107: ='[2]Exec Summary'!$J109 -> 0 | T107: ='[2]Exec Summary'!$K109 -> 0 | U107: ='[2]Exec Summary'!$L109 -> 110.2100906 | V107: ='[2]Exec Summary'!$M109 -> 113.8068118 | W107: ='[2]Exec Summary'!$N109 -> 103.4829112 | X107: ='[2]Exec Summary'!$O109 -> 91.2614863 | Y107: ='[2]Exec Summary'!$P109 -> 83.13329978 | Z107: 100.3789199 | AA107: ='[2]Exec Summary'!$W109 -> 501.8945997 | AC107: 0 | AD107: 17.206 | AE107: -1.971 | AF107: -5.457 | AG107: 7.796 | AH107: 20.842 | AI107: 28.099 | AK107: 49.309 | AM107: 0 | AN107: 0 | AO107: -0.01788402485 | AP107: -0.04794967818 | AQ107: 0.07533611016 | AR107: 0.228376732 | AS107: 0.3379993345 | AU107: 0.09824572734
E108: Effective Tax Rate | G108: % | I108: ='[1]Exec Summary'!$J110 -> 0 | J108: ='[1]Exec Summary'!$K110 -> 0 | K108: ='[1]Exec Summary'!$L110 -> 0.04521819311 | L108: ='[1]Exec Summary'!$M110 -> 0.01721920265 | M108: ='[1]Exec Summary'!$N110 -> 0.01802664224 | N108: ='[1]Exec Summary'!$O110 -> 0.0188865313 | O108: ='[1]Exec Summary'!$P110 -> 0.02084078104 | P108: 0.02403827007 | Q108: ='[1]Exec Summary'!$W110 -> 0.02425954396 | S108: ='[2]Exec Summary'!$J110 -> 0 | T108: ='[2]Exec Summary'!$K110 -> 0 | U108: ='[2]Exec Summary'!$L110 -> 0.03397347533 | V108: ='[2]Exec Summary'!$M110 -> 0.0157248772 | W108: ='[2]Exec Summary'!$N110 -> 0.01838433868 | X108: ='[2]Exec Summary'!$O110 -> 0.02221084155 | Y108: ='[2]Exec Summary'!$P110 -> 0.02735200921 | Z108: 0.02352910839 | AA108: ='[2]Exec Summary'!$W110 -> 0.02346090353 | AC108: 0 | AD108: 0 | AE108: 0.011 | AF108: 0.001 | AG108: 0 | AH108: -0.003 | AI108: -0.007 | AK108: 0.001 | AM108: 0 | AN108: 0 | AO108: 0.3237820062 | AP108: 0.06359350137 | AQ108: 0 | AR108: -0.135069173 | AS108: -0.2559226983 | AU108: 0.04262410434
A111: FINANCIAL INDICATORS (NOMINAL) PRE-POST FINANCEABILITY ADJUSTMENTS AND REPROFILING
B113: Appointee - Target financial indicators (used in determining Price Controls)
E114: Cash interest cover - Appointee | F114: 0 | G114: ratio | I114: ='[1]Exec Summary'!$J116 -> 0 | J114: ='[1]Exec Summary'!$K116 -> 0 | K114: ='[1]Exec Summary'!$L116 -> 4.02959093 | L114: ='[1]Exec Summary'!$M116 -> 3.962544764 | M114: ='[1]Exec Summary'!$N116 -> 3.840482065 | N114: ='[1]Exec Summary'!$O116 -> 3.722422313 | O114: ='[1]Exec Summary'!$P116 -> 3.675967284 | P114: =AVERAGE(K114:O114) -> 3.846201471 | Q114: ='[1]Exec Summary'!$W116 -> 3.831820182 | S114: ='[2]Exec Summary'!$J116 -> 0 | T114: ='[2]Exec Summary'!$K116 -> 0 | U114: ='[2]Exec Summary'!$L116 -> 4.180842605 | V114: ='[2]Exec Summary'!$M116 -> 4.196092226 | W114: ='[2]Exec Summary'!$N116 -> 4.028443863 | X114: ='[2]Exec Summary'!$O116 -> 4.039510841 | Y114: ='[2]Exec Summary'!$P116 -> 4.04213986 | Z114: =AVERAGE(U114:Y114) -> 4.097405879 | AA114: ='[2]Exec Summary'!$W116 -> 4.093152679 | AC114: =ROUND(I114 - S114, 3) -> 0 | AD114: 0 | AE114: -0.151 | AF114: -0.234 | AG114: -0.188 | AH114: -0.317 | AI114: -0.366 | AK114: =ROUND(Q114 - AA114, 3) -> -0.261 | AM114: =IF(S114 = 0, 0, AC114 / S114) -> 0 | AN114: =IF(T114 = 0, 0, AD114 / T114) -> 0 | AO114: =IF(U114 = 0, 0, AE114 / U114) -> -0.03611712142 | AP114: =IF(V114 = 0, 0, AF114 / V114) -> -0.0557661718 | AQ114: =IF(W114 = 0, 0, AG114 / W114) -> -0.04666814443 | AR114: =IF(X114 = 0, 0, AH114 / X114) -> -0.07847484819 | AS114: =IF(Y114 = 0, 0, AI114 / Y114) -> -0.09054610002 | AU114: =IF(AA114 = 0, 0, AK114 / AA114) -> -0.06376502918
E115: Adjusted cash interest cover ratio (Ofwat) - Appointee | F115: 0 | G115: ratio | I115: ='[1]Exec Summary'!$J117 -> 0 | J115: ='[1]Exec Summary'!$K117 -> 0 | K115: ='[1]Exec Summary'!$L117 -> 1.624787003 | L115: ='[1]Exec Summary'!$M117 -> 1.570212785 | M115: ='[1]Exec Summary'!$N117 -> 1.502242137 | N115: ='[1]Exec Summary'!$O117 -> 1.450021679 | O115: ='[1]Exec Summary'!$P117 -> 1.437408731 | P115: 1.516934467 | Q115: ='[1]Exec Summary'!$W117 -> 1.509524297 | S115: ='[2]Exec Summary'!$J117 -> 0 | T115: ='[2]Exec Summary'!$K117 -> 0 | U115: ='[2]Exec Summary'!$L117 -> 1.636495576 | V115: ='[2]Exec Summary'!$M117 -> 1.629731657 | W115: ='[2]Exec Summary'!$N117 -> 1.488383475 | X115: ='[2]Exec Summary'!$O117 -> 1.532014202 | Y115: ='[2]Exec Summary'!$P117 -> 1.520626393 | Z115: 1.561450261 | AA115: ='[2]Exec Summary'!$W117 -> 1.558303871 | AC115: 0 | AD115: 0 | AE115: -0.012 | AF115: -0.06 | AG115: 0.014 | AH115: -0.082 | AI115: -0.083 | AK115: =ROUND(Q115 - AA115, 3) -> -0.049 | AM115: 0 | AN115: 0 | AO115: -0.007332742095 | AP115: -0.03681587685 | AQ115: 0.009406178071 | AR115: -0.05352430801 | AS115: -0.05458276956 | AU115: -0.03144444477
E116: Adjusted cash interest cover ratio - Appointee (Alternative) | F116: 0 | G116: ratio | I116: ='[1]Exec Summary'!$J118 -> 0 | J116: ='[1]Exec Summary'!$K118 -> 0 | K116: ='[1]Exec Summary'!$L118 -> 1.624787003 | L116: ='[1]Exec Summary'!$M118 -> 1.570212785 | M116: ='[1]Exec Summary'!$N118 -> 1.502242137 | N116: ='[1]Exec Summary'!$O118 -> 1.450021679 | O116: ='[1]Exec Summary'!$P118 -> 1.437408731 | P116: 1.516934467 | Q116: ='[1]Exec Summary'!$W118 -> 1.509524297 | S116: ='[2]Exec Summary'!$J118 -> 0 | T116: ='[2]Exec Summary'!$K118 -> 0 | U116: ='[2]Exec Summary'!$L118 -> 1.552323071 | V116: ='[2]Exec Summary'!$M118 -> 1.514725205 | W116: ='[2]Exec Summary'!$N118 -> 1.376605574 | X116: ='[2]Exec Summary'!$O118 -> 1.426402423 | Y116: ='[2]Exec Summary'!$P118 -> 1.436241723 | Z116: 1.461259599 | AA116: ='[2]Exec Summary'!$W118 -> 1.458246639
E117: Funds from operations / net debt (Ofwat) - Appointee | F117: 0 | G117: % | I117: ='[1]Exec Summary'!$J119 -> 0 | J117: ='[1]Exec Summary'!$K119 -> 0 | K117: ='[1]Exec Summary'!$L119 -> 0.1005450255 | L117: ='[1]Exec Summary'!$M119 -> 0.09685185983 | M117: ='[1]Exec Summary'!$N119 -> 0.09344629572 | N117: ='[1]Exec Summary'!$O119 -> 0.09009670453 | O117: ='[1]Exec Summary'!$P119 -> 0.09112080454 | P117: 0.09441213802 | Q117: ='[1]Exec Summary'!$W119 -> 0.0940538828 | S117: ='[2]Exec Summary'!$J119 -> 0 | T117: ='[2]Exec Summary'!$K119 -> 0 | U117: ='[2]Exec Summary'!$L119 -> 0.10085066 | V117: ='[2]Exec Summary'!$M119 -> 0.09914136441 | W117: ='[2]Exec Summary'!$N119 -> 0.09408854669 | X117: ='[2]Exec Summary'!$O119 -> 0.09541893093 | Y117: ='[2]Exec Summary'!$P119 -> 0.09726232801 | Z117: 0.09735236601 | AA117: ='[2]Exec Summary'!$W119 -> 0.09723966746 | AC117: =ROUND(I117 - S117, 3) -> 0 | AD117: 0 | AE117: 0 | AF117: -0.002 | AG117: -0.001 | AH117: -0.005 | AI117: -0.006 | AK117: =ROUND(Q117 - AA117, 3) -> -0.003 | AM117: 0 | AN117: 0 | AO117: 0 | AP117: -0.0201732144 | AQ117: -0.01062828617 | AR117: -0.05240050325 | AS117: -0.06168883804 | AU117: -0.03085160694
E118: Funds from operations / net debt - Appointee (Alternative) | F118: 0 | G118: % | I118: ='[1]Exec Summary'!$J120 -> 0 | J118: ='[1]Exec Summary'!$K120 -> 0 | K118: ='[1]Exec Summary'!$L120 -> 0.09094138021 | L118: ='[1]Exec Summary'!$M120 -> 0.08759456875 | M118: ='[1]Exec Summary'!$N120 -> 0.08458641084 | N118: ='[1]Exec Summary'!$O120 -> 0.08171649574 | O118: ='[1]Exec Summary'!$P120 -> 0.08283614622 | P118: 0.08553500035 | Q118: ='[1]Exec Summary'!$W120 -> 0.08522564415 | S118: ='[2]Exec Summary'!$J120 -> 0 | T118: ='[2]Exec Summary'!$K120 -> 0 | U118: ='[2]Exec Summary'!$L120 -> 0.0910599867 | V118: ='[2]Exec Summary'!$M120 -> 0.08953438077 | W118: ='[2]Exec Summary'!$N120 -> 0.08475288759 | X118: ='[2]Exec Summary'!$O120 -> 0.08626519804 | Y118: ='[2]Exec Summary'!$P120 -> 0.08793641413 | Z118: 0.08790977345 | AA118: ='[2]Exec Summary'!$W120 -> 0.08781046397
E119: Retained cash flow / debt - Appointee | F119: 0 | G119: ratio | I119: ='[1]Exec Summary'!$J121 -> 0 | J119: ='[1]Exec Summary'!$K121 -> 0 | K119: ='[1]Exec Summary'!$L121 -> 0.08287033637 | L119: ='[1]Exec Summary'!$M121 -> 0.07975224636 | M119: ='[1]Exec Summary'!$N121 -> 0.0770208504 | N119: ='[1]Exec Summary'!$O121 -> 0.07450367099 | O119: ='[1]Exec Summary'!$P121 -> 0.07564913875 | P119: 0.07795924857 | Q119: ='[1]Exec Summary'!$W121 -> 0.0776833545 | S119: ='[2]Exec Summary'!$J121 -> 0 | T119: ='[2]Exec Summary'!$K121 -> 0 | U119: ='[2]Exec Summary'!$L121 -> 0.08831684108 | V119: ='[2]Exec Summary'!$M121 -> 0.08681788326 | W119: ='[2]Exec Summary'!$N121 -> 0.08208060114 | X119: ='[2]Exec Summary'!$O121 -> 0.08361014763 | Y119: ='[2]Exec Summary'!$P121 -> 0.08519582263 | Z119: 0.08520425915 | AA119: ='[2]Exec Summary'!$W121 -> 0.08510591877 | AC119: =ROUND(I119 - S119, 3) -> 0 | AD119: =ROUND(J119 - T119, 3) -> 0 | AE119: =ROUND(K119 - U119, 3) -> -0.005 | AF119: =ROUND(L119 - V119, 3) -> -0.007 | AG119: =ROUND(M119 - W119, 3) -> -0.005 | AH119: =ROUND(N119 - X119, 3) -> -0.009 | AI119: =ROUND(O119 - Y119, 3) -> -0.01 | AK119: =ROUND(Q119 - AA119, 3) -> -0.007 | AM119: 0 | AN119: 0 | AO119: -0.05661434375 | AP119: -0.08062854953 | AQ119: -0.0609157332 | AR119: -0.1076424364 | AS119: -0.117376647 | AU119: -0.08225044863
E120: Gearing - Appointee | F120: 0 | G120: % | I120: ='[1]Exec Summary'!$J122 -> 0 | J120: ='[1]Exec Summary'!$K122 -> 0.6 | K120: ='[1]Exec Summary'!$L122 -> 0.5967893319 | L120: ='[1]Exec Summary'!$M122 -> 0.6016648266 | M120: ='[1]Exec Summary'!$N122 -> 0.6095216322 | N120: ='[1]Exec Summary'!$O122 -> 0.6195750373 | O120: ='[1]Exec Summary'!$P122 -> 0.6188924915 | P120: 0.6092886639 | Q120: ='[1]Exec Summary'!$W122 -> 0.6100271773 | S120: ='[2]Exec Summary'!$J122 -> 0 | T120: ='[2]Exec Summary'!$K122 -> 0.6 | U120: ='[2]Exec Summary'!$L122 -> 0.5948483839 | V120: ='[2]Exec Summary'!$M122 -> 0.5934166508 | W120: ='[2]Exec Summary'!$N122 -> 0.5982913107 | X120: ='[2]Exec Summary'!$O122 -> 0.6002003088 | Y120: ='[2]Exec Summary'!$P122 -> 0.5915783993 | Z120: 0.5956670107 | AA120: ='[2]Exec Summary'!$W122 -> 0.5956869559 | AC120: 0 | AD120: 0 | AE120: 0.002 | AF120: 0.008 | AG120: 0.011 | AH120: 0.019 | AI120: 0.027 | AK120: 0.014 | AM120: 0 | AN120: 0 | AO120: 0.003362201284 | AP120: 0.01348125299 | AQ120: 0.01838569239 | AR120: 0.03165609834 | AS120: 0.04564061168 | AU120: 0.02350227726
E121: Dividend cover - Appointee | F121: 0 | G121: ratio | I121: ='[1]Exec Summary'!$J123 -> 0 | J121: ='[1]Exec Summary'!$K123 -> 0 | K121: ='[1]Exec Summary'!$L123 -> 1.242725325 | L121: ='[1]Exec Summary'!$M123 -> 1.20336006 | M121: ='[1]Exec Summary'!$N123 -> 1.195522236 | N121: ='[1]Exec Summary'!$O123 -> 1.165034999 | O121: ='[1]Exec Summary'!$P123 -> 1.118217142 | P121: 1.184971952 | Q121: ='[1]Exec Summary'!$W123 -> 1.18306 | S121: ='[2]Exec Summary'!$J123 -> 0 | T121: ='[2]Exec Summary'!$K123 -> 0 | U121: ='[2]Exec Summary'!$L123 -> 1.839344993 | V121: ='[2]Exec Summary'!$M123 -> 1.840337052 | W121: ='[2]Exec Summary'!$N123 -> 1.620254196 | X121: ='[2]Exec Summary'!$O123 -> 1.383189352 | Y121: ='[2]Exec Summary'!$P123 -> 1.219687861 | Z121: 1.580562691 | AA121: ='[2]Exec Summary'!$W123 -> 1.56957254 | AC121: 0 | AD121: 0 | AE121: -0.597 | AF121: -0.637 | AG121: -0.425 | AH121: -0.218 | AI121: -0.101 | AK121: -0.387 | AM121: 0 | AN121: 0 | AO121: -0.3245720635 | AP121: -0.3461322475 | AQ121: -0.2623045205 | AR121: -0.1576067656 | AS121: -0.08280807181 | AU121: -0.2465639467
E122: Regulatory equity / regulated earnings for the regulated company - Appointee | F122: 0 | G122: ratio | I122: ='[1]Exec Summary'!$J124 -> 0 | J122: ='[1]Exec Summary'!$K124 -> 0 | K122: ='[1]Exec Summary'!$L124 -> 19.45996082 | L122: ='[1]Exec Summary'!$M124 -> 21.67049511 | M122: ='[1]Exec Summary'!$N124 -> 21.51122298 | N122: ='[1]Exec Summary'!$O124 -> 21.36817019 | O122: ='[1]Exec Summary'!$P124 -> 21.25229727 | P122: 21.05242927 | Q122: ='[1]Exec Summary'!$W124 -> 21.05242927 | S122: ='[2]Exec Summary'!$J124 -> 0 | T122: ='[2]Exec Summary'!$K124 -> 0 | U122: ='[2]Exec Summary'!$L124 -> 23.58804801 | V122: ='[2]Exec Summary'!$M124 -> 25.61882376 | W122: ='[2]Exec Summary'!$N124 -> 25.42306269 | X122: ='[2]Exec Summary'!$O124 -> 25.24548728 | Y122: ='[2]Exec Summary'!$P124 -> 25.09519901 | Z122: 24.99412415 | AA122: ='[2]Exec Summary'!$W124 -> 24.99412415 | AC122: 0 | AD122: 0 | AE122: -4.128 | AF122: -3.948 | AG122: -3.912 | AH122: -3.877 | AI122: -3.843 | AK122: -3.942 | AM122: 0 | AN122: 0 | AO122: -0.1750038832 | AP122: -0.1541054358 | AQ122: -0.1538760317 | AR122: -0.1535720011 | AS122: -0.1531368609 | AU122: -0.1577170689
E123: RCV / EBITDA - Appointee | F123: 0 | G123: ratio | I123: ='[1]Exec Summary'!$J125 -> 0 | J123: ='[1]Exec Summary'!$K125 -> 0 | K123: ='[1]Exec Summary'!$L125 -> 12.12997567 | L123: ='[1]Exec Summary'!$M125 -> 12.36278273 | M123: ='[1]Exec Summary'!$N125 -> 12.49986363 | N123: ='[1]Exec Summary'!$O125 -> 12.56457856 | O123: ='[1]Exec Summary'!$P125 -> 12.54705519 | P123: 12.42085116 | Q123: ='[1]Exec Summary'!$W125 -> 59.55314057 | S123: ='[2]Exec Summary'!$J125 -> 0 | T123: ='[2]Exec Summary'!$K125 -> 0 | U123: ='[2]Exec Summary'!$L125 -> 12.14644177 | V123: ='[2]Exec Summary'!$M125 -> 12.27311636 | W123: ='[2]Exec Summary'!$N125 -> 12.66931661 | X123: ='[2]Exec Summary'!$O125 -> 12.97068236 | Y123: ='[2]Exec Summary'!$P125 -> 13.04393917 | Z123: 12.62069925 | AA123: ='[2]Exec Summary'!$W125 -> 12.63266138 | AC123: 0 | AD123: 0 | AE123: -0.016 | AF123: 0.09 | AG123: -0.169 | AH123: -0.406 | AI123: -0.497 | AK123: 46.92 | AM123: 0 | AN123: 0 | AO123: -0.001317258198 | AP123: 0.007333100851 | AQ123: -0.0133393146 | AR123: -0.03130136016 | AS123: -0.03810198695 | AU123: 3.714181723
E124: Base RoRE Appointee | F124: 0 | G124: % | I124: ='[1]Exec Summary'!$J126 -> 0 | J124: ='[1]Exec Summary'!$K126 -> 0 | K124: ='[1]Exec Summary'!$L126 -> 0.05138756492 | L124: ='[1]Exec Summary'!$M126 -> 0.04614569232 | M124: ='[1]Exec Summary'!$N126 -> 0.04648736155 | N124: ='[1]Exec Summary'!$O126 -> 0.04679857897 | O124: ='[1]Exec Summary'!$P126 -> 0.04705373671 | P124: 0.04757458689 | Q124: ='[1]Exec Summary'!$W126 -> 0.04749056308 | S124: ='[2]Exec Summary'!$J126 -> 0 | T124: ='[2]Exec Summary'!$K126 -> 0 | U124: ='[2]Exec Summary'!$L126 -> 0.04239435156 | V124: ='[2]Exec Summary'!$M126 -> 0.03903379833 | W124: ='[2]Exec Summary'!$N126 -> 0.03933436393 | X124: ='[2]Exec Summary'!$O126 -> 0.03961103974 | Y124: ='[2]Exec Summary'!$P126 -> 0.03984825941 | Z124: 0.04004436259 | AA124: ='[2]Exec Summary'!$W126 -> 0.04000732486 | AC124: 0 | AD124: 0 | AE124: 0.009 | AF124: 0.007 | AG124: 0.007 | AH124: 0.007 | AI124: 0.007 | AK124: 0.007 | AM124: 0 | AN124: 0 | AO124: 0.2122924321 | AP124: 0.1793317663 | AQ124: 0.1779614388 | AR124: 0.176718411 | AS124: 0.1756663931 | AU124: 0.1749679596
AC125: 0 | AD125: 0 | AE125: 0 | AF125: 0 | AG125: 0 | AH125: 0 | AI125: 0 | AK125: 0 | AM125: 0 | AN125: 0 | AO125: 0 | AP125: 0 | AQ125: 0 | AR125: 0 | AS125: 0 | AU125: 0
B126: Wholesale - Additional financial indicators | AC126: 0 | AD126: 0 | AE126: 0 | AF126: 0 | AG126: 0 | AH126: 0 | AI126: 0 | AK126: 0 | AM126: 0 | AN126: 0 | AO126: 0 | AP126: 0 | AQ126: 0 | AR126: 0 | AS126: 0 | AU126: 0
E127: RCV balance - Wholesale - nominal | F127: 0 | G127: £m | I127: ='[1]Exec Summary'!$J129 -> 0 | J127: ='[1]Exec Summary'!$K129 -> 7967.206493 | K127: ='[1]Exec Summary'!$L129 -> 8257.248554 | L127: ='[1]Exec Summary'!$M129 -> 8751.675374 | M127: ='[1]Exec Summary'!$N129 -> 9297.148443 | N127: ='[1]Exec Summary'!$O129 -> 9959.910634 | O127: ='[1]Exec Summary'!$P129 -> 10388.47028 | P127: =AVERAGE(K127:O127) -> 9330.890658 | Q127: ='[1]Exec Summary'!$W129 -> 10388.47028 | S127: ='[2]Exec Summary'!$J129 -> 0 | T127: ='[2]Exec Summary'!$K129 -> 7879.539981 | U127: ='[2]Exec Summary'!$L129 -> 8036.528006 | V127: ='[2]Exec Summary'!$M129 -> 8456.248825 | W127: ='[2]Exec Summary'!$N129 -> 8890.047423 | X127: ='[2]Exec Summary'!$O129 -> 9309.032206 | Y127: ='[2]Exec Summary'!$P129 -> 9548.441657 | Z127: =AVERAGE(U127:Y127) -> 8848.059623 | AA127: ='[2]Exec Summary'!$W129 -> 9548.441657 | AC127: 0 | AD127: 87.667 | AE127: 220.721 | AF127: 295.427 | AG127: 407.101 | AH127: 650.878 | AI127: 840.029 | AK127: 840.029 | AM127: 0 | AN127: 0.01112590332 | AO127: 0.02746472106 | AP127: 0.03493593982 | AQ127: 0.04579289408 | AR127: 0.06991897607 | AS127: 0.08797550744 | AU127: 0.08797550744
E128: Gearing - Wholesale | F128: 0 | G128: % | I128: ='[1]Exec Summary'!$J130 -> 0 | J128: ='[1]Exec Summary'!$K130 -> 0.6 | K128: ='[1]Exec Summary'!$L130 -> 0.5993857073 | L128: ='[1]Exec Summary'!$M130 -> 0.6049110761 | M128: ='[1]Exec Summary'!$N130 -> 0.6132883458 | N128: ='[1]Exec Summary'!$O130 -> 0.6237428681 | O128: ='[1]Exec Summary'!$P130 -> 0.6235194842 | P128: =AVERAGE(K128:O128) -> 0.6129694963 | Q128: ='[1]Exec Summary'!$W130 -> 0.613766313 | S128: ='[2]Exec Summary'!$J130 -> 0 | T128: ='[2]Exec Summary'!$K130 -> 0.6 | U128: ='[2]Exec Summary'!$L130 -> 0.5982915757 | V128: ='[2]Exec Summary'!$M130 -> 0.5974959975 | W128: ='[2]Exec Summary'!$N130 -> 0.6030273586 | X128: ='[2]Exec Summary'!$O130 -> 0.6055014976 | Y128: ='[2]Exec Summary'!$P130 -> 0.5974256244 | Z128: =AVERAGE(U128:Y128) -> 0.6003484108 | AA128: ='[2]Exec Summary'!$W130 -> 0.6004213678 | AC128: 0 | AD128: 0 | AE128: 0.001 | AF128: 0.007 | AG128: 0.01 | AH128: 0.018 | AI128: 0.026 | AK128: 0.013 | AM128: 0 | AN128: 0 | AO128: 0.001671425841 | AP128: 0.01171555965 | AQ128: 0.01658299554 | AR128: 0.02972742441 | AS128: 0.04352006164 | AU128: 0.02165146129
E129: Average of RCV - Wholesale - nominal | F129: 0 | G129: £m | I129: ='[1]Exec Summary'!$J131 -> 0 | J129: ='[1]Exec Summary'!$K131 -> 3983.603247 | K129: ='[1]Exec Summary'!$L131 -> 8203.992041 | L129: ='[1]Exec Summary'!$M131 -> 8606.514515 | M129: ='[1]Exec Summary'!$N131 -> 9131.054135 | N129: ='[1]Exec Summary'!$O131 -> 9740.279122 | O129: ='[1]Exec Summary'!$P131 -> 10292.22735 | P129: 9194.813433 | Q129: ='[1]Exec Summary'!$W131 -> 9194.813433 | S129: ='[2]Exec Summary'!$J131 -> 0 | T129: ='[2]Exec Summary'!$K131 -> 3939.76999 | U129: ='[2]Exec Summary'!$L131 -> 8044.889635 | V129: ='[2]Exec Summary'!$M131 -> 8345.280396 | W129: ='[2]Exec Summary'!$N131 -> 8781.181377 | X129: ='[2]Exec Summary'!$O131 -> 9213.299724 | Y129: ='[2]Exec Summary'!$P131 -> 9546.565231 | Z129: 8786.243273 | AA129: ='[2]Exec Summary'!$W131 -> 8786.243273 | AC129: 0 | AD129: 43.833 | AE129: 159.102 | AF129: 261.234 | AG129: 349.873 | AH129: 526.979 | AI129: 745.662 | AK129: 408.57 | AM129: 0 | AN129: 0.01112577641 | AO129: 0.01977677845 | AP129: 0.03130320224 | AQ129: 0.03984349998 | AR129: 0.05719763991 | AS129: 0.07810788299 | AU129: 0.04650110261
E130: Year average RCV - Growth | F130: 0 | G130: % | I130: ='[1]Exec Summary'!$J132 -> 0 | J130: ='[1]Exec Summary'!$K132 -> 0 | K130: ='[1]Exec Summary'!$L132 -> 0 | L130: ='[1]Exec Summary'!$M132 -> 0.04906422053 | M130: ='[1]Exec Summary'!$N132 -> 0.06094681176 | N130: ='[1]Exec Summary'!$O132 -> 0.06672011552 | O130: ='[1]Exec Summary'!$P132 -> 0.0566665721 | P130: 0.04667954398 | Q130: ='[1]Exec Summary'!$W132 -> 0.05832982484 | S130: ='[2]Exec Summary'!$J132 -> 0 | T130: ='[2]Exec Summary'!$K132 -> 0 | U130: ='[2]Exec Summary'!$L132 -> 0 | V130: ='[2]Exec Summary'!$M132 -> 0.03733932655 | W130: ='[2]Exec Summary'!$N132 -> 0.05223323372 | X130: ='[2]Exec Summary'!$O132 -> 0.04920959125 | Y130: ='[2]Exec Summary'!$P132 -> 0.0361722203 | Z130: 0.03499087436 | AA130: ='[2]Exec Summary'!$W132 -> 0.04371461161 | AC130: 0 | AD130: 0 | AE130: 0 | AF130: 0.012 | AG130: 0.009 | AH130: 0.018 | AI130: 0.02 | AK130: 0.015 | AM130: 0 | AN130: 0 | AO130: 0 | AP130: 0.32137698 | AQ130: 0.1723040937 | AR130: 0.3657823514 | AS130: 0.5529104887 | AU130: 0.3431346968
E131: Pre-tax return on RCV | F131: 0 | G131: % | I131: ='[1]Exec Summary'!$J133 -> 0 | J131: ='[1]Exec Summary'!$K133 -> 0 | K131: ='[1]Exec Summary'!$L133 -> 0.03696734899 | L131: ='[1]Exec Summary'!$M133 -> 0.03821932959 | M131: ='[1]Exec Summary'!$N133 -> 0.03786063347 | N131: ='[1]Exec Summary'!$O133 -> 0.0375258907 | O131: ='[1]Exec Summary'!$P133 -> 0.0364623469 | P131: 0.03740710993 | Q131: ='[1]Exec Summary'!$W133 -> 0.03738442268 | S131: ='[2]Exec Summary'!$J133 -> 0 | T131: ='[2]Exec Summary'!$K133 -> 0 | U131: ='[2]Exec Summary'!$L133 -> 0.03713339514 | V131: ='[2]Exec Summary'!$M133 -> 0.03798412243 | W131: ='[2]Exec Summary'!$N133 -> 0.03588948974 | X131: ='[2]Exec Summary'!$O133 -> 0.03387058213 | Y131: ='[2]Exec Summary'!$P133 -> 0.03185185033 | Z131: 0.03534588796 | AA131: ='[2]Exec Summary'!$W133 -> 0.03521436593 | AC131: 0 | AD131: 0 | AE131: 0 | AF131: 0 | AG131: 0.002 | AH131: 0.004 | AI131: 0.005 | AK131: 0.002 | AM131: 0 | AN131: 0 | AO131: 0 | AP131: 0 | AQ131: 0.0557266212 | AR131: 0.1180965826 | AS131: 0.1569767517 | AU131: 0.05679500247
E132: Post-tax return on RCV | F132: 0 | G132: % | I132: ='[1]Exec Summary'!$J134 -> 0 | J132: ='[1]Exec Summary'!$K134 -> 0 | K132: ='[1]Exec Summary'!$L134 -> 0.03696734899 | L132: ='[1]Exec Summary'!$M134 -> 0.03821932959 | M132: ='[1]Exec Summary'!$N134 -> 0.03786063347 | N132: ='[1]Exec Summary'!$O134 -> 0.0375258907 | O132: ='[1]Exec Summary'!$P134 -> 0.0364623469 | P132: 0.03740710993 | Q132: ='[1]Exec Summary'!$W134 -> 0.03738442268 | S132: ='[2]Exec Summary'!$J134 -> 0 | T132: ='[2]Exec Summary'!$K134 -> 0 | U132: ='[2]Exec Summary'!$L134 -> 0.03713339514 | V132: ='[2]Exec Summary'!$M134 -> 0.03798412243 | W132: ='[2]Exec Summary'!$N134 -> 0.03588948974 | X132: ='[2]Exec Summary'!$O134 -> 0.03387058213 | Y132: ='[2]Exec Summary'!$P134 -> 0.03185185033 | Z132: 0.03534588796 | AA132: ='[2]Exec Summary'!$W134 -> 0.03521436593 | AC132: 0 | AD132: 0 | AE132: 0 | AF132: 0 | AG132: 0.002 | AH132: 0.004 | AI132: 0.005 | AK132: 0.002 | AM132: 0 | AN132: 0 | AO132: 0 | AP132: 0 | AQ132: 0.0557266212 | AR132: 0.1180965826 | AS132: 0.1569767517 | AU132: 0.05679500247
E133: Return on capital employed (ROCE) (building blocks) - Wholesale | F133: 0 | G133: % | I133: ='[1]Exec Summary'!$J135 -> 0 | J133: ='[1]Exec Summary'!$K135 -> 0 | K133: ='[1]Exec Summary'!$L135 -> 0.02871852744 | L133: ='[1]Exec Summary'!$M135 -> 0.03004853595 | M133: ='[1]Exec Summary'!$N135 -> 0.0293350305 | N133: ='[1]Exec Summary'!$O135 -> 0.0291393442 | O133: ='[1]Exec Summary'!$P135 -> 0.02941460605 | P133: 0.02933120883 | Q133: ='[1]Exec Summary'!$W135 -> 0.02933494305 | S133: ='[2]Exec Summary'!$J135 -> 0 | T133: ='[2]Exec Summary'!$K135 -> 0 | U133: ='[2]Exec Summary'!$L135 -> 0.02631720888 | V133: ='[2]Exec Summary'!$M135 -> 0.02691542236 | W133: ='[2]Exec Summary'!$N135 -> 0.0246453522 | X133: ='[2]Exec Summary'!$O135 -> 0.02599096119 | Y133: ='[2]Exec Summary'!$P135 -> 0.02607583754 | Z133: 0.02598895643 | AA133: ='[2]Exec Summary'!$W135 -> 0.02597579556 | AC133: 0 | AD133: 0 | AE133: 0.002 | AF133: 0.003 | AG133: 0.005 | AH133: 0.003 | AI133: 0.003 | AK133: 0.003 | AM133: 0 | AN133: 0 | AO133: 0.07599590098 | AP133: 0.111460261 | AQ133: 0.2028780096 | AR133: 0.1154247424 | AS133: 0.1150490371 | AU133: 0.1154921316
E134: Base RoRE Wholesale | F134: 0 | G134: % | I134: ='[1]Exec Summary'!$J136 -> 0 | J134: ='[1]Exec Summary'!$K136 -> 0 | K134: ='[1]Exec Summary'!$L136 -> 0.04291763948 | L134: ='[1]Exec Summary'!$M136 -> 0.0432351355 | M134: ='[1]Exec Summary'!$N136 -> 0.04358064894 | N134: ='[1]Exec Summary'!$O136 -> 0.04392170332 | O134: ='[1]Exec Summary'!$P136 -> 0.04420091897 | P134: 0.04357120924 | Q134: ='[1]Exec Summary'!$W136 -> 0.04360877206 | S134: ='[2]Exec Summary'!$J136 -> 0 | T134: ='[2]Exec Summary'!$K136 -> 0 | U134: ='[2]Exec Summary'!$L136 -> 0.03592923702 | V134: ='[2]Exec Summary'!$M136 -> 0.03619624257 | W134: ='[2]Exec Summary'!$N136 -> 0.03650325433 | X134: ='[2]Exec Summary'!$O136 -> 0.03677621445 | Y134: ='[2]Exec Summary'!$P136 -> 0.03698358144 | Z134: 0.03647770596 | AA134: ='[2]Exec Summary'!$W136 -> 0.03650144087 | AC134: 0 | AD134: 0 | AE134: 0.007 | AF134: 0.007 | AG134: 0.007 | AH134: 0.007 | AI134: 0.007 | AK134: 0.007 | AM134: 0 | AN134: 0 | AO134: 0.1948274046 | AP134: 0.193390239 | AQ134: 0.1917637243 | AR134: 0.1903404171 | AS134: 0.1892731782 | AU134: 0.1917732515
E135: RCF to capex - Wholesale | F135: 0 | G135: ratio | I135: ='[1]Exec Summary'!$J137 -> 0 | J135: ='[1]Exec Summary'!$K137 -> 0 | K135: ='[1]Exec Summary'!$L137 -> 0.7574786579 | L135: ='[1]Exec Summary'!$M137 -> 0.5805914327 | M135: ='[1]Exec Summary'!$N137 -> 0.5511969549 | N135: ='[1]Exec Summary'!$O137 -> 0.4940386113 | O135: ='[1]Exec Summary'!$P137 -> 0.6929336239 | P135: 0.6152478561 | Q135: ='[1]Exec Summary'!$W137 -> 0.5986810876 | S135: ='[2]Exec Summary'!$J137 -> 0 | T135: ='[2]Exec Summary'!$K137 -> 0 | U135: ='[2]Exec Summary'!$L137 -> 1.033453957 | V135: ='[2]Exec Summary'!$M137 -> 0.658162931 | W135: ='[2]Exec Summary'!$N137 -> 0.6426210452 | X135: ='[2]Exec Summary'!$O137 -> 0.6951665195 | Y135: ='[2]Exec Summary'!$P137 -> 0.9788870739 | Z135: 0.8016583053 | AA135: ='[2]Exec Summary'!$W137 -> 0.7688302545 | AC135: 0 | AD135: 0 | AE135: -0.276 | AF135: -0.078 | AG135: -0.091 | AH135: -0.201 | AI135: -0.286 | AK135: -0.17 | AM135: 0 | AN135: 0 | AO135: -0.267065599 | AP135: -0.1185116881 | AQ135: -0.1416075628 | AR135: -0.2891393563 | AS135: -0.2921685326 | AU135: -0.2211151278
E136: Forecast end period flag | I136: ='[1]Exec Summary'!$J138 -> 0 | J136: ='[1]Exec Summary'!$K138 -> 0 | K136: ='[1]Exec Summary'!$L138 -> 0 | L136: ='[1]Exec Summary'!$M138 -> 0 | M136: ='[1]Exec Summary'!$N138 -> 0 | N136: ='[1]Exec Summary'!$O138 -> 0 | O136: ='[1]Exec Summary'!$P138 -> 0 | P136: 0 | Q136: ='[1]Exec Summary'!$W138 -> 0 | S136: ='[2]Exec Summary'!$J138 -> 0 | T136: ='[2]Exec Summary'!$K138 -> 0 | U136: ='[2]Exec Summary'!$L138 -> 0 | V136: ='[2]Exec Summary'!$M138 -> 0 | W136: ='[2]Exec Summary'!$N138 -> 0 | X136: ='[2]Exec Summary'!$O138 -> 0 | Y136: ='[2]Exec Summary'!$P138 -> 0 | Z136: 0 | AA136: ='[2]Exec Summary'!$W138 -> 0 | AC136: 0 | AD136: 0 | AE136: 0 | AF136: 0 | AG136: 0 | AH136: 0 | AI136: 0 | AK136: 0 | AM136: 0 | AN136: 0 | AO136: 0 | AP136: 0 | AQ136: 0 | AR136: 0 | AS136: 0 | AU136: 0
B137: Water resources - Additional financial indicators | AC137: 0 | AD137: 0 | AE137: 0 | AF137: 0 | AG137: 0 | AH137: 0 | AI137: 0 | AK137: 0 | AM137: 0 | AN137: 0 | AO137: 0 | AP137: 0 | AQ137: 0 | AR137: 0 | AS137: 0 | AU137: 0
E138: RCV balance - forecast - WR - nominal | F138: 0 | G138: £m | I138: ='[1]Exec Summary'!$J140 -> 0 | J138: ='[1]Exec Summary'!$K140 -> 202.2197387 | K138: ='[1]Exec Summary'!$L140 -> 218.84093 | L138: ='[1]Exec Summary'!$M140 -> 235.6478656 | M138: ='[1]Exec Summary'!$N140 -> 255.1961466 | N138: ='[1]Exec Summary'!$O140 -> 265.7630188 | O138: ='[1]Exec Summary'!$P140 -> 267.1999534 | P138: 248.5295829 | Q138: ='[1]Exec Summary'!$W140 -> 267.1999534 | S138: ='[2]Exec Summary'!$J140 -> 0 | T138: ='[2]Exec Summary'!$K140 -> 200.2855863 | U138: ='[2]Exec Summary'!$L140 -> 202.0625754 | V138: ='[2]Exec Summary'!$M140 -> 208.1269755 | W138: ='[2]Exec Summary'!$N140 -> 218.6947448 | X138: ='[2]Exec Summary'!$O140 -> 223.9585106 | Y138: ='[2]Exec Summary'!$P140 -> 223.8847692 | Z138: =AVERAGE(U138:Y138) -> 215.3455151 | AA138: ='[2]Exec Summary'!$W140 -> 223.8847692 | AC138: 0 | AD138: 1.934 | AE138: 16.778 | AF138: 27.521 | AG138: 36.501 | AH138: 41.805 | AI138: 43.315 | AK138: 43.315 | AM138: 0 | AN138: 0.009656211591 | AO138: 0.08303368383 | AP138: 0.1322317779 | AQ138: 0.1669038734 | AR138: 0.1866640383 | AS138: 0.1934700612 | AU138: 0.1934700612
E139: Average of RCV - WR - nominal | F139: 0 | G139: £m | I139: ='[1]Exec Summary'!$J141 -> 0 | J139: ='[1]Exec Summary'!$K141 -> 101.1098693 | K139: ='[1]Exec Summary'!$L141 -> 212.8594564 | L139: ='[1]Exec Summary'!$M141 -> 229.9258077 | M139: ='[1]Exec Summary'!$N141 -> 248.2610889 | N139: ='[1]Exec Summary'!$O141 -> 263.5039712 | O139: ='[1]Exec Summary'!$P141 -> 269.6015808 | P139: 244.830381 | Q139: ='[1]Exec Summary'!$W141 -> 244.830381 | S139: ='[2]Exec Summary'!$J141 -> 0 | T139: ='[2]Exec Summary'!$K141 -> 100.1427932 | U139: ='[2]Exec Summary'!$L141 -> 203.3818155 | V139: ='[2]Exec Summary'!$M141 -> 207.58492 | W139: ='[2]Exec Summary'!$N141 -> 216.0831479 | X139: ='[2]Exec Summary'!$O141 -> 224.1372565 | Y139: ='[2]Exec Summary'!$P141 -> 226.7776696 | Z139: 215.5929619 | AA139: ='[2]Exec Summary'!$W141 -> 215.5929619 | AC139: 0 | AD139: 0.967 | AE139: 9.478 | AF139: 22.341 | AG139: 32.178 | AH139: 39.367 | AI139: 42.824 | AK139: 29.237 | AM139: 0 | AN139: 0.009656211591 | AO139: 0.04660200313 | AP139: 0.1076234247 | AQ139: 0.1489148984 | AR139: 0.1756379132 | AS139: 0.1888369348 | AU139: 0.1356120337
E140: Year average RCV Growth - WR | F140: 0 | G140: % | I140: ='[1]Exec Summary'!$J142 -> 0 | J140: ='[1]Exec Summary'!$K142 -> 0 | K140: ='[1]Exec Summary'!$L142 -> 0 | L140: ='[1]Exec Summary'!$M142 -> 0.08017661759 | M140: ='[1]Exec Summary'!$N142 -> 0.07974433775 | N140: ='[1]Exec Summary'!$O142 -> 0.06139859592 | O140: ='[1]Exec Summary'!$P142 -> 0.02314048455 | P140: 0.04889200716 | Q140: ='[1]Exec Summary'!$W142 -> 0.06085828241 | S140: ='[2]Exec Summary'!$J142 -> 0 | T140: ='[2]Exec Summary'!$K142 -> 0 | U140: ='[2]Exec Summary'!$L142 -> 0 | V140: ='[2]Exec Summary'!$M142 -> 0.02066607835 | W140: ='[2]Exec Summary'!$N142 -> 0.04093856088 | X140: ='[2]Exec Summary'!$O142 -> 0.03727319169 | Y140: ='[2]Exec Summary'!$P142 -> 0.01178034019 | Z140: 0.02213163422 | AA140: ='[2]Exec Summary'!$W142 -> 0.02759514118 | AC140: 0 | AD140: 0 | AE140: 0 | AF140: 0.06 | AG140: 0.039 | AH140: 0.024 | AI140: 0.011 | AK140: 0.033 | AM140: 0 | AN140: 0 | AO140: 0 | AP140: 2.903308455 | AQ140: 0.9526470683 | AR140: 0.6438944161 | AS140: 0.9337591122 | AU140: 1.195862699
E141: Pre-tax return on RCV - WR | F141: 0 | G141: % | I141: ='[1]Exec Summary'!$J143 -> 0 | J141: ='[1]Exec Summary'!$K143 -> 0 | K141: ='[1]Exec Summary'!$L143 -> 0.02138952088 | L141: ='[1]Exec Summary'!$M143 -> 0.02261788122 | M141: ='[1]Exec Summary'!$N143 -> 0.0237217383 | N141: ='[1]Exec Summary'!$O143 -> 0.02432809672 | O141: ='[1]Exec Summary'!$P143 -> 0.02605284452 | P141: 0.02362201633 | Q141: ='[1]Exec Summary'!$W143 -> 0.02375278674 | S141: ='[2]Exec Summary'!$J143 -> 0 | T141: ='[2]Exec Summary'!$K143 -> 0 | U141: ='[2]Exec Summary'!$L143 -> 0.02486719794 | V141: ='[2]Exec Summary'!$M143 -> 0.02323135797 | W141: ='[2]Exec Summary'!$N143 -> 0.02131386608 | X141: ='[2]Exec Summary'!$O143 -> 0.01916277343 | Y141: ='[2]Exec Summary'!$P143 -> 0.02003318402 | Z141: 0.02172167589 | AA141: ='[2]Exec Summary'!$W143 -> 0.0216368408 | AC141: 0 | AD141: 0 | AE141: -0.003 | AF141: -0.001 | AG141: 0.002 | AH141: 0.005 | AI141: 0.006 | AK141: 0.002 | AM141: 0 | AN141: 0 | AO141: -0.1206408542 | AP141: -0.04304526671 | AQ141: 0.09383562759 | AR141: 0.2609225652 | AS141: 0.2995030643 | AU141: 0.09243493623
E142: Post-tax return on RCV - WR | F142: 0 | G142: % | I142: ='[1]Exec Summary'!$J144 -> 0 | J142: ='[1]Exec Summary'!$K144 -> 0 | K142: ='[1]Exec Summary'!$L144 -> 0.02138952088 | L142: ='[1]Exec Summary'!$M144 -> 0.02261788122 | M142: ='[1]Exec Summary'!$N144 -> 0.0237217383 | N142: ='[1]Exec Summary'!$O144 -> 0.02432809672 | O142: ='[1]Exec Summary'!$P144 -> 0.02605284452 | P142: 0.02362201633 | Q142: ='[1]Exec Summary'!$W144 -> 0.02375278674 | S142: ='[2]Exec Summary'!$J144 -> 0 | T142: ='[2]Exec Summary'!$K144 -> 0 | U142: ='[2]Exec Summary'!$L144 -> 0.02486719794 | V142: ='[2]Exec Summary'!$M144 -> 0.02323135797 | W142: ='[2]Exec Summary'!$N144 -> 0.02131386608 | X142: ='[2]Exec Summary'!$O144 -> 0.01916277343 | Y142: ='[2]Exec Summary'!$P144 -> 0.02003318402 | Z142: 0.02172167589 | AA142: ='[2]Exec Summary'!$W144 -> 0.0216368408 | AC142: 0 | AD142: 0 | AE142: -0.003 | AF142: -0.001 | AG142: 0.002 | AH142: 0.005 | AI142: 0.006 | AK142: 0.002 | AM142: 0 | AN142: 0 | AO142: -0.1206408542 | AP142: -0.04304526671 | AQ142: 0.09383562759 | AR142: 0.2609225652 | AS142: 0.2995030643 | AU142: 0.09243493623
AC143: 0 | AD143: 0 | AE143: 0 | AF143: 0 | AG143: 0 | AH143: 0 | AI143: 0 | AK143: 0 | AM143: 0 | AN143: 0 | AO143: 0 | AP143: 0 | AQ143: 0 | AR143: 0 | AS143: 0 | AU143: 0
B144: Water network - Additional financial indicators | AC144: 0 | AD144: 0 | AE144: 0 | AF144: 0 | AG144: 0 | AH144: 0 | AI144: 0 | AK144: 0 | AM144: 0 | AN144: 0 | AO144: 0 | AP144: 0 | AQ144: 0 | AR144: 0 | AS144: 0 | AU144: 0
E145: RCV balance - forecast - WN - nominal | F145: 0 | G145: £m | I145: ='[1]Exec Summary'!$J147 -> 0 | J145: ='[1]Exec Summary'!$K147 -> 2853.144436 | K145: ='[1]Exec Summary'!$L147 -> 3010.27962 | L145: ='[1]Exec Summary'!$M147 -> 3251.600551 | M145: ='[1]Exec Summary'!$N147 -> 3541.349516 | N145: ='[1]Exec Summary'!$O147 -> 3826.602026 | O145: ='[1]Exec Summary'!$P147 -> 3981.907233 | P145: =AVERAGE(K145:O145) -> 3522.347789 | Q145: ='[1]Exec Summary'!$W147 -> 3981.907233 | S145: ='[2]Exec Summary'!$J147 -> 0 | T145: ='[2]Exec Summary'!$K147 -> 2825.835401 | U145: ='[2]Exec Summary'!$L147 -> 2928.565168 | V145: ='[2]Exec Summary'!$M147 -> 3111.137964 | W145: ='[2]Exec Summary'!$N147 -> 3316.901906 | X145: ='[2]Exec Summary'!$O147 -> 3492.994904 | Y145: ='[2]Exec Summary'!$P147 -> 3597.651488 | Z145: =AVERAGE(U145:Y145) -> 3289.450286 | AA145: ='[2]Exec Summary'!$W147 -> 3597.651488 | AC145: 0 | AD145: 27.309 | AE145: 81.714 | AF145: 140.463 | AG145: 224.448 | AH145: 333.607 | AI145: 384.256 | AK145: 384.256 | AM145: 0 | AN145: 0.009664044832 | AO145: 0.02790240111 | AP145: 0.04514843174 | AQ145: 0.06766796438 | AR145: 0.09550743964 | AS145: 0.1068074552 | AU145: 0.1068074552
E146: Average of RCV - WN - nominal | F146: 0 | G146: £m | I146: ='[1]Exec Summary'!$J148 -> 0 | J146: ='[1]Exec Summary'!$K148 -> 1426.572218 | K146: ='[1]Exec Summary'!$L148 -> 2964.573913 | L146: ='[1]Exec Summary'!$M148 -> 3168.075538 | M146: ='[1]Exec Summary'!$N148 -> 3435.951449 | N146: ='[1]Exec Summary'!$O148 -> 3726.278172 | O146: ='[1]Exec Summary'!$P148 -> 3949.338786 | P146: 3448.843572 | Q146: ='[1]Exec Summary'!$W148 -> 3448.843572 | S146: ='[2]Exec Summary'!$J148 -> 0 | T146: ='[2]Exec Summary'!$K148 -> 1412.9177 | U146: ='[2]Exec Summary'!$L148 -> 2908.349279 | V146: ='[2]Exec Summary'!$M148 -> 3055.835828 | W146: ='[2]Exec Summary'!$N148 -> 3253.696377 | X146: ='[2]Exec Summary'!$O148 -> 3447.275813 | Y146: ='[2]Exec Summary'!$P148 -> 3589.436947 | Z146: 3250.918849 | AA146: ='[2]Exec Summary'!$W148 -> 3250.918849 | AC146: 0 | AD146: 13.655 | AE146: 56.225 | AF146: 112.24 | AG146: 182.255 | AH146: 279.002 | AI146: 359.902 | AK146: 197.925 | AM146: 0 | AN146: 0.00966439871 | AO146: 0.01933227223 | AP146: 0.03672972186 | AQ146: 0.05601475334 | AR146: 0.08093405204 | AS146: 0.1002669793 | AU146: 0.06088278706
E147: Year average RCV Growth - WN | F147: 0 | G147: % | I147: ='[1]Exec Summary'!$J149 -> 0 | J147: ='[1]Exec Summary'!$K149 -> 0 | K147: ='[1]Exec Summary'!$L149 -> 0 | L147: ='[1]Exec Summary'!$M149 -> 0.06864447695 | M147: ='[1]Exec Summary'!$N149 -> 0.0845547739 | N147: ='[1]Exec Summary'!$O149 -> 0.08449674766 | O147: ='[1]Exec Summary'!$P149 -> 0.05986150354 | P147: 0.05951150041 | Q147: ='[1]Exec Summary'!$W149 -> 0.07433698494 | S147: ='[2]Exec Summary'!$J149 -> 0 | T147: ='[2]Exec Summary'!$K149 -> 0 | U147: ='[2]Exec Summary'!$L149 -> 0 | V147: ='[2]Exec Summary'!$M149 -> 0.05071142953 | W147: ='[2]Exec Summary'!$N149 -> 0.0647484224 | X147: ='[2]Exec Summary'!$O149 -> 0.05949523655 | Y147: ='[2]Exec Summary'!$P149 -> 0.04123868866 | Z147: 0.04323875543 | AA147: ='[2]Exec Summary'!$W149 -> 0.05401051063 | AC147: 0 | AD147: 0 | AE147: 0 | AF147: 0.018 | AG147: 0.02 | AH147: 0.025 | AI147: 0.019 | AK147: 0.02 | AM147: 0 | AN147: 0 | AO147: 0 | AP147: 0.3549495679 | AQ147: 0.3088878348 | AR147: 0.4202017077 | AS147: 0.4607324 | AU147: 0.370298295
E148: Pre-tax return on RCV - WN | F148: 0 | G148: % | I148: ='[1]Exec Summary'!$J150 -> 0 | J148: ='[1]Exec Summary'!$K150 -> 0 | K148: ='[1]Exec Summary'!$L150 -> 0.03230247848 | L148: ='[1]Exec Summary'!$M150 -> 0.03463587964 | M148: ='[1]Exec Summary'!$N150 -> 0.03408046507 | N148: ='[1]Exec Summary'!$O150 -> 0.03291765827 | O148: ='[1]Exec Summary'!$P150 -> 0.03213602789 | P148: 0.03321450187 | Q148: ='[1]Exec Summary'!$W150 -> 0.03318024679 | S148: ='[2]Exec Summary'!$J150 -> 0 | T148: ='[2]Exec Summary'!$K150 -> 0 | U148: ='[2]Exec Summary'!$L150 -> 0.03310224876 | V148: ='[2]Exec Summary'!$M150 -> 0.0353604705 | W148: ='[2]Exec Summary'!$N150 -> 0.03231036114 | X148: ='[2]Exec Summary'!$O150 -> 0.02892693738 | Y148: ='[2]Exec Summary'!$P150 -> 0.0272132334 | Z148: 0.03138265024 | AA148: ='[2]Exec Summary'!$W150 -> 0.03118232964 | AC148: 0 | AD148: 0 | AE148: -0.001 | AF148: -0.001 | AG148: 0.002 | AH148: 0.004 | AI148: 0.005 | AK148: 0.002 | AM148: =IF(S148 = 0, 0, AC148 / S148) -> 0 | AN148: =IF(T148 = 0, 0, AD148 / T148) -> 0 | AO148: =IF(U148 = 0, 0, AE148 / U148) -> -0.03020942798 | AP148: =IF(V148 = 0, 0, AF148 / V148) -> -0.02828016669 | AQ148: =IF(W148 = 0, 0, AG148 / W148) -> 0.06189964857 | AR148: =IF(X148 = 0, 0, AH148 / X148) -> 0.1382794158 | AS148: =IF(Y148 = 0, 0, AI148 / Y148) -> 0.1837341387 | AU148: =IF(AA148 = 0, 0, AK148 / AA148) -> 0.06413888965
E149: Post-tax return on RCV - WN | F149: 0 | G149: % | I149: ='[1]Exec Summary'!$J151 -> 0 | J149: ='[1]Exec Summary'!$K151 -> 0 | K149: ='[1]Exec Summary'!$L151 -> 0.03230247848 | L149: ='[1]Exec Summary'!$M151 -> 0.03463587964 | M149: ='[1]Exec Summary'!$N151 -> 0.03408046507 | N149: ='[1]Exec Summary'!$O151 -> 0.03291765827 | O149: ='[1]Exec Summary'!$P151 -> 0.03213602789 | P149: 0.03321450187 | Q149: ='[1]Exec Summary'!$W151 -> 0.03318024679 | S149: ='[2]Exec Summary'!$J151 -> 0 | T149: ='[2]Exec Summary'!$K151 -> 0 | U149: ='[2]Exec Summary'!$L151 -> 0.03310224876 | V149: ='[2]Exec Summary'!$M151 -> 0.0353604705 | W149: ='[2]Exec Summary'!$N151 -> 0.03231036114 | X149: ='[2]Exec Summary'!$O151 -> 0.02892693738 | Y149: ='[2]Exec Summary'!$P151 -> 0.0272132334 | Z149: 0.03138265024 | AA149: ='[2]Exec Summary'!$W151 -> 0.03118232964 | AC149: 0 | AD149: 0 | AE149: -0.001 | AF149: -0.001 | AG149: 0.002 | AH149: 0.004 | AI149: 0.005 | AK149: 0.002 | AM149: 0 | AN149: 0 | AO149: -0.03020942798 | AP149: -0.02828016669 | AQ149: 0.06189964857 | AR149: 0.1382794158 | AS149: 0.1837341387 | AU149: 0.06413888965
AC150: 0 | AD150: 0 | AE150: 0 | AF150: 0 | AG150: 0 | AH150: 0 | AI150: 0 | AK150: 0 | AM150: 0 | AN150: 0 | AO150: 0 | AP150: 0 | AQ150: 0 | AR150: 0 | AS150: 0 | AU150: 0
B151: Wastewater network - Additional financial indicators | AC151: =ROUND(I151 - S151, 3) -> 0 | AD151: =ROUND(J151 - T151, 3) -> 0 | AE151: =ROUND(K151 - U151, 3) -> 0 | AF151: =ROUND(L151 - V151, 3) -> 0 | AG151: =ROUND(M151 - W151, 3) -> 0 | AH151: =ROUND(N151 - X151, 3) -> 0 | AI151: =ROUND(O151 - Y151, 3) -> 0 | AK151: =ROUND(Q151 - AA151, 3) -> 0 | AM151: 0 | AN151: 0 | AO151: 0 | AP151: 0 | AQ151: 0 | AR151: 0 | AS151: 0 | AU151: 0
E152: RCV balance - forecast - WWN - nominal | F152: 0 | G152: £m | I152: ='[1]Exec Summary'!$J154 -> 0 | J152: ='[1]Exec Summary'!$K154 -> 4576.726661 | K152: ='[1]Exec Summary'!$L154 -> 4684.542115 | L152: ='[1]Exec Summary'!$M154 -> 4908.378753 | M152: ='[1]Exec Summary'!$N154 -> 5135.787615 | N152: ='[1]Exec Summary'!$O154 -> 5500.802618 | O152: ='[1]Exec Summary'!$P154 -> 5763.159155 | P152: =AVERAGE(K152:O152) -> 5198.534051 | Q152: ='[1]Exec Summary'!$W154 -> 5763.159155 | S152: ='[2]Exec Summary'!$J154 -> 0 | T152: ='[2]Exec Summary'!$K154 -> 4520.702326 | U152: ='[2]Exec Summary'!$L154 -> 4574.430681 | V152: ='[2]Exec Summary'!$M154 -> 4801.12078 | W152: ='[2]Exec Summary'!$N154 -> 5017.731067 | X152: ='[2]Exec Summary'!$O154 -> 5258.240636 | Y152: ='[2]Exec Summary'!$P154 -> 5394.49119 | Z152: =AVERAGE(U152:Y152) -> 5009.202871 | AA152: ='[2]Exec Summary'!$W154 -> 5394.49119 | AC152: 0 | AD152: 56.024 | AE152: 110.111 | AF152: 107.258 | AG152: 118.057 | AH152: 242.562 | AI152: 368.668 | AK152: 368.668 | AM152: 0 | AN152: 0.01239276465 | AO152: 0.02407097357 | AP152: 0.02234020032 | AQ152: 0.02352796482 | AR152: 0.04612987818 | AS152: 0.0683415705 | AU152: 0.0683415705
E153: Average of RCV - WWN - nominal | F153: 0 | G153: £m | I153: ='[1]Exec Summary'!$J155 -> 0 | J153: ='[1]Exec Summary'!$K155 -> 2288.363331 | K153: ='[1]Exec Summary'!$L155 -> 4683.348111 | L153: ='[1]Exec Summary'!$M155 -> 4854.452211 | M153: ='[1]Exec Summary'!$N155 -> 5082.067073 | N153: ='[1]Exec Summary'!$O155 -> 5380.312281 | O153: ='[1]Exec Summary'!$P155 -> 5697.412708 | P153: 5139.518477 | Q153: ='[1]Exec Summary'!$W155 -> 5139.518477 | S153: ='[2]Exec Summary'!$J155 -> 0 | T153: ='[2]Exec Summary'!$K155 -> 2260.351163 | U153: ='[2]Exec Summary'!$L155 -> 4597.397903 | V153: ='[2]Exec Summary'!$M155 -> 4744.107185 | W153: ='[2]Exec Summary'!$N155 -> 4970.792264 | X153: ='[2]Exec Summary'!$O155 -> 5202.245493 | Y153: ='[2]Exec Summary'!$P155 -> 5392.917192 | Z153: 4981.492007 | AA153: ='[2]Exec Summary'!$W155 -> 4981.492007 | AC153: 0 | AD153: 28.012 | AE153: 85.95 | AF153: 110.345 | AG153: 111.275 | AH153: 178.067 | AI153: 304.496 | AK153: 158.026 | AM153: 0 | AN153: 0.01239276465 | AO153: 0.01869535807 | AP153: 0.02325938173 | AQ153: 0.02238576752 | AR153: 0.03422887294 | AS153: 0.05646220574 | AU153: 0.03172262442
E154: Year average RCV - Growth - WWN | F154: 0 | G154: % | I154: ='[1]Exec Summary'!$J156 -> 0 | J154: ='[1]Exec Summary'!$K156 -> 0 | K154: ='[1]Exec Summary'!$L156 -> 0 | L154: ='[1]Exec Summary'!$M156 -> 0.03653456791 | M154: ='[1]Exec Summary'!$N156 -> 0.04688785727 | N154: ='[1]Exec Summary'!$O156 -> 0.05868580709 | O154: ='[1]Exec Summary'!$P156 -> 0.05893717879 | P154: 0.04020908221 | Q154: ='[1]Exec Summary'!$W156 -> 0.0502200615 | S154: ='[2]Exec Summary'!$J156 -> 0 | T154: ='[2]Exec Summary'!$K156 -> 0 | U154: ='[2]Exec Summary'!$L156 -> 0 | V154: ='[2]Exec Summary'!$M156 -> 0.03191137363 | W154: ='[2]Exec Summary'!$N156 -> 0.04778245323 | X154: ='[2]Exec Summary'!$O156 -> 0.04656264361 | Y154: ='[2]Exec Summary'!$P156 -> 0.03665180712 | Z154: 0.03258165552 | AA154: ='[2]Exec Summary'!$W156 -> 0.04070565536 | AC154: 0 | AD154: 0 | AE154: 0 | AF154: 0.005 | AG154: -0.001 | AH154: 0.012 | AI154: 0.022 | AK154: 0.01 | AM154: 0 | AN154: 0 | AO154: 0 | AP154: 0.1566839478 | AQ154: -0.02092818456 | AR154: 0.257717326 | AS154: 0.6002432547 | AU154: 0.2456661098
E155: Pre-tax return on RCV - WWN | F155: 0 | G155: % | I155: ='[1]Exec Summary'!$J157 -> 0 | J155: ='[1]Exec Summary'!$K157 -> 0 | K155: ='[1]Exec Summary'!$L157 -> 0.04131218403 | L155: ='[1]Exec Summary'!$M157 -> 0.04208443722 | M155: ='[1]Exec Summary'!$N157 -> 0.04187512085 | N155: ='[1]Exec Summary'!$O157 -> 0.04212591782 | O155: ='[1]Exec Summary'!$P157 -> 0.04066025371 | P155: 0.04161158273 | Q155: ='[1]Exec Summary'!$W157 -> 0.04159522902 | S155: ='[2]Exec Summary'!$J157 -> 0 | T155: ='[2]Exec Summary'!$K157 -> 0 | U155: ='[2]Exec Summary'!$L157 -> 0.04030344479 | V155: ='[2]Exec Summary'!$M157 -> 0.0406472364 | W155: ='[2]Exec Summary'!$N157 -> 0.03932950906 | X155: ='[2]Exec Summary'!$O157 -> 0.03879783099 | Y155: ='[2]Exec Summary'!$P157 -> 0.03639606673 | Z155: 0.0390948176 | AA155: ='[2]Exec Summary'!$W157 -> 0.03901407258 | AC155: 0 | AD155: 0 | AE155: 0.001 | AF155: 0.001 | AG155: 0.003 | AH155: 0.003 | AI155: 0.004 | AK155: 0.003 | AM155: 0 | AN155: 0 | AO155: 0.0248117749 | AP155: 0.02460191857 | AQ155: 0.0762786028 | AR155: 0.07732391021 | AS155: 0.1099019855 | AU155: 0.07689533037
E156: Post-tax return on RCV - WWN | F156: 0 | G156: % | I156: ='[1]Exec Summary'!$J158 -> 0 | J156: ='[1]Exec Summary'!$K158 -> 0 | K156: ='[1]Exec Summary'!$L158 -> 0.04131218403 | L156: ='[1]Exec Summary'!$M158 -> 0.04208443722 | M156: ='[1]Exec Summary'!$N158 -> 0.04187512085 | N156: ='[1]Exec Summary'!$O158 -> 0.04212591782 | O156: ='[1]Exec Summary'!$P158 -> 0.04066025371 | P156: 0.04161158273 | Q156: ='[1]Exec Summary'!$W158 -> 0.04159522902 | S156: ='[2]Exec Summary'!$J158 -> 0 | T156: ='[2]Exec Summary'!$K158 -> 0 | U156: ='[2]Exec Summary'!$L158 -> 0.04030344479 | V156: ='[2]Exec Summary'!$M158 -> 0.0406472364 | W156: ='[2]Exec Summary'!$N158 -> 0.03932950906 | X156: ='[2]Exec Summary'!$O158 -> 0.03879783099 | Y156: ='[2]Exec Summary'!$P158 -> 0.03639606673 | Z156: 0.0390948176 | AA156: ='[2]Exec Summary'!$W158 -> 0.03901407258 | AC156: 0 | AD156: 0 | AE156: 0.001 | AF156: 0.001 | AG156: 0.003 | AH156: 0.003 | AI156: 0.004 | AK156: 0.003 | AM156: 0 | AN156: 0 | AO156: 0.0248117749 | AP156: 0.02460191857 | AQ156: 0.0762786028 | AR156: 0.07732391021 | AS156: 0.1099019855 | AU156: 0.07689533037
AC157: 0 | AD157: 0 | AE157: 0 | AF157: 0 | AG157: 0 | AH157: 0 | AI157: 0 | AK157: 0 | AM157: 0 | AN157: 0 | AO157: 0 | AP157: 0 | AQ157: 0 | AR157: 0 | AS157: 0 | AU157: 0
B158: Bio resources - Additional financial indicators | AC158: 0 | AD158: 0 | AE158: 0 | AF158: 0 | AG158: 0 | AH158: 0 | AI158: 0 | AK158: 0 | AM158: 0 | AN158: 0 | AO158: 0 | AP158: 0 | AQ158: 0 | AR158: 0 | AS158: 0 | AU158: 0
E159: RCV balance - forecast - BR - nominal | F159: 0 | G159: £m | I159: ='[1]Exec Summary'!$J161 -> 0 | J159: ='[1]Exec Summary'!$K161 -> 335.1156569 | K159: ='[1]Exec Summary'!$L161 -> 343.5858887 | L159: ='[1]Exec Summary'!$M161 -> 356.0482045 | M159: ='[1]Exec Summary'!$N161 -> 364.8151657 | N159: ='[1]Exec Summary'!$O161 -> 366.7429713 | O159: ='[1]Exec Summary'!$P161 -> 376.2039429 | P159: =AVERAGE(K159:O159) -> 361.4792346 | Q159: ='[1]Exec Summary'!$W161 -> 376.2039429 | S159: ='[2]Exec Summary'!$J161 -> 0 | T159: ='[2]Exec Summary'!$K161 -> 332.7166673 | U159: ='[2]Exec Summary'!$L161 -> 331.469582 | V159: ='[2]Exec Summary'!$M161 -> 335.8631049 | W159: ='[2]Exec Summary'!$N161 -> 336.7197059 | X159: ='[2]Exec Summary'!$O161 -> 333.838155 | Y159: ='[2]Exec Summary'!$P161 -> 332.4142101 | Z159: =AVERAGE(U159:Y159) -> 334.0609516 | AA159: ='[2]Exec Summary'!$W161 -> 332.4142101 | AC159: 0 | AD159: 2.399 | AE159: 12.116 | AF159: 20.185 | AG159: 28.095 | AH159: 32.905 | AI159: 43.79 | AK159: 43.79 | AM159: 0 | AN159: 0.007210339114 | AO159: 0.0365523736 | AP159: 0.0600988906 | AQ159: 0.08343735015 | AR159: 0.09856572566 | AS159: 0.1317332372 | AU159: 0.1317332372
E160: Average of RCV - BR - nominal | F160: 0 | G160: £m | I160: ='[1]Exec Summary'!$J162 -> 0 | J160: ='[1]Exec Summary'!$K162 -> 167.5578285 | K160: ='[1]Exec Summary'!$L162 -> 343.2105606 | L160: ='[1]Exec Summary'!$M162 -> 354.0609589 | M160: ='[1]Exec Summary'!$N162 -> 364.7745244 | N160: ='[1]Exec Summary'!$O162 -> 370.1846985 | O160: ='[1]Exec Summary'!$P162 -> 375.8742773 | P160: 361.6210039 | Q160: ='[1]Exec Summary'!$W162 -> 361.6210039 | S160: ='[2]Exec Summary'!$J162 -> 0 | T160: ='[2]Exec Summary'!$K162 -> 166.3583336 | U160: ='[2]Exec Summary'!$L162 -> 335.7606382 | V160: ='[2]Exec Summary'!$M162 -> 337.7524631 | W160: ='[2]Exec Summary'!$N162 -> 340.609588 | X160: ='[2]Exec Summary'!$O162 -> 339.6411614 | Y160: ='[2]Exec Summary'!$P162 -> 337.4334232 | Z160: 338.2394548 | AA160: ='[2]Exec Summary'!$W162 -> 338.2394548 | AC160: 0 | AD160: 1.199 | AE160: 7.45 | AF160: 16.308 | AG160: 24.165 | AH160: 30.544 | AI160: 38.441 | AK160: 23.382 | AM160: 0 | AN160: 0.007207333554 | AO160: 0.02218842578 | AP160: 0.04828388178 | AQ160: 0.07094632932 | AR160: 0.08993020714 | AS160: 0.113921732 | AU160: 0.06912854095
E161: Year average RCV - Growth - BR | F161: 0 | G161: % | I161: ='[1]Exec Summary'!$J163 -> 0 | J161: ='[1]Exec Summary'!$K163 -> 0 | K161: ='[1]Exec Summary'!$L163 -> 0 | L161: ='[1]Exec Summary'!$M163 -> 0.03161440665 | M161: ='[1]Exec Summary'!$N163 -> 0.0302590989 | N161: ='[1]Exec Summary'!$O163 -> 0.01483155668 | O161: ='[1]Exec Summary'!$P163 -> 0.01536956782 | P161: 0.01841492601 | Q161: ='[1]Exec Summary'!$W163 -> 0.02298788583 | S161: ='[2]Exec Summary'!$J163 -> 0 | T161: ='[2]Exec Summary'!$K163 -> 0 | U161: ='[2]Exec Summary'!$L163 -> 0 | V161: ='[2]Exec Summary'!$M163 -> 0.005932276476 | W161: ='[2]Exec Summary'!$N163 -> 0.008459227381 | X161: ='[2]Exec Summary'!$O163 -> -0.002843215825 | Y161: ='[2]Exec Summary'!$P163 -> -0.006500208178 | Z161: 0.001009615971 | AA161: ='[2]Exec Summary'!$W163 -> 0.001243198746 | AC161: 0 | AD161: 0 | AE161: 0 | AF161: 0.026 | AG161: 0.022 | AH161: 0.018 | AI161: 0.022 | AK161: 0.022 | AM161: 0 | AN161: 0 | AO161: 0 | AP161: 4.382803146 | AQ161: 2.600710326 | AR161: -6.330859529 | AS161: -3.384506988 | AU161: 17.69628555
E162: Pre-tax return on RCV - BR | F162: 0 | G162: % | I162: ='[1]Exec Summary'!$J164 -> 0 | J162: ='[1]Exec Summary'!$K164 -> 0 | K162: ='[1]Exec Summary'!$L164 -> 0.02763449658 | L162: ='[1]Exec Summary'!$M164 -> 0.02742128912 | M162: ='[1]Exec Summary'!$N164 -> 0.02716010129 | N162: ='[1]Exec Summary'!$O164 -> 0.02644937834 | O162: ='[1]Exec Summary'!$P164 -> 0.02575480422 | P162: 0.02688401391 | Q162: ='[1]Exec Summary'!$W164 -> 0.02686364733 | S162: ='[2]Exec Summary'!$J164 -> 0 | T162: ='[2]Exec Summary'!$K164 -> 0 | U162: ='[2]Exec Summary'!$L164 -> 0.03607527091 | V162: ='[2]Exec Summary'!$M164 -> 0.03338253606 | W162: ='[2]Exec Summary'!$N164 -> 0.02912315931 | X162: ='[2]Exec Summary'!$O164 -> 0.01828329782 | Y162: ='[2]Exec Summary'!$P164 -> 0.01651149048 | Z162: 0.02667515092 | AA162: ='[2]Exec Summary'!$W164 -> 0.026660761 | AC162: 0 | AD162: 0 | AE162: -0.008 | AF162: -0.006 | AG162: -0.002 | AH162: 0.008 | AI162: 0.009 | AK162: 0 | AM162: 0 | AN162: 0 | AO162: -0.2217585565 | AP162: -0.1797346969 | AQ162: -0.06867386805 | AR162: 0.4375578235 | AS162: 0.5450749592 | AU162: 0
E163: Post-tax return on RCV - BR | F163: 0 | G163: % | I163: ='[1]Exec Summary'!$J165 -> 0 | J163: ='[1]Exec Summary'!$K165 -> 0 | K163: ='[1]Exec Summary'!$L165 -> 0.02763449658 | L163: ='[1]Exec Summary'!$M165 -> 0.02742128912 | M163: ='[1]Exec Summary'!$N165 -> 0.02716010129 | N163: ='[1]Exec Summary'!$O165 -> 0.02644937834 | O163: ='[1]Exec Summary'!$P165 -> 0.02575480422 | P163: 0.02688401391 | Q163: ='[1]Exec Summary'!$W165 -> 0.02686364733 | S163: ='[2]Exec Summary'!$J165 -> 0 | T163: ='[2]Exec Summary'!$K165 -> 0 | U163: ='[2]Exec Summary'!$L165 -> 0.03607527091 | V163: ='[2]Exec Summary'!$M165 -> 0.03338253606 | W163: ='[2]Exec Summary'!$N165 -> 0.02912315931 | X163: ='[2]Exec Summary'!$O165 -> 0.01828329782 | Y163: ='[2]Exec Summary'!$P165 -> 0.01651149048 | Z163: 0.02667515092 | AA163: ='[2]Exec Summary'!$W165 -> 0.026660761 | AC163: 0 | AD163: 0 | AE163: -0.008 | AF163: -0.006 | AG163: -0.002 | AH163: 0.008 | AI163: 0.009 | AK163: 0 | AM163: 0 | AN163: 0 | AO163: -0.2217585565 | AP163: -0.1797346969 | AQ163: -0.06867386805 | AR163: 0.4375578235 | AS163: 0.5450749592 | AU163: 0
AC164: 0 | AD164: 0 | AE164: 0 | AF164: 0 | AG164: 0 | AH164: 0 | AI164: 0 | AK164: 0 | AM164: 0 | AN164: 0 | AO164: 0 | AP164: 0 | AQ164: 0 | AR164: 0 | AS164: 0 | AU164: 0
B165: Dummy control - Additional financial indicators | AC165: 0 | AD165: 0 | AE165: 0 | AF165: 0 | AG165: 0 | AH165: 0 | AI165: 0 | AK165: 0 | AM165: 0 | AN165: 0 | AO165: 0 | AP165: 0 | AQ165: 0 | AR165: 0 | AS165: 0 | AU165: 0
E166: RCV balance - forecast - DMMY - nominal | F166: 0 | G166: £m | I166: ='[1]Exec Summary'!$J168 -> 0 | J166: ='[1]Exec Summary'!$K168 -> 0 | K166: ='[1]Exec Summary'!$L168 -> 0 | L166: ='[1]Exec Summary'!$M168 -> 0 | M166: ='[1]Exec Summary'!$N168 -> 0 | N166: ='[1]Exec Summary'!$O168 -> 0 | O166: ='[1]Exec Summary'!$P168 -> 0 | P166: =AVERAGE(K166:O166) -> 0 | Q166: ='[1]Exec Summary'!$W168 -> 0 | S166: ='[2]Exec Summary'!$J168 -> 0 | T166: ='[2]Exec Summary'!$K168 -> 0 | U166: ='[2]Exec Summary'!$L168 -> 0 | V166: ='[2]Exec Summary'!$M168 -> 0 | W166: ='[2]Exec Summary'!$N168 -> 0 | X166: ='[2]Exec Summary'!$O168 -> 0 | Y166: ='[2]Exec Summary'!$P168 -> 0 | Z166: =AVERAGE(U166:Y166) -> 0 | AA166: ='[2]Exec Summary'!$W168 -> 0 | AC166: 0 | AD166: 0 | AE166: 0 | AF166: 0 | AG166: 0 | AH166: 0 | AI166: 0 | AK166: 0 | AM166: 0 | AN166: 0 | AO166: 0 | AP166: 0 | AQ166: 0 | AR166: 0 | AS166: 0 | AU166: 0
E167: Average of RCV - DMMY - nominal | F167: 0 | G167: £m | I167: ='[1]Exec Summary'!$J169 -> 0 | J167: ='[1]Exec Summary'!$K169 -> 0 | K167: ='[1]Exec Summary'!$L169 -> 0 | L167: ='[1]Exec Summary'!$M169 -> 0 | M167: ='[1]Exec Summary'!$N169 -> 0 | N167: ='[1]Exec Summary'!$O169 -> 0 | O167: ='[1]Exec Summary'!$P169 -> 0 | P167: 0 | Q167: ='[1]Exec Summary'!$W169 -> 0 | S167: ='[2]Exec Summary'!$J169 -> 0 | T167: ='[2]Exec Summary'!$K169 -> 0 | U167: ='[2]Exec Summary'!$L169 -> 0 | V167: ='[2]Exec Summary'!$M169 -> 0 | W167: ='[2]Exec Summary'!$N169 -> 0 | X167: ='[2]Exec Summary'!$O169 -> 0 | Y167: ='[2]Exec Summary'!$P169 -> 0 | Z167: 0 | AA167: ='[2]Exec Summary'!$W169 -> 0 | AC167: 0 | AD167: 0 | AE167: 0 | AF167: 0 | AG167: 0 | AH167: 0 | AI167: 0 | AK167: 0 | AM167: 0 | AN167: 0 | AO167: 0 | AP167: 0 | AQ167: 0 | AR167: 0 | AS167: 0 | AU167: 0
E168: Year average RCV - Growth - DMMY | F168: 0 | G168: % | I168: ='[1]Exec Summary'!$J170 -> 0 | J168: ='[1]Exec Summary'!$K170 -> 0 | K168: ='[1]Exec Summary'!$L170 -> 0 | L168: ='[1]Exec Summary'!$M170 -> 0 | M168: ='[1]Exec Summary'!$N170 -> 0 | N168: ='[1]Exec Summary'!$O170 -> 0 | O168: ='[1]Exec Summary'!$P170 -> 0 | P168: 0 | Q168: ='[1]Exec Summary'!$W170 -> 0 | S168: ='[2]Exec Summary'!$J170 -> 0 | T168: ='[2]Exec Summary'!$K170 -> 0 | U168: ='[2]Exec Summary'!$L170 -> 0 | V168: ='[2]Exec Summary'!$M170 -> 0 | W168: ='[2]Exec Summary'!$N170 -> 0 | X168: ='[2]Exec Summary'!$O170 -> 0 | Y168: ='[2]Exec Summary'!$P170 -> 0 | Z168: 0 | AA168: ='[2]Exec Summary'!$W170 -> 0 | AC168: 0 | AD168: 0 | AE168: 0 | AF168: 0 | AG168: 0 | AH168: 0 | AI168: 0 | AK168: 0 | AM168: 0 | AN168: 0 | AO168: 0 | AP168: 0 | AQ168: 0 | AR168: 0 | AS168: 0 | AU168: 0
E169: Pre-tax return on RCV - DMMY | F169: 0 | G169: % | I169: ='[1]Exec Summary'!$J171 -> 0 | J169: ='[1]Exec Summary'!$K171 -> 0 | K169: ='[1]Exec Summary'!$L171 -> 0 | L169: ='[1]Exec Summary'!$M171 -> 0 | M169: ='[1]Exec Summary'!$N171 -> 0 | N169: ='[1]Exec Summary'!$O171 -> 0 | O169: ='[1]Exec Summary'!$P171 -> 0 | P169: 0 | Q169: ='[1]Exec Summary'!$W171 -> 0 | S169: ='[2]Exec Summary'!$J171 -> 0 | T169: ='[2]Exec Summary'!$K171 -> 0 | U169: ='[2]Exec Summary'!$L171 -> 0 | V169: ='[2]Exec Summary'!$M171 -> 0 | W169: ='[2]Exec Summary'!$N171 -> 0 | X169: ='[2]Exec Summary'!$O171 -> 0 | Y169: ='[2]Exec Summary'!$P171 -> 0 | Z169: 0 | AA169: ='[2]Exec Summary'!$W171 -> 0 | AC169: 0 | AD169: 0 | AE169: 0 | AF169: 0 | AG169: 0 | AH169: 0 | AI169: 0 | AK169: 0 | AM169: 0 | AN169: 0 | AO169: 0 | AP169: 0 | AQ169: 0 | AR169: 0 | AS169: 0 | AU169: 0
E170: Post-tax return on RCV - DMMY | F170: 0 | G170: % | I170: ='[1]Exec Summary'!$J172 -> 0 | J170: ='[1]Exec Summary'!$K172 -> 0 | K170: ='[1]Exec Summary'!$L172 -> 0 | L170: ='[1]Exec Summary'!$M172 -> 0 | M170: ='[1]Exec Summary'!$N172 -> 0 | N170: ='[1]Exec Summary'!$O172 -> 0 | O170: ='[1]Exec Summary'!$P172 -> 0 | P170: 0 | Q170: ='[1]Exec Summary'!$W172 -> 0 | S170: ='[2]Exec Summary'!$J172 -> 0 | T170: ='[2]Exec Summary'!$K172 -> 0 | U170: ='[2]Exec Summary'!$L172 -> 0 | V170: ='[2]Exec Summary'!$M172 -> 0 | W170: ='[2]Exec Summary'!$N172 -> 0 | X170: ='[2]Exec Summary'!$O172 -> 0 | Y170: ='[2]Exec Summary'!$P172 -> 0 | Z170: 0 | AA170: ='[2]Exec Summary'!$W172 -> 0 | AC170: 0 | AD170: 0 | AE170: 0 | AF170: 0 | AG170: 0 | AH170: 0 | AI170: 0 | AK170: 0 | AM170: 0 | AN170: 0 | AO170: 0 | AP170: 0 | AQ170: 0 | AR170: 0 | AS170: 0 | AU170: 0
AC171: 0 | AD171: 0 | AE171: 0 | AF171: 0 | AG171: 0 | AH171: 0 | AI171: 0 | AK171: 0 | AM171: 0 | AN171: 0 | AO171: 0 | AP171: 0 | AQ171: 0 | AR171: 0 | AS171: 0 | AU171: 0
B172: Retail - Additional financial indicators | AC172: 0 | AD172: 0 | AE172: 0 | AF172: 0 | AG172: 0 | AH172: 0 | AI172: 0 | AK172: 0 | AM172: 0 | AN172: 0 | AO172: 0 | AP172: 0 | AQ172: 0 | AR172: 0 | AS172: 0 | AU172: 0
E173: Residential net margin % | F173: 0 | G173: % | I173: ='[1]Exec Summary'!$J175 -> 0 | J173: ='[1]Exec Summary'!$K175 -> 0 | K173: ='[1]Exec Summary'!$L175 -> 0.03079981319 | L173: ='[1]Exec Summary'!$M175 -> 0.01 | M173: ='[1]Exec Summary'!$N175 -> 0.01 | N173: ='[1]Exec Summary'!$O175 -> 0.01 | O173: ='[1]Exec Summary'!$P175 -> 0.01 | P173: =AVERAGE(K173:O173) -> 0.01415996264 | Q173: ='[1]Exec Summary'!$W175 -> 0.01390720772 | S173: ='[2]Exec Summary'!$J175 -> 0 | T173: ='[2]Exec Summary'!$K175 -> 0 | U173: ='[2]Exec Summary'!$L175 -> 0.02505309838 | V173: ='[2]Exec Summary'!$M175 -> 0.01 | W173: ='[2]Exec Summary'!$N175 -> 0.01 | X173: ='[2]Exec Summary'!$O175 -> 0.01 | Y173: ='[2]Exec Summary'!$P175 -> 0.01 | Z173: =AVERAGE(U173:Y173) -> 0.01301061968 | AA173: ='[2]Exec Summary'!$W175 -> 0.01285573341 | AC173: 0 | AD173: 0 | AE173: 0.006 | AF173: 0 | AG173: 0 | AH173: 0 | AI173: 0 | AK173: 0.001 | AM173: 0 | AN173: 0 | AO173: 0.2394913359 | AP173: 0 | AQ173: 0 | AR173: 0 | AS173: 0 | AU173: 0.07778630502
E174: Business aggregate net margin % | F174: 0 | G174: % | I174: ='[1]Exec Summary'!$J176 -> 0 | J174: ='[1]Exec Summary'!$K176 -> 0 | K174: ='[1]Exec Summary'!$L176 -> 0 | L174: ='[1]Exec Summary'!$M176 -> 0 | M174: ='[1]Exec Summary'!$N176 -> 0 | N174: ='[1]Exec Summary'!$O176 -> 0 | O174: ='[1]Exec Summary'!$P176 -> 0 | P174: 0 | Q174: ='[1]Exec Summary'!$W176 -> 0 | S174: ='[2]Exec Summary'!$J176 -> 0 | T174: ='[2]Exec Summary'!$K176 -> 0 | U174: ='[2]Exec Summary'!$L176 -> 0 | V174: ='[2]Exec Summary'!$M176 -> 0 | W174: ='[2]Exec Summary'!$N176 -> 0 | X174: ='[2]Exec Summary'!$O176 -> 0 | Y174: ='[2]Exec Summary'!$P176 -> 0 | Z174: 0 | AA174: ='[2]Exec Summary'!$W176 -> 0 | AC174: 0 | AD174: 0 | AE174: 0 | AF174: 0 | AG174: 0 | AH174: 0 | AI174: 0 | AK174: 0 | AM174: 0 | AN174: 0 | AO174: 0 | AP174: 0 | AQ174: 0 | AR174: 0 | AS174: 0 | AU174: 0
AC175: 0 | AD175: 0 | AE175: 0 | AF175: 0 | AG175: 0 | AH175: 0 | AI175: 0 | AK175: 0 | AM175: 0 | AN175: 0 | AO175: 0 | AP175: 0 | AQ175: 0 | AR175: 0 | AS175: 0 | AU175: 0
E176: Headroom - Residential - nominal | F176: 0 | G176: £m | I176: ='[1]Exec Summary'!$J178 -> 0 | J176: ='[1]Exec Summary'!$K178 -> 0 | K176: ='[1]Exec Summary'!$L178 -> 27.79488036 | L176: ='[1]Exec Summary'!$M178 -> 10.01989982 | M176: ='[1]Exec Summary'!$N178 -> 10.61654008 | N176: ='[1]Exec Summary'!$O178 -> 11.20862876 | O176: ='[1]Exec Summary'!$P178 -> 11.74473948 | P176: =AVERAGE(K176:O176) -> 14.2769377 | Q176: ='[1]Exec Summary'!$W178 -> 71.3846885 | S176: ='[2]Exec Summary'!$J178 -> 0 | T176: ='[2]Exec Summary'!$K178 -> 0 | U176: ='[2]Exec Summary'!$L178 -> 20.80445315 | V176: ='[2]Exec Summary'!$M178 -> 9.472079391 | W176: ='[2]Exec Summary'!$N178 -> 9.94419477 | X176: ='[2]Exec Summary'!$O178 -> 10.44723802 | Y176: ='[2]Exec Summary'!$P178 -> 10.93913404 | Z176: =AVERAGE(U176:Y176) -> 12.32141987 | AA176: ='[2]Exec Summary'!$W178 -> 61.60709937 | AC176: 0 | AD176: 0 | AE176: 6.99 | AF176: 0.548 | AG176: 0.672 | AH176: 0.761 | AI176: 0.806 | AK176: 9.778 | AM176: 0 | AN176: 0 | AO176: 0.3359857598 | AP176: 0.05785424482 | AQ176: 0.06757711565 | AR176: 0.07284221899 | AS176: 0.07368042088 | AU176: 0.1587154743
E177: Headroom - Business - nominal | F177: 0 | G177: £m | I177: ='[1]Exec Summary'!$J179 -> 0 | J177: ='[1]Exec Summary'!$K179 -> 0 | K177: ='[1]Exec Summary'!$L179 -> 0 | L177: ='[1]Exec Summary'!$M179 -> 0 | M177: ='[1]Exec Summary'!$N179 -> 0 | N177: ='[1]Exec Summary'!$O179 -> 0 | O177: ='[1]Exec Summary'!$P179 -> 0 | P177: 0 | Q177: ='[1]Exec Summary'!$W179 -> 0 | S177: ='[2]Exec Summary'!$J179 -> 0 | T177: ='[2]Exec Summary'!$K179 -> 0 | U177: ='[2]Exec Summary'!$L179 -> 0 | V177: ='[2]Exec Summary'!$M179 -> 0 | W177: ='[2]Exec Summary'!$N179 -> 0 | X177: ='[2]Exec Summary'!$O179 -> 0 | Y177: ='[2]Exec Summary'!$P179 -> 0 | Z177: 0 | AA177: ='[2]Exec Summary'!$W179 -> 0 | AC177: 0 | AD177: 0 | AE177: 0 | AF177: 0 | AG177: 0 | AH177: 0 | AI177: 0 | AK177: 0 | AM177: 0 | AN177: 0 | AO177: 0 | AP177: 0 | AQ177: 0 | AR177: 0 | AS177: 0 | AU177: 0
AC178: 0 | AD178: 0 | AE178: 0 | AF178: 0 | AG178: 0 | AH178: 0 | AI178: 0 | AK178: 0 | AM178: 0 | AN178: 0 | AO178: 0 | AP178: 0 | AQ178: 0 | AR178: 0 | AS178: 0 | AU178: 0
E179: Residential Headroom (% of net margin) | F179: 0 | G179: % | I179: ='[1]Exec Summary'!$J181 -> 0 | J179: ='[1]Exec Summary'!$K181 -> 0 | K179: ='[1]Exec Summary'!$L181 -> 0.83 | L179: ='[1]Exec Summary'!$M181 -> 0.83 | M179: ='[1]Exec Summary'!$N181 -> 0.83 | N179: ='[1]Exec Summary'!$O181 -> 0.83 | O179: ='[1]Exec Summary'!$P181 -> 0.83 | P179: =AVERAGE(K179:O179) -> 0.83 | Q179: ='[1]Exec Summary'!$W181 -> 0.83 | S179: ='[2]Exec Summary'!$J181 -> 0 | T179: ='[2]Exec Summary'!$K181 -> 0 | U179: ='[2]Exec Summary'!$L181 -> 0.83 | V179: ='[2]Exec Summary'!$M181 -> 0.83 | W179: ='[2]Exec Summary'!$N181 -> 0.83 | X179: ='[2]Exec Summary'!$O181 -> 0.83 | Y179: ='[2]Exec Summary'!$P181 -> 0.83 | Z179: =AVERAGE(U179:Y179) -> 0.83 | AA179: ='[2]Exec Summary'!$W181 -> 0.83 | AC179: 0 | AD179: 0 | AE179: 0 | AF179: 0 | AG179: 0 | AH179: 0 | AI179: 0 | AK179: 0 | AM179: 0 | AN179: 0 | AO179: 0 | AP179: 0 | AQ179: 0 | AR179: 0 | AS179: 0 | AU179: 0
E180: Business Headroom (% of net margin) | F180: 0 | G180: % | I180: ='[1]Exec Summary'!$J182 -> 0 | J180: ='[1]Exec Summary'!$K182 -> 0 | K180: ='[1]Exec Summary'!$L182 -> 0 | L180: ='[1]Exec Summary'!$M182 -> 0 | M180: ='[1]Exec Summary'!$N182 -> 0 | N180: ='[1]Exec Summary'!$O182 -> 0 | O180: ='[1]Exec Summary'!$P182 -> 0 | P180: 0 | Q180: ='[1]Exec Summary'!$W182 -> 0 | S180: ='[2]Exec Summary'!$J182 -> 0 | T180: ='[2]Exec Summary'!$K182 -> 0 | U180: ='[2]Exec Summary'!$L182 -> 0 | V180: ='[2]Exec Summary'!$M182 -> 0 | W180: ='[2]Exec Summary'!$N182 -> 0 | X180: ='[2]Exec Summary'!$O182 -> 0 | Y180: ='[2]Exec Summary'!$P182 -> 0 | Z180: 0 | AA180: ='[2]Exec Summary'!$W182 -> 0 | AC180: 0 | AD180: 0 | AE180: 0 | AF180: 0 | AG180: 0 | AH180: 0 | AI180: 0 | AK180: 0 | AM180: 0 | AN180: 0 | AO180: 0 | AP180: 0 | AQ180: 0 | AR180: 0 | AS180: 0 | AU180: 0
A183: WHOLESALE - ALLOWED REVENUE BREAKDOWN (REAL) POST FINANCEABILITY ADJUSTMENTS AND REPROFILING
B185: Water Resources
E186: PAYG - WR - real | F186: 0 | G186: £m | I186: ='[1]Exec Summary'!$J188 -> 0 | J186: ='[1]Exec Summary'!$K188 -> 0 | K186: ='[1]Exec Summary'!$L188 -> 46.75894776 | L186: ='[1]Exec Summary'!$M188 -> 47.59289914 | M186: ='[1]Exec Summary'!$N188 -> 44.73463162 | N186: ='[1]Exec Summary'!$O188 -> 43.09637364 | O186: ='[1]Exec Summary'!$P188 -> 39.80794416 | P186: =AVERAGE(K186:O186) -> 44.39815926 | Q186: ='[1]Exec Summary'!$W188 -> 221.9907963 | S186: ='[2]Exec Summary'!$J188 -> 0 | T186: ='[2]Exec Summary'!$K188 -> 0 | U186: ='[2]Exec Summary'!$L188 -> 39.99260438 | V186: ='[2]Exec Summary'!$M188 -> 39.43180531 | W186: ='[2]Exec Summary'!$N188 -> 41.54778309 | X186: ='[2]Exec Summary'!$O188 -> 42.71084111 | Y186: ='[2]Exec Summary'!$P188 -> 42.35031533 | Z186: =AVERAGE(U186:Y186) -> 41.20666985 | AA186: ='[2]Exec Summary'!$W188 -> 206.0333492 | AC186: =ROUND(I186 - S186, 3) -> 0 | AD186: =ROUND(J186 - T186, 3) -> 0 | AE186: =ROUND(K186 - U186, 3) -> 6.766 | AF186: =ROUND(L186 - V186, 3) -> 8.161 | AG186: =ROUND(M186 - W186, 3) -> 3.187 | AH186: =ROUND(N186 - X186, 3) -> 0.386 | AI186: =ROUND(O186 - Y186, 3) -> -2.542 | AK186: =ROUND(Q186 - AA186, 3) -> 15.957 | AM186: =IF(S186 = 0, 0, AC186 / S186) -> 0 | AN186: =IF(T186 = 0, 0, AD186 / T186) -> 0 | AO186: =IF(U186 = 0, 0, AE186 / U186) -> 0.16918128 | AP186: =IF(V186 = 0, 0, AF186 / V186) -> 0.2069649091 | AQ186: =IF(W186 = 0, 0, AG186 / W186) -> 0.07670686046 | AR186: =IF(X186 = 0, 0, AH186 / X186) -> 0.009037518109 | AS186: =IF(Y186 = 0, 0, AI186 / Y186) -> -0.06002316582 | AU186: =IF(AA186 = 0, 0, AK186 / AA186) -> 0.07744862693
E187: Wholesale Water resources service defined benefit pension deficit recovery per IN13/17 - real | F187: 0 | G187: £m | I187: ='[1]Exec Summary'!$J189 -> 0 | J187: ='[1]Exec Summary'!$K189 -> 0 | K187: ='[1]Exec Summary'!$L189 -> 0.476 | L187: ='[1]Exec Summary'!$M189 -> 0.48 | M187: ='[1]Exec Summary'!$N189 -> 0.485 | N187: ='[1]Exec Summary'!$O189 -> 0.489 | O187: ='[1]Exec Summary'!$P189 -> 0.494 | P187: 0.4848 | Q187: ='[1]Exec Summary'!$W189 -> 2.424 | S187: ='[2]Exec Summary'!$J189 -> 0 | T187: ='[2]Exec Summary'!$K189 -> 0 | U187: ='[2]Exec Summary'!$L189 -> 0.9900135492 | V187: ='[2]Exec Summary'!$M189 -> 0.9887327038 | W187: ='[2]Exec Summary'!$N189 -> 0.989341986 | X187: ='[2]Exec Summary'!$O189 -> 0 | Y187: ='[2]Exec Summary'!$P189 -> 0 | Z187: 0.5936176478 | AA187: ='[2]Exec Summary'!$W189 -> 2.968088239 | AC187: 0 | AD187: 0 | AE187: -0.514 | AF187: -0.509 | AG187: -0.504 | AH187: 0.489 | AI187: 0.494 | AK187: -0.544 | AM187: 0 | AN187: 0 | AO187: -0.5191848136 | AP187: -0.5148004087 | AQ187: -0.5094295068 | AR187: 0 | AS187: 0 | AU187: -0.1832829607
E188: Return on Capital - WR - real | F188: 0 | G188: £m | I188: ='[1]Exec Summary'!$J190 -> 0 | J188: ='[1]Exec Summary'!$K190 -> 0 | K188: ='[1]Exec Summary'!$L190 -> 5.641257834 | L188: ='[1]Exec Summary'!$M190 -> 6.068538539 | M188: ='[1]Exec Summary'!$N190 -> 6.514263229 | N188: ='[1]Exec Summary'!$O190 -> 6.849530306 | O188: ='[1]Exec Summary'!$P190 -> 6.907090281 | P188: 6.396136038 | Q188: ='[1]Exec Summary'!$W190 -> 31.98068019 | S188: ='[2]Exec Summary'!$J190 -> 0 | T188: ='[2]Exec Summary'!$K190 -> 0 | U188: ='[2]Exec Summary'!$L190 -> 4.648935099 | V188: ='[2]Exec Summary'!$M190 -> 4.690656235 | W188: ='[2]Exec Summary'!$N190 -> 4.837007323 | X188: ='[2]Exec Summary'!$O190 -> 4.962039803 | Y188: ='[2]Exec Summary'!$P190 -> 4.942490638 | Z188: 4.81622582 | AA188: ='[2]Exec Summary'!$W190 -> 24.0811291 | AC188: 0 | AD188: 0 | AE188: 0.992 | AF188: 1.378 | AG188: 1.677 | AH188: 1.887 | AI188: 1.965 | AK188: 7.9 | AM188: 0 | AN188: 0 | AO188: 0.2133822002 | AP188: 0.2937755254 | AQ188: 0.3467019767 | AR188: 0.380287155 | AS188: 0.397572832 | AU188: 0.3280577073
E189: Depreciation - WR - real | F189: 0 | G189: £m | I189: ='[1]Exec Summary'!$J191 -> 0 | J189: ='[1]Exec Summary'!$K191 -> 0 | K189: ='[1]Exec Summary'!$L191 -> 10.15208072 | L189: ='[1]Exec Summary'!$M191 -> 10.75101982 | M189: ='[1]Exec Summary'!$N191 -> 11.38073801 | N189: ='[1]Exec Summary'!$O191 -> 11.84264642 | O189: ='[1]Exec Summary'!$P191 -> 11.87910882 | P189: 11.20111876 | Q189: ='[1]Exec Summary'!$W191 -> 56.00559378 | S189: ='[2]Exec Summary'!$J191 -> 0 | T189: ='[2]Exec Summary'!$K191 -> 0 | U189: ='[2]Exec Summary'!$L191 -> 9.737973338 | V189: ='[2]Exec Summary'!$M191 -> 9.74393135 | W189: ='[2]Exec Summary'!$N191 -> 9.936636238 | X189: ='[2]Exec Summary'!$O191 -> 10.09501115 | Y189: ='[2]Exec Summary'!$P191 -> 10.00385291 | Z189: 9.903480997 | AA189: ='[2]Exec Summary'!$W191 -> 49.51740498 | AC189: 0 | AD189: 0 | AE189: 0.414 | AF189: 1.007 | AG189: 1.444 | AH189: 1.748 | AI189: 1.875 | AK189: 6.488 | AM189: 0 | AN189: 0 | AO189: 0.04251397962 | AP189: 0.1033463767 | AQ189: 0.1453208073 | AR189: 0.173154836 | AS189: 0.1874277858 | AU189: 0.1310246367
E190: Tax WR - real | F190: 0 | G190: £m | I190: ='[1]Exec Summary'!$J192 -> 0 | J190: ='[1]Exec Summary'!$K192 -> 0 | K190: ='[1]Exec Summary'!$L192 -> 0 | L190: ='[1]Exec Summary'!$M192 -> 0 | M190: ='[1]Exec Summary'!$N192 -> 0 | N190: ='[1]Exec Summary'!$O192 -> 0 | O190: ='[1]Exec Summary'!$P192 -> 0 | P190: 0 | Q190: ='[1]Exec Summary'!$W192 -> 0 | S190: ='[2]Exec Summary'!$J192 -> 0 | T190: ='[2]Exec Summary'!$K192 -> 0 | U190: ='[2]Exec Summary'!$L192 -> 0 | V190: ='[2]Exec Summary'!$M192 -> 0 | W190: ='[2]Exec Summary'!$N192 -> 0 | X190: ='[2]Exec Summary'!$O192 -> 0 | Y190: ='[2]Exec Summary'!$P192 -> 0 | Z190: 0 | AA190: ='[2]Exec Summary'!$W192 -> 0 | AC190: 0 | AD190: 0 | AE190: 0 | AF190: 0 | AG190: 0 | AH190: 0 | AI190: 0 | AK190: 0 | AM190: 0 | AN190: 0 | AO190: 0 | AP190: 0 | AQ190: 0 | AR190: 0 | AS190: 0 | AU190: 0
E191: Water resources: operating income - CALC - real | F191: 0 | G191: £m | I191: ='[1]Exec Summary'!$J193 -> 0 | J191: ='[1]Exec Summary'!$K193 -> 0 | K191: ='[1]Exec Summary'!$L193 -> 0 | L191: ='[1]Exec Summary'!$M193 -> 0 | M191: ='[1]Exec Summary'!$N193 -> 0 | N191: ='[1]Exec Summary'!$O193 -> 0 | O191: ='[1]Exec Summary'!$P193 -> 0 | P191: 0 | Q191: ='[1]Exec Summary'!$W193 -> 0 | S191: ='[2]Exec Summary'!$J193 -> 0 | T191: ='[2]Exec Summary'!$K193 -> 0 | U191: ='[2]Exec Summary'!$L193 -> 0 | V191: ='[2]Exec Summary'!$M193 -> 0 | W191: ='[2]Exec Summary'!$N193 -> 0 | X191: ='[2]Exec Summary'!$O193 -> 0 | Y191: ='[2]Exec Summary'!$P193 -> 0 | Z191: 0 | AA191: ='[2]Exec Summary'!$W193 -> 0 | AC191: 0 | AD191: 0 | AE191: 0 | AF191: 0 | AG191: 0 | AH191: 0 | AI191: 0 | AK191: 0 | AM191: 0 | AN191: 0 | AO191: 0 | AP191: 0 | AQ191: 0 | AR191: 0 | AS191: 0 | AU191: 0
E192: Third party & principle service revenues - WR - real | F192: 0 | G192: £m | I192: ='[1]Exec Summary'!$J194 -> 0 | J192: ='[1]Exec Summary'!$K194 -> 0 | K192: ='[1]Exec Summary'!$L194 -> -6.311945334 | L192: ='[1]Exec Summary'!$M194 -> -6.446954137 | M192: ='[1]Exec Summary'!$N194 -> -6.490339037 | N192: ='[1]Exec Summary'!$O194 -> -6.426440261 | O192: ='[1]Exec Summary'!$P194 -> -6.252959868 | P192: -6.385727727 | Q192: ='[1]Exec Summary'!$W194 -> -31.92863864 | S192: ='[2]Exec Summary'!$J194 -> 0 | T192: ='[2]Exec Summary'!$K194 -> 0 | U192: ='[2]Exec Summary'!$L194 -> -6.311945334 | V192: ='[2]Exec Summary'!$M194 -> -6.446954137 | W192: ='[2]Exec Summary'!$N194 -> -6.490339037 | X192: ='[2]Exec Summary'!$O194 -> -6.426440261 | Y192: ='[2]Exec Summary'!$P194 -> -6.252959868 | Z192: -6.385727727 | AA192: ='[2]Exec Summary'!$W194 -> -31.92863864 | AC192: 0 | AD192: 0 | AE192: 0 | AF192: 0 | AG192: 0 | AH192: 0 | AI192: 0 | AK192: 0 | AM192: 0 | AN192: 0 | AO192: 0 | AP192: 0 | AQ192: 0 | AR192: 0 | AS192: 0 | AU192: 0
E193: Adjustment to Wholesale revenue requirement - WR - real | F193: 0 | G193: £m | I193: ='[1]Exec Summary'!$J195 -> na | J193: ='[1]Exec Summary'!$K195 -> na | K193: ='[1]Exec Summary'!$L195 -> na | L193: ='[1]Exec Summary'!$M195 -> na | M193: ='[1]Exec Summary'!$N195 -> na | N193: ='[1]Exec Summary'!$O195 -> na | O193: ='[1]Exec Summary'!$P195 -> na | Q193: ='[1]Exec Summary'!$W195 -> 0 | S193: ='[2]Exec Summary'!$J195 -> na | T193: ='[2]Exec Summary'!$K195 -> na | U193: ='[2]Exec Summary'!$L195 -> na | V193: ='[2]Exec Summary'!$M195 -> na | W193: ='[2]Exec Summary'!$N195 -> na | X193: ='[2]Exec Summary'!$O195 -> na | Y193: ='[2]Exec Summary'!$P195 -> na | AA193: ='[2]Exec Summary'!$W195 -> 0 | AK193: 0 | AU193: 0
E194: Allowed revenues - WR - real | G194: £m | I194: ='[1]Exec Summary'!$J196 -> 0 | J194: ='[1]Exec Summary'!$K196 -> 0 | K194: ='[1]Exec Summary'!$L196 -> 56.71634098 | L194: ='[1]Exec Summary'!$M196 -> 58.44550336 | M194: ='[1]Exec Summary'!$N196 -> 56.62429382 | N194: ='[1]Exec Summary'!$O196 -> 55.85111011 | O194: ='[1]Exec Summary'!$P196 -> 52.83518339 | P194: 56.09448633 | Q194: ='[1]Exec Summary'!$W196 -> 280.4724317 | S194: ='[2]Exec Summary'!$J196 -> 0 | T194: ='[2]Exec Summary'!$K196 -> 0 | U194: ='[2]Exec Summary'!$L196 -> 49.05758103 | V194: ='[2]Exec Summary'!$M196 -> 48.40817146 | W194: ='[2]Exec Summary'!$N196 -> 50.8204296 | X194: ='[2]Exec Summary'!$O196 -> 51.34145181 | Y194: ='[2]Exec Summary'!$P196 -> 51.04369901 | Z194: 50.13426658 | AA194: ='[2]Exec Summary'!$W196 -> 250.6713329 | AC194: 0 | AD194: 0 | AE194: 7.659 | AF194: 10.037 | AG194: 5.804 | AH194: 4.51 | AI194: 1.791 | AK194: 29.801 | AM194: 0 | AN194: 0 | AO194: 0.1561226591 | AP194: 0.2073410273 | AQ194: 0.1142060397 | AR194: 0.08784325026 | AS194: 0.0350875825 | AU194: 0.118884755
AC195: 0 | AD195: 0 | AE195: 0 | AF195: 0 | AG195: 0 | AH195: 0 | AI195: 0 | AK195: 0 | AM195: 0 | AN195: 0 | AO195: 0 | AP195: 0 | AQ195: 0 | AR195: 0 | AS195: 0 | AU195: 0
E196: Revenue solving adjustment - WR - real | G196: £m | I196: ='[1]Exec Summary'!$J198 -> 0 | J196: ='[1]Exec Summary'!$K198 -> 0 | K196: ='[1]Exec Summary'!$L198 -> 0 | L196: ='[1]Exec Summary'!$M198 -> 0 | M196: ='[1]Exec Summary'!$N198 -> 0 | N196: ='[1]Exec Summary'!$O198 -> 0 | O196: ='[1]Exec Summary'!$P198 -> 0 | P196: 0 | Q196: ='[1]Exec Summary'!$W198 -> 0 | S196: ='[2]Exec Summary'!$J198 -> 0 | T196: ='[2]Exec Summary'!$K198 -> 0 | U196: ='[2]Exec Summary'!$L198 -> 0.2870431414 | V196: ='[2]Exec Summary'!$M198 -> -0.006158877629 | W196: ='[2]Exec Summary'!$N198 -> -0.5048177759 | X196: ='[2]Exec Summary'!$O198 -> 0.1293501632 | Y196: ='[2]Exec Summary'!$P198 -> 0.08625100023 | Z196: =AVERAGE(U196:Y196) -> -0.001666469744 | AA196: ='[2]Exec Summary'!$W198 -> -0.008332348719 | AC196: 0 | AD196: 0 | AE196: -0.287 | AF196: 0.006 | AG196: 0.505 | AH196: -0.129 | AI196: -0.086 | AK196: 0.008 | AM196: 0 | AN196: 0 | AO196: -0.9998497041 | AP196: -0.9742034769 | AQ196: -1.00036097 | AR196: -0.9972929051 | AS196: -0.9970898862 | AU196: -0.960113441
E197: Allowed Revenues (post revenue solving adjustment) - WR - real | F197: 0 | G197: £m | I197: ='[1]Exec Summary'!$J199 -> 0 | J197: ='[1]Exec Summary'!$K199 -> 0 | K197: ='[1]Exec Summary'!$L199 -> 56.71634098 | L197: ='[1]Exec Summary'!$M199 -> 58.44550336 | M197: ='[1]Exec Summary'!$N199 -> 56.62429382 | N197: ='[1]Exec Summary'!$O199 -> 55.85111011 | O197: ='[1]Exec Summary'!$P199 -> 52.83518339 | P197: 56.09448633 | Q197: ='[1]Exec Summary'!$W199 -> 280.4724317 | S197: ='[2]Exec Summary'!$J199 -> 0 | T197: ='[2]Exec Summary'!$K199 -> 0 | U197: ='[2]Exec Summary'!$L199 -> 49.34462417 | V197: ='[2]Exec Summary'!$M199 -> 48.40201259 | W197: ='[2]Exec Summary'!$N199 -> 50.31561183 | X197: ='[2]Exec Summary'!$O199 -> 51.47080197 | Y197: ='[2]Exec Summary'!$P199 -> 51.12995001 | Z197: 50.13260011 | AA197: ='[2]Exec Summary'!$W199 -> 250.6630006 | AC197: 0 | AD197: 0 | AE197: 7.372 | AF197: 10.043 | AG197: 6.309 | AH197: 4.38 | AI197: 1.705 | AK197: 29.809 | AM197: 0 | AN197: 0 | AO197: 0.1493982399 | AP197: 0.207491372 | AQ197: 0.125388518 | AR197: 0.08509678949 | AS197: 0.0333464046 | AU197: 0.1189206222
AC198: 0 | AD198: 0 | AE198: 0 | AF198: 0 | AG198: 0 | AH198: 0 | AI198: 0 | AK198: 0 | AM198: 0 | AN198: 0 | AO198: 0 | AP198: 0 | AQ198: 0 | AR198: 0 | AS198: 0 | AU198: 0
E199: Allowed Revenues (post revenue solving adjustment) - WR - real | F199: 0 | G199: £m | I199: ='[1]Exec Summary'!$J201 -> 0 | J199: ='[1]Exec Summary'!$K201 -> 0 | K199: ='[1]Exec Summary'!$L201 -> 56.71634098 | L199: ='[1]Exec Summary'!$M201 -> 58.44550336 | M199: ='[1]Exec Summary'!$N201 -> 56.62429382 | N199: ='[1]Exec Summary'!$O201 -> 55.85111011 | O199: ='[1]Exec Summary'!$P201 -> 52.83518339 | P199: 56.09448633 | Q199: ='[1]Exec Summary'!$W201 -> 280.4724317 | S199: ='[2]Exec Summary'!$J201 -> 0 | T199: ='[2]Exec Summary'!$K201 -> 0 | U199: ='[2]Exec Summary'!$L201 -> 49.34462417 | V199: ='[2]Exec Summary'!$M201 -> 48.40201259 | W199: ='[2]Exec Summary'!$N201 -> 50.31561183 | X199: ='[2]Exec Summary'!$O201 -> 51.47080197 | Y199: ='[2]Exec Summary'!$P201 -> 51.12995001 | Z199: =AVERAGE(U199:Y199) -> 50.13260011 | AA199: ='[2]Exec Summary'!$W201 -> 250.6630006 | AC199: 0 | AD199: 0 | AE199: 7.372 | AF199: 10.043 | AG199: 6.309 | AH199: 4.38 | AI199: 1.705 | AK199: 29.809 | AM199: 0 | AN199: 0 | AO199: 0.1493982399 | AP199: 0.207491372 | AQ199: 0.125388518 | AR199: 0.08509678949 | AS199: 0.0333464046 | AU199: 0.1189206222
E200: Post financeability adjustments - WR - real | F200: 0 | G200: £m | I200: ='[1]Exec Summary'!$J202 -> 0 | J200: ='[1]Exec Summary'!$K202 -> 0 | K200: ='[1]Exec Summary'!$L202 -> 0 | L200: ='[1]Exec Summary'!$M202 -> 0 | M200: ='[1]Exec Summary'!$N202 -> 0 | N200: ='[1]Exec Summary'!$O202 -> 0 | O200: ='[1]Exec Summary'!$P202 -> 0 | P200: 0 | Q200: ='[1]Exec Summary'!$W202 -> 0 | S200: ='[2]Exec Summary'!$J202 -> 0 | T200: ='[2]Exec Summary'!$K202 -> 0 | U200: ='[2]Exec Summary'!$L202 -> 0 | V200: ='[2]Exec Summary'!$M202 -> 0 | W200: ='[2]Exec Summary'!$N202 -> 0 | X200: ='[2]Exec Summary'!$O202 -> 0 | Y200: ='[2]Exec Summary'!$P202 -> 0 | Z200: 0 | AA200: ='[2]Exec Summary'!$W202 -> 0 | AC200: 0 | AD200: 0 | AE200: 0 | AF200: 0 | AG200: 0 | AH200: 0 | AI200: 0 | AK200: 0 | AM200: 0 | AN200: 0 | AO200: 0 | AP200: 0 | AQ200: 0 | AR200: 0 | AS200: 0 | AU200: 0
E201: Allowed Revenues (pre profiling) - WR - real | G201: £m | I201: ='[1]Exec Summary'!$J203 -> 0 | J201: ='[1]Exec Summary'!$K203 -> 0 | K201: ='[1]Exec Summary'!$L203 -> 56.71634098 | L201: ='[1]Exec Summary'!$M203 -> 58.44550336 | M201: ='[1]Exec Summary'!$N203 -> 56.62429382 | N201: ='[1]Exec Summary'!$O203 -> 55.85111011 | O201: ='[1]Exec Summary'!$P203 -> 52.83518339 | P201: 56.09448633 | Q201: ='[1]Exec Summary'!$W203 -> 280.4724317 | S201: ='[2]Exec Summary'!$J203 -> 0 | T201: ='[2]Exec Summary'!$K203 -> 0 | U201: ='[2]Exec Summary'!$L203 -> 49.34462417 | V201: ='[2]Exec Summary'!$M203 -> 48.40201259 | W201: ='[2]Exec Summary'!$N203 -> 50.31561183 | X201: ='[2]Exec Summary'!$O203 -> 51.47080197 | Y201: ='[2]Exec Summary'!$P203 -> 51.12995001 | Z201: 50.13260011 | AA201: ='[2]Exec Summary'!$W203 -> 250.6630006 | AC201: 0 | AD201: 0 | AE201: 7.372 | AF201: 10.043 | AG201: 6.309 | AH201: 4.38 | AI201: 1.705 | AK201: 29.809 | AM201: 0 | AN201: 0 | AO201: 0.1493982399 | AP201: 0.207491372 | AQ201: 0.125388518 | AR201: 0.08509678949 | AS201: 0.0333464046 | AU201: 0.1189206222
AC202: 0 | AD202: 0 | AE202: 0 | AF202: 0 | AG202: 0 | AH202: 0 | AI202: 0 | AK202: 0 | AM202: 0 | AN202: 0 | AO202: 0 | AP202: 0 | AQ202: 0 | AR202: 0 | AS202: 0 | AU202: 0
E203: Profiling adjustment - WR - real | G203: £m | I203: ='[1]Exec Summary'!$J205 -> 0 | J203: ='[1]Exec Summary'!$K205 -> 0 | K203: ='[1]Exec Summary'!$L205 -> 0 | L203: ='[1]Exec Summary'!$M205 -> 0 | M203: ='[1]Exec Summary'!$N205 -> 0 | N203: ='[1]Exec Summary'!$O205 -> 0 | O203: ='[1]Exec Summary'!$P205 -> 0 | P203: 0 | Q203: ='[1]Exec Summary'!$W205 -> 0 | S203: ='[2]Exec Summary'!$J205 -> 0 | T203: ='[2]Exec Summary'!$K205 -> 0 | U203: ='[2]Exec Summary'!$L205 -> 0 | V203: ='[2]Exec Summary'!$M205 -> 0 | W203: ='[2]Exec Summary'!$N205 -> 0 | X203: ='[2]Exec Summary'!$O205 -> 0 | Y203: ='[2]Exec Summary'!$P205 -> 0 | Z203: =AVERAGE(U203:Y203) -> 0 | AA203: ='[2]Exec Summary'!$W205 -> 0 | AC203: 0 | AD203: 0 | AE203: 0 | AF203: 0 | AG203: 0 | AH203: 0 | AI203: 0 | AK203: 0 | AM203: 0 | AN203: 0 | AO203: 0 | AP203: 0 | AQ203: 0 | AR203: 0 | AS203: 0 | AU203: 0
E204: Re-profiled allowed revenue adjusted - WR - real | F204: 0 | G204: £m | I204: ='[1]Exec Summary'!$J206 -> 0 | J204: ='[1]Exec Summary'!$K206 -> 0 | K204: ='[1]Exec Summary'!$L206 -> 56.71634098 | L204: ='[1]Exec Summary'!$M206 -> 58.44550336 | M204: ='[1]Exec Summary'!$N206 -> 56.62429382 | N204: ='[1]Exec Summary'!$O206 -> 55.85111011 | O204: ='[1]Exec Summary'!$P206 -> 52.83518339 | P204: 56.09448633 | Q204: ='[1]Exec Summary'!$W206 -> 280.4724317 | S204: ='[2]Exec Summary'!$J206 -> 0 | T204: ='[2]Exec Summary'!$K206 -> 0 | U204: ='[2]Exec Summary'!$L206 -> 49.34462417 | V204: ='[2]Exec Summary'!$M206 -> 48.40201259 | W204: ='[2]Exec Summary'!$N206 -> 50.31561183 | X204: ='[2]Exec Summary'!$O206 -> 51.47080197 | Y204: ='[2]Exec Summary'!$P206 -> 51.12995001 | Z204: 50.13260011 | AA204: ='[2]Exec Summary'!$W206 -> 250.6630006 | AC204: 0 | AD204: 0 | AE204: 7.372 | AF204: 10.043 | AG204: 6.309 | AH204: 4.38 | AI204: 1.705 | AK204: 29.809 | AM204: 0 | AN204: 0 | AO204: 0.1493982399 | AP204: 0.207491372 | AQ204: 0.125388518 | AR204: 0.08509678949 | AS204: 0.0333464046 | AU204: 0.1189206222
AC205: 0 | AD205: 0 | AE205: 0 | AF205: 0 | AG205: 0 | AH205: 0 | AI205: 0 | AK205: 0 | AM205: 0 | AN205: 0 | AO205: 0 | AP205: 0 | AQ205: 0 | AR205: 0 | AS205: 0 | AU205: 0
E206: Contributions from connection charges and revenue from infrastructure charges - forecast - WR - real | F206: 0 | G206: £m | I206: ='[1]Exec Summary'!$J208 -> 0 | J206: ='[1]Exec Summary'!$K208 -> 0 | K206: ='[1]Exec Summary'!$L208 -> 0 | L206: ='[1]Exec Summary'!$M208 -> 0 | M206: ='[1]Exec Summary'!$N208 -> 0 | N206: ='[1]Exec Summary'!$O208 -> 0 | O206: ='[1]Exec Summary'!$P208 -> 0 | P206: 0 | Q206: ='[1]Exec Summary'!$W208 -> 0 | S206: ='[2]Exec Summary'!$J208 -> 0 | T206: ='[2]Exec Summary'!$K208 -> 0 | U206: ='[2]Exec Summary'!$L208 -> 0 | V206: ='[2]Exec Summary'!$M208 -> 0 | W206: ='[2]Exec Summary'!$N208 -> 0 | X206: ='[2]Exec Summary'!$O208 -> 0 | Y206: ='[2]Exec Summary'!$P208 -> 0 | Z206: =AVERAGE(U206:Y206) -> 0 | AA206: ='[2]Exec Summary'!$W208 -> 0 | AC206: 0 | AD206: 0 | AE206: 0 | AF206: 0 | AG206: 0 | AH206: 0 | AI206: 0 | AK206: 0 | AM206: 0 | AN206: 0 | AO206: 0 | AP206: 0 | AQ206: 0 | AR206: 0 | AS206: 0 | AU206: 0
E207: Final Allowed Revenues - WR - real | G207: £m | I207: ='[1]Exec Summary'!$J209 -> 0 | J207: ='[1]Exec Summary'!$K209 -> 0 | K207: ='[1]Exec Summary'!$L209 -> 56.71634098 | L207: ='[1]Exec Summary'!$M209 -> 58.44550336 | M207: ='[1]Exec Summary'!$N209 -> 56.62429382 | N207: ='[1]Exec Summary'!$O209 -> 55.85111011 | O207: ='[1]Exec Summary'!$P209 -> 52.83518339 | P207: 56.09448633 | Q207: ='[1]Exec Summary'!$W209 -> 280.4724317 | S207: ='[2]Exec Summary'!$J209 -> 0 | T207: ='[2]Exec Summary'!$K209 -> 0 | U207: ='[2]Exec Summary'!$L209 -> 49.34462417 | V207: ='[2]Exec Summary'!$M209 -> 48.40201259 | W207: ='[2]Exec Summary'!$N209 -> 50.31561183 | X207: ='[2]Exec Summary'!$O209 -> 51.47080197 | Y207: ='[2]Exec Summary'!$P209 -> 51.12995001 | Z207: 50.13260011 | AA207: ='[2]Exec Summary'!$W209 -> 250.6630006 | AC207: 0 | AD207: 0 | AE207: 7.372 | AF207: 10.043 | AG207: 6.309 | AH207: 4.38 | AI207: 1.705 | AK207: 29.809 | AM207: 0 | AN207: 0 | AO207: 0.1493982399 | AP207: 0.207491372 | AQ207: 0.125388518 | AR207: 0.08509678949 | AS207: 0.0333464046 | AU207: 0.1189206222
AC208: 0 | AD208: 0 | AE208: 0 | AF208: 0 | AG208: 0 | AH208: 0 | AI208: 0 | AK208: 0 | AM208: 0 | AN208: 0 | AO208: 0 | AP208: 0 | AQ208: 0 | AR208: 0 | AS208: 0 | AU208: 0
B209: Water Network | AC209: 0 | AD209: 0 | AE209: 0 | AF209: 0 | AG209: 0 | AH209: 0 | AI209: 0 | AK209: 0 | AM209: 0 | AN209: 0 | AO209: 0 | AP209: 0 | AQ209: 0 | AR209: 0 | AS209: 0 | AU209: 0
E210: PAYG - WN - real | F210: 0 | G210: £m | I210: ='[1]Exec Summary'!$J212 -> 0 | J210: ='[1]Exec Summary'!$K212 -> 0 | K210: ='[1]Exec Summary'!$L212 -> 225.7450153 | L210: ='[1]Exec Summary'!$M212 -> 226.132279 | M210: ='[1]Exec Summary'!$N212 -> 227.8886255 | N210: ='[1]Exec Summary'!$O212 -> 229.1052293 | O210: ='[1]Exec Summary'!$P212 -> 221.6040632 | P210: =AVERAGE(K210:O210) -> 226.0950425 | Q210: ='[1]Exec Summary'!$W212 -> 1130.475212 | S210: ='[2]Exec Summary'!$J212 -> 0 | T210: ='[2]Exec Summary'!$K212 -> 0 | U210: ='[2]Exec Summary'!$L212 -> 202.3887034 | V210: ='[2]Exec Summary'!$M212 -> 207.249222 | W210: ='[2]Exec Summary'!$N212 -> 210.5051652 | X210: ='[2]Exec Summary'!$O212 -> 210.7802418 | Y210: ='[2]Exec Summary'!$P212 -> 205.1191413 | Z210: =AVERAGE(U210:Y210) -> 207.2084947 | AA210: ='[2]Exec Summary'!$W212 -> 1036.042474 | AC210: 0 | AD210: 0 | AE210: 23.356 | AF210: 18.883 | AG210: 17.383 | AH210: 18.325 | AI210: 16.485 | AK210: 94.433 | AM210: 0 | AN210: 0 | AO210: 0.1154016979 | AP210: 0.09111252539 | AQ210: 0.0825775462 | AR210: 0.08693888877 | AS210: 0.08036792614 | AU210: 0.09114780755
E211: Wholesale Water network service defined benefit pension deficit recovery per IN13/17 - real | F211: 0 | G211: £m | I211: ='[1]Exec Summary'!$J213 -> 0 | J211: ='[1]Exec Summary'!$K213 -> 0 | K211: ='[1]Exec Summary'!$L213 -> 3.922 | L211: ='[1]Exec Summary'!$M213 -> 3.96 | M211: ='[1]Exec Summary'!$N213 -> 3.999 | N211: ='[1]Exec Summary'!$O213 -> 4.038 | O211: ='[1]Exec Summary'!$P213 -> 4.077 | P211: 3.9992 | Q211: ='[1]Exec Summary'!$W213 -> 19.996 | S211: ='[2]Exec Summary'!$J213 -> 0 | T211: ='[2]Exec Summary'!$K213 -> 0 | U211: ='[2]Exec Summary'!$L213 -> 8.157212479 | V211: ='[2]Exec Summary'!$M213 -> 8.157044806 | W211: ='[2]Exec Summary'!$N213 -> 8.157481653 | X211: ='[2]Exec Summary'!$O213 -> 0 | Y211: ='[2]Exec Summary'!$P213 -> 0 | Z211: 4.894347788 | AA211: ='[2]Exec Summary'!$W213 -> 24.47173894 | AC211: 0 | AD211: 0 | AE211: -4.235 | AF211: -4.197 | AG211: -4.158 | AH211: 4.038 | AI211: 4.077 | AK211: -4.476 | AM211: 0 | AN211: 0 | AO211: -0.5191724515 | AP211: -0.5145245735 | AQ211: -0.5097161326 | AR211: 0 | AS211: 0 | AU211: -0.1829048606
E212: Return on Capital - WN - real | F212: 0 | G212: £m | I212: ='[1]Exec Summary'!$J214 -> 0 | J212: ='[1]Exec Summary'!$K214 -> 0 | K212: ='[1]Exec Summary'!$L214 -> 78.32271192 | L212: ='[1]Exec Summary'!$M214 -> 83.10225962 | M212: ='[1]Exec Summary'!$N214 -> 89.57929632 | N212: ='[1]Exec Summary'!$O214 -> 96.42430219 | O212: ='[1]Exec Summary'!$P214 -> 101.0404136 | P212: 89.69379674 | Q212: ='[1]Exec Summary'!$W214 -> 448.4689837 | S212: ='[2]Exec Summary'!$J214 -> 0 | T212: ='[2]Exec Summary'!$K214 -> 0 | U212: ='[2]Exec Summary'!$L214 -> 66.58769675 | V212: ='[2]Exec Summary'!$M214 -> 69.39292477 | W212: ='[2]Exec Summary'!$N214 -> 73.31704026 | X212: ='[2]Exec Summary'!$O214 -> 76.91663184 | Y212: ='[2]Exec Summary'!$P214 -> 79.03427588 | Z212: 73.0497139 | AA212: ='[2]Exec Summary'!$W214 -> 365.2485695 | AC212: 0 | AD212: 0 | AE212: 11.735 | AF212: 13.709 | AG212: 16.262 | AH212: 19.508 | AI212: 22.006 | AK212: 83.22 | AM212: 0 | AN212: 0 | AO212: 0.1762337575 | AP212: 0.1975561636 | AQ212: 0.2218038254 | AR212: 0.2536252503 | AS212: 0.2784361564 | AU212: 0.2278448349
E213: Depreciation - WN - real | F213: 0 | G213: £m | I213: ='[1]Exec Summary'!$J215 -> 0 | J213: ='[1]Exec Summary'!$K215 -> 0 | K213: ='[1]Exec Summary'!$L215 -> 110.8632788 | L213: ='[1]Exec Summary'!$M215 -> 116.1504221 | M213: ='[1]Exec Summary'!$N215 -> 123.5014655 | N213: ='[1]Exec Summary'!$O215 -> 131.3107232 | O213: ='[1]Exec Summary'!$P215 -> 136.4423338 | P213: 123.6536447 | Q213: ='[1]Exec Summary'!$W215 -> 618.2682234 | S213: ='[2]Exec Summary'!$J215 -> 0 | T213: ='[2]Exec Summary'!$K215 -> 0 | U213: ='[2]Exec Summary'!$L215 -> 109.1858467 | V213: ='[2]Exec Summary'!$M215 -> 112.4687208 | W213: ='[2]Exec Summary'!$N215 -> 117.3164303 | X213: ='[2]Exec Summary'!$O215 -> 121.7396661 | Y213: ='[2]Exec Summary'!$P215 -> 124.1528406 | Z213: 116.9727009 | AA213: ='[2]Exec Summary'!$W215 -> 584.8635045 | AC213: 0 | AD213: 0 | AE213: 1.677 | AF213: 3.682 | AG213: 6.185 | AH213: 9.571 | AI213: 12.289 | AK213: 33.405 | AM213: 0 | AN213: 0 | AO213: 0.01535913354 | AP213: 0.03273799127 | AQ213: 0.05272066312 | AR213: 0.07861858265 | AS213: 0.09898283389 | AU213: 0.05711589071
E214: Tax WN - real | F214: 0 | G214: £m | I214: ='[1]Exec Summary'!$J216 -> 0 | J214: ='[1]Exec Summary'!$K216 -> 0 | K214: ='[1]Exec Summary'!$L216 -> 0 | L214: ='[1]Exec Summary'!$M216 -> 0 | M214: ='[1]Exec Summary'!$N216 -> 0 | N214: ='[1]Exec Summary'!$O216 -> 0 | O214: ='[1]Exec Summary'!$P216 -> 0 | P214: 0 | Q214: ='[1]Exec Summary'!$W216 -> 0 | S214: ='[2]Exec Summary'!$J216 -> 0 | T214: ='[2]Exec Summary'!$K216 -> 0 | U214: ='[2]Exec Summary'!$L216 -> 0 | V214: ='[2]Exec Summary'!$M216 -> 0 | W214: ='[2]Exec Summary'!$N216 -> 0 | X214: ='[2]Exec Summary'!$O216 -> 0 | Y214: ='[2]Exec Summary'!$P216 -> 0 | Z214: 0 | AA214: ='[2]Exec Summary'!$W216 -> 0 | AC214: 0 | AD214: 0 | AE214: 0 | AF214: 0 | AG214: 0 | AH214: 0 | AI214: 0 | AK214: 0 | AM214: 0 | AN214: 0 | AO214: 0 | AP214: 0 | AQ214: 0 | AR214: 0 | AS214: 0 | AU214: 0
E215: Water network: operating income - CALC - real | F215: 0 | G215: £m | I215: ='[1]Exec Summary'!$J217 -> 0 | J215: ='[1]Exec Summary'!$K217 -> 0 | K215: ='[1]Exec Summary'!$L217 -> 0 | L215: ='[1]Exec Summary'!$M217 -> 0 | M215: ='[1]Exec Summary'!$N217 -> 0 | N215: ='[1]Exec Summary'!$O217 -> 0 | O215: ='[1]Exec Summary'!$P217 -> 0 | P215: 0 | Q215: ='[1]Exec Summary'!$W217 -> 0 | S215: ='[2]Exec Summary'!$J217 -> 0 | T215: ='[2]Exec Summary'!$K217 -> 0 | U215: ='[2]Exec Summary'!$L217 -> 0 | V215: ='[2]Exec Summary'!$M217 -> 0 | W215: ='[2]Exec Summary'!$N217 -> 0 | X215: ='[2]Exec Summary'!$O217 -> 0 | Y215: ='[2]Exec Summary'!$P217 -> 0 | Z215: 0 | AA215: ='[2]Exec Summary'!$W217 -> 0 | AC215: 0 | AD215: 0 | AE215: 0 | AF215: 0 | AG215: 0 | AH215: 0 | AI215: 0 | AK215: 0 | AM215: 0 | AN215: 0 | AO215: 0 | AP215: 0 | AQ215: 0 | AR215: 0 | AS215: 0 | AU215: 0
E216: Third party & principle service revenues - WN - real | F216: 0 | G216: £m | I216: ='[1]Exec Summary'!$J218 -> 0 | J216: ='[1]Exec Summary'!$K218 -> 0 | K216: ='[1]Exec Summary'!$L218 -> -17.21945694 | L216: ='[1]Exec Summary'!$M218 -> -17.63781425 | M216: ='[1]Exec Summary'!$N218 -> -17.71870772 | N216: ='[1]Exec Summary'!$O218 -> -17.91031299 | O216: ='[1]Exec Summary'!$P218 -> -17.91318734 | P216: -17.67989585 | Q216: ='[1]Exec Summary'!$W218 -> -88.39947925 | S216: ='[2]Exec Summary'!$J218 -> 0 | T216: ='[2]Exec Summary'!$K218 -> 0 | U216: ='[2]Exec Summary'!$L218 -> -17.21945694 | V216: ='[2]Exec Summary'!$M218 -> -17.63781425 | W216: ='[2]Exec Summary'!$N218 -> -17.71870772 | X216: ='[2]Exec Summary'!$O218 -> -17.91031299 | Y216: ='[2]Exec Summary'!$P218 -> -17.91318734 | Z216: -17.67989585 | AA216: ='[2]Exec Summary'!$W218 -> -88.39947925 | AC216: 0 | AD216: 0 | AE216: 0 | AF216: 0 | AG216: 0 | AH216: 0 | AI216: 0 | AK216: 0 | AM216: 0 | AN216: 0 | AO216: 0 | AP216: 0 | AQ216: 0 | AR216: 0 | AS216: 0 | AU216: 0
... 194 more rows

Sheet Waterfall
A1: =RIGHT(CELL("FILENAME", $A$1), LEN(CELL("FILENAME", $A$1)) - SEARCH("]", CELL("FILENAME", $A$1))) -> Waterfall | H1: Model 1 | I1: Model 2 | J1: Delta
A3: PAYG Revenue
E4: ='Exec Summary'!E186 -> PAYG - WR - real | G4: ='Exec Summary'!G186 -> £m | H4: ='Exec Summary'!Q186 -> 221.9907963 | I4: ='Exec Summary'!AA186 -> 206.0333492
E5: ='Exec Summary'!E210 -> PAYG - WN - real | G5: ='Exec Summary'!G210 -> £m | H5: ='Exec Summary'!Q210 -> 1130.475212 | I5: ='Exec Summary'!AA210 -> 1036.042474
E6: ='Exec Summary'!E234 -> PAYG - WWN - real | G6: ='Exec Summary'!G234 -> £m | H6: ='Exec Summary'!Q234 -> 1081.515307 | I6: ='Exec Summary'!AA234 -> 964.0413549
E7: ='Exec Summary'!E258 -> PAYG - BR - real | G7: ='Exec Summary'!G258 -> £m | H7: ='Exec Summary'!Q258 -> 391.4287115 | I7: ='Exec Summary'!AA258 -> 334.1355966
E8: ='Exec Summary'!E282 -> PAYG - DMMY - real | G8: ='Exec Summary'!G282 -> £m | H8: ='Exec Summary'!Q282 -> 0 | I8: ='Exec Summary'!AA282 -> 0
E9: Total PAYG Revenue | G9: £m | H9: =SUM(H4:H8) -> 2825.410027 | I9: =SUM(I4:I8) -> 2540.252774 | J9: =I9-H9 -> -285.1572526
A11: Pension Deficit Recovery Revenue
E12: ='Exec Summary'!E187 -> Wholesale Water resources service defined benefit pension deficit recovery per IN13/17 - real | G12: ='Exec Summary'!G187 -> £m | H12: ='Exec Summary'!Q187 -> 2.424 | I12: ='Exec Summary'!AA187 -> 2.968088239
E13: ='Exec Summary'!E211 -> Wholesale Water network service defined benefit pension deficit recovery per IN13/17 - real | G13: ='Exec Summary'!G211 -> £m | H13: ='Exec Summary'!Q211 -> 19.996 | I13: ='Exec Summary'!AA211 -> 24.47173894
E14: ='Exec Summary'!E235 -> Wholesale Wastewater network service defined benefit pension deficit recovery per IN13/17 - real | G14: ='Exec Summary'!G235 -> £m | H14: ='Exec Summary'!Q235 -> 24.95489406 | I14: ='Exec Summary'!AA235 -> 30.53780123
E15: ='Exec Summary'!E259 -> Wholesale Bio resources service defined benefit pension deficit recovery per IN13/17 - real | G15: ='Exec Summary'!G259 -> £m | H15: ='Exec Summary'!Q259 -> 9.849791847 | I15: ='Exec Summary'!AA259 -> 12.05554491
E16: ='Exec Summary'!E283 -> Wholesale Dummy control service defined benefit pension deficit recovery per IN13/17 - real | G16: ='Exec Summary'!G283 -> £m | H16: ='Exec Summary'!Q283 -> 0 | I16: ='Exec Summary'!AA283 -> 0
E17: Total Pension Deficit Recovery Revenue | G17: £m | H17: =SUM(H12:H16) -> 57.2246859 | I17: =SUM(I12:I16) -> 70.03317332 | J17: =I17-H17 -> 12.80848742
A19: WACC Revenue
E20: ='Exec Summary'!E188 -> Return on Capital - WR - real | G20: ='Exec Summary'!G188 -> £m | H20: ='Exec Summary'!Q188 -> 31.98068019 | I20: ='Exec Summary'!AA188 -> 24.0811291
E21: ='Exec Summary'!E212 -> Return on Capital - WN - real | G21: ='Exec Summary'!G212 -> £m | H21: ='Exec Summary'!Q212 -> 448.4689837 | I21: ='Exec Summary'!AA212 -> 365.2485695
E22: ='Exec Summary'!E236 -> Return on Capital - WWN - real | G22: ='Exec Summary'!G236 -> £m | H22: ='Exec Summary'!Q236 -> 664.708195 | I22: ='Exec Summary'!AA236 -> 558.6662555
E23: ='Exec Summary'!E260 -> Return on Capital - BR - real | G23: ='Exec Summary'!G260 -> £m | H23: ='Exec Summary'!Q260 -> 46.71471519 | I23: ='Exec Summary'!AA260 -> 37.61795287
E24: ='Exec Summary'!E284 -> Return on Capital - DMMY - real | G24: ='Exec Summary'!G284 -> £m | H24: ='Exec Summary'!Q284 -> 0 | I24: ='Exec Summary'!AA284 -> 0
E25: Total WACC Revenue | G25: £m | H25: =SUM(H20:H24) -> 1191.872574 | I25: =SUM(I20:I24) -> 985.6139069 | J25: =I25-H25 -> -206.2586671
A27: RCV Run-off Revenue
E28: ='Exec Summary'!E189 -> Depreciation - WR - real | G28: ='Exec Summary'!G189 -> £m | H28: ='Exec Summary'!Q189 -> 56.00559378 | I28: ='Exec Summary'!AA189 -> 49.51740498
E29: ='Exec Summary'!E213 -> Depreciation - WN - real | G29: ='Exec Summary'!G213 -> £m | H29: ='Exec Summary'!Q213 -> 618.2682234 | I29: ='Exec Summary'!AA213 -> 584.8635045
E30: ='Exec Summary'!E237 -> Depreciation - WWN - real | G30: ='Exec Summary'!G237 -> £m | H30: ='Exec Summary'!Q237 -> 1199.902734 | I30: ='Exec Summary'!AA237 -> 1166.672801
E31: ='Exec Summary'!E261 -> Depreciation - BR - real | G31: ='Exec Summary'!G261 -> £m | H31: ='Exec Summary'!Q261 -> 100.7532312 | I31: ='Exec Summary'!AA261 -> 94.58787898
E32: ='Exec Summary'!E285 -> Depreciation - DMMY - real | G32: ='Exec Summary'!G285 -> £m | H32: ='Exec Summary'!Q285 -> 0 | I32: ='Exec Summary'!AA285 -> 0
E33: Total RCV Run-off Revenue | G33: £m | H33: =SUM(H28:H32) -> 1974.929782 | I33: =SUM(I28:I32) -> 1895.64159 | J33: =I33-H33 -> -79.28819257
A35: Tax Revenue
E36: ='Exec Summary'!E190 -> Tax WR - real | G36: ='Exec Summary'!G190 -> £m | H36: ='Exec Summary'!Q190 -> 0 | I36: ='Exec Summary'!AA190 -> 0
E37: ='Exec Summary'!E214 -> Tax WN - real | G37: ='Exec Summary'!G214 -> £m | H37: ='Exec Summary'!Q214 -> 0 | I37: ='Exec Summary'!AA214 -> 0
E38: ='Exec Summary'!E238 -> Tax WWN - real | G38: ='Exec Summary'!G238 -> £m | H38: ='Exec Summary'!Q238 -> 0 | I38: ='Exec Summary'!AA238 -> 0
E39: ='Exec Summary'!E262 -> Tax BR - real | G39: ='Exec Summary'!G262 -> £m | H39: ='Exec Summary'!Q262 -> 0 | I39: ='Exec Summary'!AA262 -> 0
E40: ='Exec Summary'!E286 -> Tax DMMY - real | G40: ='Exec Summary'!G286 -> £m | H40: ='Exec Summary'!Q286 -> 0 | I40: ='Exec Summary'!AA286 -> 0
E41: Total Tax Revenue | G41: £m | H41: =SUM(H36:H40) -> 0 | I41: =SUM(I36:I40) -> 0 | J41: =I41-H41 -> 0
A43: Operating Income Revenue
E44: ='Exec Summary'!E191 -> Water resources: operating income - CALC - real | G44: ='Exec Summary'!G191 -> £m | H44: ='Exec Summary'!Q191 -> 0 | I44: ='Exec Summary'!AA191 -> 0
E45: ='Exec Summary'!E215 -> Water network: operating income - CALC - real | G45: ='Exec Summary'!G215 -> £m | H45: ='Exec Summary'!Q215 -> 0 | I45: ='Exec Summary'!AA215 -> 0
E46: ='Exec Summary'!E239 -> Wastewater network: operating income - CALC - real | G46: ='Exec Summary'!G239 -> £m | H46: ='Exec Summary'!Q239 -> 0 | I46: ='Exec Summary'!AA239 -> 0
E47: ='Exec Summary'!E263 -> Bio resources: operating income - CALC - real | G47: ='Exec Summary'!G263 -> £m | H47: ='Exec Summary'!Q263 -> 0 | I47: ='Exec Summary'!AA263 -> 0
E48: ='Exec Summary'!E287 -> Dummy control: operating income - CALC - real | G48: ='Exec Summary'!G287 -> £m | H48: ='Exec Summary'!Q287 -> 0 | I48: ='Exec Summary'!AA287 -> 0
E49: Total Operating Income Revenue | G49: £m | H49: =SUM(H44:H48) -> 0 | I49: =SUM(I44:I48) -> 0 | J49: =I49-H49 -> 0
A51: Third party & principle service Revenue
E52: ='Exec Summary'!E192 -> Third party & principle service revenues - WR - real | G52: ='Exec Summary'!G192 -> £m | H52: ='Exec Summary'!Q192 -> -31.92863864 | I52: ='Exec Summary'!AA192 -> -31.92863864
E53: ='Exec Summary'!E216 -> Third party & principle service revenues - WN - real | G53: ='Exec Summary'!G216 -> £m | H53: ='Exec Summary'!Q216 -> -88.39947925 | I53: ='Exec Summary'!AA216 -> -88.39947925
E54: ='Exec Summary'!E240 -> Third party & principle service revenues - WWN - real | G54: ='Exec Summary'!G240 -> £m | H54: ='Exec Summary'!Q240 -> -6.147239069 | I54: ='Exec Summary'!AA240 -> -6.147239069
E55: ='Exec Summary'!E264 -> Third party & principle service revenues - BR - real | G55: ='Exec Summary'!G264 -> £m | H55: ='Exec Summary'!Q264 -> -2.081996632 | I55: ='Exec Summary'!AA264 -> -2.081996632
E56: ='Exec Summary'!E288 -> Third party & principle service revenues - DMMY - real | G56: ='Exec Summary'!G288 -> £m | H56: ='Exec Summary'!Q288 -> 0 | I56: ='Exec Summary'!AA288 -> 0
E57: Total Third party & principle service Revenue | G57: £m | H57: =SUM(H52:H56) -> -128.5573536 | I57: =SUM(I52:I56) -> -128.5573536 | J57: =I57-H57 -> 0
A59: Third party & principle service Revenue
E60: ='Exec Summary'!E193 -> Adjustment to Wholesale revenue requirement - WR - real | G60: ='Exec Summary'!G193 -> £m | H60: ='Exec Summary'!Q193 -> 0 | I60: ='Exec Summary'!AA193 -> 0
E61: ='Exec Summary'!E217 -> Adjustment to Wholesale revenue requirement - WN - real | G61: ='Exec Summary'!G217 -> £m | H61: ='Exec Summary'!Q217 -> 0 | I61: ='Exec Summary'!AA217 -> 0
E62: ='Exec Summary'!E241 -> Adjustment to Wholesale revenue requirement - WWN - real | G62: ='Exec Summary'!G241 -> £m | H62: ='Exec Summary'!Q241 -> 0 | I62: ='Exec Summary'!AA241 -> 0
E63: ='Exec Summary'!E265 -> Adjustment to Wholesale revenue requirement - BR - real | G63: ='Exec Summary'!G265 -> £m | H63: ='Exec Summary'!Q265 -> 0 | I63: ='Exec Summary'!AA265 -> 0
E64: ='Exec Summary'!E289 -> Adjustment to Wholesale revenue requirement - DMMY - real | G64: ='Exec Summary'!G289 -> £m | H64: ='Exec Summary'!Q289 -> 0 | I64: ='Exec Summary'!AA289 -> 0
E65: Total Adjustment to Wholesale revenue requirement Revenue | G65: £m | H65: =SUM(H60:H64) -> 0 | I65: =SUM(I60:I64) -> 0 | J65: =I65-H65 -> 0
A67: Revenue Solving Adjustment Revenue
E68: ='Exec Summary'!E196 -> Revenue solving adjustment - WR - real | G68: ='Exec Summary'!G196 -> £m | H68: ='Exec Summary'!Q196 -> 0 | I68: ='Exec Summary'!AA196 -> -0.008332348719
E69: ='Exec Summary'!E220 -> Revenue solving adjustment - WN - real | G69: ='Exec Summary'!G220 -> £m | H69: ='Exec Summary'!Q220 -> 0 | I69: ='Exec Summary'!AA220 -> -0.06348831762
E70: ='Exec Summary'!E244 -> Revenue solving adjustment - WWN - real | G70: ='Exec Summary'!G244 -> £m | H70: ='Exec Summary'!Q244 -> 0 | I70: ='Exec Summary'!AA244 -> -0.08923994366
E71: ='Exec Summary'!E268 -> Revenue solving adjustment - BR - real | G71: ='Exec Summary'!G268 -> £m | H71: ='Exec Summary'!Q268 -> 0 | I71: ='Exec Summary'!AA268 -> -0.01889472109
E72: ='Exec Summary'!E292 -> Revenue solving adjustment - DMMY - real | G72: ='Exec Summary'!G292 -> £m | H72: ='Exec Summary'!Q292 -> 0 | I72: ='Exec Summary'!AA292 -> 0
E73: Total Revenue solving adjustment Revenue | G73: £m | H73: =SUM(H68:H72) -> 0 | I73: =SUM(I68:I72) -> -0.1799553311 | J73: =I73-H73 -> -0.1799553311
A75: Post financeability adjustments Revenue
E76: ='Exec Summary'!E200 -> Post financeability adjustments - WR - real | G76: ='Exec Summary'!G200 -> £m | H76: ='Exec Summary'!Q200 -> 0 | I76: ='Exec Summary'!AA200 -> 0
E77: ='Exec Summary'!E224 -> Post financeability adjustments - WN - real | G77: ='Exec Summary'!G224 -> £m | H77: ='Exec Summary'!Q224 -> 14.59598108 | I77: ='Exec Summary'!AA224 -> 28.26839535
E78: ='Exec Summary'!E248 -> Post financeability adjustments - WWN - real | G78: ='Exec Summary'!G248 -> £m | H78: ='Exec Summary'!Q248 -> 6.708335558 | I78: ='Exec Summary'!AA248 -> 16.52935499
E79: ='Exec Summary'!E272 -> Post financeability adjustments - BR - real | G79: ='Exec Summary'!G272 -> £m | H79: ='Exec Summary'!Q272 -> 0 | I79: ='Exec Summary'!AA272 -> 0
E80: ='Exec Summary'!E296 -> Post financeability adjustments - DMMY - real | G80: ='Exec Summary'!G296 -> £m | H80: ='Exec Summary'!Q296 -> 0 | I80: ='Exec Summary'!AA296 -> 0
E81: Total Post financeability adjustments Revenue | G81: £m | H81: =SUM(H76:H80) -> 21.30431664 | I81: =SUM(I76:I80) -> 44.79775035 | J81: =I81-H81 -> 23.49343371
A84: Profiling Adjustments Revenue
E85: ='Exec Summary'!E203 -> Profiling adjustment - WR - real | G85: ='Exec Summary'!G203 -> £m | H85: ='Exec Summary'!Q203 -> 0 | I85: ='Exec Summary'!AA203 -> 0
E86: ='Exec Summary'!E227 -> Profiling adjustment - WN - real | G86: ='Exec Summary'!G227 -> £m | H86: ='Exec Summary'!Q227 -> 0 | I86: ='Exec Summary'!AA227 -> 0
E87: ='Exec Summary'!E251 -> Profiling adjustment - WWN - real | G87: ='Exec Summary'!G251 -> £m | H87: ='Exec Summary'!Q251 -> 0 | I87: ='Exec Summary'!AA251 -> 0
E88: ='Exec Summary'!E275 -> Profiling adjustment - BR - real | G88: ='Exec Summary'!G275 -> £m | H88: ='Exec Summary'!Q275 -> 0 | I88: ='Exec Summary'!AA275 -> 0
E89: ='Exec Summary'!E299 -> Profiling adjustment - DMMY - real | G89: ='Exec Summary'!G299 -> £m | H89: ='Exec Summary'!Q299 -> 0 | I89: ='Exec Summary'!AA299 -> 0
E90: Total profile adjustments Revenue | G90: £m | H90: =SUM(H85:H89) -> 0 | I90: =SUM(I85:I89) -> 0 | J90: =I90-H90 -> 0
A92: Connection charges and infrastructure charges
E93: ='Exec Summary'!E206 -> Contributions from connection charges and revenue from infrastructure charges - forecast - WR - real | G93: ='Exec Summary'!G206 -> £m | H93: ='Exec Summary'!Q206 -> 0 | I93: ='Exec Summary'!AA206 -> 0
E94: ='Exec Summary'!E230 -> Contributions from connection charges and revenue from infrastructure charges - forecast - WN - real | G94: ='Exec Summary'!G230 -> £m | H94: ='Exec Summary'!Q230 -> 190.5664162 | I94: ='Exec Summary'!AA230 -> 104.2268706
E95: ='Exec Summary'!E254 -> Contributions from connection charges and revenue from infrastructure charges - forecast - WWN - real | G95: ='Exec Summary'!G254 -> £m | H95: ='Exec Summary'!Q254 -> 144.0225796 | I95: ='Exec Summary'!AA254 -> 131.7843728
E96: ='Exec Summary'!E278 -> Contributions from connection charges and revenue from infrastructure charges - forecast - BR - real | G96: ='Exec Summary'!G278 -> £m | H96: ='Exec Summary'!Q278 -> 0 | I96: ='Exec Summary'!AA278 -> 0
E97: ='Exec Summary'!E302 -> Contributions from connection charges and revenue from infrastructure charges - forecast - DMMY - real | G97: ='Exec Summary'!G302 -> £m | H97: ='Exec Summary'!Q302 -> 0 | I97: ='Exec Summary'!AA302 -> 0
E98: Total connection charges and revenue from infrastructure charges | G98: £m | H98: =SUM(H93:H97) -> 334.5889958 | I98: =SUM(I93:I97) -> 236.0112434 | J98: =I98-H98 -> -98.57775241
A100: Final Allowed Revenues
E101: ='Exec Summary'!E207 -> Final Allowed Revenues - WR - real | G101: ='Exec Summary'!G207 -> £m | H101: ='Exec Summary'!Q207 -> 280.4724317 | I101: ='Exec Summary'!AA207 -> 250.6630006
E102: ='Exec Summary'!E231 -> Final Allowed Revenues - WN - real | G102: ='Exec Summary'!G231 -> £m | H102: ='Exec Summary'!Q231 -> 2333.971337 | I102: ='Exec Summary'!AA231 -> 2054.658585
E103: ='Exec Summary'!E255 -> Final Allowed Revenues - WWN - real | G103: ='Exec Summary'!G255 -> £m | H103: ='Exec Summary'!Q255 -> 3115.664806 | I103: ='Exec Summary'!AA255 -> 2861.995461
E104: ='Exec Summary'!E279 -> Final Allowed Revenues - BR - real | G104: ='Exec Summary'!G279 -> £m | H104: ='Exec Summary'!Q279 -> 546.6644531 | I104: ='Exec Summary'!AA279 -> 476.296082
E105: ='Exec Summary'!E303 -> Final Allowed Revenues - DMMY - real | G105: ='Exec Summary'!G303 -> £m | H105: ='Exec Summary'!Q303 -> 0 | I105: ='Exec Summary'!AA303 -> 0
E106: Total Final Allowed Revenue | G106: £m | H106: =SUM(H101:H105) -> 6276.773028 | I106: =SUM(I101:I105) -> 5643.613129 | J106: =I106-H106 -> -633.1598989
A108: Wholesale Checks
E109: =E$9 -> Total PAYG Revenue | F109: 0 | G109: £m | H109: 2825.410027 | I109: 2540.252774 | J109: -285.1572526
E110: =E$17 -> Total Pension Deficit Recovery Revenue | F110: 0 | G110: £m | H110: 57.2246859 | I110: 70.03317332 | J110: 12.80848742
E111: =E$25 -> Total WACC Revenue | F111: 0 | G111: £m | H111: 1191.872574 | I111: 985.6139069 | J111: -206.2586671
E112: =E$33 -> Total RCV Run-off Revenue | F112: 0 | G112: £m | H112: 1974.929782 | I112: 1895.64159 | J112: -79.28819257
E113: =E$41 -> Total Tax Revenue | F113: 0 | G113: £m | H113: 0 | I113: 0 | J113: 0
E114: =E$49 -> Total Operating Income Revenue | F114: 0 | G114: £m | H114: 0 | I114: 0 | J114: 0
E115: =E$57 -> Total Third party & principle service Revenue | F115: 0 | G115: £m | H115: -128.5573536 | I115: -128.5573536 | J115: 0
E116: =E$65 -> Total Adjustment to Wholesale revenue requirement Revenue | F116: 0 | G116: £m | H116: 0 | I116: 0 | J116: 0
E117: =E$73 -> Total Revenue solving adjustment Revenue | F117: 0 | G117: £m | H117: 0 | I117: -0.1799553311 | J117: =J$73 -> -0.1799553311
E118: =E$81 -> Total Post financeability adjustments Revenue | F118: 0 | G118: £m | H118: 21.30431664 | I118: 44.79775035 | J118: 23.49343371
E119: =E$90 -> Total profile adjustments Revenue | F119: 0 | G119: £m | H119: 0 | I119: 0 | J119: 0
E120: =E$98 -> Total connection charges and revenue from infrastructure charges | F120: 0 | G120: £m | H120: 334.5889958 | I120: 236.0112434 | J120: -98.57775241
E121: Building Block totals and delta | G121: £m | H121: =SUM(H109:H120) -> 6276.773028 | I121: =SUM(I109:I120) -> 5643.613129 | J121: =SUM(J109:J120) -> -633.1598989
E123: =E$121 -> Building Block totals and delta | F123: 0 | G123: £m | H123: 6276.773028 | I123: 5643.613129 | J123: -633.1598989
E124: =E$106 -> Total Final Allowed Revenue | F124: 0 | G124: £m | H124: 6276.773028 | I124: 5643.613129 | J124: -633.1598989
E125: Check of final allowed revenue against building blocks | H125: =H123=H124 -> TRUE | I125: =I123=I124 -> FALSE | J125: =J123=J124 -> TRUE
A127: Retail
E128: ='Exec Summary'!E43 -> Residential retail service revenue - real | G128: ='Exec Summary'!G43 -> £m | H128: ='Exec Summary'!Q43 -> 446.9359897 | I128: ='Exec Summary'!AA43 -> 425.9837502
E129: ='Exec Summary'!E46 -> Business retail service revenue - real | G129: ='Exec Summary'!G46 -> £m | H129: ='Exec Summary'!Q46 -> 0 | I129: ='Exec Summary'!AA46 -> 0
E130: Retail Revenue | G130: £m | H130: =SUM(H128:H129) -> 446.9359897 | I130: =SUM(I128:I129) -> 425.9837502 | J130: =I130-H130 -> -20.95223949
A132: Appointee
E134: ='Exec Summary'!E$49 -> Appointee Total Revenues - real | G134: ='Exec Summary'!G$49 -> £m | H134: ='Exec Summary'!Q$49 -> 6788.215636 | I134: ='Exec Summary'!AA$49 -> 6134.103498
E135: Appointee Revenue | G135: £m | H135: =SUM(H133:H134) -> 6788.215636 | I135: =SUM(I133:I134) -> 6134.103498 | J135: =I135-H135 -> -654.1121384
A137: Chart data
E139: Add in retails element
F142: Values | G142: Ends | H142: Blank | I142: Up > 0 | J142: Up <0 | K142: Down > 0 | L142: Down < 0
E143: 1st April Business Plan Financial Model | F143: =H135 -> 6788.215636 | G143: =F143 -> 6788.215636
E144: Changes to opex/capex split | F144: =J224 -> 121.5225058 | H144: =MAX(0,MIN(SUM(F$143:F143),SUM(F$143:F144)))+MIN(0,MAX(SUM(F$143:F143),SUM(F$143:F144))) -> 6788.215636 | I144: =MAX(0,MIN(SUM(F$143:F144),F144)) -> 121.5225058 | J144: =-MAX(0,F144-I144) -> 0 | K144: =MAX(0,L144-F144) -> 0 | L144: =MIN(0,MAX(SUM(F$143:F144),F144)) -> 0
E145: Changes to Totex | F145: =J109 - (F144 +F146) -> -406.6797584 | H145: =MAX(0,MIN(SUM(F$143:F144),SUM(F$143:F145)))+MIN(0,MAX(SUM(F$143:F144),SUM(F$143:F145))) -> 6503.058383 | I145: =MAX(0,MIN(SUM(F$143:F145),F145)) -> 0 | J145: =-MAX(0,F145-I145) -> 0 | K145: =MAX(0,L145-F145) -> 406.6797584 | L145: =MIN(0,MAX(SUM(F$143:F145),F145)) -> 0
E146: PAYG adjustments for financeability | F146: =J227 -> 0 | H146: =MAX(0,MIN(SUM(F$143:F145),SUM(F$143:F146)))+MIN(0,MAX(SUM(F$143:F145),SUM(F$143:F146))) -> 6503.058383 | I146: =MAX(0,MIN(SUM(F$143:F146),F146)) -> 0 | J146: 0 | K146: 0 | L146: =MIN(0,MAX(SUM(F$143:F146),F146)) -> 0
E147: Pension Deficit Recovery revenue | F147: =J228 -> 0 | H147: =MAX(0,MIN(SUM(F$143:F146),SUM(F$143:F147)))+MIN(0,MAX(SUM(F$143:F146),SUM(F$143:F147))) -> 6503.058383 | I147: =MAX(0,MIN(SUM(F$143:F147),F147)) -> 0 | J147: 0 | K147: 0 | L147: =MIN(0,MAX(SUM(F$143:F147),F147)) -> 0
E148: WACC related revenue | F148: =J111 -> -206.2586671 | H148: =MAX(0,MIN(SUM(F$143:F147),SUM(F$143:F148)))+MIN(0,MAX(SUM(F$143:F147),SUM(F$143:F148))) -> 6296.799716 | I148: =MAX(0,MIN(SUM(F$143:F148),F148)) -> 0 | J148: 0 | K148: 206.2586671 | L148: =MIN(0,MAX(SUM(F$143:F148),F148)) -> 0
E149: RCV Run-off revenue | F149: -79.28819257 | H149: =MAX(0,MIN(SUM(F$143:F148),SUM(F$143:F149)))+MIN(0,MAX(SUM(F$143:F148),SUM(F$143:F149))) -> 6217.511524 | I149: =MAX(0,MIN(SUM(F$143:F149),F149)) -> 0 | J149: 0 | K149: 79.28819257 | L149: =MIN(0,MAX(SUM(F$143:F149),F149)) -> 0
E150: Tax revenue | F150: 0 | H150: =MAX(0,MIN(SUM(F$143:F149),SUM(F$143:F150)))+MIN(0,MAX(SUM(F$143:F149),SUM(F$143:F150))) -> 6217.511524 | I150: =MAX(0,MIN(SUM(F$143:F150),F150)) -> 0 | J150: 0 | K150: 0 | L150: =MIN(0,MAX(SUM(F$143:F150),F150)) -> 0
E151: Revenue profiling adjustments | F151: =J117 + J119 -> -0.1799553311 | H151: =MAX(0,MIN(SUM(F$143:F150),SUM(F$143:F151)))+MIN(0,MAX(SUM(F$143:F150),SUM(F$143:F151))) -> 6217.331568 | I151: =MAX(0,MIN(SUM(F$143:F151),F151)) -> 0 | J151: 0 | K151: 0.1799553311 | L151: =MIN(0,MAX(SUM(F$143:F151),F151)) -> 0
E152: Post financeability adjustments | F152: =J118 -> 23.49343371 | H152: =MAX(0,MIN(SUM(F$143:F151),SUM(F$143:F152)))+MIN(0,MAX(SUM(F$143:F151),SUM(F$143:F152))) -> 6217.331568 | I152: =MAX(0,MIN(SUM(F$143:F152),F152)) -> 23.49343371 | J152: 0 | K152: 0 | L152: =MIN(0,MAX(SUM(F$143:F152),F152)) -> 0
E153: Other | F153: =J110 + J114 +J115 + J116 -> 12.80848742 | H153: =MAX(0,MIN(SUM(F$143:F152),SUM(F$143:F153)))+MIN(0,MAX(SUM(F$143:F152),SUM(F$143:F153))) -> 6240.825002 | I153: =MAX(0,MIN(SUM(F$143:F153),F153)) -> 12.80848742 | J153: 0 | K153: 0 | L153: =MIN(0,MAX(SUM(F$143:F153),F153)) -> 0
E154: Connection charges & revenue from infrastructure charges | F154: =J120 -> -98.57775241 | H154: =MAX(0,MIN(SUM(F$143:F153),SUM(F$143:F154)))+MIN(0,MAX(SUM(F$143:F153),SUM(F$143:F154))) -> 6155.055737 | I154: =MAX(0,MIN(SUM(F$143:F154),F154)) -> 0 | J154: 0 | K154: 98.57775241 | L154: =MIN(0,MAX(SUM(F$143:F154),F154)) -> 0
E155: Retail revenue | F155: =J130 -> -20.95223949 | H155: =MAX(0,MIN(SUM(F$143:F154),SUM(F$143:F155)))+MIN(0,MAX(SUM(F$143:F154),SUM(F$143:F155))) -> 6134.103498 | I155: =MAX(0,MIN(SUM(F$143:F155),F155)) -> 0 | J155: 0 | K155: 20.95223949 | L155: =MIN(0,MAX(SUM(F$143:F155),F155)) -> 0
E156: Final Determination | G156: =I135 -> 6134.103498
E159: Revenue movements since draft determinations
J208: 446
J209: 374
J210: =J208-J209 -> 72 | K210: totex
H211: =I219/H219 -> 0.8294769864 | I211: =H219/I219 -> 1.205578957
E217: PAYG Revenue Breakdown
H218: DD Model | I218: FD Model | J218: Delta
E219: Totex | H219: =SUM('Exec Summary'!Q314,'Exec Summary'!Q325,'Exec Summary'!Q336,'Exec Summary'!Q347) -> 6021.428367 | I219: =SUM('Exec Summary'!AA314,'Exec Summary'!AA325,'Exec Summary'!AA336,'Exec Summary'!AA347) -> 4994.636256 | J219: =I219-H219 -> -1026.792111 | K219: Totex related revenue
E220: Opex | H220: =SUM('Exec Summary'!P315,'Exec Summary'!P326,'Exec Summary'!P337,'Exec Summary'!P348) -> 2825.410027 | I220: =SUM('Exec Summary'!Z315,'Exec Summary'!Z326,'Exec Summary'!Z337,'Exec Summary'!Z348) -> 2444.412717 | J220: =I220-H220 -> -380.9973105
E221: Capex | H221: =SUM('Exec Summary'!P316,'Exec Summary'!P327,'Exec Summary'!P338,'Exec Summary'!P349) -> 3196.01834 | I221: =SUM('Exec Summary'!Z316,'Exec Summary'!Z327,'Exec Summary'!Z338,'Exec Summary'!Z349) -> 2550.223539 | J221: =I221-H221 -> -645.7948006
E222: Opex % | H222: =H220/SUM(H220:H221) -> 0.4692258805 | I222: =I220/SUM(I220:I221) -> 0.4894075547
J223: =J219*I222 -> -502.5198163
J224: =J220-J223 -> 121.5225058 | K224: Opex capex split
J225: =J223+J221 -> -1148.314617
E226: PAYG Pull | I226: ='[2]Adjustments workings sheet'!$M$50 -> 0
J227: =I219 * I226 -> 0 | K227: pull

Sheet FinStat_Appointee
E1: =RIGHT(CELL("FILENAME", $A$1), LEN(CELL("FILENAME", $A$1)) - SEARCH("]", CELL("FILENAME", $A$1))) -> FinStat_Appointee | I1: ='Front sheet'!$F5 & ": " & 'Front sheet'!$G5 & " - " & 'Front sheet'!$H5 -> Model 1: ANH - Company 1 April NTN Post | S1: ='Front sheet'!$F6 & ": " & 'Front sheet'!$G6 & " - " & 'Front sheet'!$H6 -> Model 2: ANH - Ofwat FD NTN Post | AC1: ="Delta (" & 'Front sheet'!$F5 & " - " & 'Front sheet'!$F6 & ")" -> Delta (Model 1 - Model 2) | AM1: ="Delta (" & 'Front sheet'!$F5 & " - " & 'Front sheet'!$F6 & ") - %" -> Delta (Model 1 - Model 2) - %
D3: Model period ending | I3: 2019-03-31 | J3: 2020-03-31 | K3: 2021-03-31 | L3: 2022-03-31 | M3: 2023-03-31 | N3: 2024-03-31 | O3: 2025-03-31 | P3: 2021-25 | S3: 2019-03-31 | T3: 2020-03-31 | U3: 2021-03-31 | V3: 2022-03-31 | W3: 2023-03-31 | X3: 2024-03-31 | Y3: 2025-03-31 | Z3: 2021-25 | AC3: 2019-03-31 | AD3: 2020-03-31 | AE3: 2021-03-31 | AF3: 2022-03-31 | AG3: 2023-03-31 | AH3: 2024-03-31 | AI3: 2025-03-31 | AM3: 2019-03-31 | AN3: 2020-03-31 | AO3: 2021-03-31 | AP3: 2022-03-31 | AQ3: 2023-03-31 | AR3: 2024-03-31 | AS3: 2025-03-31
D4: Timeline label | I4: Pre-Fcst | J4: Pre-Fcst | K4: Forecast | L4: Forecast | M4: Forecast | N4: Forecast | O4: Forecast | P4: 5y ave | Q4: Total | S4: Pre-Fcst | T4: Pre-Fcst | U4: Forecast | V4: Forecast | W4: Forecast | X4: Forecast | Y4: Forecast | Z4: 5y ave | AA4: Total | AC4: Pre-Fcst | AD4: Pre-Fcst | AE4: Forecast | AF4: Forecast | AG4: Forecast | AH4: Forecast | AI4: Forecast | AK4: Total | AM4: Pre-Fcst | AN4: Pre-Fcst | AO4: Forecast | AP4: Forecast | AQ4: Forecast | AR4: Forecast | AS4: Forecast | AU4: Total
D5: Financial year ending | I5: 2019 | J5: 2020 | K5: 2021 | L5: 2022 | M5: 2023 | N5: 2024 | O5: 2025 | S5: 2019 | T5: 2020 | U5: 2021 | V5: 2022 | W5: 2023 | X5: 2024 | Y5: 2025 | AC5: 2019 | AD5: 2020 | AE5: 2021 | AF5: 2022 | AG5: 2023 | AH5: 2024 | AI5: 2025 | AM5: 2019 | AN5: 2020 | AO5: 2021 | AP5: 2022 | AQ5: 2023 | AR5: 2024 | AS5: 2025
D6: Model column counter | I6: 1 | J6: 2 | K6: 3 | L6: 4 | M6: 5 | N6: 6 | O6: 7 | S6: 1 | T6: 2 | U6: 3 | V6: 4 | W6: 5 | X6: 6 | Y6: 7 | AC6: 1 | AD6: 2 | AE6: 3 | AF6: 4 | AG6: 5 | AH6: 6 | AI6: 7 | AM6: 1 | AN6: 2 | AO6: 3 | AP6: 4 | AQ6: 5 | AR6: 6 | AS6: 7
E8: ='Front sheet'!$F5 & ": " & 'Front sheet'!$G5 & " - " & 'Front sheet'!$I5 -> Model 1: ANH -
E9: ='Front sheet'!$F6 & ": " & 'Front sheet'!$G6 & " - " & 'Front sheet'!$I6 -> Model 2: ANH -
E10: 3rd model not in use
D12: Check Delta (numbers) | AC12: =COUNTIF(AC19:AC311,"<>0") - COUNTBLANK(AC19:AC311) - AC13 -> 0 | AD12: 29 | AE12: 61 | AF12: 62 | AG12: 61 | AH12: 62 | AI12: 62 | AK12: =COUNTIF(AK19:AK311,"<>0") - COUNTBLANK(AK19:AK311) - AK13 -> 54 | AM12: =COUNTIF(AM19:AM311,"<>0") - COUNTBLANK(AM19:AM311) - AM13 -> 0 | AN12: 16 | AO12: 61 | AP12: 62 | AQ12: 61 | AR12: 61 | AS12: 61 | AU12: =COUNTIF(AU19:AU311,"<>0") - COUNTBLANK(AU19:AU311) - AU13 -> 54
D13: Check Delta (errors) | AC13: =COUNT( IF( ISERROR(AC19:AC309), 1) ) -> 1 | AD13: =COUNT( IF( ISERROR(AD19:AD309), 1) ) -> 0 | AE13: =COUNT( IF( ISERROR(AE19:AE309), 1) ) -> 0 | AF13: =COUNT( IF( ISERROR(AF19:AF309), 1) ) -> 0 | AG13: =COUNT( IF( ISERROR(AG19:AG309), 1) ) -> 0 | AH13: =COUNT( IF( ISERROR(AH19:AH309), 1) ) -> 0 | AI13: =COUNT( IF( ISERROR(AI19:AI309), 1) ) -> 0 | AK13: =COUNT( IF( ISERROR(AK19:AK309), 1) ) -> 0 | AM13: =COUNT( IF( ISERROR(AM19:AM309), 1) ) -> 1 | AN13: =COUNT( IF( ISERROR(AN19:AN309), 1) ) -> 0 | AO13: =COUNT( IF( ISERROR(AO19:AO309), 1) ) -> 0 | AP13: =COUNT( IF( ISERROR(AP19:AP309), 1) ) -> 0 | AQ13: =COUNT( IF( ISERROR(AQ19:AQ309), 1) ) -> 0 | AR13: =COUNT( IF( ISERROR(AR19:AR309), 1) ) -> 0 | AS13: =COUNT( IF( ISERROR(AS19:AS309), 1) ) -> 0 | AU13: =COUNT( IF( ISERROR(AU19:AU309), 1) ) -> 0
A15: PROFIT & LOSS
E17: Revenue - Appointee - nominal | F17: PL | G17: £m | I17: =[1]FinStat_Appointee!$J9 -> 0 | J17: =[1]FinStat_Appointee!$K9 -> 17.20615284 | K17: =[1]FinStat_Appointee!$L9 -> 1333.696042 | L17: =[1]FinStat_Appointee!$M9 -> 1369.674079 | M17: =[1]FinStat_Appointee!$N9 -> 1417.461023 | N17: =[1]FinStat_Appointee!$O9 -> 1466.774802 | O17: =[1]FinStat_Appointee!$P9 -> 1507.113425 | P17: =AVERAGE(K17:O17) -> 1418.943874 | Q17: =SUM(I17:O17) -> 7111.925524 | S17: =[2]FinStat_Appointee!$J9 -> 0 | T17: =[2]FinStat_Appointee!$K9 -> 0 | U17: =[2]FinStat_Appointee!$L9 -> 1226.977322 | V17: =[2]FinStat_Appointee!$M9 -> 1259.464623 | W17: =[2]FinStat_Appointee!$N9 -> 1291.572038 | X17: =[2]FinStat_Appointee!$O9 -> 1323.863296 | Y17: =[2]FinStat_Appointee!$P9 -> 1356.020806 | Z17: =AVERAGE(U17:Y17) -> 1291.579617 | AA17: =SUM(S17:Y17) -> 6457.898085 | AC17: =ROUND(I17 - S17, 3) -> 0 | AD17: =ROUND(J17 - T17, 3) -> 17.206 | AE17: =ROUND(K17 - U17, 3) -> 106.719 | AF17: =ROUND(L17 - V17, 3) -> 110.209 | AG17: =ROUND(M17 - W17, 3) -> 125.889 | AH17: =ROUND(N17 - X17, 3) -> 142.912 | AI17: =ROUND(O17 - Y17, 3) -> 151.093 | AK17: =ROUND(Q17 - AA17, 3) -> 654.027 | AM17: =IF(S17 = 0, 0, AC17 / S17) -> 0 | AN17: =IF(T17 = 0, 0, AD17 / T17) -> 0 | AO17: =IF(U17 = 0, 0, AE17 / U17) -> 0.08697715769 | AP17: =IF(V17 = 0, 0, AF17 / V17) -> 0.08750464127 | AQ17: =IF(W17 = 0, 0, AG17 / W17) -> 0.09746959231 | AR17: =IF(X17 = 0, 0, AH17 / X17) -> 0.107950723 | AS17: =IF(Y17 = 0, 0, AI17 / Y17) -> 0.1114238066 | AU17: =IF(AA17 = 0, 0, AK17 / AA17) -> 0.1012755221
E18: Operating income - Appointee - nominal | F18: PL | G18: £m | I18: =[1]FinStat_Appointee!$J10 -> 0 | J18: =[1]FinStat_Appointee!$K10 -> 0 | K18: =[1]FinStat_Appointee!$L10 -> 0 | L18: =[1]FinStat_Appointee!$M10 -> 0 | M18: =[1]FinStat_Appointee!$N10 -> 0 | N18: =[1]FinStat_Appointee!$O10 -> 0 | O18: =[1]FinStat_Appointee!$P10 -> 0 | P18: =AVERAGE(K18:O18) -> 0 | Q18: =SUM(I18:O18) -> 0 | S18: =[2]FinStat_Appointee!$J10 -> 0 | T18: =[2]FinStat_Appointee!$K10 -> 0 | U18: =[2]FinStat_Appointee!$L10 -> 0 | V18: =[2]FinStat_Appointee!$M10 -> 0 | W18: =[2]FinStat_Appointee!$N10 -> 0 | X18: =[2]FinStat_Appointee!$O10 -> 0 | Y18: =[2]FinStat_Appointee!$P10 -> 0 | Z18: =AVERAGE(U18:Y18) -> 0 | AA18: =SUM(S18:Y18) -> 0 | AC18: 0 | AD18: 0 | AE18: 0 | AF18: 0 | AG18: 0 | AH18: 0 | AI18: 0 | AK18: 0 | AM18: 0 | AN18: 0 | AO18: 0 | AP18: 0 | AQ18: 0 | AR18: 0 | AS18: 0 | AU18: 0
E19: Opex - Appointee - nominal | F19: PL | G19: £m | I19: =[1]FinStat_Appointee!$J11 -> 0 | J19: =[1]FinStat_Appointee!$K11 -> 0 | K19: =[1]FinStat_Appointee!$L11 -> -684.203907 | L19: =[1]FinStat_Appointee!$M11 -> -701.4988911 | M19: =[1]FinStat_Appointee!$N11 -> -715.6545927 | N19: =[1]FinStat_Appointee!$O11 -> -720.9620567 | O19: =[1]FinStat_Appointee!$P11 -> -716.6196389 | P19: -707.7878173 | Q19: =SUM(I19:O19) -> -3538.939086 | S19: =[2]FinStat_Appointee!$J11 -> 0 | T19: =[2]FinStat_Appointee!$K11 -> 0 | U19: =[2]FinStat_Appointee!$L11 -> -591.396198 | V19: =[2]FinStat_Appointee!$M11 -> -607.3805608 | W19: =[2]FinStat_Appointee!$N11 -> -627.0622747 | X19: =[2]FinStat_Appointee!$O11 -> -642.8876365 | Y19: =[2]FinStat_Appointee!$P11 -> -653.9051546 | Z19: -624.5263649 | AA19: =SUM(S19:Y19) -> -3122.631825 | AC19: 0 | AD19: 0 | AE19: -92.808 | AF19: -94.118 | AG19: -88.592 | AH19: -78.074 | AI19: -62.714 | AK19: -416.307 | AM19: 0 | AN19: 0 | AO19: 0.1569303291 | AP19: 0.1549572148 | AQ19: 0.1412810236 | AR19: 0.1214426839 | AS19: 0.09590687512 | AU19: 0.1333192715
E20: Depreciation - Appointee - nominal | F20: PL | G20: £m | I20: =[1]FinStat_Appointee!$J12 -> 0 | J20: =[1]FinStat_Appointee!$K12 -> 0 | K20: =[1]FinStat_Appointee!$L12 -> -339.5727093 | L20: =[1]FinStat_Appointee!$M12 -> -356.0905637 | M20: =[1]FinStat_Appointee!$N12 -> -373.2324757 | N20: =[1]FinStat_Appointee!$O12 -> -397.7271731 | O20: =[1]FinStat_Appointee!$P12 -> -432.6711115 | P20: -379.8588067 | Q20: =SUM(I20:O20) -> -1899.294033 | S20: =[2]FinStat_Appointee!$J12 -> 0 | T20: =[2]FinStat_Appointee!$K12 -> 0 | U20: =[2]FinStat_Appointee!$L12 -> -338.5251295 | V20: =[2]FinStat_Appointee!$M12 -> -352.7215778 | W20: =[2]FinStat_Appointee!$N12 -> -367.4162114 | X20: =[2]FinStat_Appointee!$O12 -> -387.4318099 | Y20: =[2]FinStat_Appointee!$P12 -> -416.6865241 | Z20: -372.5562506 | AA20: =SUM(S20:Y20) -> -1862.781253 | AC20: 0 | AD20: 0 | AE20: -1.048 | AF20: -3.369 | AG20: -5.816 | AH20: -10.295 | AI20: -15.985 | AK20: -36.513 | AM20: 0 | AN20: 0 | AO20: 0.003095781993 | AP20: 0.009551442871 | AQ20: 0.0158294594 | AR20: 0.026572418 | AS20: 0.03836217174 | AU20: 0.01960133534
E21: Operating profit - Appointee - nominal | G21: £m | I21: =[1]FinStat_Appointee!$J13 -> 0 | J21: =[1]FinStat_Appointee!$K13 -> 17.20615284 | K21: =[1]FinStat_Appointee!$L13 -> 309.9194258 | L21: =[1]FinStat_Appointee!$M13 -> 312.0846237 | M21: =[1]FinStat_Appointee!$N13 -> 328.5739549 | N21: =[1]FinStat_Appointee!$O13 -> 348.085572 | O21: =[1]FinStat_Appointee!$P13 -> 357.8226746 | P21: 331.2972502 | Q21: =SUM(I21:O21) -> 1673.692404 | S21: =[2]FinStat_Appointee!$J13 -> 0 | T21: =[2]FinStat_Appointee!$K13 -> 0 | U21: =[2]FinStat_Appointee!$L13 -> 297.0559943 | V21: =[2]FinStat_Appointee!$M13 -> 299.362484 | W21: =[2]FinStat_Appointee!$N13 -> 297.093552 | X21: =[2]FinStat_Appointee!$O13 -> 293.54385 | Y21: =[2]FinStat_Appointee!$P13 -> 285.429127 | Z21: 294.4970015 | AA21: =SUM(S21:Y21) -> 1472.485007 | AC21: 0 | AD21: 17.206 | AE21: 12.863 | AF21: 12.722 | AG21: 31.48 | AH21: 54.542 | AI21: 72.394 | AK21: 201.207 | AM21: 0 | AN21: 0 | AO21: 0.04330160054 | AP21: 0.042496975 | AQ21: 0.1059598897 | AR21: 0.1858052894 | AS21: 0.253632139 | AU21: 0.1366445152
AC22: 0 | AD22: 0 | AE22: 0 | AF22: 0 | AG22: 0 | AH22: 0 | AI22: 0 | AK22: 0 | AM22: 0 | AN22: 0 | AO22: 0 | AP22: 0 | AQ22: 0 | AR22: 0 | AS22: 0 | AU22: 0
E23: Other Income (incl. 3rd party income) - Appointee - nominal | F23: PL & CF | G23: £m | I23: =[1]FinStat_Appointee!$J15 -> 0 | J23: =[1]FinStat_Appointee!$K15 -> 0 | K23: =[1]FinStat_Appointee!$L15 -> 26.84821871 | L23: =[1]FinStat_Appointee!$M15 -> 27.98802285 | M23: =[1]FinStat_Appointee!$N15 -> 28.68586981 | N23: =[1]FinStat_Appointee!$O15 -> 29.404591 | O23: =[1]FinStat_Appointee!$P15 -> 29.7964887 | P23: 28.54463821 | Q23: =SUM(I23:O23) -> 142.7231911 | S23: =[2]FinStat_Appointee!$J15 -> 0 | T23: =[2]FinStat_Appointee!$K15 -> 0 | U23: =[2]FinStat_Appointee!$L15 -> 26.74367765 | V23: =[2]FinStat_Appointee!$M15 -> 27.88019114 | W23: =[2]FinStat_Appointee!$N15 -> 28.5963958 | X23: =[2]FinStat_Appointee!$O15 -> 29.34161334 | Y23: =[2]FinStat_Appointee!$P15 -> 29.76182137 | Z23: 28.46473986 | AA23: =SUM(S23:Y23) -> 142.3236993 | AC23: 0 | AD23: 0 | AE23: 0.105 | AF23: 0.108 | AG23: 0.089 | AH23: 0.063 | AI23: 0.035 | AK23: 0.399 | AM23: 0 | AN23: 0 | AO23: 0.003926161591 | AP23: 0.003873718062 | AQ23: 0.003112280324 | AR23: 0.002147121198 | AS23: 0.001176003295 | AU23: 0.002803468445
E24: Interest (income) /expense excl. indexation of index-linked loans - Appointee - nominal | F24: PL & CF | G24: £m | I24: =[1]FinStat_Appointee!$J16 -> 0 | J24: =[1]FinStat_Appointee!$K16 -> 0 | K24: =[1]FinStat_Appointee!$L16 -> -163.5433936 | L24: =[1]FinStat_Appointee!$M16 -> -172.1428017 | M24: =[1]FinStat_Appointee!$N16 -> -186.4270501 | N24: =[1]FinStat_Appointee!$O16 -> -204.2221124 | O24: =[1]FinStat_Appointee!$P16 -> -218.9291353 | P24: -189.0528986 | Q24: =SUM(I24:O24) -> -945.264493 | S24: =[2]FinStat_Appointee!$J16 -> 0 | T24: =[2]FinStat_Appointee!$K16 -> 0 | U24: =[2]FinStat_Appointee!$L16 -> -151.569324 | V24: =[2]FinStat_Appointee!$M16 -> -155.6585822 | W24: =[2]FinStat_Appointee!$N16 -> -165.2471606 | X24: =[2]FinStat_Appointee!$O16 -> -175.400811 | Y24: =[2]FinStat_Appointee!$P16 -> -180.5968997 | Z24: -165.6945555 | AA24: =SUM(S24:Y24) -> -828.4727774 | AC24: 0 | AD24: 0 | AE24: -11.974 | AF24: -16.484 | AG24: -21.18 | AH24: -28.821 | AI24: -38.332 | AK24: -116.792 | AM24: 0 | AN24: 0 | AO24: 0.07900015443 | AP24: 0.1058984334 | AQ24: 0.1281716426 | AR24: 0.1643150898 | AS24: 0.2122517056 | AU24: 0.1409726465
E25: Indexation of index-linked loans - Appointee - nominal | F25: PL | G25: £m | I25: =[1]FinStat_Appointee!$J17 -> 0 | J25: =[1]FinStat_Appointee!$K17 -> 0 | K25: =[1]FinStat_Appointee!$L17 -> -47.32520657 | L25: =[1]FinStat_Appointee!$M17 -> -48.74496277 | M25: =[1]FinStat_Appointee!$N17 -> -50.20731165 | N25: =[1]FinStat_Appointee!$O17 -> -51.713531 | O25: =[1]FinStat_Appointee!$P17 -> -53.26493693 | P25: -50.25118978 | Q25: =SUM(I25:O25) -> -251.2559489 | S25: =[2]FinStat_Appointee!$J17 -> 0 | T25: =[2]FinStat_Appointee!$K17 -> 0 | U25: =[2]FinStat_Appointee!$L17 -> -46.80446748 | V25: =[2]FinStat_Appointee!$M17 -> -48.20860151 | W25: =[2]FinStat_Appointee!$N17 -> -49.65485955 | X25: =[2]FinStat_Appointee!$O17 -> -51.14450534 | Y25: =[2]FinStat_Appointee!$P17 -> -52.6788405 | Z25: -49.69825488 | AA25: =SUM(S25:Y25) -> -248.4912744 | AC25: 0 | AD25: 0 | AE25: -0.521 | AF25: -0.536 | AG25: -0.552 | AH25: -0.569 | AI25: -0.586 | AK25: -2.765 | AM25: 0 | AN25: 0 | AO25: 0.01113141604 | AP25: 0.01111834783 | AQ25: 0.01111673671 | AR25: 0.01112533978 | AS25: 0.01112401098 | AU25: 0.01112715127
E26: Profit before tax - Appointee - nominal | G26: £m | I26: =[1]FinStat_Appointee!$J18 -> 0 | J26: =[1]FinStat_Appointee!$K18 -> 17.20615284 | K26: =[1]FinStat_Appointee!$L18 -> 125.8990444 | L26: =[1]FinStat_Appointee!$M18 -> 119.1848821 | M26: =[1]FinStat_Appointee!$N18 -> 120.625463 | N26: =[1]FinStat_Appointee!$O18 -> 121.5545196 | O26: =[1]FinStat_Appointee!$P18 -> 115.425091 | P26: 120.5378 | Q26: =SUM(I26:O26) -> 619.895153 | S26: =[2]FinStat_Appointee!$J18 -> 0 | T26: =[2]FinStat_Appointee!$K18 -> 0 | U26: =[2]FinStat_Appointee!$L18 -> 125.4258805 | V26: =[2]FinStat_Appointee!$M18 -> 123.3754915 | W26: =[2]FinStat_Appointee!$N18 -> 110.7879277 | X26: =[2]FinStat_Appointee!$O18 -> 96.34014699 | Y26: =[2]FinStat_Appointee!$P18 -> 81.91520809 | Z26: 107.5689309 | AA26: =SUM(S26:Y26) -> 537.8446547 | AC26: 0 | AD26: 17.206 | AE26: 0.473 | AF26: -4.191 | AG26: 9.838 | AH26: 25.214 | AI26: 33.51 | AK26: 82.05 | AM26: 0 | AN26: 0 | AO26: 0.003771151522 | AP26: -0.03396946954 | AQ26: 0.08880028902 | AR26: 0.2617185129 | AS26: 0.4090815464 | AU26: 0.1525533428
AC27: 0 | AD27: 0 | AE27: 0 | AF27: 0 | AG27: 0 | AH27: 0 | AI27: 0 | AK27: 0 | AM27: 0 | AN27: 0 | AO27: 0 | AP27: 0 | AQ27: 0 | AR27: 0 | AS27: 0 | AU27: 0
E28: Current tax charge - Appointee - nominal | F28: PL | G28: £m | I28: =[1]FinStat_Appointee!$J20 -> 0 | J28: =[1]FinStat_Appointee!$K20 -> 0 | K28: =[1]FinStat_Appointee!$L20 -> -5.692927302 | L28: =[1]FinStat_Appointee!$M20 -> -2.052268638 | M28: =[1]FinStat_Appointee!$N20 -> -2.174472065 | N28: =[1]FinStat_Appointee!$O20 -> -2.29574324 | O28: =[1]FinStat_Appointee!$P20 -> -2.405549049 | P28: -2.924192059 | Q28: =SUM(I28:O28) -> -14.62096029 | S28: =[2]FinStat_Appointee!$J20 -> 0 | T28: =[2]FinStat_Appointee!$K20 -> 0 | U28: =[2]FinStat_Appointee!$L20 -> -4.261153055 | V28: =[2]FinStat_Appointee!$M20 -> -1.940064453 | W28: =[2]FinStat_Appointee!$N20 -> -2.036762784 | X28: =[2]FinStat_Appointee!$O20 -> -2.13979574 | Y28: =[2]FinStat_Appointee!$P20 -> -2.240545526 | Z28: -2.523664312 | AA28: =SUM(S28:Y28) -> -12.61832156 | AC28: 0 | AD28: 0 | AE28: -1.432 | AF28: -0.112 | AG28: -0.138 | AH28: -0.156 | AI28: -0.165 | AK28: -2.003 | AM28: 0 | AN28: 0 | AO28: 0.3360592735 | AP28: 0.05773004077 | AQ28: 0.06775457656 | AR28: 0.07290415487 | AS28: 0.07364277944 | AU28: 0.1587374351
E29: Movement in deferred tax provision - Appointee - nominal | F29: PL | G29: £m | I29: =[1]FinStat_Appointee!$J21 -> 0 | J29: =[1]FinStat_Appointee!$K21 -> 0 | K29: =[1]FinStat_Appointee!$L21 -> -11.96722443 | L29: =[1]FinStat_Appointee!$M21 -> -8.782914335 | M29: =[1]FinStat_Appointee!$N21 -> -7.17186654 | N29: =[1]FinStat_Appointee!$O21 -> -7.155336643 | O29: =[1]FinStat_Appointee!$P21 -> -1.787467552 | P29: -7.3729619 | Q29: =SUM(I29:O29) -> -36.8648095 | S29: =[2]FinStat_Appointee!$J21 -> 0 | T29: =[2]FinStat_Appointee!$K21 -> 0 | U29: =[2]FinStat_Appointee!$L21 -> -10.95463678 | V29: =[2]FinStat_Appointee!$M21 -> -7.628615246 | W29: =[2]FinStat_Appointee!$N21 -> -5.268253689 | X29: =[2]FinStat_Appointee!$O21 -> -2.938864941 | Y29: =[2]FinStat_Appointee!$P21 -> 3.458637214 | Z29: -4.666346689 | AA29: =SUM(S29:Y29) -> -23.33173344 | AC29: 0 | AD29: 0 | AE29: -1.013 | AF29: -1.154 | AG29: -1.904 | AH29: -4.216 | AI29: -5.246 | AK29: -13.533 | AM29: 0 | AN29: 0 | AO29: 0.09247225812 | AP29: 0.1512725393 | AQ29: 0.3614100824 | AR29: 1.434567455 | AS29: -1.516782384 | AU29: 0.5800254847
E30: Profit after tax - Appointee - nominal | G30: £m | I30: =[1]FinStat_Appointee!$J22 -> 0 | J30: =[1]FinStat_Appointee!$K22 -> 17.20615284 | K30: =[1]FinStat_Appointee!$L22 -> 108.2388927 | L30: =[1]FinStat_Appointee!$M22 -> 108.3496991 | M30: =[1]FinStat_Appointee!$N22 -> 111.2791243 | N30: =[1]FinStat_Appointee!$O22 -> 112.1034397 | O30: =[1]FinStat_Appointee!$P22 -> 111.2320744 | P30: 110.2406461 | Q30: =SUM(I30:O30) -> 568.4093832 | S30: =[2]FinStat_Appointee!$J22 -> 0 | T30: =[2]FinStat_Appointee!$K22 -> 0 | U30: =[2]FinStat_Appointee!$L22 -> 110.2100906 | V30: =[2]FinStat_Appointee!$M22 -> 113.8068118 | W30: =[2]FinStat_Appointee!$N22 -> 103.4829112 | X30: =[2]FinStat_Appointee!$O22 -> 91.2614863 | Y30: =[2]FinStat_Appointee!$P22 -> 83.13329978 | Z30: 100.3789199 | AA30: =SUM(S30:Y30) -> 501.8945997 | AC30: 0 | AD30: 17.206 | AE30: -1.971 | AF30: -5.457 | AG30: 7.796 | AH30: 20.842 | AI30: 28.099 | AK30: 66.515 | AM30: 0 | AN30: 0 | AO30: -0.01788402485 | AP30: -0.04794967818 | AQ30: 0.07533611016 | AR30: 0.228376732 | AS30: 0.3379993345 | AU30: 0.1325278256
AC31: 0 | AD31: 0 | AE31: 0 | AF31: 0 | AG31: 0 | AH31: 0 | AI31: 0 | AK31: 0 | AM31: 0 | AN31: 0 | AO31: 0 | AP31: 0 | AQ31: 0 | AR31: 0 | AS31: 0 | AU31: 0
E32: Dividend - Appointee - nominal | F32: PL | G32: £m | I32: =[1]FinStat_Appointee!$J24 -> 0 | J32: =[1]FinStat_Appointee!$K24 -> 0 | K32: =[1]FinStat_Appointee!$L24 -> -87.09800188 | L32: =[1]FinStat_Appointee!$M24 -> -90.0393014 | M32: =[1]FinStat_Appointee!$N24 -> -93.07992861 | N32: =[1]FinStat_Appointee!$O24 -> -96.2232378 | O32: =[1]FinStat_Appointee!$P24 -> -99.47269654 | P32: -93.18263324 | Q32: =SUM(I32:O32) -> -465.9131662 | S32: =[2]FinStat_Appointee!$J24 -> 0 | T32: =[2]FinStat_Appointee!$K24 -> 0 | U32: =[2]FinStat_Appointee!$L24 -> -59.91811815 | V32: =[2]FinStat_Appointee!$M24 -> -61.84020022 | W32: =[2]FinStat_Appointee!$N24 -> -63.86831862 | X32: =[2]FinStat_Appointee!$O24 -> -65.97902604 | Y32: =[2]FinStat_Appointee!$P24 -> -68.1594877 | Z32: -63.95303015 | AA32: =SUM(S32:Y32) -> -319.7651507 | AC32: 0 | AD32: 0 | AE32: -27.18 | AF32: -28.199 | AG32: -29.212 | AH32: -30.244 | AI32: -31.313 | AK32: -146.148 | AM32: 0 | AN32: 0 | AO32: 0.4536190528 | AP32: 0.4559978768 | AQ32: 0.4573785663 | AR32: 0.4583880941 | AS32: 0.4594077957 | AU32: 0.4570479293
E33: Net profit - Appointee - nominal | G33: £m | I33: =[1]FinStat_Appointee!$J25 -> 0 | J33: =[1]FinStat_Appointee!$K25 -> 17.20615284 | K33: =[1]FinStat_Appointee!$L25 -> 21.14089081 | L33: =[1]FinStat_Appointee!$M25 -> 18.31039774 | M33: =[1]FinStat_Appointee!$N25 -> 18.19919574 | N33: =[1]FinStat_Appointee!$O25 -> 15.88020194 | O33: =[1]FinStat_Appointee!$P25 -> 11.75937791 | P33: 17.05801283 | Q33: =SUM(I33:O33) -> 102.496217 | S33: =[2]FinStat_Appointee!$J25 -> 0 | T33: =[2]FinStat_Appointee!$K25 -> 0 | U33: =[2]FinStat_Appointee!$L25 -> 50.29197247 | V33: =[2]FinStat_Appointee!$M25 -> 51.96661157 | W33: =[2]FinStat_Appointee!$N25 -> 39.61459261 | X33: =[2]FinStat_Appointee!$O25 -> 25.28246026 | Y33: =[2]FinStat_Appointee!$P25 -> 14.97381208 | Z33: 36.4258898 | AA33: =SUM(S33:Y33) -> 182.129449 | AC33: 0 | AD33: 17.206 | AE33: -29.151 | AF33: -33.656 | AG33: -21.415 | AH33: -9.402 | AI33: -3.214 | AK33: -79.633 | AM33: 0 | AN33: 0 | AO33: -0.5796352493 | AP33: -0.6476466136 | AQ33: -0.5405836231 | AR33: -0.3718783656 | AS33: -0.2146414008 | AU33: -0.4372329705
AC34: 0 | AD34: 0 | AE34: 0 | AF34: 0 | AG34: 0 | AH34: 0 | AI34: 0 | AK34: 0 | AM34: 0 | AN34: 0 | AO34: 0 | AP34: 0 | AQ34: 0 | AR34: 0 | AS34: 0 | AU34: 0
B35: Retained earnings balance - Appointee | AC35: 0 | AD35: 0 | AE35: 0 | AF35: 0 | AG35: 0 | AH35: 0 | AI35: 0 | AK35: 0 | AM35: 0 | AN35: 0 | AO35: 0 | AP35: 0 | AQ35: 0 | AR35: 0 | AS35: 0 | AU35: 0
E36: Retained earnings and other distributable reserves b/f - Appointee - nominal | F36: 0 | G36: £m | I36: =[1]FinStat_Appointee!$J28 -> 0 | J36: =[1]FinStat_Appointee!$K28 -> 2920.302878 | K36: =[1]FinStat_Appointee!$L28 -> 0 | L36: =[1]FinStat_Appointee!$M28 -> 0 | M36: =[1]FinStat_Appointee!$N28 -> 0 | N36: =[1]FinStat_Appointee!$O28 -> 0 | O36: =[1]FinStat_Appointee!$P28 -> 0 | P36: 0 | Q36: =SUM(I36:O36) -> 2920.302878 | S36: =[2]FinStat_Appointee!$J28 -> 0 | T36: =[2]FinStat_Appointee!$K28 -> 2364.861786 | U36: =[2]FinStat_Appointee!$L28 -> 0 | V36: =[2]FinStat_Appointee!$M28 -> 0 | W36: =[2]FinStat_Appointee!$N28 -> 0 | X36: =[2]FinStat_Appointee!$O28 -> 0 | Y36: =[2]FinStat_Appointee!$P28 -> 0 | Z36: 0 | AA36: =SUM(S36:Y36) -> 2364.861786 | AC36: 0 | AD36: 555.441 | AE36: 0 | AF36: 0 | AG36: 0 | AH36: 0 | AI36: 0 | AK36: 555.441 | AM36: 0 | AN36: 0.2348725001 | AO36: 0 | AP36: 0 | AQ36: 0 | AR36: 0 | AS36: 0 | AU36: 0.2348725001
E37: Last pre-forecast period flag | F37: 0 | G37: flag | I37: =[1]FinStat_Appointee!$J29 -> 0 | J37: =[1]FinStat_Appointee!$K29 -> 1 | K37: =[1]FinStat_Appointee!$L29 -> 0 | L37: =[1]FinStat_Appointee!$M29 -> 0 | M37: =[1]FinStat_Appointee!$N29 -> 0 | N37: =[1]FinStat_Appointee!$O29 -> 0 | O37: =[1]FinStat_Appointee!$P29 -> 0 | P37: 0 | Q37: =SUM(I37:O37) -> 1 | S37: =[2]FinStat_Appointee!$J29 -> 0 | T37: =[2]FinStat_Appointee!$K29 -> 1 | U37: =[2]FinStat_Appointee!$L29 -> 0 | V37: =[2]FinStat_Appointee!$M29 -> 0 | W37: =[2]FinStat_Appointee!$N29 -> 0 | X37: =[2]FinStat_Appointee!$O29 -> 0 | Y37: =[2]FinStat_Appointee!$P29 -> 0 | Z37: 0 | AA37: =SUM(S37:Y37) -> 1 | AC37: 0 | AD37: 0 | AE37: 0 | AF37: 0 | AG37: 0 | AH37: 0 | AI37: 0 | AK37: 0 | AM37: 0 | AN37: 0 | AO37: 0 | AP37: 0 | AQ37: 0 | AR37: 0 | AS37: 0 | AU37: 0
AC38: 0 | AD38: 0 | AE38: 0 | AF38: 0 | AG38: 0 | AH38: 0 | AI38: 0 | AK38: 0 | AM38: 0 | AN38: 0 | AO38: 0 | AP38: 0 | AQ38: 0 | AR38: 0 | AS38: 0 | AU38: 0
E39: Retained earnings balance - Appointee BEG - nominal | G39: £m | I39: =[1]FinStat_Appointee!$J31 -> 0 | J39: =[1]FinStat_Appointee!$K31 -> 0 | K39: =[1]FinStat_Appointee!$L31 -> 2920.302878 | L39: =[1]FinStat_Appointee!$M31 -> 2941.443769 | M39: =[1]FinStat_Appointee!$N31 -> 2959.754167 | N39: =[1]FinStat_Appointee!$O31 -> 2977.953363 | O39: =[1]FinStat_Appointee!$P31 -> 2993.833564 | P39: 2958.657548 | Q39: =SUM(I39:O39) -> 14793.28774 | S39: =[2]FinStat_Appointee!$J31 -> 0 | T39: =[2]FinStat_Appointee!$K31 -> 0 | U39: =[2]FinStat_Appointee!$L31 -> 2364.861786 | V39: =[2]FinStat_Appointee!$M31 -> 2415.153758 | W39: =[2]FinStat_Appointee!$N31 -> 2467.12037 | X39: =[2]FinStat_Appointee!$O31 -> 2506.734963 | Y39: =[2]FinStat_Appointee!$P31 -> 2532.017423 | Z39: 2457.17766 | AA39: =SUM(S39:Y39) -> 12285.8883 | AC39: 0 | AD39: 0 | AE39: 555.441 | AF39: 526.29 | AG39: 492.634 | AH39: 471.218 | AI39: 461.816 | AK39: 2507.399 | AM39: 0 | AN39: 0 | AO39: 0.2348725001 | AP39: 0.2179115918 | AQ39: 0.1996797586 | AR39: 0.1879807826 | AS39: 0.1823905301 | AU39: 0.2040877256
D40: plus | E40: Net profit - Appointee - nominal | F40: 0 | G40: £m | I40: =[1]FinStat_Appointee!$J32 -> 0 | J40: =[1]FinStat_Appointee!$K32 -> 17.20615284 | K40: =[1]FinStat_Appointee!$L32 -> 21.14089081 | L40: =[1]FinStat_Appointee!$M32 -> 18.31039774 | M40: =[1]FinStat_Appointee!$N32 -> 18.19919574 | N40: =[1]FinStat_Appointee!$O32 -> 15.88020194 | O40: =[1]FinStat_Appointee!$P32 -> 11.75937791 | P40: 17.05801283 | Q40: =SUM(I40:O40) -> 102.496217 | S40: =[2]FinStat_Appointee!$J32 -> 0 | T40: =[2]FinStat_Appointee!$K32 -> 0 | U40: =[2]FinStat_Appointee!$L32 -> 50.29197247 | V40: =[2]FinStat_Appointee!$M32 -> 51.96661157 | W40: =[2]FinStat_Appointee!$N32 -> 39.61459261 | X40: =[2]FinStat_Appointee!$O32 -> 25.28246026 | Y40: =[2]FinStat_Appointee!$P32 -> 14.97381208 | Z40: 36.4258898 | AA40: =SUM(S40:Y40) -> 182.129449 | AC40: 0 | AD40: 17.206 | AE40: -29.151 | AF40: -33.656 | AG40: -21.415 | AH40: -9.402 | AI40: -3.214 | AK40: -79.633 | AM40: 0 | AN40: 0 | AO40: -0.5796352493 | AP40: -0.6476466136 | AQ40: -0.5405836231 | AR40: -0.3718783656 | AS40: -0.2146414008 | AU40: -0.4372329705
E41: Retained earnings balance - Appointee - nominal | G41: £m | I41: =[1]FinStat_Appointee!$J33 -> 0 | J41: =[1]FinStat_Appointee!$K33 -> 2920.302878 | K41: =[1]FinStat_Appointee!$L33 -> 2941.443769 | L41: =[1]FinStat_Appointee!$M33 -> 2959.754167 | M41: =[1]FinStat_Appointee!$N33 -> 2977.953363 | N41: =[1]FinStat_Appointee!$O33 -> 2993.833564 | O41: =[1]FinStat_Appointee!$P33 -> 3005.592942 | P41: 2975.715561 | Q41: =SUM(I41:O41) -> 17798.88068 | S41: =[2]FinStat_Appointee!$J33 -> 0 | T41: =[2]FinStat_Appointee!$K33 -> 2364.861786 | U41: =[2]FinStat_Appointee!$L33 -> 2415.153758 | V41: =[2]FinStat_Appointee!$M33 -> 2467.12037 | W41: =[2]FinStat_Appointee!$N33 -> 2506.734963 | X41: =[2]FinStat_Appointee!$O33 -> 2532.017423 | Y41: =[2]FinStat_Appointee!$P33 -> 2546.991235 | Z41: 2493.60355 | AA41: =SUM(S41:Y41) -> 14832.87953 | AC41: 0 | AD41: 555.441 | AE41: 526.29 | AF41: 492.634 | AG41: 471.218 | AH41: 461.816 | AI41: 458.602 | AK41: 2966.001 | AM41: 0 | AN41: 0.2348725001 | AO41: 0.2179115918 | AP41: 0.1996797586 | AQ41: 0.1879807826 | AR41: 0.1823905301 | AS41: 0.1800563715 | AU41: 0.199961241
A46: CASH FLOW
B48: Cash flow from operating activities
E49: Operating profit - Appointee - nominal | F49: 0 | G49: £m | I49: =[1]FinStat_Appointee!$J40 -> 0 | J49: =[1]FinStat_Appointee!$K40 -> 17.20615284 | K49: =[1]FinStat_Appointee!$L40 -> 309.9194258 | L49: =[1]FinStat_Appointee!$M40 -> 312.0846237 | M49: =[1]FinStat_Appointee!$N40 -> 328.5739549 | N49: =[1]FinStat_Appointee!$O40 -> 348.085572 | O49: =[1]FinStat_Appointee!$P40 -> 357.8226746 | P49: =AVERAGE(K49:O49) -> 331.2972502 | Q49: =SUM(I49:O49) -> 1673.692404 | S49: =[2]FinStat_Appointee!$J40 -> 0 | T49: =[2]FinStat_Appointee!$K40 -> 0 | U49: =[2]FinStat_Appointee!$L40 -> 297.0559943 | V49: =[2]FinStat_Appointee!$M40 -> 299.362484 | W49: =[2]FinStat_Appointee!$N40 -> 297.093552 | X49: =[2]FinStat_Appointee!$O40 -> 293.54385 | Y49: =[2]FinStat_Appointee!$P40 -> 285.429127 | Z49: =AVERAGE(U49:Y49) -> 294.4970015 | AA49: =SUM(S49:Y49) -> 1472.485007 | AC49: =ROUND(I49 - S49, 3) -> 0 | AD49: =ROUND(J49 - T49, 3) -> 17.206 | AE49: =ROUND(K49 - U49, 3) -> 12.863 | AF49: =ROUND(L49 - V49, 3) -> 12.722 | AG49: =ROUND(M49 - W49, 3) -> 31.48 | AH49: =ROUND(N49 - X49, 3) -> 54.542 | AI49: =ROUND(O49 - Y49, 3) -> 72.394 | AK49: =ROUND(Q49 - AA49, 3) -> 201.207 | AM49: =IF(S49 = 0, 0, AC49 / S49) -> 0 | AN49: =IF(T49 = 0, 0, AD49 / T49) -> 0 | AO49: =IF(U49 = 0, 0, AE49 / U49) -> 0.04330160054 | AP49: =IF(V49 = 0, 0, AF49 / V49) -> 0.042496975 | AQ49: =IF(W49 = 0, 0, AG49 / W49) -> 0.1059598897 | AR49: =IF(X49 = 0, 0, AH49 / X49) -> 0.1858052894 | AS49: =IF(Y49 = 0, 0, AI49 / Y49) -> 0.253632139 | AU49: =IF(AA49 = 0, 0, AK49 / AA49) -> 0.1366445152
E50: Depreciation - Appointee - nominal POS | F50: CF | G50: £m | I50: =[1]FinStat_Appointee!$J41 -> 0 | J50: =[1]FinStat_Appointee!$K41 -> 0 | K50: =[1]FinStat_Appointee!$L41 -> 339.5727093 | L50: =[1]FinStat_Appointee!$M41 -> 356.0905637 | M50: =[1]FinStat_Appointee!$N41 -> 373.2324757 | N50: =[1]FinStat_Appointee!$O41 -> 397.7271731 | O50: =[1]FinStat_Appointee!$P41 -> 432.6711115 | P50: 379.8588067 | Q50: 1899.294033 | S50: =[2]FinStat_Appointee!$J41 -> 0 | T50: =[2]FinStat_Appointee!$K41 -> 0 | U50: =[2]FinStat_Appointee!$L41 -> 338.5251295 | V50: =[2]FinStat_Appointee!$M41 -> 352.7215778 | W50: =[2]FinStat_Appointee!$N41 -> 367.4162114 | X50: =[2]FinStat_Appointee!$O41 -> 387.4318099 | Y50: =[2]FinStat_Appointee!$P41 -> 416.6865241 | Z50: 372.5562506 | AA50: 1862.781253 | AC50: 0 | AD50: 0 | AE50: 1.048 | AF50: 3.369 | AG50: 5.816 | AH50: 10.295 | AI50: 15.985 | AK50: 36.513 | AM50: 0 | AN50: 0 | AO50: 0.003095781993 | AP50: 0.009551442871 | AQ50: 0.0158294594 | AR50: 0.026572418 | AS50: 0.03836217174 | AU50: 0.01960133534
E51: Change in inventories - Appointee - nominal | F51: CF | G51: £m | I51: =[1]FinStat_Appointee!$J42 -> 0 | J51: =[1]FinStat_Appointee!$K42 -> 0 | K51: =[1]FinStat_Appointee!$L42 -> -0.209 | L51: =[1]FinStat_Appointee!$M42 -> -0.213 | M51: =[1]FinStat_Appointee!$N42 -> -0.218 | N51: =[1]FinStat_Appointee!$O42 -> -0.222 | O51: =[1]FinStat_Appointee!$P42 -> -0.226 | P51: -0.2176 | Q51: -1.088 | S51: =[2]FinStat_Appointee!$J42 -> 0 | T51: =[2]FinStat_Appointee!$K42 -> 0 | U51: =[2]FinStat_Appointee!$L42 -> -0.209 | V51: =[2]FinStat_Appointee!$M42 -> -0.213 | W51: =[2]FinStat_Appointee!$N42 -> -0.218 | X51: =[2]FinStat_Appointee!$O42 -> -0.222 | Y51: =[2]FinStat_Appointee!$P42 -> -0.226 | Z51: -0.2176 | AA51: -1.088 | AC51: 0 | AD51: 0 | AE51: 0 | AF51: 0 | AG51: 0 | AH51: 0 | AI51: 0 | AK51: 0 | AM51: 0 | AN51: 0 | AO51: 0 | AP51: 0 | AQ51: 0 | AR51: 0 | AS51: 0 | AU51: 0
E52: Change in trade and other receivables - Appointee - nominal | F52: CF | G52: £m | I52: =[1]FinStat_Appointee!$J43 -> 0 | J52: =[1]FinStat_Appointee!$K43 -> 0 | K52: =[1]FinStat_Appointee!$L43 -> -31.37 | L52: =[1]FinStat_Appointee!$M43 -> -17.336 | M52: =[1]FinStat_Appointee!$N43 -> -20.209 | N52: =[1]FinStat_Appointee!$O43 -> -21.039 | O52: =[1]FinStat_Appointee!$P43 -> -20.032 | P52: -21.9972 | Q52: -109.986 | S52: =[2]FinStat_Appointee!$J43 -> 0 | T52: =[2]FinStat_Appointee!$K43 -> 0 | U52: =[2]FinStat_Appointee!$L43 -> 4.409533923 | V52: =[2]FinStat_Appointee!$M43 -> -16.40989871 | W52: =[2]FinStat_Appointee!$N43 -> -14.42186995 | X52: =[2]FinStat_Appointee!$O43 -> -15.00228187 | Y52: =[2]FinStat_Appointee!$P43 -> -16.5214327 | Z52: -11.58918986 | AA52: -57.94594932 | AC52: 0 | AD52: 0 | AE52: -35.78 | AF52: -0.926 | AG52: -5.787 | AH52: -6.037 | AI52: -3.511 | AK52: -52.04 | AM52: 0 | AN52: 0 | AO52: -8.11423625 | AP52: 0.05642935501 | AQ52: 0.4012655792 | AR52: 0.4024054508 | AS52: 0.2125118362 | AU52: 0.8980783059
E53: Change in trade creditors and other payables - Appointee - nominal | F53: CF | G53: £m | I53: =[1]FinStat_Appointee!$J44 -> 0 | J53: =[1]FinStat_Appointee!$K44 -> 0 | K53: =[1]FinStat_Appointee!$L44 -> 23.65649596 | L53: =[1]FinStat_Appointee!$M44 -> 11.61255642 | M53: =[1]FinStat_Appointee!$N44 -> 1.901487736 | N53: =[1]FinStat_Appointee!$O44 -> 13.34250548 | O53: =[1]FinStat_Appointee!$P44 -> 12.18872913 | P53: 12.54035494 | Q53: 62.70177472 | S53: =[2]FinStat_Appointee!$J44 -> 0 | T53: =[2]FinStat_Appointee!$K44 -> 0 | U53: =[2]FinStat_Appointee!$L44 -> -45.41770846 | V53: =[2]FinStat_Appointee!$M44 -> 36.3217689 | W53: =[2]FinStat_Appointee!$N44 -> -11.58940748 | X53: =[2]FinStat_Appointee!$O44 -> -13.80140649 | Y53: =[2]FinStat_Appointee!$P44 -> 6.928292756 | Z53: -5.511692154 | AA53: -27.55846077 | AC53: 0 | AD53: 0 | AE53: 69.074 | AF53: -24.709 | AG53: 13.491 | AH53: 27.144 | AI53: 5.26 | AK53: 90.26 | AM53: 0 | AN53: 0 | AO53: -1.520860527 | AP53: -0.6802807448 | AQ53: -1.164080219 | AR53: -1.966756071 | AS53: 0.7592057936 | AU53: -3.275219206
E54: Pension contributions - Appointee - nominal | F54: CF | G54: £m | I54: =[1]FinStat_Appointee!$J45 -> 0 | J54: =[1]FinStat_Appointee!$K45 -> 0 | K54: =[1]FinStat_Appointee!$L45 -> -11.96945112 | L54: =[1]FinStat_Appointee!$M45 -> -12.32738418 | M54: =[1]FinStat_Appointee!$N45 -> -12.69708606 | N54: =[1]FinStat_Appointee!$O45 -> -13.07664505 | O54: =[1]FinStat_Appointee!$P45 -> -13.46938687 | P54: -12.70799066 | Q54: -63.53995329 | S54: =[2]FinStat_Appointee!$J45 -> 0 | T54: =[2]FinStat_Appointee!$K45 -> 0 | U54: =[2]FinStat_Appointee!$L45 -> -24.71116116 | V54: =[2]FinStat_Appointee!$M45 -> -25.20642183 | W54: =[2]FinStat_Appointee!$N45 -> -25.72948663 | X54: =[2]FinStat_Appointee!$O45 -> 0 | Y54: =[2]FinStat_Appointee!$P45 -> 0 | Z54: -15.12941392 | AA54: -75.64706962 | AC54: 0 | AD54: 0 | AE54: 12.742 | AF54: 12.879 | AG54: 13.032 | AH54: -13.077 | AI54: -13.469 | AK54: 12.107 | AM54: 0 | AN54: 0 | AO54: -0.5156374449 | AP54: -0.5109412231 | AQ54: -0.5065005838 | AR54: 0 | AS54: 0 | AU54: -0.1600458559
E55: Provision - Appointee - nominal | F55: CF | G55: £m | I55: =[1]FinStat_Appointee!$J46 -> 0 | J55: =[1]FinStat_Appointee!$K46 -> 0 | K55: =[1]FinStat_Appointee!$L46 -> 0.335 | L55: =[1]FinStat_Appointee!$M46 -> 0.34 | M55: =[1]FinStat_Appointee!$N46 -> 0.349 | N55: =[1]FinStat_Appointee!$O46 -> 0.356 | O55: =[1]FinStat_Appointee!$P46 -> 0.361 | P55: 0.3482 | Q55: 1.741 | S55: =[2]FinStat_Appointee!$J46 -> 0 | T55: =[2]FinStat_Appointee!$K46 -> 0 | U55: =[2]FinStat_Appointee!$L46 -> 0.335 | V55: =[2]FinStat_Appointee!$M46 -> 0.34 | W55: =[2]FinStat_Appointee!$N46 -> 0.349 | X55: =[2]FinStat_Appointee!$O46 -> 0.356 | Y55: =[2]FinStat_Appointee!$P46 -> 0.361 | Z55: 0.3482 | AA55: 1.741 | AC55: 0 | AD55: 0 | AE55: 0 | AF55: 0 | AG55: 0 | AH55: 0 | AI55: 0 | AK55: 0 | AM55: 0 | AN55: 0 | AO55: 0 | AP55: 0 | AQ55: 0 | AR55: 0 | AS55: 0 | AU55: 0
E56: Other liability movement - Appointee - nominal | F56: CF | G56: £m | I56: =[1]FinStat_Appointee!$J47 -> 0 | J56: =[1]FinStat_Appointee!$K47 -> 0 | K56: =[1]FinStat_Appointee!$L47 -> 0 | L56: =[1]FinStat_Appointee!$M47 -> 0 | M56: =[1]FinStat_Appointee!$N47 -> 0 | N56: =[1]FinStat_Appointee!$O47 -> 0 | O56: =[1]FinStat_Appointee!$P47 -> 0 | P56: 0 | Q56: 0 | S56: =[2]FinStat_Appointee!$J47 -> 0 | T56: =[2]FinStat_Appointee!$K47 -> 0 | U56: =[2]FinStat_Appointee!$L47 -> 0 | V56: =[2]FinStat_Appointee!$M47 -> 0 | W56: =[2]FinStat_Appointee!$N47 -> 0 | X56: =[2]FinStat_Appointee!$O47 -> 0 | Y56: =[2]FinStat_Appointee!$P47 -> 0 | Z56: 0 | AA56: 0 | AC56: 0 | AD56: 0 | AE56: 0 | AF56: 0 | AG56: 0 | AH56: 0 | AI56: 0 | AK56: 0 | AM56: 0 | AN56: 0 | AO56: 0 | AP56: 0 | AQ56: 0 | AR56: 0 | AS56: 0 | AU56: 0
E57: Net cash generated / (used) in operations - Appointee - nominal | G57: £m | I57: =[1]FinStat_Appointee!$J48 -> 0 | J57: =[1]FinStat_Appointee!$K48 -> 17.20615284 | K57: =[1]FinStat_Appointee!$L48 -> 629.93518 | L57: =[1]FinStat_Appointee!$M48 -> 650.2513596 | M57: =[1]FinStat_Appointee!$N48 -> 670.9328323 | N57: =[1]FinStat_Appointee!$O48 -> 725.1736055 | O57: =[1]FinStat_Appointee!$P48 -> 769.3161284 | P57: 689.1218211 | Q57: 3462.815259 | S57: =[2]FinStat_Appointee!$J48 -> 0 | T57: =[2]FinStat_Appointee!$K48 -> 0 | U57: =[2]FinStat_Appointee!$L48 -> 569.9877881 | V57: =[2]FinStat_Appointee!$M48 -> 646.9165102 | W57: =[2]FinStat_Appointee!$N48 -> 612.8999994 | X57: =[2]FinStat_Appointee!$O48 -> 652.3059715 | Y57: =[2]FinStat_Appointee!$P48 -> 692.6575111 | Z57: 634.9535561 | AA57: 3174.76778 | AC57: 0 | AD57: 17.206 | AE57: 59.947 | AF57: 3.335 | AG57: 58.033 | AH57: 72.868 | AI57: 76.659 | AK57: 288.047 | AM57: 0 | AN57: 0 | AO57: 0.1051724287 | AP57: 0.005155224743 | AQ57: 0.0946859195 | AR57: 0.1117083136 | AS57: 0.1106737439 | AU57: 0.09073010057
AC58: 0 | AD58: 0 | AE58: 0 | AF58: 0 | AG58: 0 | AH58: 0 | AI58: 0 | AK58: 0 | AM58: 0 | AN58: 0 | AO58: 0 | AP58: 0 | AQ58: 0 | AR58: 0 | AS58: 0 | AU58: 0
E59: Other Income (incl. 3rd party income) - Appointee - nominal | F59: PL & CF | G59: £m | I59: =[1]FinStat_Appointee!$J50 -> 0 | J59: =[1]FinStat_Appointee!$K50 -> 0 | K59: =[1]FinStat_Appointee!$L50 -> 26.84821871 | L59: =[1]FinStat_Appointee!$M50 -> 27.98802285 | M59: =[1]FinStat_Appointee!$N50 -> 28.68586981 | N59: =[1]FinStat_Appointee!$O50 -> 29.404591 | O59: =[1]FinStat_Appointee!$P50 -> 29.7964887 | P59: 28.54463821 | Q59: =SUM(I59:O59) -> 142.7231911 | S59: =[2]FinStat_Appointee!$J50 -> 0 | T59: =[2]FinStat_Appointee!$K50 -> 0 | U59: =[2]FinStat_Appointee!$L50 -> 26.74367765 | V59: =[2]FinStat_Appointee!$M50 -> 27.88019114 | W59: =[2]FinStat_Appointee!$N50 -> 28.5963958 | X59: =[2]FinStat_Appointee!$O50 -> 29.34161334 | Y59: =[2]FinStat_Appointee!$P50 -> 29.76182137 | Z59: 28.46473986 | AA59: =SUM(S59:Y59) -> 142.3236993 | AC59: 0 | AD59: 0 | AE59: 0.105 | AF59: 0.108 | AG59: 0.089 | AH59: 0.063 | AI59: 0.035 | AK59: 0.399 | AM59: 0 | AN59: 0 | AO59: 0.003926161591 | AP59: 0.003873718062 | AQ59: 0.003112280324 | AR59: 0.002147121198 | AS59: 0.001176003295 | AU59: 0.002803468445
E60: Interest (income) /expense excl. indexation of index-linked loans - Appointee - nominal | F60: PL & CF | G60: £m | I60: =[1]FinStat_Appointee!$J51 -> 0 | J60: =[1]FinStat_Appointee!$K51 -> 0 | K60: =[1]FinStat_Appointee!$L51 -> -163.5433936 | L60: =[1]FinStat_Appointee!$M51 -> -172.1428017 | M60: =[1]FinStat_Appointee!$N51 -> -186.4270501 | N60: =[1]FinStat_Appointee!$O51 -> -204.2221124 | O60: =[1]FinStat_Appointee!$P51 -> -218.9291353 | P60: -189.0528986 | Q60: =SUM(I60:O60) -> -945.264493 | S60: =[2]FinStat_Appointee!$J51 -> 0 | T60: =[2]FinStat_Appointee!$K51 -> 0 | U60: =[2]FinStat_Appointee!$L51 -> -151.569324 | V60: =[2]FinStat_Appointee!$M51 -> -155.6585822 | W60: =[2]FinStat_Appointee!$N51 -> -165.2471606 | X60: =[2]FinStat_Appointee!$O51 -> -175.400811 | Y60: =[2]FinStat_Appointee!$P51 -> -180.5968997 | Z60: -165.6945555 | AA60: =SUM(S60:Y60) -> -828.4727774 | AC60: 0 | AD60: 0 | AE60: -11.974 | AF60: -16.484 | AG60: -21.18 | AH60: -28.821 | AI60: -38.332 | AK60: -116.792 | AM60: 0 | AN60: 0 | AO60: 0.07900015443 | AP60: 0.1058984334 | AQ60: 0.1281716426 | AR60: 0.1643150898 | AS60: 0.2122517056 | AU60: 0.1409726465
E61: Tax paid - Appointee - nominal | F61: CF | G61: £m | I61: =[1]FinStat_Appointee!$J52 -> 0 | J61: =[1]FinStat_Appointee!$K52 -> 0 | K61: =[1]FinStat_Appointee!$L52 -> -5.692927302 | L61: =[1]FinStat_Appointee!$M52 -> -2.052268638 | M61: =[1]FinStat_Appointee!$N52 -> -2.174472065 | N61: =[1]FinStat_Appointee!$O52 -> -2.29574324 | O61: =[1]FinStat_Appointee!$P52 -> -2.405549049 | P61: -2.924192059 | Q61: =SUM(I61:O61) -> -14.62096029 | S61: =[2]FinStat_Appointee!$J52 -> 0 | T61: =[2]FinStat_Appointee!$K52 -> 0 | U61: =[2]FinStat_Appointee!$L52 -> -4.261153055 | V61: =[2]FinStat_Appointee!$M52 -> -1.940064453 | W61: =[2]FinStat_Appointee!$N52 -> -2.036762784 | X61: =[2]FinStat_Appointee!$O52 -> -2.13979574 | Y61: =[2]FinStat_Appointee!$P52 -> -2.240545526 | Z61: -2.523664312 | AA61: =SUM(S61:Y61) -> -12.61832156 | AC61: 0 | AD61: 0 | AE61: -1.432 | AF61: -0.112 | AG61: -0.138 | AH61: -0.156 | AI61: -0.165 | AK61: -2.003 | AM61: 0 | AN61: 0 | AO61: 0.3360592735 | AP61: 0.05773004077 | AQ61: 0.06775457656 | AR61: 0.07290415487 | AS61: 0.07364277944 | AU61: 0.1587374351
E62: Net cash generated / (used) in operating activities - Appointee - nominal | G62: £m | I62: =[1]FinStat_Appointee!$J53 -> 0 | J62: =[1]FinStat_Appointee!$K53 -> 17.20615284 | K62: =[1]FinStat_Appointee!$L53 -> 487.5470778 | L62: =[1]FinStat_Appointee!$M53 -> 504.0443121 | M62: =[1]FinStat_Appointee!$N53 -> 511.0171799 | N62: =[1]FinStat_Appointee!$O53 -> 548.0603409 | O62: =[1]FinStat_Appointee!$P53 -> 577.7779327 | P62: 525.6893687 | Q62: =SUM(I62:O62) -> 2645.652996 | S62: =[2]FinStat_Appointee!$J53 -> 0 | T62: =[2]FinStat_Appointee!$K53 -> 0 | U62: =[2]FinStat_Appointee!$L53 -> 440.9009887 | V62: =[2]FinStat_Appointee!$M53 -> 517.1980547 | W62: =[2]FinStat_Appointee!$N53 -> 474.2124718 | X62: =[2]FinStat_Appointee!$O53 -> 504.1069781 | Y62: =[2]FinStat_Appointee!$P53 -> 539.5818872 | Z62: 495.2000761 | AA62: =SUM(S62:Y62) -> 2476.000381 | AC62: 0 | AD62: 17.206 | AE62: 46.646 | AF62: -13.154 | AG62: 36.805 | AH62: 43.953 | AI62: 38.196 | AK62: 169.653 | AM62: 0 | AN62: 0 | AO62: 0.1057969957 | AP62: -0.02543319697 | AQ62: 0.07761288913 | AR62: 0.08718982658 | AS62: 0.07078814338 | AU62: 0.0685189717
AC63: 0 | AD63: 0 | AE63: 0 | AF63: 0 | AG63: 0 | AH63: 0 | AI63: 0 | AK63: 0 | AM63: 0 | AN63: 0 | AO63: 0 | AP63: 0 | AQ63: 0 | AR63: 0 | AS63: 0 | AU63: 0
B64: Cash flow from investing activities | AC64: 0 | AD64: 0 | AE64: 0 | AF64: 0 | AG64: 0 | AH64: 0 | AI64: 0 | AK64: 0 | AM64: 0 | AN64: 0 | AO64: 0 | AP64: 0 | AQ64: 0 | AR64: 0 | AS64: 0 | AU64: 0
E65: Capex - Appointee - nominal | F65: CF | G65: £m | I65: =[1]FinStat_Appointee!$J56 -> 0 | J65: =[1]FinStat_Appointee!$K56 -> 0 | K65: =[1]FinStat_Appointee!$L56 -> -500.6378212 | L65: =[1]FinStat_Appointee!$M56 -> -702.997447 | M65: =[1]FinStat_Appointee!$N56 -> -768.9677871 | N65: =[1]FinStat_Appointee!$O56 -> -904.2224808 | O65: =[1]FinStat_Appointee!$P56 -> -683.4745534 | P65: -712.0600179 | Q65: =SUM(I65:O65) -> -3560.300089 | S65: =[2]FinStat_Appointee!$J56 -> 0 | T65: =[2]FinStat_Appointee!$K56 -> 0 | U65: =[2]FinStat_Appointee!$L56 -> -386.9701115 | V65: =[2]FinStat_Appointee!$M56 -> -644.7124123 | W65: =[2]FinStat_Appointee!$N56 -> -661.4485624 | X65: =[2]FinStat_Appointee!$O56 -> -655.4293262 | Y65: =[2]FinStat_Appointee!$P56 -> -480.1113857 | Z65: -565.7343596 | AA65: =SUM(S65:Y65) -> -2828.671798 | AC65: 0 | AD65: 0 | AE65: -113.668 | AF65: -58.285 | AG65: -107.519 | AH65: -248.793 | AI65: -203.363 | AK65: -731.628 | AM65: 0 | AN65: 0 | AO65: 0.293738448 | AP65: 0.09040465002 | AQ65: 0.1625508106 | AR65: 0.3795878366 | AS65: 0.4235746247 | AU65: 0.2586471857
E66: Investment in other non-current assets - Appointee - nominal | F66: CF | G66: £m | I66: =[1]FinStat_Appointee!$J57 -> 0 | J66: =[1]FinStat_Appointee!$K57 -> 0 | K66: =[1]FinStat_Appointee!$L57 -> 0 | L66: =[1]FinStat_Appointee!$M57 -> 0 | M66: =[1]FinStat_Appointee!$N57 -> 0 | N66: =[1]FinStat_Appointee!$O57 -> 0 | O66: =[1]FinStat_Appointee!$P57 -> 0 | P66: 0 | Q66: =SUM(I66:O66) -> 0 | S66: =[2]FinStat_Appointee!$J57 -> 0 | T66: =[2]FinStat_Appointee!$K57 -> 0 | U66: =[2]FinStat_Appointee!$L57 -> 0 | V66: =[2]FinStat_Appointee!$M57 -> 0 | W66: =[2]FinStat_Appointee!$N57 -> 0 | X66: =[2]FinStat_Appointee!$O57 -> 0 | Y66: =[2]FinStat_Appointee!$P57 -> 0 | Z66: 0 | AA66: =SUM(S66:Y66) -> 0 | AC66: 0 | AD66: 0 | AE66: 0 | AF66: 0 | AG66: 0 | AH66: 0 | AI66: 0 | AK66: 0 | AM66: 0 | AN66: 0 | AO66: 0 | AP66: 0 | AQ66: 0 | AR66: 0 | AS66: 0 | AU66: 0
E67: Net cash generated / (used) in investing activities - Appointee - nominal | G67: £m | I67: =[1]FinStat_Appointee!$J58 -> 0 | J67: =[1]FinStat_Appointee!$K58 -> 0 | K67: =[1]FinStat_Appointee!$L58 -> -500.6378212 | L67: =[1]FinStat_Appointee!$M58 -> -702.997447 | M67: =[1]FinStat_Appointee!$N58 -> -768.9677871 | N67: =[1]FinStat_Appointee!$O58 -> -904.2224808 | O67: =[1]FinStat_Appointee!$P58 -> -683.4745534 | P67: -712.0600179 | Q67: =SUM(I67:O67) -> -3560.300089 | S67: =[2]FinStat_Appointee!$J58 -> 0 | T67: =[2]FinStat_Appointee!$K58 -> 0 | U67: =[2]FinStat_Appointee!$L58 -> -386.9701115 | V67: =[2]FinStat_Appointee!$M58 -> -644.7124123 | W67: =[2]FinStat_Appointee!$N58 -> -661.4485624 | X67: =[2]FinStat_Appointee!$O58 -> -655.4293262 | Y67: =[2]FinStat_Appointee!$P58 -> -480.1113857 | Z67: -565.7343596 | AA67: =SUM(S67:Y67) -> -2828.671798 | AC67: 0 | AD67: 0 | AE67: -113.668 | AF67: -58.285 | AG67: -107.519 | AH67: -248.793 | AI67: -203.363 | AK67: -731.628 | AM67: 0 | AN67: 0 | AO67: 0.293738448 | AP67: 0.09040465002 | AQ67: 0.1625508106 | AR67: 0.3795878366 | AS67: 0.4235746247 | AU67: 0.2586471857
AC68: 0 | AD68: 0 | AE68: 0 | AF68: 0 | AG68: 0 | AH68: 0 | AI68: 0 | AK68: 0 | AM68: 0 | AN68: 0 | AO68: 0 | AP68: 0 | AQ68: 0 | AR68: 0 | AS68: 0 | AU68: 0
E69: Net cash generated before financing activities - Appointee - nominal | G69: £m | I69: =[1]FinStat_Appointee!$J60 -> 0 | J69: =[1]FinStat_Appointee!$K60 -> 17.20615284 | K69: =[1]FinStat_Appointee!$L60 -> -13.09074333 | L69: =[1]FinStat_Appointee!$M60 -> -198.9531348 | M69: =[1]FinStat_Appointee!$N60 -> -257.9506072 | N69: =[1]FinStat_Appointee!$O60 -> -356.1621399 | O69: =[1]FinStat_Appointee!$P60 -> -105.6966207 | P69: -186.3706492 | Q69: =SUM(I69:O69) -> -914.647093 | S69: =[2]FinStat_Appointee!$J60 -> 0 | T69: =[2]FinStat_Appointee!$K60 -> 0 | U69: =[2]FinStat_Appointee!$L60 -> 53.93087717 | V69: =[2]FinStat_Appointee!$M60 -> -127.5143576 | W69: =[2]FinStat_Appointee!$N60 -> -187.2360906 | X69: =[2]FinStat_Appointee!$O60 -> -151.3223481 | Y69: =[2]FinStat_Appointee!$P60 -> 59.47050157 | Z69: -70.53428351 | AA69: =SUM(S69:Y69) -> -352.6714175 | AC69: 0 | AD69: 17.206 | AE69: -67.022 | AF69: -71.439 | AG69: -70.715 | AH69: -204.84 | AI69: -165.167 | AK69: -561.976 | AM69: 0 | AN69: 0 | AO69: -1.242738919 | AP69: 0.5602427943 | AQ69: 0.3776782551 | AR69: 1.353666544 | AS69: -2.77729287 | AU69: 1.59348326
AC70: 0 | AD70: 0 | AE70: 0 | AF70: 0 | AG70: 0 | AH70: 0 | AI70: 0 | AK70: 0 | AM70: 0 | AN70: 0 | AO70: 0 | AP70: 0 | AQ70: 0 | AR70: 0 | AS70: 0 | AU70: 0
B71: Cash flows from financing activities | AC71: 0 | AD71: 0 | AE71: 0 | AF71: 0 | AG71: 0 | AH71: 0 | AI71: 0 | AK71: 0 | AM71: 0 | AN71: 0 | AO71: 0 | AP71: 0 | AQ71: 0 | AR71: 0 | AS71: 0 | AU71: 0
E72: Dividend paid - Appointee - nominal | F72: CF | G72: £m | I72: =[1]FinStat_Appointee!$J63 -> 0 | J72: =[1]FinStat_Appointee!$K63 -> 0 | K72: =[1]FinStat_Appointee!$L63 -> -87.09800188 | L72: =[1]FinStat_Appointee!$M63 -> -90.0393014 | M72: =[1]FinStat_Appointee!$N63 -> -93.07992861 | N72: =[1]FinStat_Appointee!$O63 -> -96.2232378 | O72: =[1]FinStat_Appointee!$P63 -> -99.47269654 | P72: -93.18263324 | Q72: =SUM(I72:O72) -> -465.9131662 | S72: =[2]FinStat_Appointee!$J63 -> 0 | T72: =[2]FinStat_Appointee!$K63 -> 0 | U72: =[2]FinStat_Appointee!$L63 -> -59.91811815 | V72: =[2]FinStat_Appointee!$M63 -> -61.84020022 | W72: =[2]FinStat_Appointee!$N63 -> -63.86831862 | X72: =[2]FinStat_Appointee!$O63 -> -65.97902604 | Y72: =[2]FinStat_Appointee!$P63 -> -68.1594877 | Z72: -63.95303015 | AA72: =SUM(S72:Y72) -> -319.7651507 | AC72: 0 | AD72: 0 | AE72: -27.18 | AF72: -28.199 | AG72: -29.212 | AH72: -30.244 | AI72: -31.313 | AK72: -146.148 | AM72: 0 | AN72: 0 | AO72: 0.4536190528 | AP72: 0.4559978768 | AQ72: 0.4573785663 | AR72: 0.4583880941 | AS72: 0.4594077957 | AU72: 0.4570479293
E73: Proceeds from share issues - Appointee - nominal | F73: CF | G73: £m | I73: =[1]FinStat_Appointee!$J64 -> 0 | J73: =[1]FinStat_Appointee!$K64 -> 0 | K73: =[1]FinStat_Appointee!$L64 -> 0 | L73: =[1]FinStat_Appointee!$M64 -> 0 | M73: =[1]FinStat_Appointee!$N64 -> 0 | N73: =[1]FinStat_Appointee!$O64 -> 0 | O73: =[1]FinStat_Appointee!$P64 -> 0 | P73: 0 | Q73: =SUM(I73:O73) -> 0 | S73: =[2]FinStat_Appointee!$J64 -> 0 | T73: =[2]FinStat_Appointee!$K64 -> 0 | U73: =[2]FinStat_Appointee!$L64 -> 0 | V73: =[2]FinStat_Appointee!$M64 -> 0 | W73: =[2]FinStat_Appointee!$N64 -> 0 | X73: =[2]FinStat_Appointee!$O64 -> 0 | Y73: =[2]FinStat_Appointee!$P64 -> 0 | Z73: 0 | AA73: =SUM(S73:Y73) -> 0 | AC73: 0 | AD73: 0 | AE73: 0 | AF73: 0 | AG73: 0 | AH73: 0 | AI73: 0 | AK73: 0 | AM73: 0 | AN73: 0 | AO73: 0 | AP73: 0 | AQ73: 0 | AR73: 0 | AS73: 0 | AU73: 0
E74: Net loans received - Appointee - nominal | F74: CF | G74: £m | I74: =[1]FinStat_Appointee!$J65 -> 0 | J74: =[1]FinStat_Appointee!$K65 -> 0 | K74: =[1]FinStat_Appointee!$L65 -> 0 | L74: =[1]FinStat_Appointee!$M65 -> 0 | M74: =[1]FinStat_Appointee!$N65 -> 0 | N74: =[1]FinStat_Appointee!$O65 -> 0 | O74: =[1]FinStat_Appointee!$P65 -> 0 | P74: 0 | Q74: =SUM(I74:O74) -> 0 | S74: =[2]FinStat_Appointee!$J65 -> 0 | T74: =[2]FinStat_Appointee!$K65 -> 0 | U74: =[2]FinStat_Appointee!$L65 -> 0 | V74: =[2]FinStat_Appointee!$M65 -> 0 | W74: =[2]FinStat_Appointee!$N65 -> 0 | X74: =[2]FinStat_Appointee!$O65 -> 0 | Y74: =[2]FinStat_Appointee!$P65 -> 0 | Z74: 0 | AA74: =SUM(S74:Y74) -> 0 | AC74: 0 | AD74: 0 | AE74: 0 | AF74: 0 | AG74: 0 | AH74: 0 | AI74: 0 | AK74: 0 | AM74: 0 | AN74: 0 | AO74: 0 | AP74: 0 | AQ74: 0 | AR74: 0 | AS74: 0 | AU74: 0
E75: Net cash generated / (used) in financing activities - Appointee - nominal | G75: £m | I75: =[1]FinStat_Appointee!$J66 -> 0 | J75: =[1]FinStat_Appointee!$K66 -> 0 | K75: =[1]FinStat_Appointee!$L66 -> -87.09800188 | L75: =[1]FinStat_Appointee!$M66 -> -90.0393014 | M75: =[1]FinStat_Appointee!$N66 -> -93.07992861 | N75: =[1]FinStat_Appointee!$O66 -> -96.2232378 | O75: =[1]FinStat_Appointee!$P66 -> -99.47269654 | P75: -93.18263324 | Q75: =SUM(I75:O75) -> -465.9131662 | S75: =[2]FinStat_Appointee!$J66 -> 0 | T75: =[2]FinStat_Appointee!$K66 -> 0 | U75: =[2]FinStat_Appointee!$L66 -> -59.91811815 | V75: =[2]FinStat_Appointee!$M66 -> -61.84020022 | W75: =[2]FinStat_Appointee!$N66 -> -63.86831862 | X75: =[2]FinStat_Appointee!$O66 -> -65.97902604 | Y75: =[2]FinStat_Appointee!$P66 -> -68.1594877 | Z75: -63.95303015 | AA75: =SUM(S75:Y75) -> -319.7651507 | AC75: 0 | AD75: 0 | AE75: -27.18 | AF75: -28.199 | AG75: -29.212 | AH75: -30.244 | AI75: -31.313 | AK75: -146.148 | AM75: 0 | AN75: 0 | AO75: 0.4536190528 | AP75: 0.4559978768 | AQ75: 0.4573785663 | AR75: 0.4583880941 | AS75: 0.4594077957 | AU75: 0.4570479293
AC76: 0 | AD76: 0 | AE76: 0 | AF76: 0 | AG76: 0 | AH76: 0 | AI76: 0 | AK76: 0 | AM76: 0 | AN76: 0 | AO76: 0 | AP76: 0 | AQ76: 0 | AR76: 0 | AS76: 0 | AU76: 0
E77: Increase / (decrease) in cash - Appointee - nominal | G77: £m | I77: =[1]FinStat_Appointee!$J68 -> 0 | J77: =[1]FinStat_Appointee!$K68 -> 17.20615284 | K77: =[1]FinStat_Appointee!$L68 -> -100.1887452 | L77: =[1]FinStat_Appointee!$M68 -> -288.9924362 | M77: =[1]FinStat_Appointee!$N68 -> -351.0305358 | N77: =[1]FinStat_Appointee!$O68 -> -452.3853777 | O77: =[1]FinStat_Appointee!$P68 -> -205.1693172 | P77: -279.5532824 | Q77: =SUM(I77:O77) -> -1380.560259 | S77: =[2]FinStat_Appointee!$J68 -> 0 | T77: =[2]FinStat_Appointee!$K68 -> 0 | U77: =[2]FinStat_Appointee!$L68 -> -5.987240982 | V77: =[2]FinStat_Appointee!$M68 -> -189.3545578 | W77: =[2]FinStat_Appointee!$N68 -> -251.1044092 | X77: =[2]FinStat_Appointee!$O68 -> -217.3013741 | Y77: =[2]FinStat_Appointee!$P68 -> -8.688986125 | Z77: -134.4873137 | AA77: =SUM(S77:Y77) -> -672.4365683 | AC77: 0 | AD77: 17.206 | AE77: -94.202 | AF77: -99.638 | AG77: -99.926 | AH77: -235.084 | AI77: -196.48 | AK77: -708.124 | AM77: 0 | AN77: 0 | AO77: 15.73379129 | AP77: 0.5261980549 | AQ77: 0.3979460189 | AR77: 1.081833932 | AS77: 22.61253467 | AU77: 1.053071819
AC78: 0 | AD78: 0 | AE78: 0 | AF78: 0 | AG78: 0 | AH78: 0 | AI78: 0 | AK78: 0 | AM78: 0 | AN78: 0 | AO78: 0 | AP78: 0 | AQ78: 0 | AR78: 0 | AS78: 0 | AU78: 0
B79: Retained cash balance - Appointee | AC79: 0 | AD79: 0 | AE79: 0 | AF79: 0 | AG79: 0 | AH79: 0 | AI79: 0 | AK79: 0 | AM79: 0 | AN79: 0 | AO79: 0 | AP79: 0 | AQ79: 0 | AR79: 0 | AS79: 0 | AU79: 0
E80: Cash and cash equivalents b/f - Appointee - nominal | F80: 0 | G80: £m | I80: =[1]FinStat_Appointee!$J71 -> 0 | J80: =[1]FinStat_Appointee!$K71 -> 512.191 | K80: =[1]FinStat_Appointee!$L71 -> 224.774 | L80: =[1]FinStat_Appointee!$M71 -> 194.345 | M80: =[1]FinStat_Appointee!$N71 -> 128.239 | N80: =[1]FinStat_Appointee!$O71 -> 157.276 | O80: =[1]FinStat_Appointee!$P71 -> 424.837 | P80: 225.8942 | Q80: =SUM(I80:O80) -> 1641.662 | S80: =[2]FinStat_Appointee!$J71 -> 0 | T80: =[2]FinStat_Appointee!$K71 -> 512.191 | U80: =[2]FinStat_Appointee!$L71 -> 224.774 | V80: =[2]FinStat_Appointee!$M71 -> 194.345 | W80: =[2]FinStat_Appointee!$N71 -> 128.239 | X80: =[2]FinStat_Appointee!$O71 -> 157.276 | Y80: =[2]FinStat_Appointee!$P71 -> 424.837 | Z80: 225.8942 | AA80: =SUM(S80:Y80) -> 1641.662 | AC80: 0 | AD80: 0 | AE80: 0 | AF80: 0 | AG80: 0 | AH80: 0 | AI80: 0 | AK80: 0 | AM80: 0 | AN80: 0 | AO80: 0 | AP80: 0 | AQ80: 0 | AR80: 0 | AS80: 0 | AU80: 0
E81: Last pre-forecast period flag | F81: 0 | G81: flag | I81: =[1]FinStat_Appointee!$J72 -> 0 | J81: =[1]FinStat_Appointee!$K72 -> 1 | K81: =[1]FinStat_Appointee!$L72 -> 0 | L81: =[1]FinStat_Appointee!$M72 -> 0 | M81: =[1]FinStat_Appointee!$N72 -> 0 | N81: =[1]FinStat_Appointee!$O72 -> 0 | O81: =[1]FinStat_Appointee!$P72 -> 0 | P81: 0 | Q81: =SUM(I81:O81) -> 1 | S81: =[2]FinStat_Appointee!$J72 -> 0 | T81: =[2]FinStat_Appointee!$K72 -> 1 | U81: =[2]FinStat_Appointee!$L72 -> 0 | V81: =[2]FinStat_Appointee!$M72 -> 0 | W81: =[2]FinStat_Appointee!$N72 -> 0 | X81: =[2]FinStat_Appointee!$O72 -> 0 | Y81: =[2]FinStat_Appointee!$P72 -> 0 | Z81: 0 | AA81: =SUM(S81:Y81) -> 1 | AC81: 0 | AD81: 0 | AE81: 0 | AF81: 0 | AG81: 0 | AH81: 0 | AI81: 0 | AK81: 0 | AM81: 0 | AN81: 0 | AO81: 0 | AP81: 0 | AQ81: 0 | AR81: 0 | AS81: 0 | AU81: 0
AC82: 0 | AD82: 0 | AE82: 0 | AF82: 0 | AG82: 0 | AH82: 0 | AI82: 0 | AK82: 0 | AM82: 0 | AN82: 0 | AO82: 0 | AP82: 0 | AQ82: 0 | AR82: 0 | AS82: 0 | AU82: 0
E83: Retained cash balance - Appointee BEG - nominal | G83: £m | I83: =[1]FinStat_Appointee!$J74 -> 0 | J83: =[1]FinStat_Appointee!$K74 -> 0 | K83: =[1]FinStat_Appointee!$L74 -> 512.191 | L83: =[1]FinStat_Appointee!$M74 -> 412.0022548 | M83: =[1]FinStat_Appointee!$N74 -> 123.0098186 | N83: =[1]FinStat_Appointee!$O74 -> -228.0207172 | O83: =[1]FinStat_Appointee!$P74 -> -680.4060949 | P83: 27.75525226 | Q83: =SUM(I83:O83) -> 138.7762613 | S83: =[2]FinStat_Appointee!$J74 -> 0 | T83: =[2]FinStat_Appointee!$K74 -> 0 | U83: =[2]FinStat_Appointee!$L74 -> 512.191 | V83: =[2]FinStat_Appointee!$M74 -> 506.203759 | W83: =[2]FinStat_Appointee!$N74 -> 316.8492012 | X83: =[2]FinStat_Appointee!$O74 -> 65.74479198 | Y83: =[2]FinStat_Appointee!$P74 -> -151.5565821 | Z83: 249.886434 | AA83: =SUM(S83:Y83) -> 1249.43217 | AC83: 0 | AD83: 0 | AE83: 0 | AF83: -94.202 | AG83: -193.839 | AH83: -293.766 | AI83: -528.85 | AK83: -1110.656 | AM83: 0 | AN83: 0 | AO83: 0 | AP83: -0.1860950227 | AQ83: -0.6117705181 | AR83: -4.468277884 | AS83: 3.489455836 | AU83: -0.8889286082
D84: plus | E84: Increase / (decrease) in cash - Appointee - nominal | F84: 0 | G84: £m | I84: =[1]FinStat_Appointee!$J75 -> 0 | J84: =[1]FinStat_Appointee!$K75 -> 17.20615284 | K84: =[1]FinStat_Appointee!$L75 -> -100.1887452 | L84: =[1]FinStat_Appointee!$M75 -> -288.9924362 | M84: =[1]FinStat_Appointee!$N75 -> -351.0305358 | N84: =[1]FinStat_Appointee!$O75 -> -452.3853777 | O84: =[1]FinStat_Appointee!$P75 -> -205.1693172 | P84: -279.5532824 | Q84: =SUM(I84:O84) -> -1380.560259 | S84: =[2]FinStat_Appointee!$J75 -> 0 | T84: =[2]FinStat_Appointee!$K75 -> 0 | U84: =[2]FinStat_Appointee!$L75 -> -5.987240982 | V84: =[2]FinStat_Appointee!$M75 -> -189.3545578 | W84: =[2]FinStat_Appointee!$N75 -> -251.1044092 | X84: =[2]FinStat_Appointee!$O75 -> -217.3013741 | Y84: =[2]FinStat_Appointee!$P75 -> -8.688986125 | Z84: -134.4873137 | AA84: =SUM(S84:Y84) -> -672.4365683 | AC84: 0 | AD84: 17.206 | AE84: -94.202 | AF84: -99.638 | AG84: -99.926 | AH84: -235.084 | AI84: -196.48 | AK84: -708.124 | AM84: 0 | AN84: 0 | AO84: 15.73379129 | AP84: 0.5261980549 | AQ84: 0.3979460189 | AR84: 1.081833932 | AS84: 22.61253467 | AU84: 1.053071819
E85: Retained cash balance - Appointee - nominal | G85: £m | I85: =[1]FinStat_Appointee!$J76 -> 0 | J85: =[1]FinStat_Appointee!$K76 -> 512.191 | K85: =[1]FinStat_Appointee!$L76 -> 412.0022548 | L85: =[1]FinStat_Appointee!$M76 -> 123.0098186 | M85: =[1]FinStat_Appointee!$N76 -> -228.0207172 | N85: =[1]FinStat_Appointee!$O76 -> -680.4060949 | O85: =[1]FinStat_Appointee!$P76 -> -885.5754121 | P85: -251.7980302 | Q85: =SUM(I85:O85) -> -746.7991508 | S85: =[2]FinStat_Appointee!$J76 -> 0 | T85: =[2]FinStat_Appointee!$K76 -> 512.191 | U85: =[2]FinStat_Appointee!$L76 -> 506.203759 | V85: =[2]FinStat_Appointee!$M76 -> 316.8492012 | W85: =[2]FinStat_Appointee!$N76 -> 65.74479198 | X85: =[2]FinStat_Appointee!$O76 -> -151.5565821 | Y85: =[2]FinStat_Appointee!$P76 -> -160.2455683 | Z85: 115.3991204 | AA85: =SUM(S85:Y85) -> 1089.186602 | AC85: 0 | AD85: 0 | AE85: -94.202 | AF85: -193.839 | AG85: -293.766 | AH85: -528.85 | AI85: -725.33 | AK85: -1835.986 | AM85: 0 | AN85: 0 | AO85: -0.1860950227 | AP85: -0.6117705181 | AQ85: -4.468277884 | AR85: 3.489455836 | AS85: 4.526365427 | AU85: -1.685648719
A88: BALANCE SHEET
B90: Non-current assets
E91: Fixed Assets balance - Appointee - nominal | F91: BS | G91: £m | I91: =[1]FinStat_Appointee!$J83 -> 0 | J91: =[1]FinStat_Appointee!$K83 -> 9763.340774 | K91: =[1]FinStat_Appointee!$L83 -> 9924.405886 | L91: =[1]FinStat_Appointee!$M83 -> 10271.31277 | M91: =[1]FinStat_Appointee!$N83 -> 10667.04808 | N91: =[1]FinStat_Appointee!$O83 -> 11173.54339 | O91: =[1]FinStat_Appointee!$P83 -> 11424.34683 | P91: =AVERAGE(K91:O91) -> 10692.13139 | Q91: =SUM(I91:O91) -> 63223.99773 | S91: =[2]FinStat_Appointee!$J83 -> 0 | T91: =[2]FinStat_Appointee!$K83 -> 9763.340774 | U91: =[2]FinStat_Appointee!$L83 -> 9811.785756 | V91: =[2]FinStat_Appointee!$M83 -> 10103.77659 | W91: =[2]FinStat_Appointee!$N83 -> 10397.80894 | X91: =[2]FinStat_Appointee!$O83 -> 10665.80646 | Y91: =[2]FinStat_Appointee!$P83 -> 10729.23132 | Z91: =AVERAGE(U91:Y91) -> 10341.68181 | AA91: =SUM(S91:Y91) -> 61471.74984 | AC91: =ROUND(I91 - S91, 3) -> 0 | AD91: =ROUND(J91 - T91, 3) -> 0 | AE91: =ROUND(K91 - U91, 3) -> 112.62 | AF91: =ROUND(L91 - V91, 3) -> 167.536 | AG91: =ROUND(M91 - W91, 3) -> 269.239 | AH91: =ROUND(N91 - X91, 3) -> 507.737 | AI91: =ROUND(O91 - Y91, 3) -> 695.116 | AK91: =ROUND(Q91 - AA91, 3) -> 1752.248 | AM91: =IF(S91 = 0, 0, AC91 / S91) -> 0 | AN91: =IF(T91 = 0, 0, AD91 / T91) -> 0 | AO91: =IF(U91 = 0, 0, AE91 / U91) -> 0.01147803293 | AP91: =IF(V91 = 0, 0, AF91 / V91) -> 0.01658152261 | AQ91: =IF(W91 = 0, 0, AG91 / W91) -> 0.02589382066 | AR91: =IF(X91 = 0, 0, AH91 / X91) -> 0.04760418277 | AS91: =IF(Y91 = 0, 0, AI91 / Y91) -> 0.06478712028 | AU91: =IF(AA91 = 0, 0, AK91 / AA91) -> 0.0285049312
E92: Intangible assets & investments balance - Appointee - nominal | F92: BS | G92: £m | I92: =[1]FinStat_Appointee!$J84 -> 0 | J92: =[1]FinStat_Appointee!$K84 -> 0.013 | K92: =[1]FinStat_Appointee!$L84 -> 0.013 | L92: =[1]FinStat_Appointee!$M84 -> 0.013 | M92: =[1]FinStat_Appointee!$N84 -> 0.013 | N92: =[1]FinStat_Appointee!$O84 -> 0.013 | O92: =[1]FinStat_Appointee!$P84 -> 0.013 | P92: 0.013 | Q92: =SUM(I92:O92) -> 0.078 | S92: =[2]FinStat_Appointee!$J84 -> 0 | T92: =[2]FinStat_Appointee!$K84 -> 0.013 | U92: =[2]FinStat_Appointee!$L84 -> 0.013 | V92: =[2]FinStat_Appointee!$M84 -> 0.013 | W92: =[2]FinStat_Appointee!$N84 -> 0.013 | X92: =[2]FinStat_Appointee!$O84 -> 0.013 | Y92: =[2]FinStat_Appointee!$P84 -> 0.013 | Z92: 0.013 | AA92: =SUM(S92:Y92) -> 0.078 | AC92: 0 | AD92: 0 | AE92: 0 | AF92: 0 | AG92: 0 | AH92: 0 | AI92: 0 | AK92: 0 | AM92: 0 | AN92: 0 | AO92: 0 | AP92: 0 | AQ92: 0 | AR92: 0 | AS92: 0 | AU92: 0
E93: Retirement benefit asset balance - Appointee - nominal | F93: BS | G93: £m | I93: =[1]FinStat_Appointee!$J85 -> 0 | J93: =[1]FinStat_Appointee!$K85 -> 34.465 | K93: =[1]FinStat_Appointee!$L85 -> 46.43445112 | L93: =[1]FinStat_Appointee!$M85 -> 58.76183531 | M93: =[1]FinStat_Appointee!$N85 -> 71.45892136 | N93: =[1]FinStat_Appointee!$O85 -> 84.53556642 | O93: =[1]FinStat_Appointee!$P85 -> 98.00495329 | P93: =AVERAGE(K93:O93) -> 71.8391455 | Q93: =SUM(I93:O93) -> 393.6607275 | S93: =[2]FinStat_Appointee!$J85 -> 0 | T93: =[2]FinStat_Appointee!$K85 -> 34.465 | U93: =[2]FinStat_Appointee!$L85 -> 59.17616116 | V93: =[2]FinStat_Appointee!$M85 -> 84.38258299 | W93: =[2]FinStat_Appointee!$N85 -> 110.1120696 | X93: =[2]FinStat_Appointee!$O85 -> 110.1120696 | Y93: =[2]FinStat_Appointee!$P85 -> 110.1120696 | Z93: =AVERAGE(U93:Y93) -> 94.7789906 | AA93: =SUM(S93:Y93) -> 508.359953 | AC93: 0 | AD93: 0 | AE93: -12.742 | AF93: -25.621 | AG93: -38.653 | AH93: -25.577 | AI93: -12.107 | AK93: -114.699 | AM93: =IF(S93 = 0, 0, AC93 / S93) -> 0 | AN93: =IF(T93 = 0, 0, AD93 / T93) -> 0 | AO93: =IF(U93 = 0, 0, AE93 / U93) -> -0.2153231935 | AP93: =IF(V93 = 0, 0, AF93 / V93) -> -0.3036290084 | AQ93: =IF(W93 = 0, 0, AG93 / W93) -> -0.3510332712 | AR93: =IF(X93 = 0, 0, AH93 / X93) -> -0.23228153 | AS93: =IF(Y93 = 0, 0, AI93 / Y93) -> -0.109951616 | AU93: =IF(AA93 = 0, 0, AK93 / AA93) -> -0.2256255618
E94: Non-current assets - Appointee - nominal | G94: £m | I94: =[1]FinStat_Appointee!$J86 -> 0 | J94: =[1]FinStat_Appointee!$K86 -> 9797.818774 | K94: =[1]FinStat_Appointee!$L86 -> 9970.853337 | L94: =[1]FinStat_Appointee!$M86 -> 10330.0876 | M94: =[1]FinStat_Appointee!$N86 -> 10738.52 | N94: =[1]FinStat_Appointee!$O86 -> 11258.09195 | O94: =[1]FinStat_Appointee!$P86 -> 11522.36478 | P94: 10763.98354 | Q94: =SUM(I94:O94) -> 63617.73646 | S94: =[2]FinStat_Appointee!$J86 -> 0 | T94: =[2]FinStat_Appointee!$K86 -> 9797.818774 | U94: =[2]FinStat_Appointee!$L86 -> 9870.974917 | V94: =[2]FinStat_Appointee!$M86 -> 10188.17217 | W94: =[2]FinStat_Appointee!$N86 -> 10507.93401 | X94: =[2]FinStat_Appointee!$O86 -> 10775.93153 | Y94: =[2]FinStat_Appointee!$P86 -> 10839.35639 | Z94: 10436.4738 | AA94: =SUM(S94:Y94) -> 61980.18779 | AC94: 0 | AD94: 0 | AE94: 99.878 | AF94: 141.915 | AG94: 230.586 | AH94: 482.16 | AI94: 683.008 | AK94: 1637.549 | AM94: 0 | AN94: 0 | AO94: 0.01011835212 | AP94: 0.01392938768 | AQ94: 0.02194399011 | AR94: 0.04474415959 | AS94: 0.06301185933 | AU94: 0.02642052337
AC95: 0 | AD95: 0 | AE95: 0 | AF95: 0 | AG95: 0 | AH95: 0 | AI95: 0 | AK95: 0 | AM95: 0 | AN95: 0 | AO95: 0 | AP95: 0 | AQ95: 0 | AR95: 0 | AS95: 0 | AU95: 0
B96: Current assets | AC96: 0 | AD96: 0 | AE96: 0 | AF96: 0 | AG96: 0 | AH96: 0 | AI96: 0 | AK96: 0 | AM96: 0 | AN96: 0 | AO96: 0 | AP96: 0 | AQ96: 0 | AR96: 0 | AS96: 0 | AU96: 0
E97: Inventories balance - Appointee - nominal | F97: BS | G97: £m | I97: =[1]FinStat_Appointee!$J89 -> 0 | J97: =[1]FinStat_Appointee!$K89 -> 10.309 | K97: =[1]FinStat_Appointee!$L89 -> 10.518 | L97: =[1]FinStat_Appointee!$M89 -> 10.731 | M97: =[1]FinStat_Appointee!$N89 -> 10.949 | N97: =[1]FinStat_Appointee!$O89 -> 11.171 | O97: =[1]FinStat_Appointee!$P89 -> 11.397 | P97: =AVERAGE(K97:O97) -> 10.9532 | Q97: =SUM(I97:O97) -> 65.075 | S97: =[2]FinStat_Appointee!$J89 -> 0 | T97: =[2]FinStat_Appointee!$K89 -> 10.309 | U97: =[2]FinStat_Appointee!$L89 -> 10.518 | V97: =[2]FinStat_Appointee!$M89 -> 10.731 | W97: =[2]FinStat_Appointee!$N89 -> 10.949 | X97: =[2]FinStat_Appointee!$O89 -> 11.171 | Y97: =[2]FinStat_Appointee!$P89 -> 11.397 | Z97: =AVERAGE(U97:Y97) -> 10.9532 | AA97: =SUM(S97:Y97) -> 65.075 | AC97: 0 | AD97: 0 | AE97: 0 | AF97: 0 | AG97: 0 | AH97: 0 | AI97: 0 | AK97: 0 | AM97: 0 | AN97: 0 | AO97: 0 | AP97: 0 | AQ97: 0 | AR97: 0 | AS97: 0 | AU97: 0
E98: Trade debtor and other receivables balance - Appointee - nominal | F98: BS | G98: £m | I98: =[1]FinStat_Appointee!$J90 -> 0 | J98: =[1]FinStat_Appointee!$K90 -> 517.717 | K98: =[1]FinStat_Appointee!$L90 -> 549.087 | L98: =[1]FinStat_Appointee!$M90 -> 566.423 | M98: =[1]FinStat_Appointee!$N90 -> 586.632 | N98: =[1]FinStat_Appointee!$O90 -> 607.671 | O98: =[1]FinStat_Appointee!$P90 -> 627.703 | P98: 587.5032 | Q98: =SUM(I98:O98) -> 3455.233 | S98: =[2]FinStat_Appointee!$J90 -> 0 | T98: =[2]FinStat_Appointee!$K90 -> 517.717 | U98: =[2]FinStat_Appointee!$L90 -> 513.3074661 | V98: =[2]FinStat_Appointee!$M90 -> 529.7173648 | W98: =[2]FinStat_Appointee!$N90 -> 544.1392347 | X98: =[2]FinStat_Appointee!$O90 -> 559.1415166 | Y98: =[2]FinStat_Appointee!$P90 -> 575.6629493 | Z98: 544.3937063 | AA98: =SUM(S98:Y98) -> 3239.685532 | AC98: 0 | AD98: 0 | AE98: 35.78 | AF98: 36.706 | AG98: 42.493 | AH98: 48.529 | AI98: 52.04 | AK98: 215.547 | AM98: 0 | AN98: 0 | AO98: 0.06970481118 | AP98: 0.06929355622 | AQ98: 0.07809214496 | AR98: 0.0867919812 | AS98: 0.09040012052 | AU98: 0.06653330945
E99: Retained cash balance - Appointee - nominal | F99: BS | G99: £m | I99: =[1]FinStat_Appointee!$J91 -> 0 | J99: =[1]FinStat_Appointee!$K91 -> 512.191 | K99: =[1]FinStat_Appointee!$L91 -> 412.0022548 | L99: =[1]FinStat_Appointee!$M91 -> 123.0098186 | M99: =[1]FinStat_Appointee!$N91 -> -228.0207172 | N99: =[1]FinStat_Appointee!$O91 -> -680.4060949 | O99: =[1]FinStat_Appointee!$P91 -> -885.5754121 | P99: -251.7980302 | Q99: =SUM(I99:O99) -> -746.7991508 | S99: =[2]FinStat_Appointee!$J91 -> 0 | T99: =[2]FinStat_Appointee!$K91 -> 512.191 | U99: =[2]FinStat_Appointee!$L91 -> 506.203759 | V99: =[2]FinStat_Appointee!$M91 -> 316.8492012 | W99: =[2]FinStat_Appointee!$N91 -> 65.74479198 | X99: =[2]FinStat_Appointee!$O91 -> -151.5565821 | Y99: =[2]FinStat_Appointee!$P91 -> -160.2455683 | Z99: 115.3991204 | AA99: =SUM(S99:Y99) -> 1089.186602 | AC99: 0 | AD99: 0 | AE99: -94.202 | AF99: -193.839 | AG99: -293.766 | AH99: -528.85 | AI99: -725.33 | AK99: -1835.986 | AM99: 0 | AN99: 0 | AO99: -0.1860950227 | AP99: -0.6117705181 | AQ99: -4.468277884 | AR99: 3.489455836 | AS99: 4.526365427 | AU99: -1.685648719
E100: Current assets - Appointee - nominal | G100: £m | I100: =[1]FinStat_Appointee!$J92 -> 0 | J100: =[1]FinStat_Appointee!$K92 -> 1040.217 | K100: =[1]FinStat_Appointee!$L92 -> 971.6072548 | L100: =[1]FinStat_Appointee!$M92 -> 700.1638186 | M100: =[1]FinStat_Appointee!$N92 -> 369.5602828 | N100: =[1]FinStat_Appointee!$O92 -> -61.56409488 | O100: =[1]FinStat_Appointee!$P92 -> -246.4754121 | P100: 346.6583698 | Q100: =SUM(I100:O100) -> 2773.508849 | S100: =[2]FinStat_Appointee!$J92 -> 0 | T100: =[2]FinStat_Appointee!$K92 -> 1040.217 | U100: =[2]FinStat_Appointee!$L92 -> 1030.029225 | V100: =[2]FinStat_Appointee!$M92 -> 857.297566 | W100: =[2]FinStat_Appointee!$N92 -> 620.8330267 | X100: =[2]FinStat_Appointee!$O92 -> 418.7559345 | Y100: =[2]FinStat_Appointee!$P92 -> 426.8143811 | Z100: 670.7460267 | AA100: =SUM(S100:Y100) -> 4393.947133 | AC100: 0 | AD100: 0 | AE100: -58.422 | AF100: -157.134 | AG100: -251.273 | AH100: -480.32 | AI100: -673.29 | AK100: -1620.438 | AM100: 0 | AN100: 0 | AO100: -0.05671877902 | AP100: -0.1832899173 | AQ100: -0.4047352334 | AR100: -1.14701658 | AS100: -1.577477306 | AU100: -0.3687886884
AC101: 0 | AD101: 0 | AE101: 0 | AF101: 0 | AG101: 0 | AH101: 0 | AI101: 0 | AK101: 0 | AM101: 0 | AN101: 0 | AO101: 0 | AP101: 0 | AQ101: 0 | AR101: 0 | AS101: 0 | AU101: 0
B102: Liabilities | AC102: 0 | AD102: 0 | AE102: 0 | AF102: 0 | AG102: 0 | AH102: 0 | AI102: 0 | AK102: 0 | AM102: 0 | AN102: 0 | AO102: 0 | AP102: 0 | AQ102: 0 | AR102: 0 | AS102: 0 | AU102: 0
E103: Trade creditors and other payables balance - Appointee - nominal | F103: BS | G103: £m | I103: =[1]FinStat_Appointee!$J95 -> 0 | J103: =[1]FinStat_Appointee!$K95 -> 898.26 | K103: =[1]FinStat_Appointee!$L95 -> 921.9161142 | L103: =[1]FinStat_Appointee!$M95 -> 933.5286706 | M103: =[1]FinStat_Appointee!$N95 -> 935.4301583 | N103: =[1]FinStat_Appointee!$O95 -> 948.7726638 | O103: =[1]FinStat_Appointee!$P95 -> 960.961393 | P103: =AVERAGE(K103:O103) -> 940.1218 | Q103: =SUM(I103:O103) -> 5598.869 | S103: =[2]FinStat_Appointee!$J95 -> 0 | T103: =[2]FinStat_Appointee!$K95 -> 898.26 | U103: =[2]FinStat_Appointee!$L95 -> 892.9055884 | V103: =[2]FinStat_Appointee!$M95 -> 903.7935559 | W103: =[2]FinStat_Appointee!$N95 -> 902.2468955 | X103: =[2]FinStat_Appointee!$O95 -> 912.3241237 | Y103: =[2]FinStat_Appointee!$P95 -> 923.2045441 | Z103: =AVERAGE(U103:Y103) -> 906.8949415 | AA103: =SUM(S103:Y103) -> 5432.734708 | AC103: 0 | AD103: 0 | AE103: 29.011 | AF103: 29.735 | AG103: 33.183 | AH103: 36.449 | AI103: 37.757 | AK103: 166.134 | AM103: 0 | AN103: 0 | AO103: 0.0324905571 | AP103: 0.03290021245 | AQ103: 0.03677818141 | AR103: 0.03995180995 | AS103: 0.0408977623 | AU103: 0.03058017903
E104: Capex creditor balance - Appointee - nominal | F104: BS | G104: £m | I104: =[1]FinStat_Appointee!$J96 -> 0 | J104: =[1]FinStat_Appointee!$K96 -> 176.456 | K104: =[1]FinStat_Appointee!$L96 -> 176.4563818 | L104: =[1]FinStat_Appointee!$M96 -> 176.4563818 | M104: =[1]FinStat_Appointee!$N96 -> 176.4563818 | N104: =[1]FinStat_Appointee!$O96 -> 176.4563818 | O104: =[1]FinStat_Appointee!$P96 -> 176.4563818 | P104: 176.4563818 | Q104: 1058.737909 | S104: =[2]FinStat_Appointee!$J96 -> 0 | T104: =[2]FinStat_Appointee!$K96 -> 176.456 | U104: =[2]FinStat_Appointee!$L96 -> 136.3927032 | V104: =[2]FinStat_Appointee!$M96 -> 161.8265046 | W104: =[2]FinStat_Appointee!$N96 -> 151.7837574 | X104: =[2]FinStat_Appointee!$O96 -> 127.9051228 | Y104: =[2]FinStat_Appointee!$P96 -> 123.9529951 | Z104: 140.3722166 | AA104: 878.317083 | AC104: 0 | AD104: 0 | AE104: 40.064 | AF104: 14.63 | AG104: 24.673 | AH104: 48.551 | AI104: 52.503 | AK104: 180.421 | AM104: 0 | AN104: 0 | AO104: 0.2937400541 | AP104: 0.09040546257 | AQ104: 0.1625536251 | AR104: 0.3795860475 | AS104: 0.4235718545 | AU104: 0.2054167037
E105: Dividend creditor balance - Appointee - nominal | F105: BS | G105: £m | I105: =[1]FinStat_Appointee!$J97 -> 0 | J105: =[1]FinStat_Appointee!$K97 -> 0 | K105: =[1]FinStat_Appointee!$L97 -> 0 | L105: =[1]FinStat_Appointee!$M97 -> 0 | M105: =[1]FinStat_Appointee!$N97 -> 0 | N105: =[1]FinStat_Appointee!$O97 -> 0 | O105: =[1]FinStat_Appointee!$P97 -> 0 | P105: 0 | Q105: 0 | S105: =[2]FinStat_Appointee!$J97 -> 0 | T105: =[2]FinStat_Appointee!$K97 -> 0 | U105: =[2]FinStat_Appointee!$L97 -> 0 | V105: =[2]FinStat_Appointee!$M97 -> 0 | W105: =[2]FinStat_Appointee!$N97 -> 0 | X105: =[2]FinStat_Appointee!$O97 -> 0 | Y105: =[2]FinStat_Appointee!$P97 -> 0 | Z105: 0 | AA105: 0 | AC105: 0 | AD105: 0 | AE105: 0 | AF105: 0 | AG105: 0 | AH105: 0 | AI105: 0 | AK105: 0 | AM105: 0 | AN105: 0 | AO105: 0 | AP105: 0 | AQ105: 0 | AR105: 0 | AS105: 0 | AU105: 0
E106: Debt balance - Appointee - nominal | F106: BS | G106: £m | I106: =[1]FinStat_Appointee!$J98 -> 0 | J106: =[1]FinStat_Appointee!$K98 -> 5292.514896 | K106: =[1]FinStat_Appointee!$L98 -> 5339.840103 | L106: =[1]FinStat_Appointee!$M98 -> 5388.585065 | M106: =[1]FinStat_Appointee!$N98 -> 5438.792377 | N106: =[1]FinStat_Appointee!$O98 -> 5490.505908 | O106: =[1]FinStat_Appointee!$P98 -> 5543.770845 | P106: 5440.29886 | Q106: 32494.00919 | S106: =[2]FinStat_Appointee!$J98 -> 0 | T106: =[2]FinStat_Appointee!$K98 -> 5239.914988 | U106: =[2]FinStat_Appointee!$L98 -> 5286.719456 | V106: =[2]FinStat_Appointee!$M98 -> 5334.928057 | W106: =[2]FinStat_Appointee!$N98 -> 5384.582917 | X106: =[2]FinStat_Appointee!$O98 -> 5435.727422 | Y106: =[2]FinStat_Appointee!$P98 -> 5488.406263 | Z106: 5386.072823 | AA106: 32170.2791 | AC106: 0 | AD106: 52.6 | AE106: 53.121 | AF106: 53.657 | AG106: 54.209 | AH106: 54.778 | AI106: 55.365 | AK106: 323.73 | AM106: 0 | AN106: 0.0100383308 | AO106: 0.01004800812 | AP106: 0.01005768015 | AQ106: 0.01006744642 | AR106: 0.01007740009 | AS106: 0.01008762787 | AU106: 0.01006301496
E107: Preference share capital balance - Appointee - nominal | F107: BS | G107: £m | I107: =[1]FinStat_Appointee!$J99 -> 0 | J107: =[1]FinStat_Appointee!$K99 -> 0 | K107: =[1]FinStat_Appointee!$L99 -> 0 | L107: =[1]FinStat_Appointee!$M99 -> 0 | M107: =[1]FinStat_Appointee!$N99 -> 0 | N107: =[1]FinStat_Appointee!$O99 -> 0 | O107: =[1]FinStat_Appointee!$P99 -> 0 | P107: 0 | Q107: 0 | S107: =[2]FinStat_Appointee!$J99 -> 0 | T107: =[2]FinStat_Appointee!$K99 -> 0 | U107: =[2]FinStat_Appointee!$L99 -> 0 | V107: =[2]FinStat_Appointee!$M99 -> 0 | W107: =[2]FinStat_Appointee!$N99 -> 0 | X107: =[2]FinStat_Appointee!$O99 -> 0 | Y107: =[2]FinStat_Appointee!$P99 -> 0 | Z107: 0 | AA107: 0 | AC107: 0 | AD107: 0 | AE107: 0 | AF107: 0 | AG107: 0 | AH107: 0 | AI107: 0 | AK107: 0 | AM107: 0 | AN107: 0 | AO107: 0 | AP107: 0 | AQ107: 0 | AR107: 0 | AS107: 0 | AU107: 0
E108: Current tax liabilities balance - Appointee - nominal | F108: BS | G108: £m | I108: =[1]FinStat_Appointee!$J100 -> 0 | J108: =[1]FinStat_Appointee!$K100 -> 0 | K108: =[1]FinStat_Appointee!$L100 -> 0 | L108: =[1]FinStat_Appointee!$M100 -> 0 | M108: =[1]FinStat_Appointee!$N100 -> 0 | N108: =[1]FinStat_Appointee!$O100 -> 0 | O108: =[1]FinStat_Appointee!$P100 -> 0 | P108: 0 | Q108: 0 | S108: =[2]FinStat_Appointee!$J100 -> 0 | T108: =[2]FinStat_Appointee!$K100 -> 0 | U108: =[2]FinStat_Appointee!$L100 -> 0 | V108: =[2]FinStat_Appointee!$M100 -> 0 | W108: =[2]FinStat_Appointee!$N100 -> 0 | X108: =[2]FinStat_Appointee!$O100 -> 0 | Y108: =[2]FinStat_Appointee!$P100 -> 0 | Z108: 0 | AA108: 0 | AC108: 0 | AD108: 0 | AE108: 0 | AF108: 0 | AG108: 0 | AH108: 0 | AI108: 0 | AK108: 0 | AM108: 0 | AN108: 0 | AO108: 0 | AP108: 0 | AQ108: 0 | AR108: 0 | AS108: 0 | AU108: 0
E109: Retirement benefit liability balance - Appointee - nominal | F109: BS | G109: £m | I109: =[1]FinStat_Appointee!$J101 -> 0 | J109: =[1]FinStat_Appointee!$K101 -> 0 | K109: =[1]FinStat_Appointee!$L101 -> 0 | L109: =[1]FinStat_Appointee!$M101 -> 0 | M109: =[1]FinStat_Appointee!$N101 -> 0 | N109: =[1]FinStat_Appointee!$O101 -> 0 | O109: =[1]FinStat_Appointee!$P101 -> 0 | P109: 0 | Q109: 0 | S109: =[2]FinStat_Appointee!$J101 -> 0 | T109: =[2]FinStat_Appointee!$K101 -> 0 | U109: =[2]FinStat_Appointee!$L101 -> 0 | V109: =[2]FinStat_Appointee!$M101 -> 0 | W109: =[2]FinStat_Appointee!$N101 -> 0 | X109: =[2]FinStat_Appointee!$O101 -> 0 | Y109: =[2]FinStat_Appointee!$P101 -> 0 | Z109: 0 | AA109: 0 | AC109: 0 | AD109: 0 | AE109: 0 | AF109: 0 | AG109: 0 | AH109: 0 | AI109: 0 | AK109: 0 | AM109: 0 | AN109: 0 | AO109: 0 | AP109: 0 | AQ109: 0 | AR109: 0 | AS109: 0 | AU109: 0
E110: Provision liabilities balance - Appointee - nominal | F110: BS | G110: £m | I110: =[1]FinStat_Appointee!$J102 -> 0 | J110: =[1]FinStat_Appointee!$K102 -> 0 | K110: =[1]FinStat_Appointee!$L102 -> 0.335 | L110: =[1]FinStat_Appointee!$M102 -> 0.675 | M110: =[1]FinStat_Appointee!$N102 -> 1.024 | N110: =[1]FinStat_Appointee!$O102 -> 1.38 | O110: =[1]FinStat_Appointee!$P102 -> 1.741 | P110: 1.031 | Q110: 5.155 | S110: =[2]FinStat_Appointee!$J102 -> 0 | T110: =[2]FinStat_Appointee!$K102 -> 16.731 | U110: =[2]FinStat_Appointee!$L102 -> 17.066 | V110: =[2]FinStat_Appointee!$M102 -> 17.406 | W110: =[2]FinStat_Appointee!$N102 -> 17.755 | X110: =[2]FinStat_Appointee!$O102 -> 18.111 | Y110: =[2]FinStat_Appointee!$P102 -> 18.472 | Z110: 17.762 | AA110: 105.541 | AC110: 0 | AD110: -16.731 | AE110: -16.731 | AF110: -16.731 | AG110: -16.731 | AH110: -16.731 | AI110: -16.731 | AK110: -100.386 | AM110: 0 | AN110: -1 | AO110: -0.980370327 | AP110: -0.9612202689 | AQ110: -0.9423261053 | AR110: -0.9238032135 | AS110: -0.9057492421 | AU110: -0.9511564226
E111: Others liabilities balance - Appointee - nominal | F111: BS | G111: £m | I111: =[1]FinStat_Appointee!$J103 -> 0 | J111: =[1]FinStat_Appointee!$K103 -> 0 | K111: =[1]FinStat_Appointee!$L103 -> 0 | L111: =[1]FinStat_Appointee!$M103 -> 0 | M111: =[1]FinStat_Appointee!$N103 -> 0 | N111: =[1]FinStat_Appointee!$O103 -> 0 | O111: =[1]FinStat_Appointee!$P103 -> 0 | P111: 0 | Q111: 0 | S111: =[2]FinStat_Appointee!$J103 -> 0 | T111: =[2]FinStat_Appointee!$K103 -> 591.31 | U111: =[2]FinStat_Appointee!$L103 -> 591.31 | V111: =[2]FinStat_Appointee!$M103 -> 591.31 | W111: =[2]FinStat_Appointee!$N103 -> 591.31 | X111: =[2]FinStat_Appointee!$O103 -> 591.31 | Y111: =[2]FinStat_Appointee!$P103 -> 591.31 | Z111: 591.31 | AA111: 3547.86 | AC111: 0 | AD111: -591.31 | AE111: -591.31 | AF111: -591.31 | AG111: -591.31 | AH111: -591.31 | AI111: -591.31 | AK111: -3547.86 | AM111: 0 | AN111: -1 | AO111: -1 | AP111: -1 | AQ111: -1 | AR111: -1 | AS111: -1 | AU111: -1
E112: Liabilities - Appointee - nominal | G112: £m | I112: =[1]FinStat_Appointee!$J104 -> 0 | J112: =[1]FinStat_Appointee!$K104 -> 6367.230896 | K112: =[1]FinStat_Appointee!$L104 -> 6438.547599 | L112: =[1]FinStat_Appointee!$M104 -> 6499.245118 | M112: =[1]FinStat_Appointee!$N104 -> 6551.702917 | N112: =[1]FinStat_Appointee!$O104 -> 6617.114954 | O112: =[1]FinStat_Appointee!$P104 -> 6682.92962 | P112: 6557.908041 | Q112: 39156.7711 | S112: =[2]FinStat_Appointee!$J104 -> 0 | T112: =[2]FinStat_Appointee!$K104 -> 6922.671988 | U112: =[2]FinStat_Appointee!$L104 -> 6924.393747 | V112: =[2]FinStat_Appointee!$M104 -> 7009.264118 | W112: =[2]FinStat_Appointee!$N104 -> 7047.67857 | X112: =[2]FinStat_Appointee!$O104 -> 7085.377669 | Y112: =[2]FinStat_Appointee!$P104 -> 7145.345802 | Z112: 7042.411981 | AA112: 42134.73189 | AC112: 0 | AD112: -555.441 | AE112: -485.846 | AF112: -510.019 | AG112: -495.976 | AH112: -468.263 | AI112: -462.416 | AK112: -2977.961 | AM112: 0 | AN112: -0.08023505966 | AO112: -0.07016440973 | AP112: -0.07276355855 | AQ112: -0.07037437861 | AR112: -0.06608864367 | AS112: -0.06471569226 | AU112: -0.07067710808
AC113: 0 | AD113: 0 | AE113: 0 | AF113: 0 | AG113: 0 | AH113: 0 | AI113: 0 | AK113: 0 | AM113: 0 | AN113: 0 | AO113: 0 | AP113: 0 | AQ113: 0 | AR113: 0 | AS113: 0 | AU113: 0
E114: Net assets before deferred tax - Appointee - nominal | G114: £m | I114: =[1]FinStat_Appointee!$J106 -> 0 | J114: =[1]FinStat_Appointee!$K106 -> 4470.804878 | K114: =[1]FinStat_Appointee!$L106 -> 4503.912994 | L114: =[1]FinStat_Appointee!$M106 -> 4531.006306 | M114: =[1]FinStat_Appointee!$N106 -> 4556.377368 | N114: =[1]FinStat_Appointee!$O106 -> 4579.412906 | O114: =[1]FinStat_Appointee!$P106 -> 4592.959752 | P114: =AVERAGE(K114:O114) -> 4552.733865 | Q114: =SUM(I114:O114) -> 27234.4742 | S114: =[2]FinStat_Appointee!$J106 -> 0 | T114: =[2]FinStat_Appointee!$K106 -> 3915.363786 | U114: =[2]FinStat_Appointee!$L106 -> 3976.610395 | V114: =[2]FinStat_Appointee!$M106 -> 4036.205622 | W114: =[2]FinStat_Appointee!$N106 -> 4081.088468 | X114: =[2]FinStat_Appointee!$O106 -> 4109.309793 | Y114: =[2]FinStat_Appointee!$P106 -> 4120.824968 | Z114: =AVERAGE(U114:Y114) -> 4064.807849 | AA114: =SUM(S114:Y114) -> 24239.40303 | AC114: 0 | AD114: 555.441 | AE114: 527.303 | AF114: 494.801 | AG114: 475.289 | AH114: 470.103 | AI114: 472.135 | AK114: 2995.071 | AM114: 0 | AN114: 0.1418619138 | AO114: 0.132601122 | AP114: 0.1225906325 | AQ114: 0.1164613322 | AR114: 0.1143995035 | AS114: 0.1145729323 | AU114: 0.1235620777
AC115: 0 | AD115: 0 | AE115: 0 | AF115: 0 | AG115: 0 | AH115: 0 | AI115: 0 | AK115: 0 | AM115: 0 | AN115: 0 | AO115: 0 | AP115: 0 | AQ115: 0 | AR115: 0 | AS115: 0 | AU115: 0
B116: Net assets | AC116: 0 | AD116: 0 | AE116: 0 | AF116: 0 | AG116: 0 | AH116: 0 | AI116: 0 | AK116: 0 | AM116: 0 | AN116: 0 | AO116: 0 | AP116: 0 | AQ116: 0 | AR116: 0 | AS116: 0 | AU116: 0
E117: Deferred tax balance - Appointee - nominal | F117: BS | G117: £m | I117: =[1]FinStat_Appointee!$J109 -> 0 | J117: =[1]FinStat_Appointee!$K109 -> -768.021 | K117: =[1]FinStat_Appointee!$L109 -> -779.9882244 | L117: =[1]FinStat_Appointee!$M109 -> -788.7711388 | M117: =[1]FinStat_Appointee!$N109 -> -795.9430053 | N117: =[1]FinStat_Appointee!$O109 -> -803.0983419 | O117: =[1]FinStat_Appointee!$P109 -> -804.8858095 | P117: =AVERAGE(K117:O117) -> -794.537304 | Q117: =SUM(I117:O117) -> -4740.70752 | S117: =[2]FinStat_Appointee!$J109 -> 0 | T117: =[2]FinStat_Appointee!$K109 -> -768.021 | U117: =[2]FinStat_Appointee!$L109 -> -778.9756368 | V117: =[2]FinStat_Appointee!$M109 -> -786.604252 | W117: =[2]FinStat_Appointee!$N109 -> -791.8725057 | X117: =[2]FinStat_Appointee!$O109 -> -794.8113707 | Y117: =[2]FinStat_Appointee!$P109 -> -791.3527334 | Z117: =AVERAGE(U117:Y117) -> -788.7232997 | AA117: =SUM(S117:Y117) -> -4711.637499 | AC117: 0 | AD117: 0 | AE117: -1.013 | AF117: -2.167 | AG117: -4.07 | AH117: -8.287 | AI117: -13.533 | AK117: -29.07 | AM117: 0 | AN117: 0 | AO117: 0.00130042578 | AP117: 0.002754879591 | AQ117: 0.005139716268 | AR117: 0.01042637323 | AS117: 0.01710109718 | AU117: 0.006169829493
E118: Net assets - Appointee - nominal | G118: £m | I118: =[1]FinStat_Appointee!$J110 -> 0 | J118: =[1]FinStat_Appointee!$K110 -> 3702.783878 | K118: =[1]FinStat_Appointee!$L110 -> 3723.924769 | L118: =[1]FinStat_Appointee!$M110 -> 3742.235167 | M118: =[1]FinStat_Appointee!$N110 -> 3760.434363 | N118: =[1]FinStat_Appointee!$O110 -> 3776.314564 | O118: =[1]FinStat_Appointee!$P110 -> 3788.073942 | P118: 3758.196561 | Q118: =SUM(I118:O118) -> 22493.76668 | S118: =[2]FinStat_Appointee!$J110 -> 0 | T118: =[2]FinStat_Appointee!$K110 -> 3147.342786 | U118: =[2]FinStat_Appointee!$L110 -> 3197.634758 | V118: =[2]FinStat_Appointee!$M110 -> 3249.60137 | W118: =[2]FinStat_Appointee!$N110 -> 3289.215963 | X118: =[2]FinStat_Appointee!$O110 -> 3314.498423 | Y118: =[2]FinStat_Appointee!$P110 -> 3329.472235 | Z118: 3276.08455 | AA118: =SUM(S118:Y118) -> 19527.76553 | AC118: 0 | AD118: 555.441 | AE118: 526.29 | AF118: 492.634 | AG118: 471.218 | AH118: 461.816 | AI118: 458.602 | AK118: 2966.001 | AM118: 0 | AN118: 0.1764793471 | AO118: 0.1645872777 | AP118: 0.1515982867 | AQ118: 0.1432614962 | AR118: 0.1393320922 | AS118: 0.1377401485 | AU118: 0.1518863484
AC119: 0 | AD119: 0 | AE119: 0 | AF119: 0 | AG119: 0 | AH119: 0 | AI119: 0 | AK119: 0 | AM119: 0 | AN119: 0 | AO119: 0 | AP119: 0 | AQ119: 0 | AR119: 0 | AS119: 0 | AU119: 0
B120: Equity | AC120: 0 | AD120: 0 | AE120: 0 | AF120: 0 | AG120: 0 | AH120: 0 | AI120: 0 | AK120: 0 | AM120: 0 | AN120: 0 | AO120: 0 | AP120: 0 | AQ120: 0 | AR120: 0 | AS120: 0 | AU120: 0
E121: Called up share capital, including share premium balance - Appointee - nominal | F121: BS | G121: £m | I121: =[1]FinStat_Appointee!$J113 -> 0 | J121: =[1]FinStat_Appointee!$K113 -> 10 | K121: =[1]FinStat_Appointee!$L113 -> 10 | L121: =[1]FinStat_Appointee!$M113 -> 10 | M121: =[1]FinStat_Appointee!$N113 -> 10 | N121: =[1]FinStat_Appointee!$O113 -> 10 | O121: =[1]FinStat_Appointee!$P113 -> 10 | P121: =AVERAGE(K121:O121) -> 10 | Q121: =SUM(I121:O121) -> 60 | S121: =[2]FinStat_Appointee!$J113 -> 0 | T121: =[2]FinStat_Appointee!$K113 -> 10 | U121: =[2]FinStat_Appointee!$L113 -> 10 | V121: =[2]FinStat_Appointee!$M113 -> 10 | W121: =[2]FinStat_Appointee!$N113 -> 10 | X121: =[2]FinStat_Appointee!$O113 -> 10 | Y121: =[2]FinStat_Appointee!$P113 -> 10 | Z121: =AVERAGE(U121:Y121) -> 10 | AA121: =SUM(S121:Y121) -> 60 | AC121: 0 | AD121: 0 | AE121: 0 | AF121: 0 | AG121: 0 | AH121: 0 | AI121: 0 | AK121: 0 | AM121: 0 | AN121: 0 | AO121: 0 | AP121: 0 | AQ121: 0 | AR121: 0 | AS121: 0 | AU121: 0
E122: Non-distributable reserves balance - Appointee - nominal | F122: BS | G122: £m | I122: =[1]FinStat_Appointee!$J114 -> 0 | J122: =[1]FinStat_Appointee!$K114 -> 772.481 | K122: =[1]FinStat_Appointee!$L114 -> 772.481 | L122: =[1]FinStat_Appointee!$M114 -> 772.481 | M122: =[1]FinStat_Appointee!$N114 -> 772.481 | N122: =[1]FinStat_Appointee!$O114 -> 772.481 | O122: =[1]FinStat_Appointee!$P114 -> 772.481 | P122: 772.481 | Q122: =SUM(I122:O122) -> 4634.886 | S122: =[2]FinStat_Appointee!$J114 -> 0 | T122: =[2]FinStat_Appointee!$K114 -> 772.481 | U122: =[2]FinStat_Appointee!$L114 -> 772.481 | V122: =[2]FinStat_Appointee!$M114 -> 772.481 | W122: =[2]FinStat_Appointee!$N114 -> 772.481 | X122: =[2]FinStat_Appointee!$O114 -> 772.481 | Y122: =[2]FinStat_Appointee!$P114 -> 772.481 | Z122: 772.481 | AA122: =SUM(S122:Y122) -> 4634.886 | AC122: 0 | AD122: 0 | AE122: 0 | AF122: 0 | AG122: 0 | AH122: 0 | AI122: 0 | AK122: 0 | AM122: 0 | AN122: 0 | AO122: 0 | AP122: 0 | AQ122: 0 | AR122: 0 | AS122: 0 | AU122: 0
E123: Retained earnings and other distributable reserves balance - Appointee - nominal | F123: BS | G123: £m | I123: =[1]FinStat_Appointee!$J115 -> 0 | J123: =[1]FinStat_Appointee!$K115 -> 2920.302878 | K123: =[1]FinStat_Appointee!$L115 -> 2941.443769 | L123: =[1]FinStat_Appointee!$M115 -> 2959.754167 | M123: =[1]FinStat_Appointee!$N115 -> 2977.953363 | N123: =[1]FinStat_Appointee!$O115 -> 2993.833564 | O123: =[1]FinStat_Appointee!$P115 -> 3005.592942 | P123: 2975.715561 | Q123: =SUM(I123:O123) -> 17798.88068 | S123: =[2]FinStat_Appointee!$J115 -> 0 | T123: =[2]FinStat_Appointee!$K115 -> 2364.861786 | U123: =[2]FinStat_Appointee!$L115 -> 2415.153758 | V123: =[2]FinStat_Appointee!$M115 -> 2467.12037 | W123: =[2]FinStat_Appointee!$N115 -> 2506.734963 | X123: =[2]FinStat_Appointee!$O115 -> 2532.017423 | Y123: =[2]FinStat_Appointee!$P115 -> 2546.991235 | Z123: 2493.60355 | AA123: =SUM(S123:Y123) -> 14832.87953 | AC123: 0 | AD123: 555.441 | AE123: 526.29 | AF123: 492.634 | AG123: 471.218 | AH123: 461.816 | AI123: 458.602 | AK123: 2966.001 | AM123: 0 | AN123: 0.2348725001 | AO123: 0.2179115918 | AP123: 0.1996797586 | AQ123: 0.1879807826 | AR123: 0.1823905301 | AS123: 0.1800563715 | AU123: 0.199961241
E124: Total equity - Appointee - nominal | G124: £m | I124: =[1]FinStat_Appointee!$J116 -> 0 | J124: =[1]FinStat_Appointee!$K116 -> 3702.783878 | K124: =[1]FinStat_Appointee!$L116 -> 3723.924769 | L124: =[1]FinStat_Appointee!$M116 -> 3742.235167 | M124: =[1]FinStat_Appointee!$N116 -> 3760.434363 | N124: =[1]FinStat_Appointee!$O116 -> 3776.314564 | O124: =[1]FinStat_Appointee!$P116 -> 3788.073942 | P124: 3758.196561 | Q124: =SUM(I124:O124) -> 22493.76668 | S124: =[2]FinStat_Appointee!$J116 -> 0 | T124: =[2]FinStat_Appointee!$K116 -> 3147.342786 | U124: =[2]FinStat_Appointee!$L116 -> 3197.634758 | V124: =[2]FinStat_Appointee!$M116 -> 3249.60137 | W124: =[2]FinStat_Appointee!$N116 -> 3289.215963 | X124: =[2]FinStat_Appointee!$O116 -> 3314.498423 | Y124: =[2]FinStat_Appointee!$P116 -> 3329.472235 | Z124: 3276.08455 | AA124: =SUM(S124:Y124) -> 19527.76553 | AC124: 0 | AD124: 555.441 | AE124: 526.29 | AF124: 492.634 | AG124: 471.218 | AH124: 461.816 | AI124: 458.602 | AK124: 2966.001 | AM124: 0 | AN124: 0.1764793471 | AO124: 0.1645872777 | AP124: 0.1515982867 | AQ124: 0.1432614962 | AR124: 0.1393320922 | AS124: 0.1377401485 | AU124: 0.1518863484
A126: Calculations
E128: Net debt | G128: £m | I128: =SUM(I106:I107) - I99 -> 0 | J128: =SUM(J106:J107) - J99 -> 4780.323896 | K128: =SUM(K106:K107) - K99 -> 4927.837848 | L128: 5265.575247 | M128: 5666.813094 | N128: 6170.912003 | O128: 6429.346257 | Q128: =SUM(I128:O128) -> 33240.80834 | S128: =SUM(S106:S107) - S99 -> 0 | T128: =SUM(T106:T107) - T99 -> 4727.723988 | U128: 4780.515697 | V128: 5018.078856 | W128: 5318.838125 | X128: 5587.284004 | Y128: 5648.651831 | AA128: =SUM(S128:Y128) -> 31081.0925 | AC128: =ROUND(I128 - S128, 3) -> 0 | AD128: 52.6 | AE128: 147.322 | AF128: 247.496 | AG128: 347.975 | AH128: 583.628 | AI128: 780.694 | AK128: =ROUND(Q128 - AA128, 3) -> 2159.716 | AM128: =IF(S128 = 0, 0, AC128 / S128) -> 0 | AN128: 0.01112586101 | AO128: 0.03081717734 | AP128: 0.04932086703 | AQ128: 0.06542312284 | AR128: 0.1044564764 | AS128: 0.1382089078 | AU128: =IF(AA128 = 0, 0, AK128 / AA128) -> 0.06948648925
E129: Average net debt | G129: £m | J129: =SUM(I99:J99,I106:J107) -> 5804.705896 | K129: =SUM(J99:K99,J106:K107) -> 11556.54825 | L129: 11263.43724 | M129: 10722.36654 | N129: 10020.87147 | O129: 9468.295246 | Q129: =SUM(I129:O129) -> 58836.22465 | T129: =SUM(S99:T99,S106:T107) -> 5752.105988 | U129: =SUM(T99:U99,T106:U107) -> 11545.0292 | V129: 11444.70047 | W129: 11102.10497 | X129: 10734.49855 | Y129: 10612.33153 | AA129: =SUM(S129:Y129) -> 61190.77072 | AC129: 0 | AD129: 52.6 | AE129: 11.519 | AF129: -181.263 | AG129: -379.738 | AH129: -713.627 | AI129: -1144.036 | AK129: =ROUND(Q129 - AA129, 3) -> -2354.546 | AM129: 0 | AN129: 0.009144476841 | AO129: 0.000997745419 | AP129: -0.01583816024 | AQ129: -0.03420414427 | AR129: -0.0664797705 | AS129: -0.1078025122 | AU129: -0.03847877666
E131: Total interest as a percentage of average net debt | G131: % | J131: =IF( J129 = 0, 0, SUM( J24:J25 ) / J129 ) -> 0 | K131: -0.01824667673 | L131: -0.0196110441 | M131: -0.02206922891 | N131: -0.02554025806 | O131: -0.02874794936 | T131: =IF( T129 = 0, 0, SUM( T24:T25 ) / T129 ) -> 0 | U131: -0.01718261496 | V131: -0.0178132389 | W131: -0.01935687158 | X131: -0.02110441538 | Y131: -0.02198157299 | AC131: =ROUND(I131 - S131, 3) -> 0 | AD131: 0 | AE131: -0.001 | AF131: -0.002 | AG131: -0.003 | AH131: -0.004 | AI131: -0.007 | AN131: 0 | AO131: 0.05819835937 | AP131: 0.1122760443 | AQ131: 0.1549837218 | AR131: 0.1895337979 | AS131: 0.3184485479
E133: ='Exec Summary'!E129 -> Average of RCV - Wholesale - nominal | G133: £m | I133: ='Exec Summary'!I129 -> 0 | J133: ='Exec Summary'!J129 -> 3983.603247 | K133: ='Exec Summary'!K129 -> 8203.992041 | L133: ='Exec Summary'!L129 -> 8606.514515 | M133: ='Exec Summary'!M129 -> 9131.054135 | N133: ='Exec Summary'!N129 -> 9740.279122 | O133: ='Exec Summary'!O129 -> 10292.22735 | S133: ='Exec Summary'!S129 -> 0 | T133: ='Exec Summary'!T129 -> 3939.76999 | U133: ='Exec Summary'!U129 -> 8044.889635 | V133: ='Exec Summary'!V129 -> 8345.280396 | W133: ='Exec Summary'!W129 -> 8781.181377 | X133: ='Exec Summary'!X129 -> 9213.299724 | Y133: ='Exec Summary'!Y129 -> 9546.565231 | AC133: =ROUND(I133 - S133, 3) -> 0 | AD133: =ROUND(J133 - T133, 3) -> 43.833 | AE133: =ROUND(K133 - U133, 3) -> 159.102 | AF133: =ROUND(L133 - V133, 3) -> 261.234 | AG133: =ROUND(M133 - W133, 3) -> 349.873 | AH133: =ROUND(N133 - X133, 3) -> 526.979 | AI133: =ROUND(O133 - Y133, 3) -> 745.662 | AM133: =IF(S133 = 0, 0, AC133 / S133) -> 0 | AN133: =IF(T133 = 0, 0, AD133 / T133) -> 0.01112577641 | AO133: =IF(U133 = 0, 0, AE133 / U133) -> 0.01977677845 | AP133: =IF(V133 = 0, 0, AF133 / V133) -> 0.03130320224 | AQ133: =IF(W133 = 0, 0, AG133 / W133) -> 0.03984349998 | AR133: =IF(X133 = 0, 0, AH133 / X133) -> 0.05719763991 | AS133: =IF(Y133 = 0, 0, AI133 / Y133) -> 0.07810788299 | AU133: =IF(AA133 = 0, 0, AK133 / AA133) -> 0
B134: less | E134: =E128 -> Net debt | F134: =F128 -> 0 | G134: £m | I134: =I128 -> 0 | J134: =J128 -> 4780.323896 | K134: 4927.837848 | L134: 5265.575247 | M134: 5666.813094 | N134: 6170.912003 | O134: 6429.346257 | S134: =S128 -> 0 | T134: =T128 -> 4727.723988 | U134: 4780.515697 | V134: 5018.078856 | W134: 5318.838125 | X134: 5587.284004 | Y134: 5648.651831 | AC134: =ROUND(I134 - S134, 3) -> 0 | AD134: =ROUND(J134 - T134, 3) -> 52.6 | AE134: =ROUND(K134 - U134, 3) -> 147.322 | AF134: =ROUND(L134 - V134, 3) -> 247.496 | AG134: =ROUND(M134 - W134, 3) -> 347.975 | AH134: =ROUND(N134 - X134, 3) -> 583.628 | AI134: =ROUND(O134 - Y134, 3) -> 780.694 | AM134: 0 | AN134: 0.01112586101 | AO134: 0.03081717734 | AP134: 0.04932086703 | AQ134: 0.06542312284 | AR134: 0.1044564764 | AS134: 0.1382089078 | AU134: 0
E135: Regulated equity (RCV - net debt). | G135: £m | I135: =I133 - I134 -> 0 | J135: =J133 - J134 -> -796.7206493 | K135: 3276.154193 | L135: 3340.939269 | M135: 3464.241041 | N135: 3569.367119 | O135: 3862.881094 | S135: =S133 - S134 -> 0 | T135: =T133 - T134 -> -787.9539981 | U135: 3264.373938 | V135: 3327.20154 | W135: 3462.343252 | X135: 3626.015719 | Y135: 3897.9134 | AC135: 0 | AD135: -8.767 | AE135: 11.78 | AF135: 13.738 | AG135: 1.898 | AH135: -56.649 | AI135: -35.032 | AM135: 0 | AN135: 0.01112628405 | AO135: 0.003608655204 | AP135: 0.004128995444 | AQ135: 0.0005481836611 | AR135: -0.01562293282 | AS135: -0.008987372578 | AU135: 0
E136: =E30 -> Profit after tax - Appointee - nominal | F136: =F30 -> 0 | G136: =G30 -> £m | I136: =I30 -> 0 | J136: 17.20615284 | K136: 108.2388927 | L136: 108.3496991 | M136: 111.2791243 | N136: 112.1034397 | O136: 111.2320744 | S136: =S30 -> 0 | T136: 0 | U136: 110.2100906 | V136: 113.8068118 | W136: 103.4829112 | X136: 91.2614863 | Y136: 83.13329978 | AC136: 0 | AD136: 17.206 | AE136: -1.971 | AF136: -5.457 | AG136: 7.796 | AH136: 20.842 | AI136: 28.099 | AM136: =IF(S136 = 0, 0, AC136 / S136) -> 0 | AN136: =IF(T136 = 0, 0, AD136 / T136) -> 0 | AO136: =IF(U136 = 0, 0, AE136 / U136) -> -0.01788402485 | AP136: =IF(V136 = 0, 0, AF136 / V136) -> -0.04794967818 | AQ136: =IF(W136 = 0, 0, AG136 / W136) -> 0.07533611016 | AR136: =IF(X136 = 0, 0, AH136 / X136) -> 0.228376732 | AS136: =IF(Y136 = 0, 0, AI136 / Y136) -> 0.3379993345 | AU136: =IF(AA136 = 0, 0, AK136 / AA136) -> 0
E137: Return on Regulated Equity | G137: % | I137: =-1 * I136 / I134 ->  | J137: =-1 * J136 / J134 -> -0.003599369669 | K137: -0.02196478375 | L137: -0.02057699189 | M137: -0.01963698511 | N137: -0.01816642981 | O137: -0.0173006819 | S137: =-1 * S136 / S134 ->  | T137: =-1 * T136 / T134 -> 0 | U137: -0.0230540171 | V137: -0.02267935898 | W137: -0.01945592417 | X137: -0.01633378333 | Y137: -0.01471737014 | AD137: -0.004 | AE137: 0.001 | AF137: 0.002 | AG137: 0 | AH137: -0.002 | AI137: -0.003 | AN137: 0 | AO137: -0.0433763884 | AP137: -0.08818591396 | AQ137: 0 | AR137: 0.1224456062 | AS137: 0.2038407658 | AU137: 0
E140: =E32 -> Dividend - Appointee - nominal | F140: =F32 -> PL | G140: =G32 -> £m | J140: =J32 -> 0 | K140: =K32 -> -87.09800188 | L140: =L32 -> -90.0393014 | M140: =M32 -> -93.07992861 | N140: =N32 -> -96.2232378 | O140: =O32 -> -99.47269654 | T140: =T32 -> 0 | U140: -59.91811815 | V140: -61.84020022 | W140: -63.86831862 | X140: -65.97902604 | Y140: -68.1594877 | AC140: =ROUND(I140 - S140, 3) -> 0 | AD140: =ROUND(J140 - T140, 3) -> 0 | AE140: =ROUND(K140 - U140, 3) -> -27.18 | AF140: =ROUND(L140 - V140, 3) -> -28.199 | AG140: =ROUND(M140 - W140, 3) -> -29.212 | AH140: =ROUND(N140 - X140, 3) -> -30.244 | AI140: =ROUND(O140 - Y140, 3) -> -31.313 | AM140: =IF(S140 = 0, 0, AC140 / S140) -> 0 | AN140: =IF(T140 = 0, 0, AD140 / T140) -> 0 | AO140: =IF(U140 = 0, 0, AE140 / U140) -> 0.4536190528 | AP140: =IF(V140 = 0, 0, AF140 / V140) -> 0.4559978768 | AQ140: =IF(W140 = 0, 0, AG140 / W140) -> 0.4573785663 | AR140: =IF(X140 = 0, 0, AH140 / X140) -> 0.4583880941 | AS140: =IF(Y140 = 0, 0, AI140 / Y140) -> 0.4594077957 | AU140: =IF(AA140 = 0, 0, AK140 / AA140) -> 0
E141: =E135 -> Regulated equity (RCV - net debt). | J141: =J135 -> -796.7206493 | K141: =K135 -> 3276.154193 | L141: =L135 -> 3340.939269 | M141: =M135 -> 3464.241041 | N141: =N135 -> 3569.367119 | O141: =O135 -> 3862.881094 | T141: =T135 -> -787.9539981 | U141: 3264.373938 | V141: 3327.20154 | W141: 3462.343252 | X141: 3626.015719 | Y141: 3897.9134 | AC141: 0 | AD141: -8.767 | AE141: 11.78 | AF141: 13.738 | AG141: 1.898 | AH141: -56.649 | AI141: -35.032 | AM141: 0 | AN141: 0.01112628405 | AO141: 0.003608655204 | AP141: 0.004128995444 | AQ141: 0.0005481836611 | AR141: -0.01562293282 | AS141: -0.008987372578 | AU141: 0
E142: Dividend as a % of Regulated Equity | J142: =J140 / J141 -> 0 | K142: =K140 / K141 -> -0.02658544035 | L142: =L140 / L141 -> -0.02695029576 | M142: -0.02686877948 | N142: -0.02695806696 | O142: -0.02575090822 | T142: 0 | U142: -0.01835516374 | V142: -0.01858625018 | W142: -0.01844655887 | X142: -0.01819601214 | Y142: -0.01748614726 | AC142: 0 | AD142: 0 | AE142: -0.008 | AF142: -0.008 | AG142: -0.008 | AH142: -0.009 | AI142: -0.008 | AM142: 0 | AN142: 0 | AO142: 0.4358446545 | AP142: 0.4304257138 | AQ142: 0.4336852232 | AR142: 0.494613871 | AS142: 0.4575050114 | AU142: 0

Sheet FinStat_Wholesale
E1: =RIGHT(CELL("FILENAME", $A$1), LEN(CELL("FILENAME", $A$1)) - SEARCH("]", CELL("FILENAME", $A$1))) -> FinStat_Wholesale | I1: ='Front sheet'!$F5 & ": " & 'Front sheet'!$G5 & " - " & 'Front sheet'!$H5 -> Model 1: ANH - Company 1 April NTN Post | S1: ='Front sheet'!$F6 & ": " & 'Front sheet'!$G6 & " - " & 'Front sheet'!$H6 -> Model 2: ANH - Ofwat FD NTN Post | AC1: ="Delta (" & 'Front sheet'!$F5 & " - " & 'Front sheet'!$F6 & ")" -> Delta (Model 1 - Model 2) | AM1: ="Delta (" & 'Front sheet'!$F5 & " - " & 'Front sheet'!$F6 & ") - %" -> Delta (Model 1 - Model 2) - %
D3: Model period ending | I3: 2019-03-31 | J3: 2020-03-31 | K3: 2021-03-31 | L3: 2022-03-31 | M3: 2023-03-31 | N3: 2024-03-31 | O3: 2025-03-31 | S3: 2019-03-31 | T3: 2020-03-31 | U3: 2021-03-31 | V3: 2022-03-31 | W3: 2023-03-31 | X3: 2024-03-31 | Y3: 2025-03-31 | AC3: 2019-03-31 | AD3: 2020-03-31 | AE3: 2021-03-31 | AF3: 2022-03-31 | AG3: 2023-03-31 | AH3: 2024-03-31 | AI3: 2025-03-31 | AM3: 2019-03-31 | AN3: 2020-03-31 | AO3: 2021-03-31 | AP3: 2022-03-31 | AQ3: 2023-03-31 | AR3: 2024-03-31 | AS3: 2025-03-31
D4: Timeline label | I4: Pre-Fcst | J4: Pre-Fcst | K4: Forecast | L4: Forecast | M4: Forecast | N4: Forecast | O4: Forecast | Q4: Total | S4: Pre-Fcst | T4: Pre-Fcst | U4: Forecast | V4: Forecast | W4: Forecast | X4: Forecast | Y4: Forecast | AA4: Total | AC4: Pre-Fcst | AD4: Pre-Fcst | AE4: Forecast | AF4: Forecast | AG4: Forecast | AH4: Forecast | AI4: Forecast | AK4: Total | AM4: Pre-Fcst | AN4: Pre-Fcst | AO4: Forecast | AP4: Forecast | AQ4: Forecast | AR4: Forecast | AS4: Forecast | AU4: Total
D5: Financial year ending | I5: 2019 | J5: 2020 | K5: 2021 | L5: 2022 | M5: 2023 | N5: 2024 | O5: 2025 | S5: 2019 | T5: 2020 | U5: 2021 | V5: 2022 | W5: 2023 | X5: 2024 | Y5: 2025 | AC5: 2019 | AD5: 2020 | AE5: 2021 | AF5: 2022 | AG5: 2023 | AH5: 2024 | AI5: 2025 | AM5: 2019 | AN5: 2020 | AO5: 2021 | AP5: 2022 | AQ5: 2023 | AR5: 2024 | AS5: 2025
D6: Model column counter | I6: 1 | J6: 2 | K6: 3 | L6: 4 | M6: 5 | N6: 6 | O6: 7 | S6: 1 | T6: 2 | U6: 3 | V6: 4 | W6: 5 | X6: 6 | Y6: 7 | AC6: 1 | AD6: 2 | AE6: 3 | AF6: 4 | AG6: 5 | AH6: 6 | AI6: 7 | AM6: 1 | AN6: 2 | AO6: 3 | AP6: 4 | AQ6: 5 | AR6: 6 | AS6: 7
E8: ='Front sheet'!$F5 & ": " & 'Front sheet'!$G5 & " - " & 'Front sheet'!$I5 -> Model 1: ANH -
E9: ='Front sheet'!$F6 & ": " & 'Front sheet'!$G6 & " - " & 'Front sheet'!$I6 -> Model 2: ANH -
E10: 3rd model not in use
D12: Check Delta (numbers) | AC12: =COUNTIF(AC19:AC310,"<>0") - COUNTBLANK(AC19:AC310) - AC13 -> 0 | AD12: 12 | AE12: 49 | AF12: 50 | AG12: 50 | AH12: 50 | AI12: 50 | AK12: =COUNTIF(AK19:AK310,"<>0") - COUNTBLANK(AK19:AK310) - AK13 -> 49 | AM12: =COUNTIF(AM19:AM310,"<>0") - COUNTBLANK(AM19:AM310) - AM13 -> 0 | AN12: 12 | AO12: 49 | AP12: 50 | AQ12: 50 | AR12: 49 | AS12: 49 | AU12: =COUNTIF(AU19:AU310,"<>0") - COUNTBLANK(AU19:AU310) - AU13 -> 49
D13: Check Delta (errors) | AC13: =COUNT( IF( ISERROR(AC19:AC308), 1) ) -> 0 | AD13: =COUNT( IF( ISERROR(AD19:AD308), 1) ) -> 0 | AE13: =COUNT( IF( ISERROR(AE19:AE308), 1) ) -> 0 | AF13: =COUNT( IF( ISERROR(AF19:AF308), 1) ) -> 0 | AG13: =COUNT( IF( ISERROR(AG19:AG308), 1) ) -> 0 | AH13: =COUNT( IF( ISERROR(AH19:AH308), 1) ) -> 0 | AI13: =COUNT( IF( ISERROR(AI19:AI308), 1) ) -> 0 | AK13: =COUNT( IF( ISERROR(AK19:AK308), 1) ) -> 0 | AM13: =COUNT( IF( ISERROR(AM19:AM308), 1) ) -> 0 | AN13: =COUNT( IF( ISERROR(AN19:AN308), 1) ) -> 0 | AO13: =COUNT( IF( ISERROR(AO19:AO308), 1) ) -> 0 | AP13: =COUNT( IF( ISERROR(AP19:AP308), 1) ) -> 0 | AQ13: =COUNT( IF( ISERROR(AQ19:AQ308), 1) ) -> 0 | AR13: =COUNT( IF( ISERROR(AR19:AR308), 1) ) -> 0 | AS13: =COUNT( IF( ISERROR(AS19:AS308), 1) ) -> 0 | AU13: =COUNT( IF( ISERROR(AU19:AU308), 1) ) -> 0
A15: PROFIT & LOSS
E17: Revenue requirement incl. tax charge - Wholesale - nominal | G17: £m | I17: =[1]FinStat_Wholesale!$J9 -> 0 | J17: =[1]FinStat_Wholesale!$K9 -> 0 | K17: =[1]FinStat_Wholesale!$L9 -> 1221.483688 | L17: =[1]FinStat_Wholesale!$M9 -> 1277.425457 | M17: =[1]FinStat_Wholesale!$N9 -> 1322.806294 | N17: =[1]FinStat_Wholesale!$O9 -> 1369.799638 | O17: =[1]FinStat_Wholesale!$P9 -> 1407.956555 | Q17: =SUM(I17:O17) -> 6599.471633 | S17: =[2]FinStat_Wholesale!$J9 -> 0 | T17: =[2]FinStat_Wholesale!$K9 -> 0 | U17: =[2]FinStat_Wholesale!$L9 -> 1123.730486 | V17: =[2]FinStat_Wholesale!$M9 -> 1170.049536 | W17: =[2]FinStat_Wholesale!$N9 -> 1200.445496 | X17: =[2]FinStat_Wholesale!$O9 -> 1231.059006 | Y17: =[2]FinStat_Wholesale!$P9 -> 1261.826386 | AA17: =SUM(S17:Y17) -> 5987.11091 | AC17: =ROUND(I17 - S17, 3) -> 0 | AD17: =ROUND(J17 - T17, 3) -> 0 | AE17: =ROUND(K17 - U17, 3) -> 97.753 | AF17: =ROUND(L17 - V17, 3) -> 107.376 | AG17: =ROUND(M17 - W17, 3) -> 122.361 | AH17: =ROUND(N17 - X17, 3) -> 138.741 | AI17: =ROUND(O17 - Y17, 3) -> 146.13 | AK17: =ROUND(Q17 - AA17, 3) -> 612.361 | AM17: =IF(S17 = 0, 0, AC17 / S17) -> 0 | AN17: =IF(T17 = 0, 0, AD17 / T17) -> 0 | AO17: =IF(U17 = 0, 0, AE17 / U17) -> 0.0869897197 | AP17: =IF(V17 = 0, 0, AF17 / V17) -> 0.09177047352 | AQ17: =IF(W17 = 0, 0, AG17 / W17) -> 0.101929659 | AR17: =IF(X17 = 0, 0, AH17 / X17) -> 0.112700528 | AS17: =IF(Y17 = 0, 0, AI17 / Y17) -> 0.1158083248 | AU17: =IF(AA17 = 0, 0, AK17 / AA17) -> 0.1022798824
E18: DPC costs - Wholesale - nominal | G18: £m | I18: =[1]FinStat_Wholesale!$J10 -> 0 | J18: =[1]FinStat_Wholesale!$K10 -> 0 | K18: =[1]FinStat_Wholesale!$L10 -> 0 | L18: =[1]FinStat_Wholesale!$M10 -> 0 | M18: =[1]FinStat_Wholesale!$N10 -> 0 | N18: =[1]FinStat_Wholesale!$O10 -> 0 | O18: =[1]FinStat_Wholesale!$P10 -> 0 | Q18: =SUM(I18:O18) -> 0 | S18: =[2]FinStat_Wholesale!$J10 -> 0 | T18: =[2]FinStat_Wholesale!$K10 -> 0 | U18: =[2]FinStat_Wholesale!$L10 -> 0 | V18: =[2]FinStat_Wholesale!$M10 -> 0 | W18: =[2]FinStat_Wholesale!$N10 -> 0 | X18: =[2]FinStat_Wholesale!$O10 -> 0 | Y18: =[2]FinStat_Wholesale!$P10 -> 0 | AA18: =SUM(S18:Y18) -> 0 | AC18: 0 | AD18: 0 | AE18: 0 | AF18: 0 | AG18: 0 | AH18: 0 | AI18: 0 | AK18: 0 | AM18: 0 | AN18: 0 | AO18: 0 | AP18: 0 | AQ18: 0 | AR18: 0 | AS18: 0 | AU18: 0
E19: Operating expenditure - Wholesale - nominal | G19: £m | I19: =[1]FinStat_Wholesale!$J11 -> 0 | J19: =[1]FinStat_Wholesale!$K11 -> 0 | K19: =[1]FinStat_Wholesale!$L11 -> -607.4660901 | L19: =[1]FinStat_Wholesale!$M11 -> -622.6502057 | M19: =[1]FinStat_Wholesale!$N11 -> -635.0241544 | N19: =[1]FinStat_Wholesale!$O11 -> -638.227781 | O19: =[1]FinStat_Wholesale!$P11 -> -631.4561558 | Q19: =SUM(I19:O19) -> -3134.824387 | S19: =[2]FinStat_Wholesale!$J11 -> 0 | T19: =[2]FinStat_Wholesale!$K11 -> 0 | U19: =[2]FinStat_Wholesale!$L11 -> -515.5543414 | V19: =[2]FinStat_Wholesale!$M11 -> -530.6403414 | W19: =[2]FinStat_Wholesale!$N11 -> -548.5980857 | X19: =[2]FinStat_Wholesale!$O11 -> -562.5967682 | Y19: =[2]FinStat_Wholesale!$P11 -> -572.036399 | AA19: =SUM(S19:Y19) -> -2729.425936 | AC19: 0 | AD19: 0 | AE19: -91.912 | AF19: -92.01 | AG19: -86.426 | AH19: -75.631 | AI19: -59.42 | AK19: -405.398 | AM19: 0 | AN19: 0 | AO19: 0.1782780061 | AP19: 0.1733942801 | AQ19: 0.1575397404 | AR19: 0.1344319845 | AS19: 0.1038745089 | AU19: 0.1485286685
E20: Operating income - Wholesale - nominal | G20: £m | I20: =[1]FinStat_Wholesale!$J12 -> 0 | J20: =[1]FinStat_Wholesale!$K12 -> 0 | K20: =[1]FinStat_Wholesale!$L12 -> 0 | L20: =[1]FinStat_Wholesale!$M12 -> 0 | M20: =[1]FinStat_Wholesale!$N12 -> 0 | N20: =[1]FinStat_Wholesale!$O12 -> 0 | O20: =[1]FinStat_Wholesale!$P12 -> 0 | Q20: =SUM(I20:O20) -> 0 | S20: =[2]FinStat_Wholesale!$J12 -> 0 | T20: =[2]FinStat_Wholesale!$K12 -> 0 | U20: =[2]FinStat_Wholesale!$L12 -> 0 | V20: =[2]FinStat_Wholesale!$M12 -> 0 | W20: =[2]FinStat_Wholesale!$N12 -> 0 | X20: =[2]FinStat_Wholesale!$O12 -> 0 | Y20: =[2]FinStat_Wholesale!$P12 -> 0 | AA20: =SUM(S20:Y20) -> 0 | AC20: 0 | AD20: 0 | AE20: 0 | AF20: 0 | AG20: 0 | AH20: 0 | AI20: 0 | AK20: 0 | AM20: 0 | AN20: 0 | AO20: 0 | AP20: 0 | AQ20: 0 | AR20: 0 | AS20: 0 | AU20: 0
E21: EBITDA - Wholesale - nominal | G21: £m | I21: =[1]FinStat_Wholesale!$J13 -> 0 | J21: =[1]FinStat_Wholesale!$K13 -> 0 | K21: =[1]FinStat_Wholesale!$L13 -> 614.0175981 | L21: =[1]FinStat_Wholesale!$M13 -> 654.7752516 | M21: =[1]FinStat_Wholesale!$N13 -> 687.7821399 | N21: =[1]FinStat_Wholesale!$O13 -> 731.5718574 | O21: =[1]FinStat_Wholesale!$P13 -> 776.5003993 | Q21: =SUM(I21:O21) -> 3464.647246 | S21: =[2]FinStat_Wholesale!$J13 -> 0 | T21: =[2]FinStat_Wholesale!$K13 -> 0 | U21: =[2]FinStat_Wholesale!$L13 -> 608.1761446 | V21: =[2]FinStat_Wholesale!$M13 -> 639.409195 | W21: =[2]FinStat_Wholesale!$N13 -> 651.8474101 | X21: =[2]FinStat_Wholesale!$O13 -> 668.4622379 | Y21: =[2]FinStat_Wholesale!$P13 -> 689.7899871 | AA21: =SUM(S21:Y21) -> 3257.684975 | AC21: 0 | AD21: 0 | AE21: 5.841 | AF21: 15.366 | AG21: 35.935 | AH21: 63.11 | AI21: 86.71 | AK21: 206.962 | AM21: 0 | AN21: 0 | AO21: 0.009604125469 | AP21: 0.02403155932 | AQ21: 0.05512793247 | AR21: 0.09441071825 | AS21: 0.125704927 | AU21: 0.06353039094
AC22: 0 | AD22: 0 | AE22: 0 | AF22: 0 | AG22: 0 | AH22: 0 | AI22: 0 | AK22: 0 | AM22: 0 | AN22: 0 | AO22: 0 | AP22: 0 | AQ22: 0 | AR22: 0 | AS22: 0 | AU22: 0
E23: Fixed asset depreciation - Wholesale - nominal | G23: £m | I23: =[1]FinStat_Wholesale!$J15 -> 0 | J23: =[1]FinStat_Wholesale!$K15 -> 0 | K23: =[1]FinStat_Wholesale!$L15 -> -337.5859799 | L23: =[1]FinStat_Wholesale!$M15 -> -353.8280596 | M23: =[1]FinStat_Wholesale!$N15 -> -370.7605159 | N23: =[1]FinStat_Wholesale!$O15 -> -395.4637988 | O23: =[1]FinStat_Wholesale!$P15 -> -431.018124 | Q23: =SUM(I23:O23) -> -1888.656478 | S23: =[2]FinStat_Wholesale!$J15 -> 0 | T23: =[2]FinStat_Wholesale!$K15 -> 0 | U23: =[2]FinStat_Wholesale!$L15 -> -336.1857565 | V23: =[2]FinStat_Wholesale!$M15 -> -350.3012339 | W23: =[2]FinStat_Wholesale!$N15 -> -365.2916869 | X23: =[2]FinStat_Wholesale!$O15 -> -385.7440263 | Y23: =[2]FinStat_Wholesale!$P15 -> -415.4760415 | AA23: =SUM(S23:Y23) -> -1852.998745 | AC23: 0 | AD23: 0 | AE23: -1.4 | AF23: -3.527 | AG23: -5.469 | AH23: -9.72 | AI23: -15.542 | AK23: -35.658 | AM23: 0 | AN23: 0 | AO23: 0.004164364411 | AP23: 0.01006847724 | AQ23: 0.01497159721 | AR23: 0.0251980571 | AS23: 0.03740769249 | AU23: 0.01924340213
E24: Earnings before interest and tax (EBIT) - Wholesale - nominal | G24: £m | I24: =[1]FinStat_Wholesale!$J16 -> 0 | J24: =[1]FinStat_Wholesale!$K16 -> 0 | K24: =[1]FinStat_Wholesale!$L16 -> 276.4316182 | L24: =[1]FinStat_Wholesale!$M16 -> 300.947192 | M24: =[1]FinStat_Wholesale!$N16 -> 317.021624 | N24: =[1]FinStat_Wholesale!$O16 -> 336.1080587 | O24: =[1]FinStat_Wholesale!$P16 -> 345.4822753 | Q24: =SUM(I24:O24) -> 1575.990768 | S24: =[2]FinStat_Wholesale!$J16 -> 0 | T24: =[2]FinStat_Wholesale!$K16 -> 0 | U24: =[2]FinStat_Wholesale!$L16 -> 271.990388 | V24: =[2]FinStat_Wholesale!$M16 -> 289.1079611 | W24: =[2]FinStat_Wholesale!$N16 -> 286.5557232 | X24: =[2]FinStat_Wholesale!$O16 -> 282.7182116 | Y24: =[2]FinStat_Wholesale!$P16 -> 274.3139456 | AA24: =SUM(S24:Y24) -> 1404.68623 | AC24: 0 | AD24: 0 | AE24: 4.441 | AF24: 11.839 | AG24: 30.466 | AH24: 53.39 | AI24: 71.168 | AK24: 171.305 | AM24: 0 | AN24: 0 | AO24: 0.01632778287 | AP24: 0.04095010028 | AQ24: 0.1063178905 | AR24: 0.1888452806 | AS24: 0.2594399634 | AU24: 0.1219525018
AC25: 0 | AD25: 0 | AE25: 0 | AF25: 0 | AG25: 0 | AH25: 0 | AI25: 0 | AK25: 0 | AM25: 0 | AN25: 0 | AO25: 0 | AP25: 0 | AQ25: 0 | AR25: 0 | AS25: 0 | AU25: 0
E26: Other income (incl. 3rd party income) - Wholesale - nominal | G26: £m | I26: =[1]FinStat_Wholesale!$J18 -> 0 | J26: =[1]FinStat_Wholesale!$K18 -> 0 | K26: =[1]FinStat_Wholesale!$L18 -> 26.84821871 | L26: =[1]FinStat_Wholesale!$M18 -> 27.98802285 | M26: =[1]FinStat_Wholesale!$N18 -> 28.68586981 | N26: =[1]FinStat_Wholesale!$O18 -> 29.404591 | O26: =[1]FinStat_Wholesale!$P18 -> 29.7964887 | Q26: =SUM(I26:O26) -> 142.7231911 | S26: =[2]FinStat_Wholesale!$J18 -> 0 | T26: =[2]FinStat_Wholesale!$K18 -> 0 | U26: =[2]FinStat_Wholesale!$L18 -> 26.74367765 | V26: =[2]FinStat_Wholesale!$M18 -> 27.88019114 | W26: =[2]FinStat_Wholesale!$N18 -> 28.5963958 | X26: =[2]FinStat_Wholesale!$O18 -> 29.34161334 | Y26: =[2]FinStat_Wholesale!$P18 -> 29.76182137 | AA26: =SUM(S26:Y26) -> 142.3236993 | AC26: 0 | AD26: 0 | AE26: 0.105 | AF26: 0.108 | AG26: 0.089 | AH26: 0.063 | AI26: 0.035 | AK26: 0.399 | AM26: 0 | AN26: 0 | AO26: 0.003926161591 | AP26: 0.003873718062 | AQ26: 0.003112280324 | AR26: 0.002147121198 | AS26: 0.001176003295 | AU26: 0.002803468445
E27: Interest income /(expense) excl. indexation of index-linked loans - Wholesale - nominal | G27: £m | I27: =[1]FinStat_Wholesale!$J19 -> 0 | J27: =[1]FinStat_Wholesale!$K19 -> 0 | K27: =[1]FinStat_Wholesale!$L19 -> -163.5433936 | L27: =[1]FinStat_Wholesale!$M19 -> -173.0775384 | M27: =[1]FinStat_Wholesale!$N19 -> -187.6657314 | N27: =[1]FinStat_Wholesale!$O19 -> -205.7489711 | O27: =[1]FinStat_Wholesale!$P19 -> -220.7390246 | Q27: =SUM(I27:O27) -> -950.7746591 | S27: =[2]FinStat_Wholesale!$J19 -> 0 | T27: =[2]FinStat_Wholesale!$K19 -> 0 | U27: =[2]FinStat_Wholesale!$L19 -> -151.569324 | V27: =[2]FinStat_Wholesale!$M19 -> -156.8162031 | W27: =[2]FinStat_Wholesale!$N19 -> -166.6902893 | X27: =[2]FinStat_Wholesale!$O19 -> -177.1622064 | Y27: =[2]FinStat_Wholesale!$P19 -> -182.6613979 | AA27: =SUM(S27:Y27) -> -834.8994207 | AC27: 0 | AD27: 0 | AE27: -11.974 | AF27: -16.261 | AG27: -20.975 | AH27: -28.587 | AI27: -38.078 | AK27: -115.875 | AM27: 0 | AN27: 0 | AO27: 0.07900015443 | AP27: 0.1036946417 | AQ27: 0.1258321651 | AR27: 0.1613606005 | AS27: 0.2084622172 | AU27: 0.1387891728
E28: Indexation of index-linked loans - Wholesale - nominal | G28: £m | I28: =[1]FinStat_Wholesale!$J20 -> 0 | J28: =[1]FinStat_Wholesale!$K20 -> 0 | K28: =[1]FinStat_Wholesale!$L20 -> -47.32520657 | L28: =[1]FinStat_Wholesale!$M20 -> -48.74496277 | M28: =[1]FinStat_Wholesale!$N20 -> -50.20731165 | N28: =[1]FinStat_Wholesale!$O20 -> -51.713531 | O28: =[1]FinStat_Wholesale!$P20 -> -53.26493693 | Q28: =SUM(I28:O28) -> -251.2559489 | S28: =[2]FinStat_Wholesale!$J20 -> 0 | T28: =[2]FinStat_Wholesale!$K20 -> 0 | U28: =[2]FinStat_Wholesale!$L20 -> -46.80446748 | V28: =[2]FinStat_Wholesale!$M20 -> -48.20860151 | W28: =[2]FinStat_Wholesale!$N20 -> -49.65485955 | X28: =[2]FinStat_Wholesale!$O20 -> -51.14450534 | Y28: =[2]FinStat_Wholesale!$P20 -> -52.6788405 | AA28: =SUM(S28:Y28) -> -248.4912744 | AC28: 0 | AD28: 0 | AE28: -0.521 | AF28: -0.536 | AG28: -0.552 | AH28: -0.569 | AI28: -0.586 | AK28: -2.765 | AM28: 0 | AN28: 0 | AO28: 0.01113141604 | AP28: 0.01111834783 | AQ28: 0.01111673671 | AR28: 0.01112533978 | AS28: 0.01112401098 | AU28: 0.01112715127
E29: Earnings before tax (EBT) - Wholesale - nominal | G29: £m | I29: =[1]FinStat_Wholesale!$J21 -> 0 | J29: =[1]FinStat_Wholesale!$K21 -> 0 | K29: =[1]FinStat_Wholesale!$L21 -> 92.41123675 | L29: =[1]FinStat_Wholesale!$M21 -> 107.1127136 | M29: =[1]FinStat_Wholesale!$N21 -> 107.8344508 | N29: =[1]FinStat_Wholesale!$O21 -> 108.0501476 | O29: =[1]FinStat_Wholesale!$P21 -> 101.2748025 | Q29: =SUM(I29:O29) -> 516.6833513 | S29: =[2]FinStat_Wholesale!$J21 -> 0 | T29: =[2]FinStat_Wholesale!$K21 -> 0 | U29: =[2]FinStat_Wholesale!$L21 -> 100.3602743 | V29: =[2]FinStat_Wholesale!$M21 -> 111.9633476 | W29: =[2]FinStat_Wholesale!$N21 -> 98.80697015 | X29: =[2]FinStat_Wholesale!$O21 -> 83.75311322 | Y29: =[2]FinStat_Wholesale!$P21 -> 68.73552853 | AA29: =SUM(S29:Y29) -> 463.6192338 | AC29: 0 | AD29: 0 | AE29: -7.949 | AF29: -4.851 | AG29: 9.027 | AH29: 24.297 | AI29: 32.539 | AK29: 53.064 | AM29: 0 | AN29: 0 | AO29: -0.07920464605 | AP29: -0.04332667879 | AQ29: 0.0913599515 | AR29: 0.2901026489 | AS29: 0.4733941922 | AU29: 0.1144559935
AC30: 0 | AD30: 0 | AE30: 0 | AF30: 0 | AG30: 0 | AH30: 0 | AI30: 0 | AK30: 0 | AM30: 0 | AN30: 0 | AO30: 0 | AP30: 0 | AQ30: 0 | AR30: 0 | AS30: 0 | AU30: 0
E31: Current tax - wholesale - nominal | F31: PL | G31: £m | I31: =[1]FinStat_Wholesale!$J23 -> 0 | J31: =[1]FinStat_Wholesale!$K23 -> 0 | K31: =[1]FinStat_Wholesale!$L23 -> 0 | L31: =[1]FinStat_Wholesale!$M23 -> 0 | M31: =[1]FinStat_Wholesale!$N23 -> 0 | N31: =[1]FinStat_Wholesale!$O23 -> 0 | O31: =[1]FinStat_Wholesale!$P23 -> 0 | Q31: =SUM(I31:O31) -> 0 | S31: =[2]FinStat_Wholesale!$J23 -> 0 | T31: =[2]FinStat_Wholesale!$K23 -> 0 | U31: =[2]FinStat_Wholesale!$L23 -> 0 | V31: =[2]FinStat_Wholesale!$M23 -> 0 | W31: =[2]FinStat_Wholesale!$N23 -> 0 | X31: =[2]FinStat_Wholesale!$O23 -> 0 | Y31: =[2]FinStat_Wholesale!$P23 -> 0 | AA31: =SUM(S31:Y31) -> 0 | AC31: 0 | AD31: 0 | AE31: 0 | AF31: 0 | AG31: 0 | AH31: 0 | AI31: 0 | AK31: 0 | AM31: 0 | AN31: 0 | AO31: 0 | AP31: 0 | AQ31: 0 | AR31: 0 | AS31: 0 | AU31: 0
E32: Movement in deferred tax provision - Wholesale - nominal | G32: £m | I32: =[1]FinStat_Wholesale!$J24 -> 0 | J32: =[1]FinStat_Wholesale!$K24 -> 0 | K32: =[1]FinStat_Wholesale!$L24 -> -11.96722443 | L32: =[1]FinStat_Wholesale!$M24 -> -8.782914335 | M32: =[1]FinStat_Wholesale!$N24 -> -7.17186654 | N32: =[1]FinStat_Wholesale!$O24 -> -7.155336643 | O32: =[1]FinStat_Wholesale!$P24 -> -1.787467552 | Q32: =SUM(I32:O32) -> -36.8648095 | S32: =[2]FinStat_Wholesale!$J24 -> 0 | T32: =[2]FinStat_Wholesale!$K24 -> 0 | U32: =[2]FinStat_Wholesale!$L24 -> -10.95463678 | V32: =[2]FinStat_Wholesale!$M24 -> -7.628615246 | W32: =[2]FinStat_Wholesale!$N24 -> -5.268253689 | X32: =[2]FinStat_Wholesale!$O24 -> -2.938864941 | Y32: =[2]FinStat_Wholesale!$P24 -> 3.458637214 | AA32: =SUM(S32:Y32) -> -23.33173344 | AC32: 0 | AD32: 0 | AE32: -1.013 | AF32: -1.154 | AG32: -1.904 | AH32: -4.216 | AI32: -5.246 | AK32: -13.533 | AM32: 0 | AN32: 0 | AO32: 0.09247225812 | AP32: 0.1512725393 | AQ32: 0.3614100824 | AR32: 1.434567455 | AS32: -1.516782384 | AU32: 0.5800254847
E33: Earnings after tax (EAT) - Wholesale - nominal | G33: £m | I33: =[1]FinStat_Wholesale!$J25 -> 0 | J33: =[1]FinStat_Wholesale!$K25 -> 0 | K33: =[1]FinStat_Wholesale!$L25 -> 80.44401232 | L33: =[1]FinStat_Wholesale!$M25 -> 98.32979931 | M33: =[1]FinStat_Wholesale!$N25 -> 100.6625843 | N33: =[1]FinStat_Wholesale!$O25 -> 100.894811 | O33: =[1]FinStat_Wholesale!$P25 -> 99.48733497 | Q33: =SUM(I33:O33) -> 479.8185418 | S33: =[2]FinStat_Wholesale!$J25 -> 0 | T33: =[2]FinStat_Wholesale!$K25 -> 0 | U33: =[2]FinStat_Wholesale!$L25 -> 89.40563748 | V33: =[2]FinStat_Wholesale!$M25 -> 104.3347324 | W33: =[2]FinStat_Wholesale!$N25 -> 93.53871646 | X33: =[2]FinStat_Wholesale!$O25 -> 80.81424828 | Y33: =[2]FinStat_Wholesale!$P25 -> 72.19416574 | AA33: =SUM(S33:Y33) -> 440.2875003 | AC33: 0 | AD33: 0 | AE33: -8.962 | AF33: -6.005 | AG33: 7.124 | AH33: 20.081 | AI33: 27.293 | AK33: 39.531 | AM33: 0 | AN33: 0 | AO33: -0.100239764 | AP33: -0.05755513876 | AQ33: 0.07616097665 | AR33: 0.2484834101 | AS33: 0.3780499396 | AU33: 0.08978451573
AC34: 0 | AD34: 0 | AE34: 0 | AF34: 0 | AG34: 0 | AH34: 0 | AI34: 0 | AK34: 0 | AM34: 0 | AN34: 0 | AO34: 0 | AP34: 0 | AQ34: 0 | AR34: 0 | AS34: 0 | AU34: 0
E35: Dividend - Wholesale - nominal | G35: £m | I35: =[1]FinStat_Wholesale!$J27 -> 0 | J35: =[1]FinStat_Wholesale!$K27 -> 0 | K35: =[1]FinStat_Wholesale!$L27 -> -87.09800188 | L35: =[1]FinStat_Wholesale!$M27 -> -90.0393014 | M35: =[1]FinStat_Wholesale!$N27 -> -93.07992861 | N35: =[1]FinStat_Wholesale!$O27 -> -96.2232378 | O35: =[1]FinStat_Wholesale!$P27 -> -99.47269654 | Q35: =SUM(I35:O35) -> -465.9131662 | S35: =[2]FinStat_Wholesale!$J27 -> 0 | T35: =[2]FinStat_Wholesale!$K27 -> 0 | U35: =[2]FinStat_Wholesale!$L27 -> -59.91811815 | V35: =[2]FinStat_Wholesale!$M27 -> -61.84020022 | W35: =[2]FinStat_Wholesale!$N27 -> -63.86831862 | X35: =[2]FinStat_Wholesale!$O27 -> -65.97902604 | Y35: =[2]FinStat_Wholesale!$P27 -> -68.1594877 | AA35: =SUM(S35:Y35) -> -319.7651507 | AC35: 0 | AD35: 0 | AE35: -27.18 | AF35: -28.199 | AG35: -29.212 | AH35: -30.244 | AI35: -31.313 | AK35: -146.148 | AM35: 0 | AN35: 0 | AO35: 0.4536190528 | AP35: 0.4559978768 | AQ35: 0.4573785663 | AR35: 0.4583880941 | AS35: 0.4594077957 | AU35: 0.4570479293
E36: Retained earnings - Wholesale - nominal | G36: £m | I36: =[1]FinStat_Wholesale!$J28 -> 0 | J36: =[1]FinStat_Wholesale!$K28 -> 0 | K36: =[1]FinStat_Wholesale!$L28 -> -6.653989552 | L36: =[1]FinStat_Wholesale!$M28 -> 8.290497914 | M36: =[1]FinStat_Wholesale!$N28 -> 7.582655656 | N36: =[1]FinStat_Wholesale!$O28 -> 4.671573183 | O36: =[1]FinStat_Wholesale!$P28 -> 0.01463842909 | Q36: =SUM(I36:O36) -> 13.90537563 | S36: =[2]FinStat_Wholesale!$J28 -> 0 | T36: =[2]FinStat_Wholesale!$K28 -> 0 | U36: =[2]FinStat_Wholesale!$L28 -> 29.48751932 | V36: =[2]FinStat_Wholesale!$M28 -> 42.49453217 | W36: =[2]FinStat_Wholesale!$N28 -> 29.67039784 | X36: =[2]FinStat_Wholesale!$O28 -> 14.83522224 | Y36: =[2]FinStat_Wholesale!$P28 -> 4.034678042 | AA36: =SUM(S36:Y36) -> 120.5223496 | AC36: 0 | AD36: 0 | AE36: -36.142 | AF36: -34.204 | AG36: -22.088 | AH36: -10.164 | AI36: -4.02 | AK36: -106.617 | AM36: 0 | AN36: 0 | AO36: -1.225671092 | AP36: -0.8049035546 | AQ36: -0.7444456971 | AR36: -0.6851262378 | AS36: -0.9963620288 | AU36: -0.884624307
AC37: 0 | AD37: 0 | AE37: 0 | AF37: 0 | AG37: 0 | AH37: 0 | AI37: 0 | AK37: 0 | AM37: 0 | AN37: 0 | AO37: 0 | AP37: 0 | AQ37: 0 | AR37: 0 | AS37: 0 | AU37: 0
B38: Retained earnings balance - Wholesale | AC38: 0 | AD38: 0 | AE38: 0 | AF38: 0 | AG38: 0 | AH38: 0 | AI38: 0 | AK38: 0 | AM38: 0 | AN38: 0 | AO38: 0 | AP38: 0 | AQ38: 0 | AR38: 0 | AS38: 0 | AU38: 0
E39: Accumulated profit reserve b/f | G39: £m | I39: =[1]FinStat_Wholesale!$J31 -> 0 | J39: =[1]FinStat_Wholesale!$K31 -> 2749.585105 | K39: =[1]FinStat_Wholesale!$L31 -> 0 | L39: =[1]FinStat_Wholesale!$M31 -> 0 | M39: =[1]FinStat_Wholesale!$N31 -> 0 | N39: =[1]FinStat_Wholesale!$O31 -> 0 | O39: =[1]FinStat_Wholesale!$P31 -> 0 | Q39: =SUM(I39:O39) -> 2749.585105 | S39: =[2]FinStat_Wholesale!$J31 -> 0 | T39: =[2]FinStat_Wholesale!$K31 -> 2194.144013 | U39: =[2]FinStat_Wholesale!$L31 -> 0 | V39: =[2]FinStat_Wholesale!$M31 -> 0 | W39: =[2]FinStat_Wholesale!$N31 -> 0 | X39: =[2]FinStat_Wholesale!$O31 -> 0 | Y39: =[2]FinStat_Wholesale!$P31 -> 0 | AA39: =SUM(S39:Y39) -> 2194.144013 | AC39: 0 | AD39: 555.441 | AE39: 0 | AF39: 0 | AG39: 0 | AH39: 0 | AI39: 0 | AK39: 555.441 | AM39: 0 | AN39: 0.2531470116 | AO39: 0 | AP39: 0 | AQ39: 0 | AR39: 0 | AS39: 0 | AU39: 0.2531470116
E40: Last pre-forecast period flag | F40: 0 | G40: flag | I40: =[1]FinStat_Wholesale!$J32 -> 0 | J40: =[1]FinStat_Wholesale!$K32 -> 1 | K40: =[1]FinStat_Wholesale!$L32 -> 0 | L40: =[1]FinStat_Wholesale!$M32 -> 0 | M40: =[1]FinStat_Wholesale!$N32 -> 0 | N40: =[1]FinStat_Wholesale!$O32 -> 0 | O40: =[1]FinStat_Wholesale!$P32 -> 0 | Q40: =SUM(I40:O40) -> 1 | S40: =[2]FinStat_Wholesale!$J32 -> 0 | T40: =[2]FinStat_Wholesale!$K32 -> 1 | U40: =[2]FinStat_Wholesale!$L32 -> 0 | V40: =[2]FinStat_Wholesale!$M32 -> 0 | W40: =[2]FinStat_Wholesale!$N32 -> 0 | X40: =[2]FinStat_Wholesale!$O32 -> 0 | Y40: =[2]FinStat_Wholesale!$P32 -> 0 | AA40: =SUM(S40:Y40) -> 1 | AC40: 0 | AD40: 0 | AE40: 0 | AF40: 0 | AG40: 0 | AH40: 0 | AI40: 0 | AK40: 0 | AM40: 0 | AN40: 0 | AO40: 0 | AP40: 0 | AQ40: 0 | AR40: 0 | AS40: 0 | AU40: 0
AC41: 0 | AD41: 0 | AE41: 0 | AF41: 0 | AG41: 0 | AH41: 0 | AI41: 0 | AK41: 0 | AM41: 0 | AN41: 0 | AO41: 0 | AP41: 0 | AQ41: 0 | AR41: 0 | AS41: 0 | AU41: 0
E42: Retained earnings balance - Wholesale BEG - nominal | G42: £m | I42: =[1]FinStat_Wholesale!$J34 -> 0 | J42: =[1]FinStat_Wholesale!$K34 -> 0 | K42: =[1]FinStat_Wholesale!$L34 -> 2749.585105 | L42: =[1]FinStat_Wholesale!$M34 -> 2742.931116 | M42: =[1]FinStat_Wholesale!$N34 -> 2751.221614 | N42: =[1]FinStat_Wholesale!$O34 -> 2758.804269 | O42: =[1]FinStat_Wholesale!$P34 -> 2763.475843 | Q42: =SUM(I42:O42) -> 13766.01795 | S42: =[2]FinStat_Wholesale!$J34 -> 0 | T42: =[2]FinStat_Wholesale!$K34 -> 0 | U42: =[2]FinStat_Wholesale!$L34 -> 2194.144013 | V42: =[2]FinStat_Wholesale!$M34 -> 2223.631532 | W42: =[2]FinStat_Wholesale!$N34 -> 2266.126065 | X42: =[2]FinStat_Wholesale!$O34 -> 2295.796462 | Y42: =[2]FinStat_Wholesale!$P34 -> 2310.631685 | AA42: =SUM(S42:Y42) -> 11290.32976 | AC42: 0 | AD42: 0 | AE42: 555.441 | AF42: 519.3 | AG42: 485.096 | AH42: 463.008 | AI42: 452.844 | AK42: 2475.688 | AM42: 0 | AN42: 0 | AO42: 0.2531470116 | AP42: 0.2335368933 | AQ42: 0.2140639956 | AR42: 0.201676415 | AS42: 0.1959827709 | AU42: 0.2192750835
D43: plus | E43: Retained earnings - Wholesale - nominal | F43: 0 | G43: £m | I43: =[1]FinStat_Wholesale!$J35 -> 0 | J43: =[1]FinStat_Wholesale!$K35 -> 0 | K43: =[1]FinStat_Wholesale!$L35 -> -6.653989552 | L43: =[1]FinStat_Wholesale!$M35 -> 8.290497914 | M43: =[1]FinStat_Wholesale!$N35 -> 7.582655656 | N43: =[1]FinStat_Wholesale!$O35 -> 4.671573183 | O43: =[1]FinStat_Wholesale!$P35 -> 0.01463842909 | Q43: =SUM(I43:O43) -> 13.90537563 | S43: =[2]FinStat_Wholesale!$J35 -> 0 | T43: =[2]FinStat_Wholesale!$K35 -> 0 | U43: =[2]FinStat_Wholesale!$L35 -> 29.48751932 | V43: =[2]FinStat_Wholesale!$M35 -> 42.49453217 | W43: =[2]FinStat_Wholesale!$N35 -> 29.67039784 | X43: =[2]FinStat_Wholesale!$O35 -> 14.83522224 | Y43: =[2]FinStat_Wholesale!$P35 -> 4.034678042 | AA43: =SUM(S43:Y43) -> 120.5223496 | AC43: 0 | AD43: 0 | AE43: -36.142 | AF43: -34.204 | AG43: -22.088 | AH43: -10.164 | AI43: -4.02 | AK43: -106.617 | AM43: 0 | AN43: 0 | AO43: -1.225671092 | AP43: -0.8049035546 | AQ43: -0.7444456971 | AR43: -0.6851262378 | AS43: -0.9963620288 | AU43: -0.884624307
E44: Retained earnings balance - Wholesale - nominal | G44: £m | I44: =[1]FinStat_Wholesale!$J36 -> 0 | J44: =[1]FinStat_Wholesale!$K36 -> 2749.585105 | K44: =[1]FinStat_Wholesale!$L36 -> 2742.931116 | L44: =[1]FinStat_Wholesale!$M36 -> 2751.221614 | M44: =[1]FinStat_Wholesale!$N36 -> 2758.804269 | N44: =[1]FinStat_Wholesale!$O36 -> 2763.475843 | O44: =[1]FinStat_Wholesale!$P36 -> 2763.490481 | Q44: =SUM(I44:O44) -> 16529.50843 | S44: =[2]FinStat_Wholesale!$J36 -> 0 | T44: =[2]FinStat_Wholesale!$K36 -> 2194.144013 | U44: =[2]FinStat_Wholesale!$L36 -> 2223.631532 | V44: =[2]FinStat_Wholesale!$M36 -> 2266.126065 | W44: =[2]FinStat_Wholesale!$N36 -> 2295.796462 | X44: =[2]FinStat_Wholesale!$O36 -> 2310.631685 | Y44: =[2]FinStat_Wholesale!$P36 -> 2314.666363 | AA44: =SUM(S44:Y44) -> 13604.99612 | AC44: 0 | AD44: 555.441 | AE44: 519.3 | AF44: 485.096 | AG44: 463.008 | AH44: 452.844 | AI44: 448.824 | AK44: 2924.512 | AM44: 0 | AN44: 0.2531470116 | AO44: 0.2335368933 | AP44: 0.2140639956 | AQ44: 0.201676415 | AR44: 0.1959827709 | AS44: 0.1939044033 | AU44: 0.2149586795
A47: CASH FLOW
B49: Cash flow from operating activities
E50: Earnings before interest and tax (EBIT) - Wholesale - nominal | F50: 0 | G50: £m | I50: =[1]FinStat_Wholesale!$J43 -> 0 | J50: =[1]FinStat_Wholesale!$K43 -> 0 | K50: =[1]FinStat_Wholesale!$L43 -> 276.4316182 | L50: =[1]FinStat_Wholesale!$M43 -> 300.947192 | M50: =[1]FinStat_Wholesale!$N43 -> 317.021624 | N50: =[1]FinStat_Wholesale!$O43 -> 336.1080587 | O50: =[1]FinStat_Wholesale!$P43 -> 345.4822753 | Q50: =SUM(I50:O50) -> 1575.990768 | S50: =[2]FinStat_Wholesale!$J43 -> 0 | T50: =[2]FinStat_Wholesale!$K43 -> 0 | U50: =[2]FinStat_Wholesale!$L43 -> 271.990388 | V50: =[2]FinStat_Wholesale!$M43 -> 289.1079611 | W50: =[2]FinStat_Wholesale!$N43 -> 286.5557232 | X50: =[2]FinStat_Wholesale!$O43 -> 282.7182116 | Y50: =[2]FinStat_Wholesale!$P43 -> 274.3139456 | AA50: =SUM(S50:Y50) -> 1404.68623 | AC50: =ROUND(I50 - S50, 3) -> 0 | AD50: =ROUND(J50 - T50, 3) -> 0 | AE50: =ROUND(K50 - U50, 3) -> 4.441 | AF50: =ROUND(L50 - V50, 3) -> 11.839 | AG50: =ROUND(M50 - W50, 3) -> 30.466 | AH50: =ROUND(N50 - X50, 3) -> 53.39 | AI50: =ROUND(O50 - Y50, 3) -> 71.168 | AK50: =ROUND(Q50 - AA50, 3) -> 171.305 | AM50: =IF(S50 = 0, 0, AC50 / S50) -> 0 | AN50: =IF(T50 = 0, 0, AD50 / T50) -> 0 | AO50: =IF(U50 = 0, 0, AE50 / U50) -> 0.01632778287 | AP50: =IF(V50 = 0, 0, AF50 / V50) -> 0.04095010028 | AQ50: =IF(W50 = 0, 0, AG50 / W50) -> 0.1063178905 | AR50: =IF(X50 = 0, 0, AH50 / X50) -> 0.1888452806 | AS50: =IF(Y50 = 0, 0, AI50 / Y50) -> 0.2594399634 | AU50: =IF(AA50 = 0, 0, AK50 / AA50) -> 0.1219525018
